Workbook

Sheet VALORES PENDENTES
B2: Superior Tribunal de Justiça
B3: Secretaria de Processamento de Feitos
B4: Coordenadoria de Processamento de Feitos em Execução Judicial
B6: RELAÇÃO DOS PRECATÓRIOS PENDENTES DE PAGAMENTO em 31/12/2024
B9: MUNICÍPIO DE JOÃO PESSOA/PB
B11: Processo | D11: Registro | F11: Tribunal | G11: Ação de origem | H11: Trânsito em julgado da ação de origem | I11: Trânsito em julgado - Expedição do PRC | J11: Data da Expedição do Precatório | K11: Entidade Devedora | L11: CNPJ Entidade Devedora | M11: Cidade | N11: Natureza do Crédito | Q11: Valores pendentes atualizados para dez/2024
B12: Classe | C12: nº | D12: STJ | E12: Nº único (Res. 65 CNJ) | T12: Requerente principal | U12: Advogado requerente I | V12: Advogado requerente II | W12: Advogado requerente III | X12: Advogado requerente IV | AC12: Total
A14: 1 | B14: PRC | C14: 1872 | D14: 2011/0141361-9 | E14: 0141361-33.2011.3.00.0000 | F14: STJ | G14: AR 729/PB | H14: 2004-10-13 | I14: 2010-03-15 | J14: 2011-06-20 | K14: Município de João Pessoa - PB | L14: 08.778.326/0001-56 | M14: João Pessoa/PB | N14: Alimentar | T14: =104868.77/2 -> 52434.385 | U14: 0 | V14: 0 | W14: 0 | X14: 0 | AC14: 52434.385
A15: 2 | B15: PRC | C15: 1873 | D15: 2011/0141366-8 | E15: 0141366-55.2011.3.00.0000 | F15: STJ | G15: AR 729/PB | H15: 2004-10-13 | I15: 2010-03-15 | J15: 2011-06-20 | K15: Município de João Pessoa - PB | L15: 08.778.326/0001-56 | M15: João Pessoa/PB | N15: Alimentar | T15: 52434.38 | U15: 0 | V15: 0 | W15: 0 | X15: 0 | AC15: 52434.38
T16: =SUM(T14:T15) -> 104868.765 | U16: 0 | V16: 0 | W16: 0 | X16: 0 | AC16: =SUM(AC14:AC15) -> 104868.765
B18: DISTRITO FEDERAL
B20: Processo | D20: Registro | F20: Tribunal | G20: Ação de origem | H20: Trânsito em julgado da ação de origem | I20: Trânsito em julgado - Expedição do PRC | J20: Data da Expedição do Precatório | K20: Entidade Devedora | L20: CNPJ Entidade Devedora | M20: Cidade | N20: Natureza do Crédito | Q20: Valores pendentes atualizados para dez/2024
B21: Classe | C21: nº | D21: STJ | E21: Nº único (Res. 65 CNJ) | T21: Requerente principal | U21: Advogado requerente I | V21: Advogado requerente II | W21: Advogado requerente III | X21: Advogado requerente IV | AC21: Total
A23: 1 | B23: PRC | C23: 4572 | D23: 2018/0149152-7 | E23: 0149152-41.2018.3.00.0000 | F23: STJ | G23: AR 4.000/DF | H23: 2016-05-05 | I23: 2018-04-12 | J23: 2018-06-20 | K23: Distrito Federal | L23: 00.394.601/0001-26 | M23: Brasilia/DF | N23: Alimentar | T23: 39145.69 | U23: 0 | V23: 0 | W23: 0 | X23: 0 | AC23: 39145.69
T24: 39145.69 | U24: 0 | V24: 0 | W24: 0 | X24: 0 | AC24: 39145.69
B26: MATO GROSSO
B28: Processo | D28: Registro | F28: Tribunal | G28: Ação de origem | H28: Trânsito em julgado da ação de origem | I28: Trânsito em julgado - Expedição do PRC | J28: Data da Expedição do Precatório | K28: Entidade Devedora | L28: CNPJ Entidade Devedora | M28: Cidade | N28: Natureza do Crédito | Q28: Valores pendentes atualizados para dez/2024
B29: Classe | C29: nº | D29: STJ | E29: Nº único (Res. 65 CNJ) | T29: Requerente principal | U29: Advogado requerente I | V29: Advogado requerente II | W29: Advogado requerente III | X29: Advogado requerente IV | AC29: Total
A31: 1 | B31: PRC | C31: 8251 | D31: 2021/0168536-8 | E31: 0168536-82.2021.3.00.0000 | F31: STJ | G31: AR 5.222/MT | H31: 2021-02-11 | I31: 2021-05-25 | J31: 2021-05-31 | K31: ESTADO DE MATO GROSSO | L31: 03.507.415/0001-44 | M31: Brasilia/DF | N31: Alimentar | T31: 52544.53 | U31: 0 | V31: 0 | W31: 0 | X31: 0 | AC31: 52544.53
T32: =SUM(T31) -> 52544.53 | U32: 0 | V32: 0 | W32: 0 | X32: 0 | AC32: =SUM(AC31) -> 52544.53
B33: ESTADO DE GOIÁS
B35: Processo | D35: Registro | F35: Tribunal | G35: Ação de origem | H35: Trânsito em julgado da ação de origem | I35: Trânsito em julgado - Expedição do PRC | J35: Data da Expedição do Precatório | K35: Entidade Devedora | L35: CNPJ Entidade Devedora | M35: Cidade | N35: Natureza do Crédito | Q35: Valores pendentes atualizados para dez/2024
B36: Classe | C36: nº | D36: STJ | E36: Nº único (Res. 65 CNJ) | T36: Requerente principal | U36: Advogado requerente I | V36: Advogado requerente II | W36: Advogado requerente III | X36: Advogado requerente IV | AC36: Total
A38: 1 | B38: PRC | C38: 9431 | D38: 2021/0383571-0 | E38: 0383571-98.2021.3.00.0000 | F38: STJ | G38: AR 3.983/GO | H38: 2019-09-23 | I38: 2021-05-07 | J38: 2021-11-29 | K38: ESTADO DE GOIÁS | L38: 01.409.580/0001-38 | M38: Brasilia/DF | N38: Alimentar | T38: 454475.55 | U38: 0 | V38: 0 | W38: 0 | X38: 0 | AC38: 454475.55
T39: =SUM(T38) -> 454475.55 | U39: 0 | V39: 0 | W39: 0 | X39: 0 | AC39: =SUM(AC38) -> 454475.55
B41: UNIÃO E OUTRAS ENTIDADES FEDERAIS DEVEDORAS
B43: Processo | D43: Registro | F43: Tribunal | G43: Ação de origem | H43: Trânsito em julgado da ação de origem | I43: Trânsito em julgado - Expedição do PRC | J43: Data da Expedição do Precatório | K43: Entidade Devedora | L43: CNPJ Entidade Devedora | M43: Cidade | N43: Natureza do Crédito | O43: VALORES BASE | Q43: indicadores de correção | T43: Valores pendentes atualizados para dez/2024 | AE43: % honorários dos advogados | AQ43: data inicial | AR43: data final | AS43: TAXA SELIC | AT43: 2021-12-01 | AU43: 2022-01-01 | AV43: 2022-02-01 | AW43: 2022-03-01 | AX43: 2022-04-01 | AY43: 2022-05-01 | AZ43: 2022-06-01 | BA43: 2022-07-01 | BB43: 2022-08-01 | BC43: 2022-09-01 | BD43: 2022-10-01 | BE43: 2022-11-01 | BF43: 2022-12-01 | BG43: 2023-01-01 | BH43: 2023-02-01 | BI43: 2023-03-01 | BJ43: 2023-04-01 | BK43: 2023-05-01 | BL43: 2023-06-01 | BM43: 2023-07-01 | BN43: 2023-08-01 | BO43: 2023-09-01 | BP43: 2023-10-01 | BQ43: 2023-11-01 | BR43: 2023-12-01 | BS43: 2024-01-01 | BT43: 2024-02-01 | BU43: 2024-03-01 | BV43: 2024-04-01 | BW43: 2024-05-01 | BX43: 2024-06-01 | BY43: 2024-07-01 | BZ43: 2024-08-01 | CA43: 2024-09-01 | CB43: 2024-10-01 | CC43: 2024-11-01 | CD43: 2024-12-01 | CE43: 2025-01-01 | CF43: 2025-02-01
B44: Classe | C44: nº | D44: STJ | E44: Nº único (Res. 65 CNJ) | O44: data | P44: Requerente principal | Q44: fator | R44: juros de mora | S44: Selic | T44: Requerente principal | U44: Advogado requerente I | V44: Advogado requerente II | W44: Advogado requerente III | X44: Advogado requerente IV | Y44: juros período | Z44: selic/principal | AA44: selic/juros | AB44: vlor reqte adv4 | AC44: Total | AE44: % adv I | AF44: % adv II | AG44: % adv III | AH44: % adv IV | AR44: 2024-12-01 | AT44: 0.77 | AU44: 0.73 | AV44: 0.76 | AW44: 0.93 | AX44: 0.83 | AY44: 1.03 | AZ44: 1.02 | BA44: 1.03 | BB44: 1.17 | BC44: 1.07 | BD44: 1.02 | BE44: 1.02 | BF44: 1.12 | BG44: 1.12 | BH44: 0.92 | BI44: 1.17 | BJ44: 0.92 | BK44: 1.12 | BL44: 1.07 | BM44: 1.07 | BN44: 1.14 | BO44: 0.97 | BP44: 1 | BQ44: 0.92 | BR44: 0.89 | BS44: 0.97 | BT44: 0.8 | BU44: 0.83 | BV44: 0.89 | BW44: 0.83 | BX44: 0.79 | BY44: 0.91 | BZ44: 0.87 | CA44: 0.84 | CB44: 0.93 | CC44: 0.79
A46: =A45+1 -> 1 | B46: PRC | C46: 4291 | D46: 2017/0152947-2 | E46: 0152947-89.2017.3.00.0000 | F46: STJ | G46: MS 6.864/DF | H46: 2006-05-03 | I46: 2015-03-24 | J46: 2017-06-28 | K46: Instituto Nacional do Seguro Social - INSS | L46: 29.979.036/0083-97 | M46: Brasilia/DF | N46: Alimentar | O46: 2022-12-01 | P46: 90875.48 | Q46: 1.204222655 | R46: 0 | S46: 34.26 | T46: =AC46-U46 -> 110504.46 | U46: 7053.47 | V46: 0 | W46: 0 | X46: 0 | AC46: 117557.93 | AQ46: =O46 -> 2022-12-01 | AR46: =$AR$44 -> 2024-12-01 | AS46: =SUM(AT46:CF46) -> 22.88 | AT46: =IF(AT$43>$AR46,0,IF(AT$43>=$AQ46,AT$44,0)) -> 0 | AU46: =IF(AU$43>$AR46,0,IF(AU$43>=$AQ46,AU$44,0)) -> 0 | AV46: 0 | AW46: 0 | AX46: 0 | AY46: 0 | AZ46: 0 | BA46: 0 | BB46: 0 | BC46: 0 | BD46: 0 | BE46: 0 | BF46: 1.12 | BG46: 1.12 | BH46: 0.92 | BI46: 1.17 | BJ46: 0.92 | BK46: 1.12 | BL46: 1.07 | BM46: 1.07 | BN46: 1.14 | BO46: 0.97 | BP46: 1 | BQ46: 0.92 | BR46: 0.89 | BS46: 0.97 | BT46: 0.8 | BU46: 0.83 | BV46: 0.89 | BW46: 0.83 | BX46: 0.79 | BY46: 0.91 | BZ46: 0.87 | CA46: 0.84 | CB46: 0.93 | CC46: 0.79 | CD46: 0 | CE46: 0 | CF46: 0
A47: =A46+1 -> 2 | B47: PRC | C47: 4670 | D47: 2019/0049423-9 | E47: 0049423-08.2019.3.00.0000 | F47: STJ | G47: MS 23.107/DF | H47: 2017-10-10 | I47: 2018-11-23 | J47: 2019-02-20 | K47: UNIÃO | L47: 26.994.558/0001-23 | M47: Brasilia/DF | N47: Comum | O47: 2019-07-01 | P47: =VLOOKUP(C47,base2019,5,FALSE) -> 178103.84 | Q47: 1.159666673 | R47: =VLOOKUP(C47,base2019,10,FALSE) -> 2.4567 | S47: 34.26 | T47: =VLOOKUP(C47,base2019,19,FALSE) -> 224983.28 | U47: =VLOOKUP(C47,base2019,20,FALSE) -> 28122.9 | V47: =VLOOKUP(C47,base2019,21,FALSE) -> 28122.9 | W47: =VLOOKUP(C47,base2019,22,FALSE) -> 0 | X47: =VLOOKUP(C47,base2019,23,FALSE) -> 0 | Y47: =TRUNC(AB47*R47/100,2) ->  | Z47: =TRUNC(AB47*$AS47/100,2) ->  | AA47: =TRUNC(Y47*$AS47/100,2) ->  | AB47: =TRUNC(#REF!*Q47,2) ->  | AC47: =T47+U47+V47+W47+X47 -> 281229.08 | AQ47: 2021-12-01 | AR47: =$AR$44 -> 2024-12-01 | AS47: =SUM(AT47:CF47) -> 34.26 | AT47: =IF(AT$43>$AR47,0,IF(AT$43>=$AQ47,AT$44,0)) -> 0.77 | AU47: 0.73 | AV47: 0.76 | AW47: 0.93 | AX47: 0.83 | AY47: 1.03 | AZ47: 1.02 | BA47: 1.03 | BB47: 1.17 | BC47: 1.07 | BD47: 1.02 | BE47: 1.02 | BF47: 1.12 | BG47: 1.12 | BH47: 0.92 | BI47: 1.17 | BJ47: 0.92 | BK47: 1.12 | BL47: 1.07 | BM47: 1.07 | BN47: 1.14 | BO47: 0.97 | BP47: 1 | BQ47: 0.92 | BR47: 0.89 | BS47: 0.97 | BT47: 0.8 | BU47: 0.83 | BV47: 0.89 | BW47: 0.83 | BX47: 0.79 | BY47: 0.91 | BZ47: 0.87 | CA47: 0.84 | CB47: 0.93 | CC47: 0.79 | CD47: 0 | CE47: 0 | CF47: 0
A48: 3 | B48: PRC | C48: 4671 | D48: 2019/0049429-0 | E48: 0049429-15.2019.3.00.0000 | F48: STJ | G48: MS 23.267/DF | H48: 2017-06-28 | I48: 2018-12-18 | J48: 2019-02-20 | K48: UNIÃO | L48: 26.994.558/0001-23 | M48: Brasilia/DF | N48: Comum | O48: 2019-07-01 | P48: 210960.94 | Q48: 1.159666673 | R48: 2.4567 | S48: 34.26 | T48: 299799.93 | U48: 16655.55 | V48: 16655.55 | W48: 0 | X48: 0 | Y48: =TRUNC(AB48*R48/100,2) ->  | Z48: =TRUNC(AB48*$AS48/100,2) ->  | AA48: =TRUNC(Y48*$AS48/100,2) ->  | AB48: =TRUNC(#REF!*Q48,2) ->  | AC48: =T48+U48+V48+W48+X48 -> 333111.03 | AQ48: 2021-12-01 | AR48: 2024-12-01 | AS48: =SUM(AT48:CF48) -> 34.26 | AT48: 0.77 | AU48: 0.73 | AV48: 0.76 | AW48: 0.93 | AX48: 0.83 | AY48: 1.03 | AZ48: 1.02 | BA48: 1.03 | BB48: 1.17 | BC48: 1.07 | BD48: 1.02 | BE48: 1.02 | BF48: 1.12 | BG48: 1.12 | BH48: 0.92 | BI48: 1.17 | BJ48: 0.92 | BK48: 1.12 | BL48: 1.07 | BM48: 1.07 | BN48: 1.14 | BO48: 0.97 | BP48: 1 | BQ48: 0.92 | BR48: 0.89 | BS48: 0.97 | BT48: 0.8 | BU48: 0.83 | BV48: 0.89 | BW48: 0.83 | BX48: 0.79 | BY48: 0.91 | BZ48: 0.87 | CA48: 0.84 | CB48: 0.93 | CC48: 0.79 | CD48: 0 | CE48: 0 | CF48: 0
A49: 4 | B49: PRC | C49: 4683 | D49: 2019/0058875-9 | E49: 0058875-42.2019.3.00.0000 | F49: STJ | G49: MS 23.428/DF | H49: 2017-09-14 | I49: 2018-11-23 | J49: 2019-02-20 | K49: UNIÃO | L49: 26.994.558/0001-23 | M49: Brasilia/DF | N49: Comum | O49: 2019-07-01 | P49: 223659.96 | Q49: 1.159666673 | R49: 2.4567 | S49: 34.26 | T49: 317846.7 | U49: 17658.15 | V49: 17658.15 | W49: 0 | X49: 0 | AB49: =TRUNC(#REF!*Q49,2) ->  | AC49: 353163 | AQ49: 2021-12-01 | AR49: 2024-12-01 | AS49: 34.26 | AT49: 0.77 | AU49: 0.73 | AV49: 0.76 | AW49: 0.93 | AX49: 0.83 | AY49: 1.03 | AZ49: 1.02 | BA49: 1.03 | BB49: 1.17 | BC49: 1.07 | BD49: 1.02 | BE49: 1.02 | BF49: 1.12 | BG49: 1.12 | BH49: 0.92 | BI49: 1.17 | BJ49: 0.92 | BK49: 1.12 | BL49: 1.07 | BM49: 1.07 | BN49: 1.14 | BO49: 0.97 | BP49: 1 | BQ49: 0.92 | BR49: 0.89 | BS49: 0.97 | BT49: 0.8 | BU49: 0.83 | BV49: 0.89 | BW49: 0.83 | BX49: 0.79 | BY49: 0.91 | BZ49: 0.87 | CA49: 0.84 | CB49: 0.93 | CC49: 0.79 | CD49: 0 | CE49: 0 | CF49: 0
A50: 5 | B50: PRC | C50: 4686 | D50: 2019/0060036-0 | E50: 0060036-87.2019.3.00.0000 | F50: STJ | G50: MS 23.313/DF | H50: 2017-08-10 | I50: 2018-10-11 | J50: 2019-02-27 | K50: UNIÃO | L50: 26.994.558/0001-23 | M50: Brasilia/DF | N50: Comum | O50: 2019-07-01 | P50: 202123.77 | Q50: 1.159666673 | R50: 2.4567 | S50: 34.26 | T50: 293624.44 | U50: 12766.27 | V50: 12766.27 | W50: 0 | X50: 0 | AB50: =TRUNC(#REF!*Q50,2) ->  | AC50: 319156.98 | AQ50: 2021-12-01 | AR50: 2024-12-01 | AS50: 34.26 | AT50: 0.77 | AU50: 0.73 | AV50: 0.76 | AW50: 0.93 | AX50: 0.83 | AY50: 1.03 | AZ50: 1.02 | BA50: 1.03 | BB50: 1.17 | BC50: 1.07 | BD50: 1.02 | BE50: 1.02 | BF50: 1.12 | BG50: 1.12 | BH50: 0.92 | BI50: 1.17 | BJ50: 0.92 | BK50: 1.12 | BL50: 1.07 | BM50: 1.07 | BN50: 1.14 | BO50: 0.97 | BP50: 1 | BQ50: 0.92 | BR50: 0.89 | BS50: 0.97 | BT50: 0.8 | BU50: 0.83 | BV50: 0.89 | BW50: 0.83 | BX50: 0.79 | BY50: 0.91 | BZ50: 0.87 | CA50: 0.84 | CB50: 0.93 | CC50: 0.79 | CD50: 0 | CE50: 0 | CF50: 0
A51: 6 | B51: PRC | C51: 4687 | D51: 2019/0060055-0 | E51: 0060055-93.2019.3.00.0000 | F51: STJ | G51: MS 23.269/DF | H51: 2017-08-23 | I51: 2018-11-23 | J51: 2019-02-27 | K51: UNIÃO | L51: 26.994.558/0001-23 | M51: Brasilia/DF | N51: Comum | O51: 2019-07-01 | P51: 232762.5 | Q51: 1.159666673 | R51: 2.4567 | S51: 34.26 | T51: 330782.47 | U51: 18376.8 | V51: 18376.8 | W51: 0 | X51: 0 | AB51: =TRUNC(#REF!*Q51,2) ->  | AC51: 367536.07 | AQ51: 2021-12-01 | AR51: 2024-12-01 | AS51: 34.26 | AT51: 0.77 | AU51: 0.73 | AV51: 0.76 | AW51: 0.93 | AX51: 0.83 | AY51: 1.03 | AZ51: 1.02 | BA51: 1.03 | BB51: 1.17 | BC51: 1.07 | BD51: 1.02 | BE51: 1.02 | BF51: 1.12 | BG51: 1.12 | BH51: 0.92 | BI51: 1.17 | BJ51: 0.92 | BK51: 1.12 | BL51: 1.07 | BM51: 1.07 | BN51: 1.14 | BO51: 0.97 | BP51: 1 | BQ51: 0.92 | BR51: 0.89 | BS51: 0.97 | BT51: 0.8 | BU51: 0.83 | BV51: 0.89 | BW51: 0.83 | BX51: 0.79 | BY51: 0.91 | BZ51: 0.87 | CA51: 0.84 | CB51: 0.93 | CC51: 0.79 | CD51: 0 | CE51: 0 | CF51: 0
A52: 7 | B52: PRC | C52: 4689 | D52: 2019/0060074-0 | E52: 0060074-02.2019.3.00.0000 | F52: STJ | G52: MS 23.268/DF | H52: 2017-08-09 | I52: 2018-10-11 | J52: 2019-02-27 | K52: UNIÃO | L52: 26.994.558/0001-23 | M52: Brasilia/DF | N52: Comum | O52: 2019-07-01 | P52: 196997.67 | Q52: 1.159666673 | R52: 2.4567 | S52: 34.26 | T52: 279956.51 | U52: 15553.13 | V52: 15553.13 | W52: 0 | X52: 0 | AB52: =TRUNC(#REF!*Q52,2) ->  | AC52: 311062.77 | AQ52: 2021-12-01 | AR52: 2024-12-01 | AS52: 34.26 | AT52: 0.77 | AU52: 0.73 | AV52: 0.76 | AW52: 0.93 | AX52: 0.83 | AY52: 1.03 | AZ52: 1.02 | BA52: 1.03 | BB52: 1.17 | BC52: 1.07 | BD52: 1.02 | BE52: 1.02 | BF52: 1.12 | BG52: 1.12 | BH52: 0.92 | BI52: 1.17 | BJ52: 0.92 | BK52: 1.12 | BL52: 1.07 | BM52: 1.07 | BN52: 1.14 | BO52: 0.97 | BP52: 1 | BQ52: 0.92 | BR52: 0.89 | BS52: 0.97 | BT52: 0.8 | BU52: 0.83 | BV52: =IF(BV$43>$AR52,0,IF(BV$43>=$AQ52,BV$44,0)) -> 0.89 | BW52: 0.83 | BX52: 0.79 | BY52: 0.91 | BZ52: 0.87 | CA52: 0.84 | CB52: 0.93 | CC52: 0.79 | CD52: 0 | CE52: 0 | CF52: 0
A53: 8 | B53: PRC | C53: 4690 | D53: 2019/0060091-6 | E53: 0060091-38.2019.3.00.0000 | F53: STJ | G53: MS 23.266/DF | H53: 2017-08-09 | I53: 2018-11-23 | J53: 2019-02-27 | K53: UNIÃO | L53: 26.994.558/0001-23 | M53: Brasilia/DF | N53: Comum | O53: 2019-07-01 | P53: 225579.45 | Q53: 1.159666673 | R53: 2.4567 | S53: 34.26 | T53: 320574.53 | U53: 17809.69 | V53: 17809.69 | W53: 0 | X53: 0 | AB53: =TRUNC(#REF!*Q53,2) ->  | AC53: 356193.91 | AQ53: 2021-12-01 | AR53: 2024-12-01 | AS53: 34.26 | AT53: 0.77 | AU53: 0.73 | AV53: 0.76 | AW53: 0.93 | AX53: 0.83 | AY53: 1.03 | AZ53: 1.02 | BA53: 1.03 | BB53: 1.17 | BC53: 1.07 | BD53: 1.02 | BE53: 1.02 | BF53: 1.12 | BG53: 1.12 | BH53: 0.92 | BI53: 1.17 | BJ53: =IF(BJ$43>$AR53,0,IF(BJ$43>=$AQ53,BJ$44,0)) -> 0.92 | BK53: 1.12 | BL53: 1.07 | BM53: 1.07 | BN53: 1.14 | BO53: 0.97 | BP53: 1 | BQ53: 0.92 | BR53: 0.89 | BS53: 0.97 | BT53: 0.8 | BU53: 0.83 | BV53: 0.89 | BW53: 0.83 | BX53: 0.79 | BY53: 0.91 | BZ53: 0.87 | CA53: 0.84 | CB53: 0.93 | CC53: 0.79 | CD53: 0 | CE53: 0 | CF53: 0
A54: 9 | B54: PRC | C54: 4692 | D54: 2019/0060108-9 | E54: 0060108-74.2019.3.00.0000 | F54: STJ | G54: MS 23.306/DF | H54: 2017-06-13 | I54: 2018-11-23 | J54: 2019-02-27 | K54: UNIÃO | L54: 26.994.558/0001-23 | M54: Brasilia/DF | N54: Comum | O54: 2019-07-01 | P54: 240525 | Q54: 1.159666673 | R54: 2.4567 | S54: 34.26 | T54: 349409.76 | U54: 15191.72 | V54: 15191.72 | W54: 0 | X54: 0 | AB54: =TRUNC(#REF!*Q54,2) ->  | AC54: 379793.2 | AQ54: 2021-12-01 | AR54: 2024-12-01 | AS54: 34.26 | AT54: 0.77 | AU54: 0.73 | AV54: 0.76 | AW54: 0.93 | AX54: 0.83 | AY54: 1.03 | AZ54: 1.02 | BA54: 1.03 | BB54: 1.17 | BC54: 1.07 | BD54: 1.02 | BE54: 1.02 | BF54: 1.12 | BG54: 1.12 | BH54: 0.92 | BI54: 1.17 | BJ54: 0.92 | BK54: 1.12 | BL54: 1.07 | BM54: 1.07 | BN54: 1.14 | BO54: 0.97 | BP54: 1 | BQ54: 0.92 | BR54: 0.89 | BS54: 0.97 | BT54: 0.8 | BU54: 0.83 | BV54: 0.89 | BW54: 0.83 | BX54: 0.79 | BY54: 0.91 | BZ54: 0.87 | CA54: 0.84 | CB54: 0.93 | CC54: 0.79 | CD54: 0 | CE54: 0 | CF54: 0
A55: 10 | B55: PRC | C55: 4693 | D55: 2019/0060116-6 | E55: 0060116-51.2019.3.00.0000 | F55: STJ | G55: MS 23.328/DF | H55: 2017-08-10 | I55: 2018-12-18 | J55: 2019-02-27 | K55: UNIÃO | L55: 26.994.558/0001-23 | M55: Brasilia/DF | N55: Comum | O55: 2019-07-01 | P55: 234787.5 | Q55: 1.159666673 | R55: 2.4567 | S55: 34.26 | T55: 341074.9 | U55: 14829.34 | V55: 14829.34 | W55: 0 | X55: 0 | AB55: =TRUNC(#REF!*Q55,2) ->  | AC55: 370733.58 | AQ55: 2021-12-01 | AR55: 2024-12-01 | AS55: 34.26 | AT55: 0.77 | AU55: 0.73 | AV55: 0.76 | AW55: 0.93 | AX55: 0.83 | AY55: 1.03 | AZ55: 1.02 | BA55: 1.03 | BB55: 1.17 | BC55: 1.07 | BD55: 1.02 | BE55: 1.02 | BF55: 1.12 | BG55: 1.12 | BH55: 0.92 | BI55: 1.17 | BJ55: 0.92 | BK55: 1.12 | BL55: 1.07 | BM55: 1.07 | BN55: 1.14 | BO55: 0.97 | BP55: 1 | BQ55: 0.92 | BR55: 0.89 | BS55: 0.97 | BT55: 0.8 | BU55: 0.83 | BV55: 0.89 | BW55: 0.83 | BX55: 0.79 | BY55: 0.91 | BZ55: 0.87 | CA55: 0.84 | CB55: 0.93 | CC55: 0.79 | CD55: 0 | CE55: 0 | CF55: 0
A56: 11 | B56: PRC | C56: 4694 | D56: 2019/0060130-7 | E56: 0060130-35.2019.3.00.0000 | F56: STJ | G56: MS 23.109/DF | H56: 2017-06-27 | I56: 2018-11-23 | J56: 2019-02-27 | K56: UNIÃO | L56: 26.994.558/0001-23 | M56: Brasilia/DF | N56: Comum | O56: 2019-07-01 | P56: 217171.77 | Q56: 1.159666673 | R56: 2.4567 | S56: 34.26 | T56: 274334.43 | U56: 34291.8 | V56: 34291.8 | W56: 0 | X56: 0 | AB56: =TRUNC(#REF!*Q56,2) ->  | AC56: 342918.03 | AQ56: 2021-12-01 | AR56: 2024-12-01 | AS56: 34.26 | AT56: 0.77 | AU56: 0.73 | AV56: 0.76 | AW56: 0.93 | AX56: 0.83 | AY56: 1.03 | AZ56: 1.02 | BA56: 1.03 | BB56: 1.17 | BC56: 1.07 | BD56: 1.02 | BE56: 1.02 | BF56: 1.12 | BG56: 1.12 | BH56: 0.92 | BI56: 1.17 | BJ56: 0.92 | BK56: 1.12 | BL56: 1.07 | BM56: 1.07 | BN56: 1.14 | BO56: 0.97 | BP56: 1 | BQ56: 0.92 | BR56: 0.89 | BS56: 0.97 | BT56: 0.8 | BU56: 0.83 | BV56: 0.89 | BW56: 0.83 | BX56: 0.79 | BY56: 0.91 | BZ56: 0.87 | CA56: 0.84 | CB56: 0.93 | CC56: 0.79 | CD56: 0 | CE56: 0 | CF56: 0
A57: 12 | B57: PRC | C57: 4695 | D57: 2019/0060141-0 | E57: 0060141-64.2019.3.00.0000 | F57: STJ | G57: MS 23.200/DF | H57: 2017-06-20 | I57: 2018-12-18 | J57: 2019-02-27 | K57: UNIÃO | L57: 26.994.558/0001-23 | M57: Brasilia/DF | N57: Comum | O57: 2019-07-01 | P57: 191394.58 | Q57: 1.159666673 | R57: 2.4567 | S57: 34.26 | T57: 271993.87 | U57: 15110.76 | V57: 15110.76 | W57: 0 | X57: 0 | AB57: =TRUNC(#REF!*Q57,2) ->  | AC57: 302215.39 | AQ57: 2021-12-01 | AR57: 2024-12-01 | AS57: 34.26 | AT57: 0.77 | AU57: 0.73 | AV57: 0.76 | AW57: 0.93 | AX57: 0.83 | AY57: 1.03 | AZ57: 1.02 | BA57: 1.03 | BB57: 1.17 | BC57: 1.07 | BD57: 1.02 | BE57: 1.02 | BF57: 1.12 | BG57: 1.12 | BH57: 0.92 | BI57: 1.17 | BJ57: 0.92 | BK57: 1.12 | BL57: 1.07 | BM57: 1.07 | BN57: 1.14 | BO57: 0.97 | BP57: 1 | BQ57: 0.92 | BR57: 0.89 | BS57: 0.97 | BT57: 0.8 | BU57: 0.83 | BV57: 0.89 | BW57: 0.83 | BX57: 0.79 | BY57: 0.91 | BZ57: 0.87 | CA57: 0.84 | CB57: 0.93 | CC57: 0.79 | CD57: 0 | CE57: 0 | CF57: 0
A58: 13 | B58: PRC | C58: 4696 | D58: 2019/0060144-5 | E58: 0060144-19.2019.3.00.0000 | F58: STJ | G58: MS 19.425/DF | H58: 2017-12-04 | I58: 2018-12-18 | J58: 2019-02-27 | K58: UNIÃO | L58: 26.994.558/0001-23 | M58: Brasilia/DF | N58: Comum | O58: 2019-07-01 | P58: 261236.25 | Q58: 1.159666673 | R58: 2.4567 | S58: 34.26 | T58: 371246.95 | U58: 41249.66 | V58: 0 | W58: 0 | X58: 0 | AB58: =TRUNC(#REF!*Q58,2) ->  | AC58: 412496.61 | AQ58: 2021-12-01 | AR58: 2024-12-01 | AS58: 34.26 | AT58: 0.77 | AU58: 0.73 | AV58: 0.76 | AW58: 0.93 | AX58: 0.83 | AY58: 1.03 | AZ58: 1.02 | BA58: 1.03 | BB58: 1.17 | BC58: 1.07 | BD58: 1.02 | BE58: 1.02 | BF58: 1.12 | BG58: 1.12 | BH58: 0.92 | BI58: 1.17 | BJ58: 0.92 | BK58: 1.12 | BL58: 1.07 | BM58: 1.07 | BN58: 1.14 | BO58: 0.97 | BP58: 1 | BQ58: 0.92 | BR58: 0.89 | BS58: 0.97 | BT58: 0.8 | BU58: 0.83 | BV58: 0.89 | BW58: 0.83 | BX58: 0.79 | BY58: 0.91 | BZ58: 0.87 | CA58: 0.84 | CB58: 0.93 | CC58: 0.79 | CD58: 0 | CE58: 0 | CF58: 0
A59: 14 | B59: PRC | C59: 4697 | D59: 2019/0060150-9 | E59: 0060150-26.2019.3.00.0000 | F59: STJ | G59: MS 23.339/RN | H59: 2017-08-18 | I59: 2018-12-05 | J59: 2019-02-27 | K59: União | L59: 26.994.558/0001-23 | M59: Brasilia/DF | N59: Comum | O59: 2019-07-01 | P59: 221723.81 | Q59: 1.159666673 | R59: 2.4567 | S59: 34.26 | T59: 350105.77 | U59: 0 | V59: 0 | W59: 0 | X59: 0 | AB59: =TRUNC(#REF!*Q59,2) ->  | AC59: 350105.77 | AQ59: 2021-12-01 | AR59: 2024-12-01 | AS59: 34.26 | AT59: 0.77 | AU59: 0.73 | AV59: 0.76 | AW59: 0.93 | AX59: 0.83 | AY59: 1.03 | AZ59: 1.02 | BA59: 1.03 | BB59: 1.17 | BC59: 1.07 | BD59: 1.02 | BE59: 1.02 | BF59: 1.12 | BG59: 1.12 | BH59: 0.92 | BI59: 1.17 | BJ59: 0.92 | BK59: 1.12 | BL59: 1.07 | BM59: 1.07 | BN59: 1.14 | BO59: 0.97 | BP59: 1 | BQ59: 0.92 | BR59: 0.89 | BS59: 0.97 | BT59: 0.8 | BU59: 0.83 | BV59: 0.89 | BW59: 0.83 | BX59: 0.79 | BY59: 0.91 | BZ59: 0.87 | CA59: 0.84 | CB59: 0.93 | CC59: 0.79 | CD59: 0 | CE59: 0 | CF59: 0
A60: 15 | B60: PRC | C60: 4698 | D60: 2019/0071438-0 | E60: 0071438-68.2019.3.00.0000 | F60: STJ | G60: MS 17.530/DF | H60: 2017-12-04 | I60: 2019-02-12 | J60: 2019-03-14 | K60: UNIÃO | L60: 26.994.558/0001-23 | M60: Brasilia/DF | N60: Comum | O60: 2019-07-01 | P60: 192550.77 | Q60: 1.159666673 | R60: 2.4567 | S60: 34.26 | T60: 273636.95 | U60: 30404.1 | V60: 0 | W60: 0 | X60: 0 | AB60: =TRUNC(#REF!*Q60,2) ->  | AC60: 304041.05 | AQ60: 2021-12-01 | AR60: 2024-12-01 | AS60: 34.26 | AT60: 0.77 | AU60: 0.73 | AV60: 0.76 | AW60: 0.93 | AX60: 0.83 | AY60: 1.03 | AZ60: 1.02 | BA60: 1.03 | BB60: 1.17 | BC60: 1.07 | BD60: 1.02 | BE60: 1.02 | BF60: 1.12 | BG60: 1.12 | BH60: 0.92 | BI60: 1.17 | BJ60: 0.92 | BK60: 1.12 | BL60: 1.07 | BM60: 1.07 | BN60: 1.14 | BO60: 0.97 | BP60: 1 | BQ60: 0.92 | BR60: 0.89 | BS60: 0.97 | BT60: 0.8 | BU60: 0.83 | BV60: 0.89 | BW60: 0.83 | BX60: 0.79 | BY60: 0.91 | BZ60: 0.87 | CA60: 0.84 | CB60: 0.93 | CC60: 0.79 | CD60: 0 | CE60: 0 | CF60: 0
A61: 16 | B61: PRC | C61: 4703 | D61: 2019/0071475-8 | E61: 0071475-95.2019.3.00.0000 | F61: STJ | G61: MS 23.289/DF | H61: 2018-06-28 | I61: 2019-02-15 | J61: 2019-03-14 | K61: UNIÃO | L61: 26.994.558/0001-23 | M61: Brasilia/DF | N61: Comum | O61: 2019-07-01 | P61: 237623.87 | Q61: 1.159666673 | R61: 2.4567 | S61: 34.26 | T61: 337691.04 | U61: 18760.61 | V61: 18760.61 | W61: 0 | X61: 0 | AB61: =TRUNC(#REF!*Q61,2) ->  | AC61: 375212.26 | AQ61: =O61 -> 2019-07-01 | AR61: 2024-12-01 | AS61: =SUM(AT61:CF61) -> 34.26 | AT61: 0.77 | AU61: 0.73 | AV61: 0.76 | AW61: 0.93 | AX61: 0.83 | AY61: 1.03 | AZ61: 1.02 | BA61: 1.03 | BB61: 1.17 | BC61: 1.07 | BD61: 1.02 | BE61: 1.02 | BF61: 1.12 | BG61: 1.12 | BH61: 0.92 | BI61: 1.17 | BJ61: =IF(BJ$43>$AR61,0,IF(BJ$43>=$AQ61,BJ$44,0)) -> 0.92 | BK61: 1.12 | BL61: 1.07 | BM61: 1.07 | BN61: 1.14 | BO61: 0.97 | BP61: 1 | BQ61: 0.92 | BR61: 0.89 | BS61: 0.97 | BT61: 0.8 | BU61: 0.83 | BV61: 0.89 | BW61: 0.83 | BX61: 0.79 | BY61: 0.91 | BZ61: 0.87 | CA61: 0.84 | CB61: 0.93 | CC61: 0.79 | CD61: 0 | CE61: 0 | CF61: 0
A62: 17 | B62: PRC | C62: 4704 | D62: 2019/0071481-1 | E62: 0071481-05.2019.3.00.0000 | F62: STJ | G62: MS 23.350/DF | H62: 2018-06-28 | I62: 2019-02-18 | J62: 2019-03-14 | K62: UNIÃO | L62: 26.994.558/0001-23 | M62: Brasilia/DF | N62: Comum | O62: 2019-07-01 | P62: 182145.02 | Q62: 1.159666673 | R62: 2.4567 | S62: 34.26 | T62: 258849.17 | U62: 14380.5 | V62: 14380.5 | W62: 0 | X62: 0 | AB62: =TRUNC(#REF!*Q62,2) ->  | AC62: 287610.17 | AQ62: =O62 -> 2019-07-01 | AR62: 2024-12-01 | AS62: 34.26 | AT62: 0.77 | AU62: 0.73 | AV62: 0.76 | AW62: 0.93 | AX62: 0.83 | AY62: 1.03 | AZ62: 1.02 | BA62: 1.03 | BB62: 1.17 | BC62: 1.07 | BD62: 1.02 | BE62: 1.02 | BF62: 1.12 | BG62: 1.12 | BH62: 0.92 | BI62: 1.17 | BJ62: 0.92 | BK62: 1.12 | BL62: 1.07 | BM62: 1.07 | BN62: 1.14 | BO62: 0.97 | BP62: 1 | BQ62: 0.92 | BR62: 0.89 | BS62: 0.97 | BT62: 0.8 | BU62: 0.83 | BV62: 0.89 | BW62: 0.83 | BX62: 0.79 | BY62: 0.91 | BZ62: 0.87 | CA62: 0.84 | CB62: 0.93 | CC62: 0.79 | CD62: 0 | CE62: 0 | CF62: 0
A63: 18 | B63: PRC | C63: 4737 | D63: 2019/0087705-6 | E63: 0087705-18.2019.3.00.0000 | F63: STJ | G63: MS 15.240/DF | H63: 2018-06-07 | I63: 2019-03-18 | J63: 2019-03-26 | K63: UNIÃO | L63: 26.994.558/0001-23 | M63: Brasilia/DF | N63: Comum | O63: 2019-07-01 | P63: 219676.86 | Q63: 1.159666673 | R63: 2.4567 | S63: 34.26 | T63: 294842.57 | U63: 34687.36 | V63: 17343.68 | W63: 0 | X63: 0 | AB63: =TRUNC(#REF!*Q63,2) ->  | AC63: 346873.61 | AQ63: =O63 -> 2019-07-01 | AR63: 2024-12-01 | AS63: 34.26 | AT63: 0.77 | AU63: 0.73 | AV63: 0.76 | AW63: 0.93 | AX63: 0.83 | AY63: 1.03 | AZ63: 1.02 | BA63: 1.03 | BB63: 1.17 | BC63: 1.07 | BD63: 1.02 | BE63: 1.02 | BF63: 1.12 | BG63: 1.12 | BH63: 0.92 | BI63: 1.17 | BJ63: 0.92 | BK63: 1.12 | BL63: 1.07 | BM63: 1.07 | BN63: 1.14 | BO63: 0.97 | BP63: 1 | BQ63: 0.92 | BR63: 0.89 | BS63: 0.97 | BT63: 0.8 | BU63: 0.83 | BV63: 0.89 | BW63: 0.83 | BX63: 0.79 | BY63: 0.91 | BZ63: 0.87 | CA63: 0.84 | CB63: 0.93 | CC63: 0.79 | CD63: 0 | CE63: 0 | CF63: 0
A64: 19 | B64: PRC | C64: 4767 | D64: 2019/0093876-0 | E64: 0093876-88.2019.3.00.0000 | F64: STJ | G64: MS 23.010/DF | H64: 2017-09-15 | I64: 2019-03-22 | J64: 2019-04-02 | K64: UNIÃO | L64: 26.994.558/0001-23 | M64: Brasilia/DF | N64: Comum | O64: 2019-07-01 | P64: 213651.11 | Q64: 1.159666673 | R64: 2.4567 | S64: 34.26 | T64: 337358.84 | U64: 0 | V64: 0 | W64: 0 | X64: 0 | Y64: =TRUNC(AB64*R64/100,2) ->  | Z64: =TRUNC(AB64*$AS64/100,2) ->  | AA64: =TRUNC(Y64*$AS64/100,2) ->  | AB64: =TRUNC(#REF!*Q64,2) ->  | AC64: =T64+U64+V64+W64+X64 -> 337358.84 | AQ64: =O64 -> 2019-07-01 | AR64: 2024-12-01 | AS64: =SUM(AT64:CF64) -> 34.26 | AT64: =IF(AT$43>$AR64,0,IF(AT$43>=$AQ64,AT$44,0)) -> 0.77 | AU64: =IF(AU$43>$AR64,0,IF(AU$43>=$AQ64,AU$44,0)) -> 0.73 | AV64: =IF(AV$43>$AR64,0,IF(AV$43>=$AQ64,AV$44,0)) -> 0.76 | AW64: =IF(AW$43>$AR64,0,IF(AW$43>=$AQ64,AW$44,0)) -> 0.93 | AX64: =IF(AX$43>$AR64,0,IF(AX$43>=$AQ64,AX$44,0)) -> 0.83 | AY64: =IF(AY$43>$AR64,0,IF(AY$43>=$AQ64,AY$44,0)) -> 1.03 | AZ64: =IF(AZ$43>$AR64,0,IF(AZ$43>=$AQ64,AZ$44,0)) -> 1.02 | BA64: =IF(BA$43>$AR64,0,IF(BA$43>=$AQ64,BA$44,0)) -> 1.03 | BB64: =IF(BB$43>$AR64,0,IF(BB$43>=$AQ64,BB$44,0)) -> 1.17 | BC64: =IF(BC$43>$AR64,0,IF(BC$43>=$AQ64,BC$44,0)) -> 1.07 | BD64: =IF(BD$43>$AR64,0,IF(BD$43>=$AQ64,BD$44,0)) -> 1.02 | BE64: =IF(BE$43>$AR64,0,IF(BE$43>=$AQ64,BE$44,0)) -> 1.02 | BF64: =IF(BF$43>$AR64,0,IF(BF$43>=$AQ64,BF$44,0)) -> 1.12 | BG64: =IF(BG$43>$AR64,0,IF(BG$43>=$AQ64,BG$44,0)) -> 1.12 | BH64: =IF(BH$43>$AR64,0,IF(BH$43>=$AQ64,BH$44,0)) -> 0.92 | BI64: =IF(BI$43>$AR64,0,IF(BI$43>=$AQ64,BI$44,0)) -> 1.17 | BJ64: 0.92 | BK64: 1.12 | BL64: 1.07 | BM64: 1.07 | BN64: 1.14 | BO64: 0.97 | BP64: 1 | BQ64: 0.92 | BR64: 0.89 | BS64: 0.97 | BT64: 0.8 | BU64: 0.83 | BV64: 0.89 | BW64: 0.83 | BX64: 0.79 | BY64: 0.91 | BZ64: =IF(BZ$43>$AR64,0,IF(BZ$43>=$AQ64,BZ$44,0)) -> 0.87 | CA64: 0.84 | CB64: 0.93 | CC64: 0.79 | CD64: 0 | CE64: 0 | CF64: 0
A65: 20 | B65: PRC | C65: 4768 | D65: 2019/0093879-5 | E65: 0093879-43.2019.3.00.0000 | F65: STJ | G65: MS 23.068/DF | H65: 2017-12-01 | I65: 2019-03-22 | J65: 2019-04-02 | K65: UNIÃO | L65: 26.994.558/0001-23 | M65: Brasilia/DF | N65: Comum | O65: 2019-07-01 | P65: 211868.7 | Q65: 1.159666673 | R65: 2.4567 | S65: 34.26 | T65: 301089.95 | U65: 33454.43 | V65: 0 | W65: 0 | X65: 0 | Y65: =TRUNC(AB65*R65/100,2) ->  | Z65: =TRUNC(AB65*$AS65/100,2) ->  | AA65: =TRUNC(Y65*$AS65/100,2) ->  | AB65: =TRUNC(#REF!*Q65,2) ->  | AC65: =T65+U65+V65+W65+X65 -> 334544.38 | AQ65: =O65 -> 2019-07-01 | AR65: 2024-12-01 | AS65: =SUM(AT65:CF65) -> 34.26 | AT65: =IF(AT$43>$AR65,0,IF(AT$43>=$AQ65,AT$44,0)) -> 0.77 | AU65: =IF(AU$43>$AR65,0,IF(AU$43>=$AQ65,AU$44,0)) -> 0.73 | AV65: =IF(AV$43>$AR65,0,IF(AV$43>=$AQ65,AV$44,0)) -> 0.76 | AW65: =IF(AW$43>$AR65,0,IF(AW$43>=$AQ65,AW$44,0)) -> 0.93 | AX65: =IF(AX$43>$AR65,0,IF(AX$43>=$AQ65,AX$44,0)) -> 0.83 | AY65: =IF(AY$43>$AR65,0,IF(AY$43>=$AQ65,AY$44,0)) -> 1.03 | AZ65: =IF(AZ$43>$AR65,0,IF(AZ$43>=$AQ65,AZ$44,0)) -> 1.02 | BA65: =IF(BA$43>$AR65,0,IF(BA$43>=$AQ65,BA$44,0)) -> 1.03 | BB65: =IF(BB$43>$AR65,0,IF(BB$43>=$AQ65,BB$44,0)) -> 1.17 | BC65: =IF(BC$43>$AR65,0,IF(BC$43>=$AQ65,BC$44,0)) -> 1.07 | BD65: =IF(BD$43>$AR65,0,IF(BD$43>=$AQ65,BD$44,0)) -> 1.02 | BE65: =IF(BE$43>$AR65,0,IF(BE$43>=$AQ65,BE$44,0)) -> 1.02 | BF65: =IF(BF$43>$AR65,0,IF(BF$43>=$AQ65,BF$44,0)) -> 1.12 | BG65: =IF(BG$43>$AR65,0,IF(BG$43>=$AQ65,BG$44,0)) -> 1.12 | BH65: =IF(BH$43>$AR65,0,IF(BH$43>=$AQ65,BH$44,0)) -> 0.92 | BI65: =IF(BI$43>$AR65,0,IF(BI$43>=$AQ65,BI$44,0)) -> 1.17 | BJ65: 0.92 | BK65: 1.12 | BL65: 1.07 | BM65: 1.07 | BN65: 1.14 | BO65: 0.97 | BP65: 1 | BQ65: 0.92 | BR65: 0.89 | BS65: 0.97 | BT65: 0.8 | BU65: 0.83 | BV65: 0.89 | BW65: 0.83 | BX65: 0.79 | BY65: 0.91 | BZ65: 0.87 | CA65: 0.84 | CB65: 0.93 | CC65: 0.79 | CD65: 0 | CE65: 0 | CF65: 0
A66: 21 | B66: PRC | C66: 4771 | D66: 2019/0104490-3 | E66: 0104490-55.2019.3.00.0000 | F66: STJ | G66: MS 15.251/DF | H66: 2018-06-20 | I66: 2019-04-01 | J66: 2019-04-11 | K66: UNIÃO | L66: 26.994.558/0001-23 | M66: Brasilia/DF | N66: Comum | O66: 2019-07-01 | P66: 232762.5 | Q66: 1.159666673 | R66: 2.4567 | S66: 34.26 | T66: 312405.67 | U66: 36753.6 | V66: 18376.8 | W66: 0 | X66: 0 | Y66: =TRUNC(AB66*R66/100,2) ->  | Z66: =TRUNC(AB66*$AS66/100,2) ->  | AA66: =TRUNC(Y66*$AS66/100,2) ->  | AB66: =TRUNC(#REF!*Q66,2) ->  | AC66: =T66+U66+V66+W66+X66 -> 367536.07 | AQ66: 2021-12-01 | AR66: 2024-12-01 | AS66: =SUM(AT66:CF66) -> 34.26 | AT66: =IF(AT$43>$AR66,0,IF(AT$43>=$AQ66,AT$44,0)) -> 0.77 | AU66: =IF(AU$43>$AR66,0,IF(AU$43>=$AQ66,AU$44,0)) -> 0.73 | AV66: =IF(AV$43>$AR66,0,IF(AV$43>=$AQ66,AV$44,0)) -> 0.76 | AW66: =IF(AW$43>$AR66,0,IF(AW$43>=$AQ66,AW$44,0)) -> 0.93 | AX66: =IF(AX$43>$AR66,0,IF(AX$43>=$AQ66,AX$44,0)) -> 0.83 | AY66: =IF(AY$43>$AR66,0,IF(AY$43>=$AQ66,AY$44,0)) -> 1.03 | AZ66: =IF(AZ$43>$AR66,0,IF(AZ$43>=$AQ66,AZ$44,0)) -> 1.02 | BA66: =IF(BA$43>$AR66,0,IF(BA$43>=$AQ66,BA$44,0)) -> 1.03 | BB66: =IF(BB$43>$AR66,0,IF(BB$43>=$AQ66,BB$44,0)) -> 1.17 | BC66: =IF(BC$43>$AR66,0,IF(BC$43>=$AQ66,BC$44,0)) -> 1.07 | BD66: =IF(BD$43>$AR66,0,IF(BD$43>=$AQ66,BD$44,0)) -> 1.02 | BE66: =IF(BE$43>$AR66,0,IF(BE$43>=$AQ66,BE$44,0)) -> 1.02 | BF66: =IF(BF$43>$AR66,0,IF(BF$43>=$AQ66,BF$44,0)) -> 1.12 | BG66: =IF(BG$43>$AR66,0,IF(BG$43>=$AQ66,BG$44,0)) -> 1.12 | BH66: =IF(BH$43>$AR66,0,IF(BH$43>=$AQ66,BH$44,0)) -> 0.92 | BI66: =IF(BI$43>$AR66,0,IF(BI$43>=$AQ66,BI$44,0)) -> 1.17 | BJ66: =IF(BJ$43>$AR66,0,IF(BJ$43>=$AQ66,BJ$44,0)) -> 0.92 | BK66: =IF(BK$43>$AR66,0,IF(BK$43>=$AQ66,BK$44,0)) -> 1.12 | BL66: =IF(BL$43>$AR66,0,IF(BL$43>=$AQ66,BL$44,0)) -> 1.07 | BM66: =IF(BM$43>$AR66,0,IF(BM$43>=$AQ66,BM$44,0)) -> 1.07 | BN66: =IF(BN$43>$AR66,0,IF(BN$43>=$AQ66,BN$44,0)) -> 1.14 | BO66: =IF(BO$43>$AR66,0,IF(BO$43>=$AQ66,BO$44,0)) -> 0.97 | BP66: =IF(BP$43>$AR66,0,IF(BP$43>=$AQ66,BP$44,0)) -> 1 | BQ66: =IF(BQ$43>$AR66,0,IF(BQ$43>=$AQ66,BQ$44,0)) -> 0.92 | BR66: =IF(BR$43>$AR66,0,IF(BR$43>=$AQ66,BR$44,0)) -> 0.89 | BS66: =IF(BS$43>$AR66,0,IF(BS$43>=$AQ66,BS$44,0)) -> 0.97 | BT66: =IF(BT$43>$AR66,0,IF(BT$43>=$AQ66,BT$44,0)) -> 0.8 | BU66: =IF(BU$43>$AR66,0,IF(BU$43>=$AQ66,BU$44,0)) -> 0.83 | BV66: =IF(BV$43>$AR66,0,IF(BV$43>=$AQ66,BV$44,0)) -> 0.89 | BW66: =IF(BW$43>$AR66,0,IF(BW$43>=$AQ66,BW$44,0)) -> 0.83 | BX66: =IF(BX$43>$AR66,0,IF(BX$43>=$AQ66,BX$44,0)) -> 0.79 | BY66: =IF(BY$43>$AR66,0,IF(BY$43>=$AQ66,BY$44,0)) -> 0.91 | BZ66: =IF(BZ$43>$AR66,0,IF(BZ$43>=$AQ66,BZ$44,0)) -> 0.87 | CA66: =IF(CA$43>$AR66,0,IF(CA$43>=$AQ66,CA$44,0)) -> 0.84 | CB66: =IF(CB$43>$AR66,0,IF(CB$43>=$AQ66,CB$44,0)) -> 0.93 | CC66: =IF(CC$43>$AR66,0,IF(CC$43>=$AQ66,CC$44,0)) -> 0.79 | CD66: =IF(CD$43>$AR66,0,IF(CD$43>=$AQ66,CD$44,0)) -> 0 | CE66: =IF(CE$43>$AR66,0,IF(CE$43>=$AQ66,CE$44,0)) -> 0 | CF66: =IF(CF$43>$AR66,0,IF(CF$43>=$AQ66,CF$44,0)) -> 0
A67: 22 | B67: PRC | C67: 4772 | D67: 2019/0104498-8 | E67: 0104498-32.2019.3.00.0000 | F67: STJ | G67: MS 15.244/DF | H67: 2018-06-20 | I67: 2019-04-03 | J67: 2019-04-11 | K67: UNIÃO | L67: 26.994.558/0001-23 | M67: Brasilia/DF | N67: Comum | O67: 2019-07-01 | P67: 187570.24 | Q67: 1.159666673 | R67: 2.4567 | S67: 34.26 | T67: 251750.2 | U67: 29617.66 | V67: 14808.83 | W67: 0 | X67: 0 | Y67: =TRUNC(AB67*R67/100,2) ->  | Z67: =TRUNC(AB67*$AS67/100,2) ->  | AA67: =TRUNC(Y67*$AS67/100,2) ->  | AB67: =TRUNC(#REF!*Q67,2) ->  | AC67: =T67+U67+V67+W67+X67 -> 296176.69 | AQ67: 2021-12-01 | AR67: 2024-12-01 | AS67: =SUM(AT67:CF67) -> 34.26 | AT67: =IF(AT$43>$AR67,0,IF(AT$43>=$AQ67,AT$44,0)) -> 0.77 | AU67: =IF(AU$43>$AR67,0,IF(AU$43>=$AQ67,AU$44,0)) -> 0.73 | AV67: =IF(AV$43>$AR67,0,IF(AV$43>=$AQ67,AV$44,0)) -> 0.76 | AW67: =IF(AW$43>$AR67,0,IF(AW$43>=$AQ67,AW$44,0)) -> 0.93 | AX67: =IF(AX$43>$AR67,0,IF(AX$43>=$AQ67,AX$44,0)) -> 0.83 | AY67: =IF(AY$43>$AR67,0,IF(AY$43>=$AQ67,AY$44,0)) -> 1.03 | AZ67: =IF(AZ$43>$AR67,0,IF(AZ$43>=$AQ67,AZ$44,0)) -> 1.02 | BA67: =IF(BA$43>$AR67,0,IF(BA$43>=$AQ67,BA$44,0)) -> 1.03 | BB67: =IF(BB$43>$AR67,0,IF(BB$43>=$AQ67,BB$44,0)) -> 1.17 | BC67: =IF(BC$43>$AR67,0,IF(BC$43>=$AQ67,BC$44,0)) -> 1.07 | BD67: =IF(BD$43>$AR67,0,IF(BD$43>=$AQ67,BD$44,0)) -> 1.02 | BE67: =IF(BE$43>$AR67,0,IF(BE$43>=$AQ67,BE$44,0)) -> 1.02 | BF67: =IF(BF$43>$AR67,0,IF(BF$43>=$AQ67,BF$44,0)) -> 1.12 | BG67: =IF(BG$43>$AR67,0,IF(BG$43>=$AQ67,BG$44,0)) -> 1.12 | BH67: =IF(BH$43>$AR67,0,IF(BH$43>=$AQ67,BH$44,0)) -> 0.92 | BI67: =IF(BI$43>$AR67,0,IF(BI$43>=$AQ67,BI$44,0)) -> 1.17 | BJ67: =IF(BJ$43>$AR67,0,IF(BJ$43>=$AQ67,BJ$44,0)) -> 0.92 | BK67: =IF(BK$43>$AR67,0,IF(BK$43>=$AQ67,BK$44,0)) -> 1.12 | BL67: =IF(BL$43>$AR67,0,IF(BL$43>=$AQ67,BL$44,0)) -> 1.07 | BM67: =IF(BM$43>$AR67,0,IF(BM$43>=$AQ67,BM$44,0)) -> 1.07 | BN67: =IF(BN$43>$AR67,0,IF(BN$43>=$AQ67,BN$44,0)) -> 1.14 | BO67: =IF(BO$43>$AR67,0,IF(BO$43>=$AQ67,BO$44,0)) -> 0.97 | BP67: =IF(BP$43>$AR67,0,IF(BP$43>=$AQ67,BP$44,0)) -> 1 | BQ67: =IF(BQ$43>$AR67,0,IF(BQ$43>=$AQ67,BQ$44,0)) -> 0.92 | BR67: =IF(BR$43>$AR67,0,IF(BR$43>=$AQ67,BR$44,0)) -> 0.89 | BS67: =IF(BS$43>$AR67,0,IF(BS$43>=$AQ67,BS$44,0)) -> 0.97 | BT67: =IF(BT$43>$AR67,0,IF(BT$43>=$AQ67,BT$44,0)) -> 0.8 | BU67: =IF(BU$43>$AR67,0,IF(BU$43>=$AQ67,BU$44,0)) -> 0.83 | BV67: =IF(BV$43>$AR67,0,IF(BV$43>=$AQ67,BV$44,0)) -> 0.89 | BW67: =IF(BW$43>$AR67,0,IF(BW$43>=$AQ67,BW$44,0)) -> 0.83 | BX67: =IF(BX$43>$AR67,0,IF(BX$43>=$AQ67,BX$44,0)) -> 0.79 | BY67: =IF(BY$43>$AR67,0,IF(BY$43>=$AQ67,BY$44,0)) -> 0.91 | BZ67: =IF(BZ$43>$AR67,0,IF(BZ$43>=$AQ67,BZ$44,0)) -> 0.87 | CA67: =IF(CA$43>$AR67,0,IF(CA$43>=$AQ67,CA$44,0)) -> 0.84 | CB67: =IF(CB$43>$AR67,0,IF(CB$43>=$AQ67,CB$44,0)) -> 0.93 | CC67: =IF(CC$43>$AR67,0,IF(CC$43>=$AQ67,CC$44,0)) -> 0.79 | CD67: =IF(CD$43>$AR67,0,IF(CD$43>=$AQ67,CD$44,0)) -> 0 | CE67: =IF(CE$43>$AR67,0,IF(CE$43>=$AQ67,CE$44,0)) -> 0 | CF67: =IF(CF$43>$AR67,0,IF(CF$43>=$AQ67,CF$44,0)) -> 0
A68: 23 | B68: PRC | C68: 4773 | D68: 2019/0104505-2 | E68: 0104505-24.2019.3.00.0000 | F68: STJ | G68: MS 17.819/DF | H68: 2018-06-20 | I68: 2019-04-03 | J68: 2019-04-11 | K68: UNIÃO | L68: 26.994.558/0001-23 | M68: Brasilia/DF | N68: Comum | O68: 2019-07-01 | P68: 239737.5 | Q68: 1.159666673 | R68: 2.4567 | S68: 34.26 | T68: 340694.74 | U68: 37854.97 | V68: 0 | W68: 0 | X68: 0 | Y68: =TRUNC(AB68*R68/100,2) ->  | Z68: =TRUNC(AB68*$AS68/100,2) ->  | AA68: =TRUNC(Y68*$AS68/100,2) ->  | AB68: =TRUNC(#REF!*Q68,2) ->  | AC68: =T68+U68+V68+W68+X68 -> 378549.71 | AQ68: 2021-12-01 | AR68: 2024-12-01 | AS68: =SUM(AT68:CF68) -> 34.26 | AT68: =IF(AT$43>$AR68,0,IF(AT$43>=$AQ68,AT$44,0)) -> 0.77 | AU68: =IF(AU$43>$AR68,0,IF(AU$43>=$AQ68,AU$44,0)) -> 0.73 | AV68: =IF(AV$43>$AR68,0,IF(AV$43>=$AQ68,AV$44,0)) -> 0.76 | AW68: =IF(AW$43>$AR68,0,IF(AW$43>=$AQ68,AW$44,0)) -> 0.93 | AX68: =IF(AX$43>$AR68,0,IF(AX$43>=$AQ68,AX$44,0)) -> 0.83 | AY68: =IF(AY$43>$AR68,0,IF(AY$43>=$AQ68,AY$44,0)) -> 1.03 | AZ68: =IF(AZ$43>$AR68,0,IF(AZ$43>=$AQ68,AZ$44,0)) -> 1.02 | BA68: =IF(BA$43>$AR68,0,IF(BA$43>=$AQ68,BA$44,0)) -> 1.03 | BB68: =IF(BB$43>$AR68,0,IF(BB$43>=$AQ68,BB$44,0)) -> 1.17 | BC68: =IF(BC$43>$AR68,0,IF(BC$43>=$AQ68,BC$44,0)) -> 1.07 | BD68: =IF(BD$43>$AR68,0,IF(BD$43>=$AQ68,BD$44,0)) -> 1.02 | BE68: =IF(BE$43>$AR68,0,IF(BE$43>=$AQ68,BE$44,0)) -> 1.02 | BF68: =IF(BF$43>$AR68,0,IF(BF$43>=$AQ68,BF$44,0)) -> 1.12 | BG68: =IF(BG$43>$AR68,0,IF(BG$43>=$AQ68,BG$44,0)) -> 1.12 | BH68: =IF(BH$43>$AR68,0,IF(BH$43>=$AQ68,BH$44,0)) -> 0.92 | BI68: =IF(BI$43>$AR68,0,IF(BI$43>=$AQ68,BI$44,0)) -> 1.17 | BJ68: =IF(BJ$43>$AR68,0,IF(BJ$43>=$AQ68,BJ$44,0)) -> 0.92 | BK68: =IF(BK$43>$AR68,0,IF(BK$43>=$AQ68,BK$44,0)) -> 1.12 | BL68: =IF(BL$43>$AR68,0,IF(BL$43>=$AQ68,BL$44,0)) -> 1.07 | BM68: =IF(BM$43>$AR68,0,IF(BM$43>=$AQ68,BM$44,0)) -> 1.07 | BN68: =IF(BN$43>$AR68,0,IF(BN$43>=$AQ68,BN$44,0)) -> 1.14 | BO68: =IF(BO$43>$AR68,0,IF(BO$43>=$AQ68,BO$44,0)) -> 0.97 | BP68: =IF(BP$43>$AR68,0,IF(BP$43>=$AQ68,BP$44,0)) -> 1 | BQ68: =IF(BQ$43>$AR68,0,IF(BQ$43>=$AQ68,BQ$44,0)) -> 0.92 | BR68: =IF(BR$43>$AR68,0,IF(BR$43>=$AQ68,BR$44,0)) -> 0.89 | BS68: =IF(BS$43>$AR68,0,IF(BS$43>=$AQ68,BS$44,0)) -> 0.97 | BT68: =IF(BT$43>$AR68,0,IF(BT$43>=$AQ68,BT$44,0)) -> 0.8 | BU68: =IF(BU$43>$AR68,0,IF(BU$43>=$AQ68,BU$44,0)) -> 0.83 | BV68: =IF(BV$43>$AR68,0,IF(BV$43>=$AQ68,BV$44,0)) -> 0.89 | BW68: =IF(BW$43>$AR68,0,IF(BW$43>=$AQ68,BW$44,0)) -> 0.83 | BX68: =IF(BX$43>$AR68,0,IF(BX$43>=$AQ68,BX$44,0)) -> 0.79 | BY68: =IF(BY$43>$AR68,0,IF(BY$43>=$AQ68,BY$44,0)) -> 0.91 | BZ68: =IF(BZ$43>$AR68,0,IF(BZ$43>=$AQ68,BZ$44,0)) -> 0.87 | CA68: =IF(CA$43>$AR68,0,IF(CA$43>=$AQ68,CA$44,0)) -> 0.84 | CB68: =IF(CB$43>$AR68,0,IF(CB$43>=$AQ68,CB$44,0)) -> 0.93 | CC68: =IF(CC$43>$AR68,0,IF(CC$43>=$AQ68,CC$44,0)) -> 0.79 | CD68: =IF(CD$43>$AR68,0,IF(CD$43>=$AQ68,CD$44,0)) -> 0 | CE68: =IF(CE$43>$AR68,0,IF(CE$43>=$AQ68,CE$44,0)) -> 0 | CF68: =IF(CF$43>$AR68,0,IF(CF$43>=$AQ68,CF$44,0)) -> 0
A69: 24 | B69: PRC | C69: 4774 | D69: 2019/0104509-0 | E69: 0104509-61.2019.3.00.0000 | F69: STJ | G69: MS 17.540/DF | H69: 2018-06-20 | I69: 2019-04-03 | J69: 2019-04-11 | K69: UNIÃO | L69: 26.994.558/0001-23 | M69: Brasilia/DF | N69: Comum | O69: 2019-07-01 | P69: 195693.25 | Q69: 1.159666673 | R69: 2.4567 | S69: 34.26 | T69: 278102.76 | U69: 30900.3 | V69: 0 | W69: 0 | X69: 0 | Y69: =TRUNC(AB69*R69/100,2) ->  | Z69: =TRUNC(AB69*$AS69/100,2) ->  | AA69: =TRUNC(Y69*$AS69/100,2) ->  | AB69: =TRUNC(#REF!*Q69,2) ->  | AC69: =T69+U69+V69+W69+X69 -> 309003.06 | AQ69: 2021-12-01 | AR69: 2024-12-01 | AS69: =SUM(AT69:CF69) -> 34.26 | AT69: =IF(AT$43>$AR69,0,IF(AT$43>=$AQ69,AT$44,0)) -> 0.77 | AU69: =IF(AU$43>$AR69,0,IF(AU$43>=$AQ69,AU$44,0)) -> 0.73 | AV69: =IF(AV$43>$AR69,0,IF(AV$43>=$AQ69,AV$44,0)) -> 0.76 | AW69: =IF(AW$43>$AR69,0,IF(AW$43>=$AQ69,AW$44,0)) -> 0.93 | AX69: =IF(AX$43>$AR69,0,IF(AX$43>=$AQ69,AX$44,0)) -> 0.83 | AY69: =IF(AY$43>$AR69,0,IF(AY$43>=$AQ69,AY$44,0)) -> 1.03 | AZ69: =IF(AZ$43>$AR69,0,IF(AZ$43>=$AQ69,AZ$44,0)) -> 1.02 | BA69: =IF(BA$43>$AR69,0,IF(BA$43>=$AQ69,BA$44,0)) -> 1.03 | BB69: =IF(BB$43>$AR69,0,IF(BB$43>=$AQ69,BB$44,0)) -> 1.17 | BC69: =IF(BC$43>$AR69,0,IF(BC$43>=$AQ69,BC$44,0)) -> 1.07 | BD69: =IF(BD$43>$AR69,0,IF(BD$43>=$AQ69,BD$44,0)) -> 1.02 | BE69: =IF(BE$43>$AR69,0,IF(BE$43>=$AQ69,BE$44,0)) -> 1.02 | BF69: =IF(BF$43>$AR69,0,IF(BF$43>=$AQ69,BF$44,0)) -> 1.12 | BG69: =IF(BG$43>$AR69,0,IF(BG$43>=$AQ69,BG$44,0)) -> 1.12 | BH69: =IF(BH$43>$AR69,0,IF(BH$43>=$AQ69,BH$44,0)) -> 0.92 | BI69: =IF(BI$43>$AR69,0,IF(BI$43>=$AQ69,BI$44,0)) -> 1.17 | BJ69: =IF(BJ$43>$AR69,0,IF(BJ$43>=$AQ69,BJ$44,0)) -> 0.92 | BK69: =IF(BK$43>$AR69,0,IF(BK$43>=$AQ69,BK$44,0)) -> 1.12 | BL69: =IF(BL$43>$AR69,0,IF(BL$43>=$AQ69,BL$44,0)) -> 1.07 | BM69: =IF(BM$43>$AR69,0,IF(BM$43>=$AQ69,BM$44,0)) -> 1.07 | BN69: =IF(BN$43>$AR69,0,IF(BN$43>=$AQ69,BN$44,0)) -> 1.14 | BO69: =IF(BO$43>$AR69,0,IF(BO$43>=$AQ69,BO$44,0)) -> 0.97 | BP69: =IF(BP$43>$AR69,0,IF(BP$43>=$AQ69,BP$44,0)) -> 1 | BQ69: =IF(BQ$43>$AR69,0,IF(BQ$43>=$AQ69,BQ$44,0)) -> 0.92 | BR69: =IF(BR$43>$AR69,0,IF(BR$43>=$AQ69,BR$44,0)) -> 0.89 | BS69: =IF(BS$43>$AR69,0,IF(BS$43>=$AQ69,BS$44,0)) -> 0.97 | BT69: =IF(BT$43>$AR69,0,IF(BT$43>=$AQ69,BT$44,0)) -> 0.8 | BU69: =IF(BU$43>$AR69,0,IF(BU$43>=$AQ69,BU$44,0)) -> 0.83 | BV69: =IF(BV$43>$AR69,0,IF(BV$43>=$AQ69,BV$44,0)) -> 0.89 | BW69: =IF(BW$43>$AR69,0,IF(BW$43>=$AQ69,BW$44,0)) -> 0.83 | BX69: =IF(BX$43>$AR69,0,IF(BX$43>=$AQ69,BX$44,0)) -> 0.79 | BY69: =IF(BY$43>$AR69,0,IF(BY$43>=$AQ69,BY$44,0)) -> 0.91 | BZ69: =IF(BZ$43>$AR69,0,IF(BZ$43>=$AQ69,BZ$44,0)) -> 0.87 | CA69: =IF(CA$43>$AR69,0,IF(CA$43>=$AQ69,CA$44,0)) -> 0.84 | CB69: =IF(CB$43>$AR69,0,IF(CB$43>=$AQ69,CB$44,0)) -> 0.93 | CC69: =IF(CC$43>$AR69,0,IF(CC$43>=$AQ69,CC$44,0)) -> 0.79 | CD69: =IF(CD$43>$AR69,0,IF(CD$43>=$AQ69,CD$44,0)) -> 0 | CE69: =IF(CE$43>$AR69,0,IF(CE$43>=$AQ69,CE$44,0)) -> 0 | CF69: =IF(CF$43>$AR69,0,IF(CF$43>=$AQ69,CF$44,0)) -> 0
A70: 25 | B70: PRC | C70: 4775 | D70: 2019/0104512-8 | E70: 0104512-16.2019.3.00.0000 | F70: STJ | G70: MS 14.460/DF | H70: 2018-08-15 | I70: 2019-04-03 | J70: 2019-04-11 | K70: UNIÃO | L70: 26.994.558/0001-23 | M70: Brasilia/DF | N70: Comum | O70: 2019-07-01 | P70: 192106.08 | Q70: 1.159666673 | R70: 2.4567 | S70: 34.26 | T70: 257838.04 | U70: 45500.83 | V70: 0 | W70: 0 | X70: 0 | Y70: =TRUNC(AB70*R70/100,2) ->  | Z70: =TRUNC(AB70*$AS70/100,2) ->  | AA70: =TRUNC(Y70*$AS70/100,2) ->  | AB70: =TRUNC(#REF!*Q70,2) ->  | AC70: =T70+U70+V70+W70+X70 -> 303338.87 | AQ70: 2021-12-01 | AR70: 2024-12-01 | AS70: =SUM(AT70:CF70) -> 34.26 | AT70: =IF(AT$43>$AR70,0,IF(AT$43>=$AQ70,AT$44,0)) -> 0.77 | AU70: =IF(AU$43>$AR70,0,IF(AU$43>=$AQ70,AU$44,0)) -> 0.73 | AV70: =IF(AV$43>$AR70,0,IF(AV$43>=$AQ70,AV$44,0)) -> 0.76 | AW70: =IF(AW$43>$AR70,0,IF(AW$43>=$AQ70,AW$44,0)) -> 0.93 | AX70: =IF(AX$43>$AR70,0,IF(AX$43>=$AQ70,AX$44,0)) -> 0.83 | AY70: =IF(AY$43>$AR70,0,IF(AY$43>=$AQ70,AY$44,0)) -> 1.03 | AZ70: =IF(AZ$43>$AR70,0,IF(AZ$43>=$AQ70,AZ$44,0)) -> 1.02 | BA70: =IF(BA$43>$AR70,0,IF(BA$43>=$AQ70,BA$44,0)) -> 1.03 | BB70: =IF(BB$43>$AR70,0,IF(BB$43>=$AQ70,BB$44,0)) -> 1.17 | BC70: =IF(BC$43>$AR70,0,IF(BC$43>=$AQ70,BC$44,0)) -> 1.07 | BD70: =IF(BD$43>$AR70,0,IF(BD$43>=$AQ70,BD$44,0)) -> 1.02 | BE70: =IF(BE$43>$AR70,0,IF(BE$43>=$AQ70,BE$44,0)) -> 1.02 | BF70: =IF(BF$43>$AR70,0,IF(BF$43>=$AQ70,BF$44,0)) -> 1.12 | BG70: =IF(BG$43>$AR70,0,IF(BG$43>=$AQ70,BG$44,0)) -> 1.12 | BH70: =IF(BH$43>$AR70,0,IF(BH$43>=$AQ70,BH$44,0)) -> 0.92 | BI70: =IF(BI$43>$AR70,0,IF(BI$43>=$AQ70,BI$44,0)) -> 1.17 | BJ70: =IF(BJ$43>$AR70,0,IF(BJ$43>=$AQ70,BJ$44,0)) -> 0.92 | BK70: =IF(BK$43>$AR70,0,IF(BK$43>=$AQ70,BK$44,0)) -> 1.12 | BL70: =IF(BL$43>$AR70,0,IF(BL$43>=$AQ70,BL$44,0)) -> 1.07 | BM70: =IF(BM$43>$AR70,0,IF(BM$43>=$AQ70,BM$44,0)) -> 1.07 | BN70: =IF(BN$43>$AR70,0,IF(BN$43>=$AQ70,BN$44,0)) -> 1.14 | BO70: =IF(BO$43>$AR70,0,IF(BO$43>=$AQ70,BO$44,0)) -> 0.97 | BP70: =IF(BP$43>$AR70,0,IF(BP$43>=$AQ70,BP$44,0)) -> 1 | BQ70: =IF(BQ$43>$AR70,0,IF(BQ$43>=$AQ70,BQ$44,0)) -> 0.92 | BR70: =IF(BR$43>$AR70,0,IF(BR$43>=$AQ70,BR$44,0)) -> 0.89 | BS70: =IF(BS$43>$AR70,0,IF(BS$43>=$AQ70,BS$44,0)) -> 0.97 | BT70: =IF(BT$43>$AR70,0,IF(BT$43>=$AQ70,BT$44,0)) -> 0.8 | BU70: =IF(BU$43>$AR70,0,IF(BU$43>=$AQ70,BU$44,0)) -> 0.83 | BV70: =IF(BV$43>$AR70,0,IF(BV$43>=$AQ70,BV$44,0)) -> 0.89 | BW70: =IF(BW$43>$AR70,0,IF(BW$43>=$AQ70,BW$44,0)) -> 0.83 | BX70: =IF(BX$43>$AR70,0,IF(BX$43>=$AQ70,BX$44,0)) -> 0.79 | BY70: =IF(BY$43>$AR70,0,IF(BY$43>=$AQ70,BY$44,0)) -> 0.91 | BZ70: =IF(BZ$43>$AR70,0,IF(BZ$43>=$AQ70,BZ$44,0)) -> 0.87 | CA70: =IF(CA$43>$AR70,0,IF(CA$43>=$AQ70,CA$44,0)) -> 0.84 | CB70: =IF(CB$43>$AR70,0,IF(CB$43>=$AQ70,CB$44,0)) -> 0.93 | CC70: =IF(CC$43>$AR70,0,IF(CC$43>=$AQ70,CC$44,0)) -> 0.79 | CD70: =IF(CD$43>$AR70,0,IF(CD$43>=$AQ70,CD$44,0)) -> 0 | CE70: =IF(CE$43>$AR70,0,IF(CE$43>=$AQ70,CE$44,0)) -> 0 | CF70: =IF(CF$43>$AR70,0,IF(CF$43>=$AQ70,CF$44,0)) -> 0
A71: 26 | B71: PRC | C71: 4800 | D71: 2019/0115858-0 | E71: 0115858-61.2019.3.00.0000 | F71: STJ | G71: MS 16.012/DF | H71: 2017-12-04 | I71: 2019-03-22 | J71: 2019-04-25 | K71: UNIÃO | L71: 26.994.558/0001-23 | M71: Brasilia/DF | N71: Comum | O71: 2019-07-01 | P71: 196335.64 | Q71: 1.159666673 | R71: 2.4567 | S71: 34.26 | T71: 279015.66 | U71: 31001.74 | V71: 0 | W71: 0 | X71: 0 | Y71: =TRUNC(AB71*R71/100,2) ->  | Z71: =TRUNC(AB71*$AS71/100,2) ->  | AA71: =TRUNC(Y71*$AS71/100,2) ->  | AB71: =TRUNC(#REF!*Q71,2) ->  | AC71: =T71+U71+V71+W71+X71 -> 310017.4 | AQ71: 2021-12-01 | AR71: 2024-12-01 | AS71: =SUM(AT71:CF71) -> 34.26 | AT71: =IF(AT$43>$AR71,0,IF(AT$43>=$AQ71,AT$44,0)) -> 0.77 | AU71: =IF(AU$43>$AR71,0,IF(AU$43>=$AQ71,AU$44,0)) -> 0.73 | AV71: =IF(AV$43>$AR71,0,IF(AV$43>=$AQ71,AV$44,0)) -> 0.76 | AW71: =IF(AW$43>$AR71,0,IF(AW$43>=$AQ71,AW$44,0)) -> 0.93 | AX71: =IF(AX$43>$AR71,0,IF(AX$43>=$AQ71,AX$44,0)) -> 0.83 | AY71: =IF(AY$43>$AR71,0,IF(AY$43>=$AQ71,AY$44,0)) -> 1.03 | AZ71: =IF(AZ$43>$AR71,0,IF(AZ$43>=$AQ71,AZ$44,0)) -> 1.02 | BA71: =IF(BA$43>$AR71,0,IF(BA$43>=$AQ71,BA$44,0)) -> 1.03 | BB71: =IF(BB$43>$AR71,0,IF(BB$43>=$AQ71,BB$44,0)) -> 1.17 | BC71: =IF(BC$43>$AR71,0,IF(BC$43>=$AQ71,BC$44,0)) -> 1.07 | BD71: =IF(BD$43>$AR71,0,IF(BD$43>=$AQ71,BD$44,0)) -> 1.02 | BE71: =IF(BE$43>$AR71,0,IF(BE$43>=$AQ71,BE$44,0)) -> 1.02 | BF71: =IF(BF$43>$AR71,0,IF(BF$43>=$AQ71,BF$44,0)) -> 1.12 | BG71: =IF(BG$43>$AR71,0,IF(BG$43>=$AQ71,BG$44,0)) -> 1.12 | BH71: =IF(BH$43>$AR71,0,IF(BH$43>=$AQ71,BH$44,0)) -> 0.92 | BI71: =IF(BI$43>$AR71,0,IF(BI$43>=$AQ71,BI$44,0)) -> 1.17 | BJ71: =IF(BJ$43>$AR71,0,IF(BJ$43>=$AQ71,BJ$44,0)) -> 0.92 | BK71: =IF(BK$43>$AR71,0,IF(BK$43>=$AQ71,BK$44,0)) -> 1.12 | BL71: =IF(BL$43>$AR71,0,IF(BL$43>=$AQ71,BL$44,0)) -> 1.07 | BM71: =IF(BM$43>$AR71,0,IF(BM$43>=$AQ71,BM$44,0)) -> 1.07 | BN71: =IF(BN$43>$AR71,0,IF(BN$43>=$AQ71,BN$44,0)) -> 1.14 | BO71: =IF(BO$43>$AR71,0,IF(BO$43>=$AQ71,BO$44,0)) -> 0.97 | BP71: =IF(BP$43>$AR71,0,IF(BP$43>=$AQ71,BP$44,0)) -> 1 | BQ71: =IF(BQ$43>$AR71,0,IF(BQ$43>=$AQ71,BQ$44,0)) -> 0.92 | BR71: =IF(BR$43>$AR71,0,IF(BR$43>=$AQ71,BR$44,0)) -> 0.89 | BS71: =IF(BS$43>$AR71,0,IF(BS$43>=$AQ71,BS$44,0)) -> 0.97 | BT71: =IF(BT$43>$AR71,0,IF(BT$43>=$AQ71,BT$44,0)) -> 0.8 | BU71: =IF(BU$43>$AR71,0,IF(BU$43>=$AQ71,BU$44,0)) -> 0.83 | BV71: =IF(BV$43>$AR71,0,IF(BV$43>=$AQ71,BV$44,0)) -> 0.89 | BW71: =IF(BW$43>$AR71,0,IF(BW$43>=$AQ71,BW$44,0)) -> 0.83 | BX71: =IF(BX$43>$AR71,0,IF(BX$43>=$AQ71,BX$44,0)) -> 0.79 | BY71: =IF(BY$43>$AR71,0,IF(BY$43>=$AQ71,BY$44,0)) -> 0.91 | BZ71: =IF(BZ$43>$AR71,0,IF(BZ$43>=$AQ71,BZ$44,0)) -> 0.87 | CA71: =IF(CA$43>$AR71,0,IF(CA$43>=$AQ71,CA$44,0)) -> 0.84 | CB71: =IF(CB$43>$AR71,0,IF(CB$43>=$AQ71,CB$44,0)) -> 0.93 | CC71: =IF(CC$43>$AR71,0,IF(CC$43>=$AQ71,CC$44,0)) -> 0.79 | CD71: =IF(CD$43>$AR71,0,IF(CD$43>=$AQ71,CD$44,0)) -> 0 | CE71: =IF(CE$43>$AR71,0,IF(CE$43>=$AQ71,CE$44,0)) -> 0 | CF71: =IF(CF$43>$AR71,0,IF(CF$43>=$AQ71,CF$44,0)) -> 0
A72: 27 | B72: PRC | C72: 4801 | D72: 2019/0115865-6 | E72: 0115865-53.2019.3.00.0000 | F72: STJ | G72: MS 16.020/DF | H72: 2017-12-04 | I72: 2019-02-25 | J72: 2019-04-25 | K72: UNIÃO | L72: 26.994.558/0001-23 | M72: Brasilia/DF | N72: Comum | O72: 2019-07-01 | P72: 239737.5 | Q72: 1.159666673 | R72: 2.4567 | S72: 34.26 | T72: 340694.74 | U72: 37854.97 | V72: 0 | W72: 0 | X72: 0 | Y72: =TRUNC(AB72*R72/100,2) ->  | Z72: =TRUNC(AB72*$AS72/100,2) ->  | AA72: =TRUNC(Y72*$AS72/100,2) ->  | AB72: =TRUNC(#REF!*Q72,2) ->  | AC72: =T72+U72+V72+W72+X72 -> 378549.71 | AQ72: 2021-12-01 | AR72: 2024-12-01 | AS72: =SUM(AT72:CF72) -> 34.26 | AT72: =IF(AT$43>$AR72,0,IF(AT$43>=$AQ72,AT$44,0)) -> 0.77 | AU72: =IF(AU$43>$AR72,0,IF(AU$43>=$AQ72,AU$44,0)) -> 0.73 | AV72: =IF(AV$43>$AR72,0,IF(AV$43>=$AQ72,AV$44,0)) -> 0.76 | AW72: =IF(AW$43>$AR72,0,IF(AW$43>=$AQ72,AW$44,0)) -> 0.93 | AX72: =IF(AX$43>$AR72,0,IF(AX$43>=$AQ72,AX$44,0)) -> 0.83 | AY72: =IF(AY$43>$AR72,0,IF(AY$43>=$AQ72,AY$44,0)) -> 1.03 | AZ72: =IF(AZ$43>$AR72,0,IF(AZ$43>=$AQ72,AZ$44,0)) -> 1.02 | BA72: =IF(BA$43>$AR72,0,IF(BA$43>=$AQ72,BA$44,0)) -> 1.03 | BB72: =IF(BB$43>$AR72,0,IF(BB$43>=$AQ72,BB$44,0)) -> 1.17 | BC72: =IF(BC$43>$AR72,0,IF(BC$43>=$AQ72,BC$44,0)) -> 1.07 | BD72: =IF(BD$43>$AR72,0,IF(BD$43>=$AQ72,BD$44,0)) -> 1.02 | BE72: =IF(BE$43>$AR72,0,IF(BE$43>=$AQ72,BE$44,0)) -> 1.02 | BF72: =IF(BF$43>$AR72,0,IF(BF$43>=$AQ72,BF$44,0)) -> 1.12 | BG72: =IF(BG$43>$AR72,0,IF(BG$43>=$AQ72,BG$44,0)) -> 1.12 | BH72: =IF(BH$43>$AR72,0,IF(BH$43>=$AQ72,BH$44,0)) -> 0.92 | BI72: =IF(BI$43>$AR72,0,IF(BI$43>=$AQ72,BI$44,0)) -> 1.17 | BJ72: =IF(BJ$43>$AR72,0,IF(BJ$43>=$AQ72,BJ$44,0)) -> 0.92 | BK72: =IF(BK$43>$AR72,0,IF(BK$43>=$AQ72,BK$44,0)) -> 1.12 | BL72: =IF(BL$43>$AR72,0,IF(BL$43>=$AQ72,BL$44,0)) -> 1.07 | BM72: =IF(BM$43>$AR72,0,IF(BM$43>=$AQ72,BM$44,0)) -> 1.07 | BN72: =IF(BN$43>$AR72,0,IF(BN$43>=$AQ72,BN$44,0)) -> 1.14 | BO72: =IF(BO$43>$AR72,0,IF(BO$43>=$AQ72,BO$44,0)) -> 0.97 | BP72: =IF(BP$43>$AR72,0,IF(BP$43>=$AQ72,BP$44,0)) -> 1 | BQ72: =IF(BQ$43>$AR72,0,IF(BQ$43>=$AQ72,BQ$44,0)) -> 0.92 | BR72: =IF(BR$43>$AR72,0,IF(BR$43>=$AQ72,BR$44,0)) -> 0.89 | BS72: =IF(BS$43>$AR72,0,IF(BS$43>=$AQ72,BS$44,0)) -> 0.97 | BT72: =IF(BT$43>$AR72,0,IF(BT$43>=$AQ72,BT$44,0)) -> 0.8 | BU72: =IF(BU$43>$AR72,0,IF(BU$43>=$AQ72,BU$44,0)) -> 0.83 | BV72: =IF(BV$43>$AR72,0,IF(BV$43>=$AQ72,BV$44,0)) -> 0.89 | BW72: =IF(BW$43>$AR72,0,IF(BW$43>=$AQ72,BW$44,0)) -> 0.83 | BX72: =IF(BX$43>$AR72,0,IF(BX$43>=$AQ72,BX$44,0)) -> 0.79 | BY72: =IF(BY$43>$AR72,0,IF(BY$43>=$AQ72,BY$44,0)) -> 0.91 | BZ72: =IF(BZ$43>$AR72,0,IF(BZ$43>=$AQ72,BZ$44,0)) -> 0.87 | CA72: 0.84 | CB72: 0.93 | CC72: 0.79 | CD72: 0 | CE72: 0 | CF72: 0
A73: 28 | B73: PRC | C73: 4802 | D73: 2019/0115876-9 | E73: 0115876-82.2019.3.00.0000 | F73: STJ | G73: MS 19.353/DF | H73: 2017-12-04 | I73: 2019-03-22 | J73: 2019-04-25 | K73: UNIÃO | L73: 26.994.558/0001-23 | M73: Brasilia/DF | N73: Comum | O73: 2019-07-01 | P73: 187659.18 | Q73: 1.159666673 | R73: 2.4567 | S73: 34.26 | T73: 266685.41 | U73: 29631.71 | V73: 0 | W73: 0 | X73: 0 | Y73: =TRUNC(AB73*R73/100,2) ->  | Z73: =TRUNC(AB73*$AS73/100,2) ->  | AA73: =TRUNC(Y73*$AS73/100,2) ->  | AB73: =TRUNC(#REF!*Q73,2) ->  | AC73: =T73+U73+V73+W73+X73 -> 296317.12 | AQ73: 2021-12-01 | AR73: 2024-12-01 | AS73: =SUM(AT73:CF73) -> 34.26 | AT73: =IF(AT$43>$AR73,0,IF(AT$43>=$AQ73,AT$44,0)) -> 0.77 | AU73: =IF(AU$43>$AR73,0,IF(AU$43>=$AQ73,AU$44,0)) -> 0.73 | AV73: =IF(AV$43>$AR73,0,IF(AV$43>=$AQ73,AV$44,0)) -> 0.76 | AW73: =IF(AW$43>$AR73,0,IF(AW$43>=$AQ73,AW$44,0)) -> 0.93 | AX73: =IF(AX$43>$AR73,0,IF(AX$43>=$AQ73,AX$44,0)) -> 0.83 | AY73: =IF(AY$43>$AR73,0,IF(AY$43>=$AQ73,AY$44,0)) -> 1.03 | AZ73: =IF(AZ$43>$AR73,0,IF(AZ$43>=$AQ73,AZ$44,0)) -> 1.02 | BA73: =IF(BA$43>$AR73,0,IF(BA$43>=$AQ73,BA$44,0)) -> 1.03 | BB73: =IF(BB$43>$AR73,0,IF(BB$43>=$AQ73,BB$44,0)) -> 1.17 | BC73: =IF(BC$43>$AR73,0,IF(BC$43>=$AQ73,BC$44,0)) -> 1.07 | BD73: =IF(BD$43>$AR73,0,IF(BD$43>=$AQ73,BD$44,0)) -> 1.02 | BE73: =IF(BE$43>$AR73,0,IF(BE$43>=$AQ73,BE$44,0)) -> 1.02 | BF73: =IF(BF$43>$AR73,0,IF(BF$43>=$AQ73,BF$44,0)) -> 1.12 | BG73: =IF(BG$43>$AR73,0,IF(BG$43>=$AQ73,BG$44,0)) -> 1.12 | BH73: =IF(BH$43>$AR73,0,IF(BH$43>=$AQ73,BH$44,0)) -> 0.92 | BI73: =IF(BI$43>$AR73,0,IF(BI$43>=$AQ73,BI$44,0)) -> 1.17 | BJ73: =IF(BJ$43>$AR73,0,IF(BJ$43>=$AQ73,BJ$44,0)) -> 0.92 | BK73: =IF(BK$43>$AR73,0,IF(BK$43>=$AQ73,BK$44,0)) -> 1.12 | BL73: =IF(BL$43>$AR73,0,IF(BL$43>=$AQ73,BL$44,0)) -> 1.07 | BM73: =IF(BM$43>$AR73,0,IF(BM$43>=$AQ73,BM$44,0)) -> 1.07 | BN73: =IF(BN$43>$AR73,0,IF(BN$43>=$AQ73,BN$44,0)) -> 1.14 | BO73: =IF(BO$43>$AR73,0,IF(BO$43>=$AQ73,BO$44,0)) -> 0.97 | BP73: =IF(BP$43>$AR73,0,IF(BP$43>=$AQ73,BP$44,0)) -> 1 | BQ73: =IF(BQ$43>$AR73,0,IF(BQ$43>=$AQ73,BQ$44,0)) -> 0.92 | BR73: =IF(BR$43>$AR73,0,IF(BR$43>=$AQ73,BR$44,0)) -> 0.89 | BS73: =IF(BS$43>$AR73,0,IF(BS$43>=$AQ73,BS$44,0)) -> 0.97 | BT73: =IF(BT$43>$AR73,0,IF(BT$43>=$AQ73,BT$44,0)) -> 0.8 | BU73: =IF(BU$43>$AR73,0,IF(BU$43>=$AQ73,BU$44,0)) -> 0.83 | BV73: =IF(BV$43>$AR73,0,IF(BV$43>=$AQ73,BV$44,0)) -> 0.89 | BW73: =IF(BW$43>$AR73,0,IF(BW$43>=$AQ73,BW$44,0)) -> 0.83 | BX73: =IF(BX$43>$AR73,0,IF(BX$43>=$AQ73,BX$44,0)) -> 0.79 | BY73: 0.91 | BZ73: 0.87 | CA73: 0.84 | CB73: 0.93 | CC73: 0.79 | CD73: 0 | CE73: 0 | CF73: 0
A74: 29 | B74: PRC | C74: 4803 | D74: 2019/0115902-3 | E74: 0115902-80.2019.3.00.0000 | F74: STJ | G74: MS 21.456/DF | H74: 2017-09-20 | I74: 2019-03-21 | J74: 2019-04-25 | K74: União | L74: 26.994.558/0001-23 | M74: Brasilia/DF | N74: Comum | O74: 2019-07-01 | P74: 224325 | Q74: 1.159666673 | R74: 2.4567 | S74: 34.26 | T74: 318791.79 | U74: 35421.31 | V74: 0 | W74: 0 | X74: 0 | Y74: =TRUNC(AB74*R74/100,2) ->  | Z74: =TRUNC(AB74*$AS74/100,2) ->  | AA74: =TRUNC(Y74*$AS74/100,2) ->  | AB74: =TRUNC(#REF!*Q74,2) ->  | AC74: =T74+U74+V74+W74+X74 -> 354213.1 | AQ74: 2021-12-01 | AR74: 2024-12-01 | AS74: =SUM(AT74:CF74) -> 34.26 | AT74: =IF(AT$43>$AR74,0,IF(AT$43>=$AQ74,AT$44,0)) -> 0.77 | AU74: =IF(AU$43>$AR74,0,IF(AU$43>=$AQ74,AU$44,0)) -> 0.73 | AV74: =IF(AV$43>$AR74,0,IF(AV$43>=$AQ74,AV$44,0)) -> 0.76 | AW74: =IF(AW$43>$AR74,0,IF(AW$43>=$AQ74,AW$44,0)) -> 0.93 | AX74: =IF(AX$43>$AR74,0,IF(AX$43>=$AQ74,AX$44,0)) -> 0.83 | AY74: =IF(AY$43>$AR74,0,IF(AY$43>=$AQ74,AY$44,0)) -> 1.03 | AZ74: =IF(AZ$43>$AR74,0,IF(AZ$43>=$AQ74,AZ$44,0)) -> 1.02 | BA74: =IF(BA$43>$AR74,0,IF(BA$43>=$AQ74,BA$44,0)) -> 1.03 | BB74: =IF(BB$43>$AR74,0,IF(BB$43>=$AQ74,BB$44,0)) -> 1.17 | BC74: =IF(BC$43>$AR74,0,IF(BC$43>=$AQ74,BC$44,0)) -> 1.07 | BD74: =IF(BD$43>$AR74,0,IF(BD$43>=$AQ74,BD$44,0)) -> 1.02 | BE74: =IF(BE$43>$AR74,0,IF(BE$43>=$AQ74,BE$44,0)) -> 1.02 | BF74: =IF(BF$43>$AR74,0,IF(BF$43>=$AQ74,BF$44,0)) -> 1.12 | BG74: =IF(BG$43>$AR74,0,IF(BG$43>=$AQ74,BG$44,0)) -> 1.12 | BH74: =IF(BH$43>$AR74,0,IF(BH$43>=$AQ74,BH$44,0)) -> 0.92 | BI74: =IF(BI$43>$AR74,0,IF(BI$43>=$AQ74,BI$44,0)) -> 1.17 | BJ74: =IF(BJ$43>$AR74,0,IF(BJ$43>=$AQ74,BJ$44,0)) -> 0.92 | BK74: =IF(BK$43>$AR74,0,IF(BK$43>=$AQ74,BK$44,0)) -> 1.12 | BL74: =IF(BL$43>$AR74,0,IF(BL$43>=$AQ74,BL$44,0)) -> 1.07 | BM74: =IF(BM$43>$AR74,0,IF(BM$43>=$AQ74,BM$44,0)) -> 1.07 | BN74: =IF(BN$43>$AR74,0,IF(BN$43>=$AQ74,BN$44,0)) -> 1.14 | BO74: =IF(BO$43>$AR74,0,IF(BO$43>=$AQ74,BO$44,0)) -> 0.97 | BP74: =IF(BP$43>$AR74,0,IF(BP$43>=$AQ74,BP$44,0)) -> 1 | BQ74: =IF(BQ$43>$AR74,0,IF(BQ$43>=$AQ74,BQ$44,0)) -> 0.92 | BR74: =IF(BR$43>$AR74,0,IF(BR$43>=$AQ74,BR$44,0)) -> 0.89 | BS74: =IF(BS$43>$AR74,0,IF(BS$43>=$AQ74,BS$44,0)) -> 0.97 | BT74: =IF(BT$43>$AR74,0,IF(BT$43>=$AQ74,BT$44,0)) -> 0.8 | BU74: =IF(BU$43>$AR74,0,IF(BU$43>=$AQ74,BU$44,0)) -> 0.83 | BV74: =IF(BV$43>$AR74,0,IF(BV$43>=$AQ74,BV$44,0)) -> 0.89 | BW74: =IF(BW$43>$AR74,0,IF(BW$43>=$AQ74,BW$44,0)) -> 0.83 | BX74: =IF(BX$43>$AR74,0,IF(BX$43>=$AQ74,BX$44,0)) -> 0.79 | BY74: 0.91 | BZ74: 0.87 | CA74: 0.84 | CB74: 0.93 | CC74: 0.79 | CD74: 0 | CE74: 0 | CF74: 0
A75: 30 | B75: PRC | C75: 4805 | D75: 2019/0115926-2 | E75: 0115926-11.2019.3.00.0000 | F75: STJ | G75: MS 21.921/DF | H75: 2018-06-20 | I75: 2019-04-09 | J75: 2019-04-25 | K75: União | L75: 26.994.558/0001-23 | M75: Brasilia/DF | N75: Comum | O75: 2019-07-01 | P75: 193795.9 | Q75: 1.159666673 | R75: 2.4567 | S75: 34.26 | T75: 306007.11 | U75: 0 | V75: 0 | W75: 0 | X75: 0 | Y75: =TRUNC(AB75*R75/100,2) ->  | Z75: =TRUNC(AB75*$AS75/100,2) ->  | AA75: =TRUNC(Y75*$AS75/100,2) ->  | AB75: =TRUNC(#REF!*Q75,2) ->  | AC75: =T75+U75+V75+W75+X75 -> 306007.11 | AQ75: 2021-12-01 | AR75: 2024-12-01 | AS75: =SUM(AT75:CF75) -> 34.26 | AT75: =IF(AT$43>$AR75,0,IF(AT$43>=$AQ75,AT$44,0)) -> 0.77 | AU75: =IF(AU$43>$AR75,0,IF(AU$43>=$AQ75,AU$44,0)) -> 0.73 | AV75: =IF(AV$43>$AR75,0,IF(AV$43>=$AQ75,AV$44,0)) -> 0.76 | AW75: =IF(AW$43>$AR75,0,IF(AW$43>=$AQ75,AW$44,0)) -> 0.93 | AX75: =IF(AX$43>$AR75,0,IF(AX$43>=$AQ75,AX$44,0)) -> 0.83 | AY75: =IF(AY$43>$AR75,0,IF(AY$43>=$AQ75,AY$44,0)) -> 1.03 | AZ75: =IF(AZ$43>$AR75,0,IF(AZ$43>=$AQ75,AZ$44,0)) -> 1.02 | BA75: =IF(BA$43>$AR75,0,IF(BA$43>=$AQ75,BA$44,0)) -> 1.03 | BB75: =IF(BB$43>$AR75,0,IF(BB$43>=$AQ75,BB$44,0)) -> 1.17 | BC75: =IF(BC$43>$AR75,0,IF(BC$43>=$AQ75,BC$44,0)) -> 1.07 | BD75: =IF(BD$43>$AR75,0,IF(BD$43>=$AQ75,BD$44,0)) -> 1.02 | BE75: =IF(BE$43>$AR75,0,IF(BE$43>=$AQ75,BE$44,0)) -> 1.02 | BF75: =IF(BF$43>$AR75,0,IF(BF$43>=$AQ75,BF$44,0)) -> 1.12 | BG75: =IF(BG$43>$AR75,0,IF(BG$43>=$AQ75,BG$44,0)) -> 1.12 | BH75: =IF(BH$43>$AR75,0,IF(BH$43>=$AQ75,BH$44,0)) -> 0.92 | BI75: =IF(BI$43>$AR75,0,IF(BI$43>=$AQ75,BI$44,0)) -> 1.17 | BJ75: =IF(BJ$43>$AR75,0,IF(BJ$43>=$AQ75,BJ$44,0)) -> 0.92 | BK75: =IF(BK$43>$AR75,0,IF(BK$43>=$AQ75,BK$44,0)) -> 1.12 | BL75: =IF(BL$43>$AR75,0,IF(BL$43>=$AQ75,BL$44,0)) -> 1.07 | BM75: =IF(BM$43>$AR75,0,IF(BM$43>=$AQ75,BM$44,0)) -> 1.07 | BN75: =IF(BN$43>$AR75,0,IF(BN$43>=$AQ75,BN$44,0)) -> 1.14 | BO75: =IF(BO$43>$AR75,0,IF(BO$43>=$AQ75,BO$44,0)) -> 0.97 | BP75: =IF(BP$43>$AR75,0,IF(BP$43>=$AQ75,BP$44,0)) -> 1 | BQ75: =IF(BQ$43>$AR75,0,IF(BQ$43>=$AQ75,BQ$44,0)) -> 0.92 | BR75: =IF(BR$43>$AR75,0,IF(BR$43>=$AQ75,BR$44,0)) -> 0.89 | BS75: =IF(BS$43>$AR75,0,IF(BS$43>=$AQ75,BS$44,0)) -> 0.97 | BT75: =IF(BT$43>$AR75,0,IF(BT$43>=$AQ75,BT$44,0)) -> 0.8 | BU75: =IF(BU$43>$AR75,0,IF(BU$43>=$AQ75,BU$44,0)) -> 0.83 | BV75: =IF(BV$43>$AR75,0,IF(BV$43>=$AQ75,BV$44,0)) -> 0.89 | BW75: =IF(BW$43>$AR75,0,IF(BW$43>=$AQ75,BW$44,0)) -> 0.83 | BX75: =IF(BX$43>$AR75,0,IF(BX$43>=$AQ75,BX$44,0)) -> 0.79 | BY75: 0.91 | BZ75: 0.87 | CA75: 0.84 | CB75: 0.93 | CC75: 0.79 | CD75: 0 | CE75: 0 | CF75: 0
A76: 31 | B76: PRC | C76: 4806 | D76: 2019/0115942-7 | E76: 0115942-62.2019.3.00.0000 | F76: STJ | G76: MS 15.250/DF | H76: 2018-08-15 | I76: 2019-04-05 | J76: 2019-04-25 | K76: União | L76: 26.994.558/0001-23 | M76: Brasilia/DF | N76: Comum | O76: 2019-07-01 | P76: 233212.5 | Q76: 1.159666673 | R76: 2.4567 | S76: 34.26 | T76: 313009.65 | U76: 36824.66 | V76: 18412.33 | W76: 0 | X76: 0 | Y76: =TRUNC(AB76*R76/100,2) ->  | Z76: =TRUNC(AB76*$AS76/100,2) ->  | AA76: =TRUNC(Y76*$AS76/100,2) ->  | AB76: =TRUNC(#REF!*Q76,2) ->  | AC76: =T76+U76+V76+W76+X76 -> 368246.64 | AQ76: 2021-12-01 | AR76: 2024-12-01 | AS76: =SUM(AT76:CF76) -> 34.26 | AT76: =IF(AT$43>$AR76,0,IF(AT$43>=$AQ76,AT$44,0)) -> 0.77 | AU76: =IF(AU$43>$AR76,0,IF(AU$43>=$AQ76,AU$44,0)) -> 0.73 | AV76: =IF(AV$43>$AR76,0,IF(AV$43>=$AQ76,AV$44,0)) -> 0.76 | AW76: =IF(AW$43>$AR76,0,IF(AW$43>=$AQ76,AW$44,0)) -> 0.93 | AX76: =IF(AX$43>$AR76,0,IF(AX$43>=$AQ76,AX$44,0)) -> 0.83 | AY76: =IF(AY$43>$AR76,0,IF(AY$43>=$AQ76,AY$44,0)) -> 1.03 | AZ76: =IF(AZ$43>$AR76,0,IF(AZ$43>=$AQ76,AZ$44,0)) -> 1.02 | BA76: =IF(BA$43>$AR76,0,IF(BA$43>=$AQ76,BA$44,0)) -> 1.03 | BB76: =IF(BB$43>$AR76,0,IF(BB$43>=$AQ76,BB$44,0)) -> 1.17 | BC76: =IF(BC$43>$AR76,0,IF(BC$43>=$AQ76,BC$44,0)) -> 1.07 | BD76: =IF(BD$43>$AR76,0,IF(BD$43>=$AQ76,BD$44,0)) -> 1.02 | BE76: =IF(BE$43>$AR76,0,IF(BE$43>=$AQ76,BE$44,0)) -> 1.02 | BF76: =IF(BF$43>$AR76,0,IF(BF$43>=$AQ76,BF$44,0)) -> 1.12 | BG76: =IF(BG$43>$AR76,0,IF(BG$43>=$AQ76,BG$44,0)) -> 1.12 | BH76: =IF(BH$43>$AR76,0,IF(BH$43>=$AQ76,BH$44,0)) -> 0.92 | BI76: =IF(BI$43>$AR76,0,IF(BI$43>=$AQ76,BI$44,0)) -> 1.17 | BJ76: =IF(BJ$43>$AR76,0,IF(BJ$43>=$AQ76,BJ$44,0)) -> 0.92 | BK76: =IF(BK$43>$AR76,0,IF(BK$43>=$AQ76,BK$44,0)) -> 1.12 | BL76: =IF(BL$43>$AR76,0,IF(BL$43>=$AQ76,BL$44,0)) -> 1.07 | BM76: =IF(BM$43>$AR76,0,IF(BM$43>=$AQ76,BM$44,0)) -> 1.07 | BN76: =IF(BN$43>$AR76,0,IF(BN$43>=$AQ76,BN$44,0)) -> 1.14 | BO76: =IF(BO$43>$AR76,0,IF(BO$43>=$AQ76,BO$44,0)) -> 0.97 | BP76: =IF(BP$43>$AR76,0,IF(BP$43>=$AQ76,BP$44,0)) -> 1 | BQ76: =IF(BQ$43>$AR76,0,IF(BQ$43>=$AQ76,BQ$44,0)) -> 0.92 | BR76: =IF(BR$43>$AR76,0,IF(BR$43>=$AQ76,BR$44,0)) -> 0.89 | BS76: =IF(BS$43>$AR76,0,IF(BS$43>=$AQ76,BS$44,0)) -> 0.97 | BT76: =IF(BT$43>$AR76,0,IF(BT$43>=$AQ76,BT$44,0)) -> 0.8 | BU76: =IF(BU$43>$AR76,0,IF(BU$43>=$AQ76,BU$44,0)) -> 0.83 | BV76: =IF(BV$43>$AR76,0,IF(BV$43>=$AQ76,BV$44,0)) -> 0.89 | BW76: =IF(BW$43>$AR76,0,IF(BW$43>=$AQ76,BW$44,0)) -> 0.83 | BX76: =IF(BX$43>$AR76,0,IF(BX$43>=$AQ76,BX$44,0)) -> 0.79 | BY76: 0.91 | BZ76: 0.87 | CA76: 0.84 | CB76: 0.93 | CC76: 0.79 | CD76: 0 | CE76: 0 | CF76: 0
A77: 32 | B77: PRC | C77: 4807 | D77: 2019/0115949-0 | E77: 0115949-54.2019.3.00.0000 | F77: STJ | G77: MS 17.419/DF | H77: 2018-06-07 | I77: 2019-02-08 | J77: 2019-04-25 | K77: União | L77: 26.994.558/0001-23 | M77: Brasilia/DF | N77: Comum | O77: 2019-07-01 | P77: 242352 | Q77: 1.159666673 | R77: 2.4567 | S77: 34.26 | T77: 344410.26 | U77: 38267.8 | V77: 0 | W77: 0 | X77: 0 | Y77: =TRUNC(AB77*R77/100,2) ->  | Z77: =TRUNC(AB77*$AS77/100,2) ->  | AA77: =TRUNC(Y77*$AS77/100,2) ->  | AB77: =TRUNC(#REF!*Q77,2) ->  | AC77: =T77+U77+V77+W77+X77 -> 382678.06 | AQ77: 2021-12-01 | AR77: 2024-12-01 | AS77: =SUM(AT77:CF77) -> 34.26 | AT77: =IF(AT$43>$AR77,0,IF(AT$43>=$AQ77,AT$44,0)) -> 0.77 | AU77: =IF(AU$43>$AR77,0,IF(AU$43>=$AQ77,AU$44,0)) -> 0.73 | AV77: =IF(AV$43>$AR77,0,IF(AV$43>=$AQ77,AV$44,0)) -> 0.76 | AW77: =IF(AW$43>$AR77,0,IF(AW$43>=$AQ77,AW$44,0)) -> 0.93 | AX77: =IF(AX$43>$AR77,0,IF(AX$43>=$AQ77,AX$44,0)) -> 0.83 | AY77: =IF(AY$43>$AR77,0,IF(AY$43>=$AQ77,AY$44,0)) -> 1.03 | AZ77: =IF(AZ$43>$AR77,0,IF(AZ$43>=$AQ77,AZ$44,0)) -> 1.02 | BA77: =IF(BA$43>$AR77,0,IF(BA$43>=$AQ77,BA$44,0)) -> 1.03 | BB77: =IF(BB$43>$AR77,0,IF(BB$43>=$AQ77,BB$44,0)) -> 1.17 | BC77: =IF(BC$43>$AR77,0,IF(BC$43>=$AQ77,BC$44,0)) -> 1.07 | BD77: =IF(BD$43>$AR77,0,IF(BD$43>=$AQ77,BD$44,0)) -> 1.02 | BE77: =IF(BE$43>$AR77,0,IF(BE$43>=$AQ77,BE$44,0)) -> 1.02 | BF77: =IF(BF$43>$AR77,0,IF(BF$43>=$AQ77,BF$44,0)) -> 1.12 | BG77: =IF(BG$43>$AR77,0,IF(BG$43>=$AQ77,BG$44,0)) -> 1.12 | BH77: =IF(BH$43>$AR77,0,IF(BH$43>=$AQ77,BH$44,0)) -> 0.92 | BI77: =IF(BI$43>$AR77,0,IF(BI$43>=$AQ77,BI$44,0)) -> 1.17 | BJ77: =IF(BJ$43>$AR77,0,IF(BJ$43>=$AQ77,BJ$44,0)) -> 0.92 | BK77: =IF(BK$43>$AR77,0,IF(BK$43>=$AQ77,BK$44,0)) -> 1.12 | BL77: =IF(BL$43>$AR77,0,IF(BL$43>=$AQ77,BL$44,0)) -> 1.07 | BM77: =IF(BM$43>$AR77,0,IF(BM$43>=$AQ77,BM$44,0)) -> 1.07 | BN77: =IF(BN$43>$AR77,0,IF(BN$43>=$AQ77,BN$44,0)) -> 1.14 | BO77: =IF(BO$43>$AR77,0,IF(BO$43>=$AQ77,BO$44,0)) -> 0.97 | BP77: =IF(BP$43>$AR77,0,IF(BP$43>=$AQ77,BP$44,0)) -> 1 | BQ77: =IF(BQ$43>$AR77,0,IF(BQ$43>=$AQ77,BQ$44,0)) -> 0.92 | BR77: =IF(BR$43>$AR77,0,IF(BR$43>=$AQ77,BR$44,0)) -> 0.89 | BS77: =IF(BS$43>$AR77,0,IF(BS$43>=$AQ77,BS$44,0)) -> 0.97 | BT77: =IF(BT$43>$AR77,0,IF(BT$43>=$AQ77,BT$44,0)) -> 0.8 | BU77: =IF(BU$43>$AR77,0,IF(BU$43>=$AQ77,BU$44,0)) -> 0.83 | BV77: =IF(BV$43>$AR77,0,IF(BV$43>=$AQ77,BV$44,0)) -> 0.89 | BW77: =IF(BW$43>$AR77,0,IF(BW$43>=$AQ77,BW$44,0)) -> 0.83 | BX77: =IF(BX$43>$AR77,0,IF(BX$43>=$AQ77,BX$44,0)) -> 0.79 | BY77: 0.91 | BZ77: 0.87 | CA77: 0.84 | CB77: 0.93 | CC77: 0.79 | CD77: 0 | CE77: 0 | CF77: 0
A78: 33 | B78: PRC | C78: 4808 | D78: 2019/0116110-2 | E78: 0116110-64.2019.3.00.0000 | F78: STJ | G78: MS 23.138/DF | H78: 2018-06-12 | I78: 2019-04-08 | J78: 2019-04-25 | K78: União | L78: 26.994.558/0001-23 | M78: Brasilia/DF | N78: Comum | O78: 2019-07-01 | P78: 208114.92 | Q78: 1.159666673 | R78: 2.4567 | S78: 34.26 | T78: 262893.69 | U78: 32861.7 | V78: 32861.7 | W78: 0 | X78: 0 | Y78: =TRUNC(AB78*R78/100,2) ->  | Z78: =TRUNC(AB78*$AS78/100,2) ->  | AA78: =TRUNC(Y78*$AS78/100,2) ->  | AB78: =TRUNC(#REF!*Q78,2) ->  | AC78: =T78+U78+V78+W78+X78 -> 328617.09 | AQ78: 2021-12-01 | AR78: 2024-12-01 | AS78: =SUM(AT78:CF78) -> 34.26 | AT78: =IF(AT$43>$AR78,0,IF(AT$43>=$AQ78,AT$44,0)) -> 0.77 | AU78: =IF(AU$43>$AR78,0,IF(AU$43>=$AQ78,AU$44,0)) -> 0.73 | AV78: =IF(AV$43>$AR78,0,IF(AV$43>=$AQ78,AV$44,0)) -> 0.76 | AW78: =IF(AW$43>$AR78,0,IF(AW$43>=$AQ78,AW$44,0)) -> 0.93 | AX78: =IF(AX$43>$AR78,0,IF(AX$43>=$AQ78,AX$44,0)) -> 0.83 | AY78: =IF(AY$43>$AR78,0,IF(AY$43>=$AQ78,AY$44,0)) -> 1.03 | AZ78: =IF(AZ$43>$AR78,0,IF(AZ$43>=$AQ78,AZ$44,0)) -> 1.02 | BA78: =IF(BA$43>$AR78,0,IF(BA$43>=$AQ78,BA$44,0)) -> 1.03 | BB78: =IF(BB$43>$AR78,0,IF(BB$43>=$AQ78,BB$44,0)) -> 1.17 | BC78: =IF(BC$43>$AR78,0,IF(BC$43>=$AQ78,BC$44,0)) -> 1.07 | BD78: =IF(BD$43>$AR78,0,IF(BD$43>=$AQ78,BD$44,0)) -> 1.02 | BE78: =IF(BE$43>$AR78,0,IF(BE$43>=$AQ78,BE$44,0)) -> 1.02 | BF78: =IF(BF$43>$AR78,0,IF(BF$43>=$AQ78,BF$44,0)) -> 1.12 | BG78: =IF(BG$43>$AR78,0,IF(BG$43>=$AQ78,BG$44,0)) -> 1.12 | BH78: =IF(BH$43>$AR78,0,IF(BH$43>=$AQ78,BH$44,0)) -> 0.92 | BI78: =IF(BI$43>$AR78,0,IF(BI$43>=$AQ78,BI$44,0)) -> 1.17 | BJ78: =IF(BJ$43>$AR78,0,IF(BJ$43>=$AQ78,BJ$44,0)) -> 0.92 | BK78: =IF(BK$43>$AR78,0,IF(BK$43>=$AQ78,BK$44,0)) -> 1.12 | BL78: =IF(BL$43>$AR78,0,IF(BL$43>=$AQ78,BL$44,0)) -> 1.07 | BM78: =IF(BM$43>$AR78,0,IF(BM$43>=$AQ78,BM$44,0)) -> 1.07 | BN78: =IF(BN$43>$AR78,0,IF(BN$43>=$AQ78,BN$44,0)) -> 1.14 | BO78: =IF(BO$43>$AR78,0,IF(BO$43>=$AQ78,BO$44,0)) -> 0.97 | BP78: =IF(BP$43>$AR78,0,IF(BP$43>=$AQ78,BP$44,0)) -> 1 | BQ78: =IF(BQ$43>$AR78,0,IF(BQ$43>=$AQ78,BQ$44,0)) -> 0.92 | BR78: =IF(BR$43>$AR78,0,IF(BR$43>=$AQ78,BR$44,0)) -> 0.89 | BS78: =IF(BS$43>$AR78,0,IF(BS$43>=$AQ78,BS$44,0)) -> 0.97 | BT78: =IF(BT$43>$AR78,0,IF(BT$43>=$AQ78,BT$44,0)) -> 0.8 | BU78: =IF(BU$43>$AR78,0,IF(BU$43>=$AQ78,BU$44,0)) -> 0.83 | BV78: =IF(BV$43>$AR78,0,IF(BV$43>=$AQ78,BV$44,0)) -> 0.89 | BW78: =IF(BW$43>$AR78,0,IF(BW$43>=$AQ78,BW$44,0)) -> 0.83 | BX78: =IF(BX$43>$AR78,0,IF(BX$43>=$AQ78,BX$44,0)) -> 0.79 | BY78: 0.91 | BZ78: 0.87 | CA78: 0.84 | CB78: 0.93 | CC78: 0.79 | CD78: 0 | CE78: 0 | CF78: 0
A79: 34 | B79: PRC | C79: 4809 | D79: 2019/0116225-0 | E79: 0116225-85.2019.3.00.0000 | F79: STJ | G79: MS 23.128/DF | H79: 2018-08-09 | I79: 2019-04-08 | J79: 2019-04-25 | K79: União | L79: 26.994.558/0001-23 | M79: Brasilia/DF | N79: Comum | O79: 2019-07-01 | P79: 192283.96 | Q79: 1.159666673 | R79: 2.4567 | S79: 34.26 | T79: 242895.79 | U79: 30361.97 | V79: 30361.97 | W79: 0 | X79: 0 | Y79: =TRUNC(AB79*R79/100,2) ->  | Z79: =TRUNC(AB79*$AS79/100,2) ->  | AA79: =TRUNC(Y79*$AS79/100,2) ->  | AB79: =TRUNC(#REF!*Q79,2) ->  | AC79: =T79+U79+V79+W79+X79 -> 303619.73 | AQ79: 2021-12-01 | AR79: 2024-12-01 | AS79: =SUM(AT79:CF79) -> 34.26 | AT79: =IF(AT$43>$AR79,0,IF(AT$43>=$AQ79,AT$44,0)) -> 0.77 | AU79: =IF(AU$43>$AR79,0,IF(AU$43>=$AQ79,AU$44,0)) -> 0.73 | AV79: =IF(AV$43>$AR79,0,IF(AV$43>=$AQ79,AV$44,0)) -> 0.76 | AW79: =IF(AW$43>$AR79,0,IF(AW$43>=$AQ79,AW$44,0)) -> 0.93 | AX79: =IF(AX$43>$AR79,0,IF(AX$43>=$AQ79,AX$44,0)) -> 0.83 | AY79: =IF(AY$43>$AR79,0,IF(AY$43>=$AQ79,AY$44,0)) -> 1.03 | AZ79: =IF(AZ$43>$AR79,0,IF(AZ$43>=$AQ79,AZ$44,0)) -> 1.02 | BA79: =IF(BA$43>$AR79,0,IF(BA$43>=$AQ79,BA$44,0)) -> 1.03 | BB79: =IF(BB$43>$AR79,0,IF(BB$43>=$AQ79,BB$44,0)) -> 1.17 | BC79: =IF(BC$43>$AR79,0,IF(BC$43>=$AQ79,BC$44,0)) -> 1.07 | BD79: =IF(BD$43>$AR79,0,IF(BD$43>=$AQ79,BD$44,0)) -> 1.02 | BE79: =IF(BE$43>$AR79,0,IF(BE$43>=$AQ79,BE$44,0)) -> 1.02 | BF79: =IF(BF$43>$AR79,0,IF(BF$43>=$AQ79,BF$44,0)) -> 1.12 | BG79: =IF(BG$43>$AR79,0,IF(BG$43>=$AQ79,BG$44,0)) -> 1.12 | BH79: =IF(BH$43>$AR79,0,IF(BH$43>=$AQ79,BH$44,0)) -> 0.92 | BI79: =IF(BI$43>$AR79,0,IF(BI$43>=$AQ79,BI$44,0)) -> 1.17 | BJ79: =IF(BJ$43>$AR79,0,IF(BJ$43>=$AQ79,BJ$44,0)) -> 0.92 | BK79: =IF(BK$43>$AR79,0,IF(BK$43>=$AQ79,BK$44,0)) -> 1.12 | BL79: =IF(BL$43>$AR79,0,IF(BL$43>=$AQ79,BL$44,0)) -> 1.07 | BM79: =IF(BM$43>$AR79,0,IF(BM$43>=$AQ79,BM$44,0)) -> 1.07 | BN79: =IF(BN$43>$AR79,0,IF(BN$43>=$AQ79,BN$44,0)) -> 1.14 | BO79: =IF(BO$43>$AR79,0,IF(BO$43>=$AQ79,BO$44,0)) -> 0.97 | BP79: =IF(BP$43>$AR79,0,IF(BP$43>=$AQ79,BP$44,0)) -> 1 | BQ79: =IF(BQ$43>$AR79,0,IF(BQ$43>=$AQ79,BQ$44,0)) -> 0.92 | BR79: =IF(BR$43>$AR79,0,IF(BR$43>=$AQ79,BR$44,0)) -> 0.89 | BS79: =IF(BS$43>$AR79,0,IF(BS$43>=$AQ79,BS$44,0)) -> 0.97 | BT79: =IF(BT$43>$AR79,0,IF(BT$43>=$AQ79,BT$44,0)) -> 0.8 | BU79: =IF(BU$43>$AR79,0,IF(BU$43>=$AQ79,BU$44,0)) -> 0.83 | BV79: =IF(BV$43>$AR79,0,IF(BV$43>=$AQ79,BV$44,0)) -> 0.89 | BW79: =IF(BW$43>$AR79,0,IF(BW$43>=$AQ79,BW$44,0)) -> 0.83 | BX79: =IF(BX$43>$AR79,0,IF(BX$43>=$AQ79,BX$44,0)) -> 0.79 | BY79: 0.91 | BZ79: 0.87 | CA79: 0.84 | CB79: 0.93 | CC79: 0.79 | CD79: 0 | CE79: 0 | CF79: 0
A80: 35 | B80: PRC | C80: 4810 | D80: 2019/0126407-5 | E80: 0126407-33.2019.3.00.0000 | F80: STJ | G80: MS 17.657/DF | H80: 2017-12-04 | I80: 2019-04-09 | J80: 2019-05-06 | K80: União | L80: 26.994.558/0001-23 | M80: Brasilia/DF | N80: Comum | O80: 2019-07-01 | P80: 294443.96 | Q80: 1.159666673 | R80: 2.4567 | S80: 34.26 | T80: 395192.37 | U80: 69739.82 | V80: 0 | W80: 0 | X80: 0 | Y80: =TRUNC(AB80*R80/100,2) ->  | Z80: =TRUNC(AB80*$AS80/100,2) ->  | AA80: =TRUNC(Y80*$AS80/100,2) ->  | AB80: =TRUNC(#REF!*Q80,2) ->  | AC80: =T80+U80+V80+W80+X80 -> 464932.19 | AQ80: 2021-12-01 | AR80: 2024-12-01 | AS80: =SUM(AT80:CF80) -> 34.26 | AT80: =IF(AT$43>$AR80,0,IF(AT$43>=$AQ80,AT$44,0)) -> 0.77 | AU80: =IF(AU$43>$AR80,0,IF(AU$43>=$AQ80,AU$44,0)) -> 0.73 | AV80: =IF(AV$43>$AR80,0,IF(AV$43>=$AQ80,AV$44,0)) -> 0.76 | AW80: =IF(AW$43>$AR80,0,IF(AW$43>=$AQ80,AW$44,0)) -> 0.93 | AX80: =IF(AX$43>$AR80,0,IF(AX$43>=$AQ80,AX$44,0)) -> 0.83 | AY80: =IF(AY$43>$AR80,0,IF(AY$43>=$AQ80,AY$44,0)) -> 1.03 | AZ80: =IF(AZ$43>$AR80,0,IF(AZ$43>=$AQ80,AZ$44,0)) -> 1.02 | BA80: =IF(BA$43>$AR80,0,IF(BA$43>=$AQ80,BA$44,0)) -> 1.03 | BB80: =IF(BB$43>$AR80,0,IF(BB$43>=$AQ80,BB$44,0)) -> 1.17 | BC80: =IF(BC$43>$AR80,0,IF(BC$43>=$AQ80,BC$44,0)) -> 1.07 | BD80: =IF(BD$43>$AR80,0,IF(BD$43>=$AQ80,BD$44,0)) -> 1.02 | BE80: =IF(BE$43>$AR80,0,IF(BE$43>=$AQ80,BE$44,0)) -> 1.02 | BF80: =IF(BF$43>$AR80,0,IF(BF$43>=$AQ80,BF$44,0)) -> 1.12 | BG80: =IF(BG$43>$AR80,0,IF(BG$43>=$AQ80,BG$44,0)) -> 1.12 | BH80: =IF(BH$43>$AR80,0,IF(BH$43>=$AQ80,BH$44,0)) -> 0.92 | BI80: =IF(BI$43>$AR80,0,IF(BI$43>=$AQ80,BI$44,0)) -> 1.17 | BJ80: =IF(BJ$43>$AR80,0,IF(BJ$43>=$AQ80,BJ$44,0)) -> 0.92 | BK80: =IF(BK$43>$AR80,0,IF(BK$43>=$AQ80,BK$44,0)) -> 1.12 | BL80: =IF(BL$43>$AR80,0,IF(BL$43>=$AQ80,BL$44,0)) -> 1.07 | BM80: =IF(BM$43>$AR80,0,IF(BM$43>=$AQ80,BM$44,0)) -> 1.07 | BN80: =IF(BN$43>$AR80,0,IF(BN$43>=$AQ80,BN$44,0)) -> 1.14 | BO80: =IF(BO$43>$AR80,0,IF(BO$43>=$AQ80,BO$44,0)) -> 0.97 | BP80: =IF(BP$43>$AR80,0,IF(BP$43>=$AQ80,BP$44,0)) -> 1 | BQ80: =IF(BQ$43>$AR80,0,IF(BQ$43>=$AQ80,BQ$44,0)) -> 0.92 | BR80: =IF(BR$43>$AR80,0,IF(BR$43>=$AQ80,BR$44,0)) -> 0.89 | BS80: =IF(BS$43>$AR80,0,IF(BS$43>=$AQ80,BS$44,0)) -> 0.97 | BT80: =IF(BT$43>$AR80,0,IF(BT$43>=$AQ80,BT$44,0)) -> 0.8 | BU80: =IF(BU$43>$AR80,0,IF(BU$43>=$AQ80,BU$44,0)) -> 0.83 | BV80: =IF(BV$43>$AR80,0,IF(BV$43>=$AQ80,BV$44,0)) -> 0.89 | BW80: =IF(BW$43>$AR80,0,IF(BW$43>=$AQ80,BW$44,0)) -> 0.83 | BX80: =IF(BX$43>$AR80,0,IF(BX$43>=$AQ80,BX$44,0)) -> 0.79 | BY80: 0.91 | BZ80: 0.87 | CA80: 0.84 | CB80: 0.93 | CC80: 0.79 | CD80: 0 | CE80: 0 | CF80: 0
A81: 36 | B81: PRC | C81: 4811 | D81: 2019/0126412-7 | E81: 0126412-55.2019.3.00.0000 | F81: STJ | G81: MS 16.360/DF | H81: 2018-08-10 | I81: 2019-04-09 | J81: 2019-05-06 | K81: União | L81: 26.994.558/0001-23 | M81: Brasilia/DF | N81: Comum | O81: 2019-07-01 | P81: 194472.9 | Q81: 1.159666673 | R81: 2.4567 | S81: 34.26 | T81: 257943.96 | U81: 24566.08 | V81: 24566.08 | W81: 0 | X81: 0 | Y81: =TRUNC(AB81*R81/100,2) ->  | Z81: =TRUNC(AB81*$AS81/100,2) ->  | AA81: =TRUNC(Y81*$AS81/100,2) ->  | AB81: =TRUNC(#REF!*Q81,2) ->  | AC81: =T81+U81+V81+W81+X81 -> 307076.12 | AQ81: 2021-12-01 | AR81: 2024-12-01 | AS81: =SUM(AT81:CF81) -> 34.26 | AT81: =IF(AT$43>$AR81,0,IF(AT$43>=$AQ81,AT$44,0)) -> 0.77 | AU81: =IF(AU$43>$AR81,0,IF(AU$43>=$AQ81,AU$44,0)) -> 0.73 | AV81: =IF(AV$43>$AR81,0,IF(AV$43>=$AQ81,AV$44,0)) -> 0.76 | AW81: =IF(AW$43>$AR81,0,IF(AW$43>=$AQ81,AW$44,0)) -> 0.93 | AX81: =IF(AX$43>$AR81,0,IF(AX$43>=$AQ81,AX$44,0)) -> 0.83 | AY81: =IF(AY$43>$AR81,0,IF(AY$43>=$AQ81,AY$44,0)) -> 1.03 | AZ81: =IF(AZ$43>$AR81,0,IF(AZ$43>=$AQ81,AZ$44,0)) -> 1.02 | BA81: =IF(BA$43>$AR81,0,IF(BA$43>=$AQ81,BA$44,0)) -> 1.03 | BB81: =IF(BB$43>$AR81,0,IF(BB$43>=$AQ81,BB$44,0)) -> 1.17 | BC81: =IF(BC$43>$AR81,0,IF(BC$43>=$AQ81,BC$44,0)) -> 1.07 | BD81: =IF(BD$43>$AR81,0,IF(BD$43>=$AQ81,BD$44,0)) -> 1.02 | BE81: =IF(BE$43>$AR81,0,IF(BE$43>=$AQ81,BE$44,0)) -> 1.02 | BF81: =IF(BF$43>$AR81,0,IF(BF$43>=$AQ81,BF$44,0)) -> 1.12 | BG81: =IF(BG$43>$AR81,0,IF(BG$43>=$AQ81,BG$44,0)) -> 1.12 | BH81: =IF(BH$43>$AR81,0,IF(BH$43>=$AQ81,BH$44,0)) -> 0.92 | BI81: =IF(BI$43>$AR81,0,IF(BI$43>=$AQ81,BI$44,0)) -> 1.17 | BJ81: =IF(BJ$43>$AR81,0,IF(BJ$43>=$AQ81,BJ$44,0)) -> 0.92 | BK81: =IF(BK$43>$AR81,0,IF(BK$43>=$AQ81,BK$44,0)) -> 1.12 | BL81: =IF(BL$43>$AR81,0,IF(BL$43>=$AQ81,BL$44,0)) -> 1.07 | BM81: =IF(BM$43>$AR81,0,IF(BM$43>=$AQ81,BM$44,0)) -> 1.07 | BN81: =IF(BN$43>$AR81,0,IF(BN$43>=$AQ81,BN$44,0)) -> 1.14 | BO81: =IF(BO$43>$AR81,0,IF(BO$43>=$AQ81,BO$44,0)) -> 0.97 | BP81: =IF(BP$43>$AR81,0,IF(BP$43>=$AQ81,BP$44,0)) -> 1 | BQ81: =IF(BQ$43>$AR81,0,IF(BQ$43>=$AQ81,BQ$44,0)) -> 0.92 | BR81: =IF(BR$43>$AR81,0,IF(BR$43>=$AQ81,BR$44,0)) -> 0.89 | BS81: =IF(BS$43>$AR81,0,IF(BS$43>=$AQ81,BS$44,0)) -> 0.97 | BT81: =IF(BT$43>$AR81,0,IF(BT$43>=$AQ81,BT$44,0)) -> 0.8 | BU81: =IF(BU$43>$AR81,0,IF(BU$43>=$AQ81,BU$44,0)) -> 0.83 | BV81: =IF(BV$43>$AR81,0,IF(BV$43>=$AQ81,BV$44,0)) -> 0.89 | BW81: =IF(BW$43>$AR81,0,IF(BW$43>=$AQ81,BW$44,0)) -> 0.83 | BX81: =IF(BX$43>$AR81,0,IF(BX$43>=$AQ81,BX$44,0)) -> 0.79 | BY81: 0.91 | BZ81: 0.87 | CA81: 0.84 | CB81: 0.93 | CC81: 0.79 | CD81: 0 | CE81: 0 | CF81: 0
A82: 37 | B82: PRC | C82: 4812 | D82: 2019/0126414-0 | E82: 0126414-25.2019.3.00.0000 | F82: STJ | G82: MS 16.207/DF | H82: 2018-06-20 | I82: 2019-04-09 | J82: 2019-05-06 | K82: União | L82: 26.994.558/0001-23 | M82: Brasilia/DF | N82: Comum | O82: 2019-07-01 | P82: 270284.96 | Q82: 1.159666673 | R82: 2.4567 | S82: 34.26 | T82: 358499.15 | U82: 34142.77 | V82: 34142.77 | W82: 0 | X82: 0 | Y82: =TRUNC(AB82*R82/100,2) ->  | Z82: =TRUNC(AB82*$AS82/100,2) ->  | AA82: =TRUNC(Y82*$AS82/100,2) ->  | AB82: =TRUNC(#REF!*Q82,2) ->  | AC82: =T82+U82+V82+W82+X82 -> 426784.69 | AQ82: 2021-12-01 | AR82: 2024-12-01 | AS82: =SUM(AT82:CF82) -> 34.26 | AT82: =IF(AT$43>$AR82,0,IF(AT$43>=$AQ82,AT$44,0)) -> 0.77 | AU82: =IF(AU$43>$AR82,0,IF(AU$43>=$AQ82,AU$44,0)) -> 0.73 | AV82: =IF(AV$43>$AR82,0,IF(AV$43>=$AQ82,AV$44,0)) -> 0.76 | AW82: =IF(AW$43>$AR82,0,IF(AW$43>=$AQ82,AW$44,0)) -> 0.93 | AX82: =IF(AX$43>$AR82,0,IF(AX$43>=$AQ82,AX$44,0)) -> 0.83 | AY82: =IF(AY$43>$AR82,0,IF(AY$43>=$AQ82,AY$44,0)) -> 1.03 | AZ82: =IF(AZ$43>$AR82,0,IF(AZ$43>=$AQ82,AZ$44,0)) -> 1.02 | BA82: =IF(BA$43>$AR82,0,IF(BA$43>=$AQ82,BA$44,0)) -> 1.03 | BB82: =IF(BB$43>$AR82,0,IF(BB$43>=$AQ82,BB$44,0)) -> 1.17 | BC82: =IF(BC$43>$AR82,0,IF(BC$43>=$AQ82,BC$44,0)) -> 1.07 | BD82: =IF(BD$43>$AR82,0,IF(BD$43>=$AQ82,BD$44,0)) -> 1.02 | BE82: =IF(BE$43>$AR82,0,IF(BE$43>=$AQ82,BE$44,0)) -> 1.02 | BF82: =IF(BF$43>$AR82,0,IF(BF$43>=$AQ82,BF$44,0)) -> 1.12 | BG82: =IF(BG$43>$AR82,0,IF(BG$43>=$AQ82,BG$44,0)) -> 1.12 | BH82: =IF(BH$43>$AR82,0,IF(BH$43>=$AQ82,BH$44,0)) -> 0.92 | BI82: =IF(BI$43>$AR82,0,IF(BI$43>=$AQ82,BI$44,0)) -> 1.17 | BJ82: =IF(BJ$43>$AR82,0,IF(BJ$43>=$AQ82,BJ$44,0)) -> 0.92 | BK82: =IF(BK$43>$AR82,0,IF(BK$43>=$AQ82,BK$44,0)) -> 1.12 | BL82: =IF(BL$43>$AR82,0,IF(BL$43>=$AQ82,BL$44,0)) -> 1.07 | BM82: =IF(BM$43>$AR82,0,IF(BM$43>=$AQ82,BM$44,0)) -> 1.07 | BN82: =IF(BN$43>$AR82,0,IF(BN$43>=$AQ82,BN$44,0)) -> 1.14 | BO82: =IF(BO$43>$AR82,0,IF(BO$43>=$AQ82,BO$44,0)) -> 0.97 | BP82: =IF(BP$43>$AR82,0,IF(BP$43>=$AQ82,BP$44,0)) -> 1 | BQ82: =IF(BQ$43>$AR82,0,IF(BQ$43>=$AQ82,BQ$44,0)) -> 0.92 | BR82: =IF(BR$43>$AR82,0,IF(BR$43>=$AQ82,BR$44,0)) -> 0.89 | BS82: =IF(BS$43>$AR82,0,IF(BS$43>=$AQ82,BS$44,0)) -> 0.97 | BT82: =IF(BT$43>$AR82,0,IF(BT$43>=$AQ82,BT$44,0)) -> 0.8 | BU82: =IF(BU$43>$AR82,0,IF(BU$43>=$AQ82,BU$44,0)) -> 0.83 | BV82: =IF(BV$43>$AR82,0,IF(BV$43>=$AQ82,BV$44,0)) -> 0.89 | BW82: =IF(BW$43>$AR82,0,IF(BW$43>=$AQ82,BW$44,0)) -> 0.83 | BX82: =IF(BX$43>$AR82,0,IF(BX$43>=$AQ82,BX$44,0)) -> 0.79 | BY82: 0.91 | BZ82: 0.87 | CA82: 0.84 | CB82: 0.93 | CC82: 0.79 | CD82: 0 | CE82: 0 | CF82: 0
A83: 38 | B83: PRC | C83: 4813 | D83: 2019/0126416-4 | E83: 0126416-92.2019.3.00.0000 | F83: STJ | G83: MS 16.070/DF | H83: 2017-12-04 | I83: 2019-04-09 | J83: 2019-05-06 | K83: União | L83: 26.994.558/0001-23 | M83: Brasilia/DF | N83: Comum | O83: 2019-07-01 | P83: 203057.25 | Q83: 1.159666673 | R83: 2.4567 | S83: 34.26 | T83: 256504.77 | U83: 64126.19 | V83: 0 | W83: 0 | X83: 0 | Y83: =TRUNC(AB83*R83/100,2) ->  | Z83: =TRUNC(AB83*$AS83/100,2) ->  | AA83: =TRUNC(Y83*$AS83/100,2) ->  | AB83: =TRUNC(#REF!*Q83,2) ->  | AC83: =T83+U83+V83+W83+X83 -> 320630.96 | AQ83: 2021-12-01 | AR83: 2024-12-01 | AS83: =SUM(AT83:CF83) -> 34.26 | AT83: =IF(AT$43>$AR83,0,IF(AT$43>=$AQ83,AT$44,0)) -> 0.77 | AU83: =IF(AU$43>$AR83,0,IF(AU$43>=$AQ83,AU$44,0)) -> 0.73 | AV83: =IF(AV$43>$AR83,0,IF(AV$43>=$AQ83,AV$44,0)) -> 0.76 | AW83: =IF(AW$43>$AR83,0,IF(AW$43>=$AQ83,AW$44,0)) -> 0.93 | AX83: =IF(AX$43>$AR83,0,IF(AX$43>=$AQ83,AX$44,0)) -> 0.83 | AY83: =IF(AY$43>$AR83,0,IF(AY$43>=$AQ83,AY$44,0)) -> 1.03 | AZ83: =IF(AZ$43>$AR83,0,IF(AZ$43>=$AQ83,AZ$44,0)) -> 1.02 | BA83: =IF(BA$43>$AR83,0,IF(BA$43>=$AQ83,BA$44,0)) -> 1.03 | BB83: =IF(BB$43>$AR83,0,IF(BB$43>=$AQ83,BB$44,0)) -> 1.17 | BC83: =IF(BC$43>$AR83,0,IF(BC$43>=$AQ83,BC$44,0)) -> 1.07 | BD83: =IF(BD$43>$AR83,0,IF(BD$43>=$AQ83,BD$44,0)) -> 1.02 | BE83: =IF(BE$43>$AR83,0,IF(BE$43>=$AQ83,BE$44,0)) -> 1.02 | BF83: =IF(BF$43>$AR83,0,IF(BF$43>=$AQ83,BF$44,0)) -> 1.12 | BG83: =IF(BG$43>$AR83,0,IF(BG$43>=$AQ83,BG$44,0)) -> 1.12 | BH83: =IF(BH$43>$AR83,0,IF(BH$43>=$AQ83,BH$44,0)) -> 0.92 | BI83: =IF(BI$43>$AR83,0,IF(BI$43>=$AQ83,BI$44,0)) -> 1.17 | BJ83: =IF(BJ$43>$AR83,0,IF(BJ$43>=$AQ83,BJ$44,0)) -> 0.92 | BK83: =IF(BK$43>$AR83,0,IF(BK$43>=$AQ83,BK$44,0)) -> 1.12 | BL83: =IF(BL$43>$AR83,0,IF(BL$43>=$AQ83,BL$44,0)) -> 1.07 | BM83: =IF(BM$43>$AR83,0,IF(BM$43>=$AQ83,BM$44,0)) -> 1.07 | BN83: =IF(BN$43>$AR83,0,IF(BN$43>=$AQ83,BN$44,0)) -> 1.14 | BO83: =IF(BO$43>$AR83,0,IF(BO$43>=$AQ83,BO$44,0)) -> 0.97 | BP83: =IF(BP$43>$AR83,0,IF(BP$43>=$AQ83,BP$44,0)) -> 1 | BQ83: =IF(BQ$43>$AR83,0,IF(BQ$43>=$AQ83,BQ$44,0)) -> 0.92 | BR83: =IF(BR$43>$AR83,0,IF(BR$43>=$AQ83,BR$44,0)) -> 0.89 | BS83: =IF(BS$43>$AR83,0,IF(BS$43>=$AQ83,BS$44,0)) -> 0.97 | BT83: =IF(BT$43>$AR83,0,IF(BT$43>=$AQ83,BT$44,0)) -> 0.8 | BU83: =IF(BU$43>$AR83,0,IF(BU$43>=$AQ83,BU$44,0)) -> 0.83 | BV83: =IF(BV$43>$AR83,0,IF(BV$43>=$AQ83,BV$44,0)) -> 0.89 | BW83: =IF(BW$43>$AR83,0,IF(BW$43>=$AQ83,BW$44,0)) -> 0.83 | BX83: =IF(BX$43>$AR83,0,IF(BX$43>=$AQ83,BX$44,0)) -> 0.79 | BY83: 0.91 | BZ83: 0.87 | CA83: 0.84 | CB83: 0.93 | CC83: 0.79 | CD83: 0 | CE83: 0 | CF83: 0
A84: 39 | B84: PRC | C84: 4814 | D84: 2019/0126418-8 | E84: 0126418-62.2019.3.00.0000 | F84: STJ | G84: MS 15.885/DF | H84: 2018-06-20 | I84: 2019-04-09 | J84: 2019-05-06 | K84: União | L84: 26.994.558/0001-23 | M84: Brasilia/DF | N84: Comum | O84: 2019-07-01 | P84: 188993.25 | Q84: 1.159666673 | R84: 2.4567 | S84: 34.26 | T84: 253660.11 | U84: 44763.54 | V84: 0 | W84: 0 | X84: 0 | Y84: =TRUNC(AB84*R84/100,2) ->  | Z84: =TRUNC(AB84*$AS84/100,2) ->  | AA84: =TRUNC(Y84*$AS84/100,2) ->  | AB84: =TRUNC(#REF!*Q84,2) ->  | AC84: =T84+U84+V84+W84+X84 -> 298423.65 | AQ84: 2021-12-01 | AR84: 2024-12-01 | AS84: =SUM(AT84:CF84) -> 34.26 | AT84: =IF(AT$43>$AR84,0,IF(AT$43>=$AQ84,AT$44,0)) -> 0.77 | AU84: =IF(AU$43>$AR84,0,IF(AU$43>=$AQ84,AU$44,0)) -> 0.73 | AV84: =IF(AV$43>$AR84,0,IF(AV$43>=$AQ84,AV$44,0)) -> 0.76 | AW84: =IF(AW$43>$AR84,0,IF(AW$43>=$AQ84,AW$44,0)) -> 0.93 | AX84: =IF(AX$43>$AR84,0,IF(AX$43>=$AQ84,AX$44,0)) -> 0.83 | AY84: =IF(AY$43>$AR84,0,IF(AY$43>=$AQ84,AY$44,0)) -> 1.03 | AZ84: =IF(AZ$43>$AR84,0,IF(AZ$43>=$AQ84,AZ$44,0)) -> 1.02 | BA84: =IF(BA$43>$AR84,0,IF(BA$43>=$AQ84,BA$44,0)) -> 1.03 | BB84: =IF(BB$43>$AR84,0,IF(BB$43>=$AQ84,BB$44,0)) -> 1.17 | BC84: =IF(BC$43>$AR84,0,IF(BC$43>=$AQ84,BC$44,0)) -> 1.07 | BD84: =IF(BD$43>$AR84,0,IF(BD$43>=$AQ84,BD$44,0)) -> 1.02 | BE84: =IF(BE$43>$AR84,0,IF(BE$43>=$AQ84,BE$44,0)) -> 1.02 | BF84: =IF(BF$43>$AR84,0,IF(BF$43>=$AQ84,BF$44,0)) -> 1.12 | BG84: =IF(BG$43>$AR84,0,IF(BG$43>=$AQ84,BG$44,0)) -> 1.12 | BH84: =IF(BH$43>$AR84,0,IF(BH$43>=$AQ84,BH$44,0)) -> 0.92 | BI84: =IF(BI$43>$AR84,0,IF(BI$43>=$AQ84,BI$44,0)) -> 1.17 | BJ84: =IF(BJ$43>$AR84,0,IF(BJ$43>=$AQ84,BJ$44,0)) -> 0.92 | BK84: =IF(BK$43>$AR84,0,IF(BK$43>=$AQ84,BK$44,0)) -> 1.12 | BL84: =IF(BL$43>$AR84,0,IF(BL$43>=$AQ84,BL$44,0)) -> 1.07 | BM84: =IF(BM$43>$AR84,0,IF(BM$43>=$AQ84,BM$44,0)) -> 1.07 | BN84: =IF(BN$43>$AR84,0,IF(BN$43>=$AQ84,BN$44,0)) -> 1.14 | BO84: =IF(BO$43>$AR84,0,IF(BO$43>=$AQ84,BO$44,0)) -> 0.97 | BP84: =IF(BP$43>$AR84,0,IF(BP$43>=$AQ84,BP$44,0)) -> 1 | BQ84: =IF(BQ$43>$AR84,0,IF(BQ$43>=$AQ84,BQ$44,0)) -> 0.92 | BR84: =IF(BR$43>$AR84,0,IF(BR$43>=$AQ84,BR$44,0)) -> 0.89 | BS84: =IF(BS$43>$AR84,0,IF(BS$43>=$AQ84,BS$44,0)) -> 0.97 | BT84: =IF(BT$43>$AR84,0,IF(BT$43>=$AQ84,BT$44,0)) -> 0.8 | BU84: =IF(BU$43>$AR84,0,IF(BU$43>=$AQ84,BU$44,0)) -> 0.83 | BV84: =IF(BV$43>$AR84,0,IF(BV$43>=$AQ84,BV$44,0)) -> 0.89 | BW84: =IF(BW$43>$AR84,0,IF(BW$43>=$AQ84,BW$44,0)) -> 0.83 | BX84: =IF(BX$43>$AR84,0,IF(BX$43>=$AQ84,BX$44,0)) -> 0.79 | BY84: 0.91 | BZ84: 0.87 | CA84: 0.84 | CB84: 0.93 | CC84: 0.79 | CD84: 0 | CE84: 0 | CF84: 0
A85: 40 | B85: PRC | C85: 4815 | D85: 2019/0126429-0 | E85: 0126429-91.2019.3.00.0000 | F85: STJ | G85: MS 13.550/DF | H85: 2018-06-07 | I85: 2019-04-09 | J85: 2019-05-06 | K85: União | L85: 26.994.558/0001-23 | M85: Brasilia/DF | N85: Comum | O85: 2019-07-01 | P85: 185435.73 | Q85: 1.159666673 | R85: 2.4567 | S85: 34.26 | T85: 248885.33 | U85: 43920.93 | V85: 0 | W85: 0 | X85: 0 | Y85: =TRUNC(AB85*R85/100,2) ->  | Z85: =TRUNC(AB85*$AS85/100,2) ->  | AA85: =TRUNC(Y85*$AS85/100,2) ->  | AB85: =TRUNC(#REF!*Q85,2) ->  | AC85: =T85+U85+V85+W85+X85 -> 292806.26 | AQ85: 2021-12-01 | AR85: 2024-12-01 | AS85: =SUM(AT85:CF85) -> 34.26 | AT85: =IF(AT$43>$AR85,0,IF(AT$43>=$AQ85,AT$44,0)) -> 0.77 | AU85: =IF(AU$43>$AR85,0,IF(AU$43>=$AQ85,AU$44,0)) -> 0.73 | AV85: =IF(AV$43>$AR85,0,IF(AV$43>=$AQ85,AV$44,0)) -> 0.76 | AW85: =IF(AW$43>$AR85,0,IF(AW$43>=$AQ85,AW$44,0)) -> 0.93 | AX85: =IF(AX$43>$AR85,0,IF(AX$43>=$AQ85,AX$44,0)) -> 0.83 | AY85: =IF(AY$43>$AR85,0,IF(AY$43>=$AQ85,AY$44,0)) -> 1.03 | AZ85: =IF(AZ$43>$AR85,0,IF(AZ$43>=$AQ85,AZ$44,0)) -> 1.02 | BA85: =IF(BA$43>$AR85,0,IF(BA$43>=$AQ85,BA$44,0)) -> 1.03 | BB85: =IF(BB$43>$AR85,0,IF(BB$43>=$AQ85,BB$44,0)) -> 1.17 | BC85: =IF(BC$43>$AR85,0,IF(BC$43>=$AQ85,BC$44,0)) -> 1.07 | BD85: =IF(BD$43>$AR85,0,IF(BD$43>=$AQ85,BD$44,0)) -> 1.02 | BE85: =IF(BE$43>$AR85,0,IF(BE$43>=$AQ85,BE$44,0)) -> 1.02 | BF85: =IF(BF$43>$AR85,0,IF(BF$43>=$AQ85,BF$44,0)) -> 1.12 | BG85: =IF(BG$43>$AR85,0,IF(BG$43>=$AQ85,BG$44,0)) -> 1.12 | BH85: =IF(BH$43>$AR85,0,IF(BH$43>=$AQ85,BH$44,0)) -> 0.92 | BI85: =IF(BI$43>$AR85,0,IF(BI$43>=$AQ85,BI$44,0)) -> 1.17 | BJ85: =IF(BJ$43>$AR85,0,IF(BJ$43>=$AQ85,BJ$44,0)) -> 0.92 | BK85: =IF(BK$43>$AR85,0,IF(BK$43>=$AQ85,BK$44,0)) -> 1.12 | BL85: =IF(BL$43>$AR85,0,IF(BL$43>=$AQ85,BL$44,0)) -> 1.07 | BM85: =IF(BM$43>$AR85,0,IF(BM$43>=$AQ85,BM$44,0)) -> 1.07 | BN85: =IF(BN$43>$AR85,0,IF(BN$43>=$AQ85,BN$44,0)) -> 1.14 | BO85: =IF(BO$43>$AR85,0,IF(BO$43>=$AQ85,BO$44,0)) -> 0.97 | BP85: =IF(BP$43>$AR85,0,IF(BP$43>=$AQ85,BP$44,0)) -> 1 | BQ85: =IF(BQ$43>$AR85,0,IF(BQ$43>=$AQ85,BQ$44,0)) -> 0.92 | BR85: =IF(BR$43>$AR85,0,IF(BR$43>=$AQ85,BR$44,0)) -> 0.89 | BS85: =IF(BS$43>$AR85,0,IF(BS$43>=$AQ85,BS$44,0)) -> 0.97 | BT85: =IF(BT$43>$AR85,0,IF(BT$43>=$AQ85,BT$44,0)) -> 0.8 | BU85: =IF(BU$43>$AR85,0,IF(BU$43>=$AQ85,BU$44,0)) -> 0.83 | BV85: =IF(BV$43>$AR85,0,IF(BV$43>=$AQ85,BV$44,0)) -> 0.89 | BW85: =IF(BW$43>$AR85,0,IF(BW$43>=$AQ85,BW$44,0)) -> 0.83 | BX85: =IF(BX$43>$AR85,0,IF(BX$43>=$AQ85,BX$44,0)) -> 0.79 | BY85: 0.91 | BZ85: 0.87 | CA85: 0.84 | CB85: 0.93 | CC85: 0.79 | CD85: 0 | CE85: 0 | CF85: 0
A86: 41 | B86: PRC | C86: 4816 | D86: 2019/0126431-7 | E86: 0126431-61.2019.3.00.0000 | F86: STJ | G86: MS 14.255/DF | H86: 2018-08-15 | I86: 2019-04-09 | J86: 2019-05-06 | K86: União | L86: 26.994.558/0001-23 | M86: Brasilia/DF | N86: Comum | O86: 2019-07-01 | P86: 176119.2 | Q86: 1.159666673 | R86: 2.4567 | S86: 34.26 | T86: 236381.02 | U86: 41714.29 | V86: 0 | W86: 0 | X86: 0 | Y86: =TRUNC(AB86*R86/100,2) ->  | Z86: =TRUNC(AB86*$AS86/100,2) ->  | AA86: =TRUNC(Y86*$AS86/100,2) ->  | AB86: =TRUNC(#REF!*Q86,2) ->  | AC86: =T86+U86+V86+W86+X86 -> 278095.31 | AQ86: 2021-12-01 | AR86: 2024-12-01 | AS86: =SUM(AT86:CF86) -> 34.26 | AT86: =IF(AT$43>$AR86,0,IF(AT$43>=$AQ86,AT$44,0)) -> 0.77 | AU86: =IF(AU$43>$AR86,0,IF(AU$43>=$AQ86,AU$44,0)) -> 0.73 | AV86: =IF(AV$43>$AR86,0,IF(AV$43>=$AQ86,AV$44,0)) -> 0.76 | AW86: =IF(AW$43>$AR86,0,IF(AW$43>=$AQ86,AW$44,0)) -> 0.93 | AX86: =IF(AX$43>$AR86,0,IF(AX$43>=$AQ86,AX$44,0)) -> 0.83 | AY86: =IF(AY$43>$AR86,0,IF(AY$43>=$AQ86,AY$44,0)) -> 1.03 | AZ86: =IF(AZ$43>$AR86,0,IF(AZ$43>=$AQ86,AZ$44,0)) -> 1.02 | BA86: =IF(BA$43>$AR86,0,IF(BA$43>=$AQ86,BA$44,0)) -> 1.03 | BB86: =IF(BB$43>$AR86,0,IF(BB$43>=$AQ86,BB$44,0)) -> 1.17 | BC86: =IF(BC$43>$AR86,0,IF(BC$43>=$AQ86,BC$44,0)) -> 1.07 | BD86: =IF(BD$43>$AR86,0,IF(BD$43>=$AQ86,BD$44,0)) -> 1.02 | BE86: =IF(BE$43>$AR86,0,IF(BE$43>=$AQ86,BE$44,0)) -> 1.02 | BF86: =IF(BF$43>$AR86,0,IF(BF$43>=$AQ86,BF$44,0)) -> 1.12 | BG86: =IF(BG$43>$AR86,0,IF(BG$43>=$AQ86,BG$44,0)) -> 1.12 | BH86: =IF(BH$43>$AR86,0,IF(BH$43>=$AQ86,BH$44,0)) -> 0.92 | BI86: =IF(BI$43>$AR86,0,IF(BI$43>=$AQ86,BI$44,0)) -> 1.17 | BJ86: =IF(BJ$43>$AR86,0,IF(BJ$43>=$AQ86,BJ$44,0)) -> 0.92 | BK86: =IF(BK$43>$AR86,0,IF(BK$43>=$AQ86,BK$44,0)) -> 1.12 | BL86: =IF(BL$43>$AR86,0,IF(BL$43>=$AQ86,BL$44,0)) -> 1.07 | BM86: =IF(BM$43>$AR86,0,IF(BM$43>=$AQ86,BM$44,0)) -> 1.07 | BN86: =IF(BN$43>$AR86,0,IF(BN$43>=$AQ86,BN$44,0)) -> 1.14 | BO86: =IF(BO$43>$AR86,0,IF(BO$43>=$AQ86,BO$44,0)) -> 0.97 | BP86: =IF(BP$43>$AR86,0,IF(BP$43>=$AQ86,BP$44,0)) -> 1 | BQ86: =IF(BQ$43>$AR86,0,IF(BQ$43>=$AQ86,BQ$44,0)) -> 0.92 | BR86: =IF(BR$43>$AR86,0,IF(BR$43>=$AQ86,BR$44,0)) -> 0.89 | BS86: =IF(BS$43>$AR86,0,IF(BS$43>=$AQ86,BS$44,0)) -> 0.97 | BT86: =IF(BT$43>$AR86,0,IF(BT$43>=$AQ86,BT$44,0)) -> 0.8 | BU86: =IF(BU$43>$AR86,0,IF(BU$43>=$AQ86,BU$44,0)) -> 0.83 | BV86: =IF(BV$43>$AR86,0,IF(BV$43>=$AQ86,BV$44,0)) -> 0.89 | BW86: =IF(BW$43>$AR86,0,IF(BW$43>=$AQ86,BW$44,0)) -> 0.83 | BX86: =IF(BX$43>$AR86,0,IF(BX$43>=$AQ86,BX$44,0)) -> 0.79 | BY86: 0.91 | BZ86: 0.87 | CA86: 0.84 | CB86: 0.93 | CC86: 0.79 | CD86: 0 | CE86: 0 | CF86: 0
A87: 42 | B87: PRC | C87: 4818 | D87: 2019/0126435-4 | E87: 0126435-98.2019.3.00.0000 | F87: STJ | G87: MS 15.875/DF | H87: 2017-12-04 | I87: 2019-04-09 | J87: 2019-05-06 | K87: União | L87: 26.994.558/0001-23 | M87: Brasilia/DF | N87: Comum | O87: 2019-07-01 | P87: 191305.64 | Q87: 1.159666673 | R87: 2.4567 | S87: 34.26 | T87: 211452.47 | U87: 90622.48 | V87: 0 | W87: 0 | X87: 0 | Y87: =TRUNC(AB87*R87/100,2) ->  | Z87: =TRUNC(AB87*$AS87/100,2) ->  | AA87: =TRUNC(Y87*$AS87/100,2) ->  | AB87: =TRUNC(#REF!*Q87,2) ->  | AC87: =T87+U87+V87+W87+X87 -> 302074.95 | AQ87: 2021-12-01 | AR87: 2024-12-01 | AS87: =SUM(AT87:CF87) -> 34.26 | AT87: =IF(AT$43>$AR87,0,IF(AT$43>=$AQ87,AT$44,0)) -> 0.77 | AU87: =IF(AU$43>$AR87,0,IF(AU$43>=$AQ87,AU$44,0)) -> 0.73 | AV87: =IF(AV$43>$AR87,0,IF(AV$43>=$AQ87,AV$44,0)) -> 0.76 | AW87: =IF(AW$43>$AR87,0,IF(AW$43>=$AQ87,AW$44,0)) -> 0.93 | AX87: =IF(AX$43>$AR87,0,IF(AX$43>=$AQ87,AX$44,0)) -> 0.83 | AY87: =IF(AY$43>$AR87,0,IF(AY$43>=$AQ87,AY$44,0)) -> 1.03 | AZ87: =IF(AZ$43>$AR87,0,IF(AZ$43>=$AQ87,AZ$44,0)) -> 1.02 | BA87: =IF(BA$43>$AR87,0,IF(BA$43>=$AQ87,BA$44,0)) -> 1.03 | BB87: =IF(BB$43>$AR87,0,IF(BB$43>=$AQ87,BB$44,0)) -> 1.17 | BC87: =IF(BC$43>$AR87,0,IF(BC$43>=$AQ87,BC$44,0)) -> 1.07 | BD87: =IF(BD$43>$AR87,0,IF(BD$43>=$AQ87,BD$44,0)) -> 1.02 | BE87: =IF(BE$43>$AR87,0,IF(BE$43>=$AQ87,BE$44,0)) -> 1.02 | BF87: =IF(BF$43>$AR87,0,IF(BF$43>=$AQ87,BF$44,0)) -> 1.12 | BG87: =IF(BG$43>$AR87,0,IF(BG$43>=$AQ87,BG$44,0)) -> 1.12 | BH87: =IF(BH$43>$AR87,0,IF(BH$43>=$AQ87,BH$44,0)) -> 0.92 | BI87: =IF(BI$43>$AR87,0,IF(BI$43>=$AQ87,BI$44,0)) -> 1.17 | BJ87: =IF(BJ$43>$AR87,0,IF(BJ$43>=$AQ87,BJ$44,0)) -> 0.92 | BK87: =IF(BK$43>$AR87,0,IF(BK$43>=$AQ87,BK$44,0)) -> 1.12 | BL87: =IF(BL$43>$AR87,0,IF(BL$43>=$AQ87,BL$44,0)) -> 1.07 | BM87: =IF(BM$43>$AR87,0,IF(BM$43>=$AQ87,BM$44,0)) -> 1.07 | BN87: =IF(BN$43>$AR87,0,IF(BN$43>=$AQ87,BN$44,0)) -> 1.14 | BO87: =IF(BO$43>$AR87,0,IF(BO$43>=$AQ87,BO$44,0)) -> 0.97 | BP87: =IF(BP$43>$AR87,0,IF(BP$43>=$AQ87,BP$44,0)) -> 1 | BQ87: =IF(BQ$43>$AR87,0,IF(BQ$43>=$AQ87,BQ$44,0)) -> 0.92 | BR87: =IF(BR$43>$AR87,0,IF(BR$43>=$AQ87,BR$44,0)) -> 0.89 | BS87: =IF(BS$43>$AR87,0,IF(BS$43>=$AQ87,BS$44,0)) -> 0.97 | BT87: =IF(BT$43>$AR87,0,IF(BT$43>=$AQ87,BT$44,0)) -> 0.8 | BU87: =IF(BU$43>$AR87,0,IF(BU$43>=$AQ87,BU$44,0)) -> 0.83 | BV87: =IF(BV$43>$AR87,0,IF(BV$43>=$AQ87,BV$44,0)) -> 0.89 | BW87: =IF(BW$43>$AR87,0,IF(BW$43>=$AQ87,BW$44,0)) -> 0.83 | BX87: =IF(BX$43>$AR87,0,IF(BX$43>=$AQ87,BX$44,0)) -> 0.79 | BY87: 0.91 | BZ87: 0.87 | CA87: 0.84 | CB87: 0.93 | CC87: 0.79 | CD87: 0 | CE87: 0 | CF87: 0
A88: 43 | B88: PRC | C88: 4819 | D88: 2019/0126437-8 | E88: 0126437-68.2019.3.00.0000 | F88: STJ | G88: MS 17.823/DF | H88: 2018-08-29 | I88: 2019-04-09 | J88: 2019-05-06 | K88: União | L88: 26.994.558/0001-23 | M88: Brasilia/DF | N88: Comum | O88: 2019-07-01 | P88: 239737.5 | Q88: 1.159666673 | R88: 2.4567 | S88: 34.26 | T88: 340694.74 | U88: 37854.97 | V88: 0 | W88: 0 | X88: 0 | Y88: =TRUNC(AB88*R88/100,2) ->  | Z88: =TRUNC(AB88*$AS88/100,2) ->  | AA88: =TRUNC(Y88*$AS88/100,2) ->  | AB88: =TRUNC(#REF!*Q88,2) ->  | AC88: =T88+U88+V88+W88+X88 -> 378549.71 | AQ88: 2021-12-01 | AR88: 2024-12-01 | AS88: =SUM(AT88:CF88) -> 34.26 | AT88: =IF(AT$43>$AR88,0,IF(AT$43>=$AQ88,AT$44,0)) -> 0.77 | AU88: =IF(AU$43>$AR88,0,IF(AU$43>=$AQ88,AU$44,0)) -> 0.73 | AV88: =IF(AV$43>$AR88,0,IF(AV$43>=$AQ88,AV$44,0)) -> 0.76 | AW88: =IF(AW$43>$AR88,0,IF(AW$43>=$AQ88,AW$44,0)) -> 0.93 | AX88: =IF(AX$43>$AR88,0,IF(AX$43>=$AQ88,AX$44,0)) -> 0.83 | AY88: =IF(AY$43>$AR88,0,IF(AY$43>=$AQ88,AY$44,0)) -> 1.03 | AZ88: =IF(AZ$43>$AR88,0,IF(AZ$43>=$AQ88,AZ$44,0)) -> 1.02 | BA88: =IF(BA$43>$AR88,0,IF(BA$43>=$AQ88,BA$44,0)) -> 1.03 | BB88: =IF(BB$43>$AR88,0,IF(BB$43>=$AQ88,BB$44,0)) -> 1.17 | BC88: =IF(BC$43>$AR88,0,IF(BC$43>=$AQ88,BC$44,0)) -> 1.07 | BD88: =IF(BD$43>$AR88,0,IF(BD$43>=$AQ88,BD$44,0)) -> 1.02 | BE88: =IF(BE$43>$AR88,0,IF(BE$43>=$AQ88,BE$44,0)) -> 1.02 | BF88: =IF(BF$43>$AR88,0,IF(BF$43>=$AQ88,BF$44,0)) -> 1.12 | BG88: =IF(BG$43>$AR88,0,IF(BG$43>=$AQ88,BG$44,0)) -> 1.12 | BH88: =IF(BH$43>$AR88,0,IF(BH$43>=$AQ88,BH$44,0)) -> 0.92 | BI88: =IF(BI$43>$AR88,0,IF(BI$43>=$AQ88,BI$44,0)) -> 1.17 | BJ88: =IF(BJ$43>$AR88,0,IF(BJ$43>=$AQ88,BJ$44,0)) -> 0.92 | BK88: =IF(BK$43>$AR88,0,IF(BK$43>=$AQ88,BK$44,0)) -> 1.12 | BL88: =IF(BL$43>$AR88,0,IF(BL$43>=$AQ88,BL$44,0)) -> 1.07 | BM88: =IF(BM$43>$AR88,0,IF(BM$43>=$AQ88,BM$44,0)) -> 1.07 | BN88: =IF(BN$43>$AR88,0,IF(BN$43>=$AQ88,BN$44,0)) -> 1.14 | BO88: =IF(BO$43>$AR88,0,IF(BO$43>=$AQ88,BO$44,0)) -> 0.97 | BP88: =IF(BP$43>$AR88,0,IF(BP$43>=$AQ88,BP$44,0)) -> 1 | BQ88: =IF(BQ$43>$AR88,0,IF(BQ$43>=$AQ88,BQ$44,0)) -> 0.92 | BR88: =IF(BR$43>$AR88,0,IF(BR$43>=$AQ88,BR$44,0)) -> 0.89 | BS88: =IF(BS$43>$AR88,0,IF(BS$43>=$AQ88,BS$44,0)) -> 0.97 | BT88: =IF(BT$43>$AR88,0,IF(BT$43>=$AQ88,BT$44,0)) -> 0.8 | BU88: =IF(BU$43>$AR88,0,IF(BU$43>=$AQ88,BU$44,0)) -> 0.83 | BV88: =IF(BV$43>$AR88,0,IF(BV$43>=$AQ88,BV$44,0)) -> 0.89 | BW88: =IF(BW$43>$AR88,0,IF(BW$43>=$AQ88,BW$44,0)) -> 0.83 | BX88: =IF(BX$43>$AR88,0,IF(BX$43>=$AQ88,BX$44,0)) -> 0.79 | BY88: 0.91 | BZ88: 0.87 | CA88: 0.84 | CB88: 0.93 | CC88: 0.79 | CD88: 0 | CE88: 0 | CF88: 0
A89: 44 | B89: PRC | C89: 4820 | D89: 2019/0126438-0 | E89: 0126438-53.2019.3.00.0000 | F89: STJ | G89: MS 15.580/DF | H89: 2018-06-20 | I89: 2019-04-11 | J89: 2019-05-06 | K89: União | L89: 26.994.558/0001-23 | M89: Brasilia/DF | N89: Comum | O89: 2019-07-01 | P89: 208737.49 | Q89: 1.159666673 | R89: 2.4567 | S89: 34.26 | T89: 263680.13 | U89: 65920.03 | V89: 0 | W89: 0 | X89: 0 | Y89: =TRUNC(AB89*R89/100,2) ->  | Z89: =TRUNC(AB89*$AS89/100,2) ->  | AA89: =TRUNC(Y89*$AS89/100,2) ->  | AB89: =TRUNC(#REF!*Q89,2) ->  | AC89: =T89+U89+V89+W89+X89 -> 329600.16 | AQ89: 2021-12-01 | AR89: 2024-12-01 | AS89: =SUM(AT89:CF89) -> 34.26 | AT89: =IF(AT$43>$AR89,0,IF(AT$43>=$AQ89,AT$44,0)) -> 0.77 | AU89: =IF(AU$43>$AR89,0,IF(AU$43>=$AQ89,AU$44,0)) -> 0.73 | AV89: =IF(AV$43>$AR89,0,IF(AV$43>=$AQ89,AV$44,0)) -> 0.76 | AW89: =IF(AW$43>$AR89,0,IF(AW$43>=$AQ89,AW$44,0)) -> 0.93 | AX89: =IF(AX$43>$AR89,0,IF(AX$43>=$AQ89,AX$44,0)) -> 0.83 | AY89: =IF(AY$43>$AR89,0,IF(AY$43>=$AQ89,AY$44,0)) -> 1.03 | AZ89: =IF(AZ$43>$AR89,0,IF(AZ$43>=$AQ89,AZ$44,0)) -> 1.02 | BA89: =IF(BA$43>$AR89,0,IF(BA$43>=$AQ89,BA$44,0)) -> 1.03 | BB89: =IF(BB$43>$AR89,0,IF(BB$43>=$AQ89,BB$44,0)) -> 1.17 | BC89: =IF(BC$43>$AR89,0,IF(BC$43>=$AQ89,BC$44,0)) -> 1.07 | BD89: =IF(BD$43>$AR89,0,IF(BD$43>=$AQ89,BD$44,0)) -> 1.02 | BE89: =IF(BE$43>$AR89,0,IF(BE$43>=$AQ89,BE$44,0)) -> 1.02 | BF89: =IF(BF$43>$AR89,0,IF(BF$43>=$AQ89,BF$44,0)) -> 1.12 | BG89: =IF(BG$43>$AR89,0,IF(BG$43>=$AQ89,BG$44,0)) -> 1.12 | BH89: =IF(BH$43>$AR89,0,IF(BH$43>=$AQ89,BH$44,0)) -> 0.92 | BI89: =IF(BI$43>$AR89,0,IF(BI$43>=$AQ89,BI$44,0)) -> 1.17 | BJ89: =IF(BJ$43>$AR89,0,IF(BJ$43>=$AQ89,BJ$44,0)) -> 0.92 | BK89: =IF(BK$43>$AR89,0,IF(BK$43>=$AQ89,BK$44,0)) -> 1.12 | BL89: =IF(BL$43>$AR89,0,IF(BL$43>=$AQ89,BL$44,0)) -> 1.07 | BM89: =IF(BM$43>$AR89,0,IF(BM$43>=$AQ89,BM$44,0)) -> 1.07 | BN89: =IF(BN$43>$AR89,0,IF(BN$43>=$AQ89,BN$44,0)) -> 1.14 | BO89: =IF(BO$43>$AR89,0,IF(BO$43>=$AQ89,BO$44,0)) -> 0.97 | BP89: =IF(BP$43>$AR89,0,IF(BP$43>=$AQ89,BP$44,0)) -> 1 | BQ89: =IF(BQ$43>$AR89,0,IF(BQ$43>=$AQ89,BQ$44,0)) -> 0.92 | BR89: =IF(BR$43>$AR89,0,IF(BR$43>=$AQ89,BR$44,0)) -> 0.89 | BS89: =IF(BS$43>$AR89,0,IF(BS$43>=$AQ89,BS$44,0)) -> 0.97 | BT89: =IF(BT$43>$AR89,0,IF(BT$43>=$AQ89,BT$44,0)) -> 0.8 | BU89: =IF(BU$43>$AR89,0,IF(BU$43>=$AQ89,BU$44,0)) -> 0.83 | BV89: =IF(BV$43>$AR89,0,IF(BV$43>=$AQ89,BV$44,0)) -> 0.89 | BW89: =IF(BW$43>$AR89,0,IF(BW$43>=$AQ89,BW$44,0)) -> 0.83 | BX89: =IF(BX$43>$AR89,0,IF(BX$43>=$AQ89,BX$44,0)) -> 0.79 | BY89: 0.91 | BZ89: 0.87 | CA89: 0.84 | CB89: 0.93 | CC89: 0.79 | CD89: 0 | CE89: 0 | CF89: 0
A90: 45 | B90: PRC | C90: 4821 | D90: 2019/0126441-8 | E90: 0126441-08.2019.3.00.0000 | F90: STJ | G90: MS 15.237/DF | H90: 2018-06-20 | I90: 2019-04-11 | J90: 2019-05-06 | K90: União | L90: 26.994.558/0001-23 | M90: Brasilia/DF | N90: Comum | O90: 2019-07-01 | P90: 233662.5 | Q90: 1.159666673 | R90: 2.4567 | S90: 34.26 | T90: 332061.48 | U90: 36895.71 | V90: 0 | W90: 0 | X90: 0 | Y90: =TRUNC(AB90*R90/100,2) ->  | Z90: =TRUNC(AB90*$AS90/100,2) ->  | AA90: =TRUNC(Y90*$AS90/100,2) ->  | AB90: =TRUNC(#REF!*Q90,2) ->  | AC90: =T90+U90+V90+W90+X90 -> 368957.19 | AQ90: 2021-12-01 | AR90: 2024-12-01 | AS90: =SUM(AT90:CF90) -> 34.26 | AT90: =IF(AT$43>$AR90,0,IF(AT$43>=$AQ90,AT$44,0)) -> 0.77 | AU90: =IF(AU$43>$AR90,0,IF(AU$43>=$AQ90,AU$44,0)) -> 0.73 | AV90: =IF(AV$43>$AR90,0,IF(AV$43>=$AQ90,AV$44,0)) -> 0.76 | AW90: =IF(AW$43>$AR90,0,IF(AW$43>=$AQ90,AW$44,0)) -> 0.93 | AX90: =IF(AX$43>$AR90,0,IF(AX$43>=$AQ90,AX$44,0)) -> 0.83 | AY90: =IF(AY$43>$AR90,0,IF(AY$43>=$AQ90,AY$44,0)) -> 1.03 | AZ90: =IF(AZ$43>$AR90,0,IF(AZ$43>=$AQ90,AZ$44,0)) -> 1.02 | BA90: =IF(BA$43>$AR90,0,IF(BA$43>=$AQ90,BA$44,0)) -> 1.03 | BB90: =IF(BB$43>$AR90,0,IF(BB$43>=$AQ90,BB$44,0)) -> 1.17 | BC90: =IF(BC$43>$AR90,0,IF(BC$43>=$AQ90,BC$44,0)) -> 1.07 | BD90: =IF(BD$43>$AR90,0,IF(BD$43>=$AQ90,BD$44,0)) -> 1.02 | BE90: =IF(BE$43>$AR90,0,IF(BE$43>=$AQ90,BE$44,0)) -> 1.02 | BF90: =IF(BF$43>$AR90,0,IF(BF$43>=$AQ90,BF$44,0)) -> 1.12 | BG90: =IF(BG$43>$AR90,0,IF(BG$43>=$AQ90,BG$44,0)) -> 1.12 | BH90: =IF(BH$43>$AR90,0,IF(BH$43>=$AQ90,BH$44,0)) -> 0.92 | BI90: =IF(BI$43>$AR90,0,IF(BI$43>=$AQ90,BI$44,0)) -> 1.17 | BJ90: =IF(BJ$43>$AR90,0,IF(BJ$43>=$AQ90,BJ$44,0)) -> 0.92 | BK90: =IF(BK$43>$AR90,0,IF(BK$43>=$AQ90,BK$44,0)) -> 1.12 | BL90: =IF(BL$43>$AR90,0,IF(BL$43>=$AQ90,BL$44,0)) -> 1.07 | BM90: =IF(BM$43>$AR90,0,IF(BM$43>=$AQ90,BM$44,0)) -> 1.07 | BN90: =IF(BN$43>$AR90,0,IF(BN$43>=$AQ90,BN$44,0)) -> 1.14 | BO90: =IF(BO$43>$AR90,0,IF(BO$43>=$AQ90,BO$44,0)) -> 0.97 | BP90: =IF(BP$43>$AR90,0,IF(BP$43>=$AQ90,BP$44,0)) -> 1 | BQ90: =IF(BQ$43>$AR90,0,IF(BQ$43>=$AQ90,BQ$44,0)) -> 0.92 | BR90: =IF(BR$43>$AR90,0,IF(BR$43>=$AQ90,BR$44,0)) -> 0.89 | BS90: =IF(BS$43>$AR90,0,IF(BS$43>=$AQ90,BS$44,0)) -> 0.97 | BT90: =IF(BT$43>$AR90,0,IF(BT$43>=$AQ90,BT$44,0)) -> 0.8 | BU90: =IF(BU$43>$AR90,0,IF(BU$43>=$AQ90,BU$44,0)) -> 0.83 | BV90: =IF(BV$43>$AR90,0,IF(BV$43>=$AQ90,BV$44,0)) -> 0.89 | BW90: =IF(BW$43>$AR90,0,IF(BW$43>=$AQ90,BW$44,0)) -> 0.83 | BX90: =IF(BX$43>$AR90,0,IF(BX$43>=$AQ90,BX$44,0)) -> 0.79 | BY90: 0.91 | BZ90: 0.87 | CA90: 0.84 | CB90: 0.93 | CC90: 0.79 | CD90: 0 | CE90: 0 | CF90: 0
A91: 46 | B91: PRC | C91: 4822 | D91: 2019/0126442-0 | E91: 0126442-90.2019.3.00.0000 | F91: STJ | G91: MS 15.256/DF | H91: 2017-12-04 | I91: 2019-04-11 | J91: 2019-05-06 | K91: União | L91: 26.994.558/0001-23 | M91: Brasilia/DF | N91: Comum | O91: 2019-07-01 | P91: 232312.5 | Q91: 1.159666673 | R91: 2.4567 | S91: 34.26 | T91: 311801.7 | U91: 36682.55 | V91: 18341.27 | W91: 0 | X91: 0 | Y91: =TRUNC(AB91*R91/100,2) ->  | Z91: =TRUNC(AB91*$AS91/100,2) ->  | AA91: =TRUNC(Y91*$AS91/100,2) ->  | AB91: =TRUNC(#REF!*Q91,2) ->  | AC91: =T91+U91+V91+W91+X91 -> 366825.52 | AQ91: 2021-12-01 | AR91: 2024-12-01 | AS91: =SUM(AT91:CF91) -> 34.26 | AT91: =IF(AT$43>$AR91,0,IF(AT$43>=$AQ91,AT$44,0)) -> 0.77 | AU91: =IF(AU$43>$AR91,0,IF(AU$43>=$AQ91,AU$44,0)) -> 0.73 | AV91: =IF(AV$43>$AR91,0,IF(AV$43>=$AQ91,AV$44,0)) -> 0.76 | AW91: =IF(AW$43>$AR91,0,IF(AW$43>=$AQ91,AW$44,0)) -> 0.93 | AX91: =IF(AX$43>$AR91,0,IF(AX$43>=$AQ91,AX$44,0)) -> 0.83 | AY91: =IF(AY$43>$AR91,0,IF(AY$43>=$AQ91,AY$44,0)) -> 1.03 | AZ91: =IF(AZ$43>$AR91,0,IF(AZ$43>=$AQ91,AZ$44,0)) -> 1.02 | BA91: =IF(BA$43>$AR91,0,IF(BA$43>=$AQ91,BA$44,0)) -> 1.03 | BB91: =IF(BB$43>$AR91,0,IF(BB$43>=$AQ91,BB$44,0)) -> 1.17 | BC91: =IF(BC$43>$AR91,0,IF(BC$43>=$AQ91,BC$44,0)) -> 1.07 | BD91: =IF(BD$43>$AR91,0,IF(BD$43>=$AQ91,BD$44,0)) -> 1.02 | BE91: =IF(BE$43>$AR91,0,IF(BE$43>=$AQ91,BE$44,0)) -> 1.02 | BF91: =IF(BF$43>$AR91,0,IF(BF$43>=$AQ91,BF$44,0)) -> 1.12 | BG91: =IF(BG$43>$AR91,0,IF(BG$43>=$AQ91,BG$44,0)) -> 1.12 | BH91: =IF(BH$43>$AR91,0,IF(BH$43>=$AQ91,BH$44,0)) -> 0.92 | BI91: =IF(BI$43>$AR91,0,IF(BI$43>=$AQ91,BI$44,0)) -> 1.17 | BJ91: =IF(BJ$43>$AR91,0,IF(BJ$43>=$AQ91,BJ$44,0)) -> 0.92 | BK91: =IF(BK$43>$AR91,0,IF(BK$43>=$AQ91,BK$44,0)) -> 1.12 | BL91: =IF(BL$43>$AR91,0,IF(BL$43>=$AQ91,BL$44,0)) -> 1.07 | BM91: =IF(BM$43>$AR91,0,IF(BM$43>=$AQ91,BM$44,0)) -> 1.07 | BN91: =IF(BN$43>$AR91,0,IF(BN$43>=$AQ91,BN$44,0)) -> 1.14 | BO91: =IF(BO$43>$AR91,0,IF(BO$43>=$AQ91,BO$44,0)) -> 0.97 | BP91: =IF(BP$43>$AR91,0,IF(BP$43>=$AQ91,BP$44,0)) -> 1 | BQ91: =IF(BQ$43>$AR91,0,IF(BQ$43>=$AQ91,BQ$44,0)) -> 0.92 | BR91: =IF(BR$43>$AR91,0,IF(BR$43>=$AQ91,BR$44,0)) -> 0.89 | BS91: =IF(BS$43>$AR91,0,IF(BS$43>=$AQ91,BS$44,0)) -> 0.97 | BT91: =IF(BT$43>$AR91,0,IF(BT$43>=$AQ91,BT$44,0)) -> 0.8 | BU91: =IF(BU$43>$AR91,0,IF(BU$43>=$AQ91,BU$44,0)) -> 0.83 | BV91: =IF(BV$43>$AR91,0,IF(BV$43>=$AQ91,BV$44,0)) -> 0.89 | BW91: =IF(BW$43>$AR91,0,IF(BW$43>=$AQ91,BW$44,0)) -> 0.83 | BX91: =IF(BX$43>$AR91,0,IF(BX$43>=$AQ91,BX$44,0)) -> 0.79 | BY91: 0.91 | BZ91: 0.87 | CA91: 0.84 | CB91: 0.93 | CC91: 0.79 | CD91: 0 | CE91: 0 | CF91: 0
A92: 47 | B92: PRC | C92: 4823 | D92: 2019/0126444-3 | E92: 0126444-60.2019.3.00.0000 | F92: STJ | G92: MS 15.257/DF | H92: 2017-12-04 | I92: 2019-04-11 | J92: 2019-05-06 | K92: União | L92: 26.994.558/0001-23 | M92: Brasilia/DF | N92: Comum | O92: 2019-07-01 | P92: 238725 | Q92: 1.159666673 | R92: 2.4567 | S92: 34.26 | T92: 320408.32 | U92: 37695.09 | V92: 18847.54 | W92: 0 | X92: 0 | Y92: =TRUNC(AB92*R92/100,2) ->  | Z92: =TRUNC(AB92*$AS92/100,2) ->  | AA92: =TRUNC(Y92*$AS92/100,2) ->  | AB92: =TRUNC(#REF!*Q92,2) ->  | AC92: =T92+U92+V92+W92+X92 -> 376950.95 | AQ92: 2021-12-01 | AR92: 2024-12-01 | AS92: =SUM(AT92:CF92) -> 34.26 | AT92: =IF(AT$43>$AR92,0,IF(AT$43>=$AQ92,AT$44,0)) -> 0.77 | AU92: =IF(AU$43>$AR92,0,IF(AU$43>=$AQ92,AU$44,0)) -> 0.73 | AV92: =IF(AV$43>$AR92,0,IF(AV$43>=$AQ92,AV$44,0)) -> 0.76 | AW92: =IF(AW$43>$AR92,0,IF(AW$43>=$AQ92,AW$44,0)) -> 0.93 | AX92: =IF(AX$43>$AR92,0,IF(AX$43>=$AQ92,AX$44,0)) -> 0.83 | AY92: =IF(AY$43>$AR92,0,IF(AY$43>=$AQ92,AY$44,0)) -> 1.03 | AZ92: =IF(AZ$43>$AR92,0,IF(AZ$43>=$AQ92,AZ$44,0)) -> 1.02 | BA92: =IF(BA$43>$AR92,0,IF(BA$43>=$AQ92,BA$44,0)) -> 1.03 | BB92: =IF(BB$43>$AR92,0,IF(BB$43>=$AQ92,BB$44,0)) -> 1.17 | BC92: =IF(BC$43>$AR92,0,IF(BC$43>=$AQ92,BC$44,0)) -> 1.07 | BD92: =IF(BD$43>$AR92,0,IF(BD$43>=$AQ92,BD$44,0)) -> 1.02 | BE92: =IF(BE$43>$AR92,0,IF(BE$43>=$AQ92,BE$44,0)) -> 1.02 | BF92: =IF(BF$43>$AR92,0,IF(BF$43>=$AQ92,BF$44,0)) -> 1.12 | BG92: =IF(BG$43>$AR92,0,IF(BG$43>=$AQ92,BG$44,0)) -> 1.12 | BH92: =IF(BH$43>$AR92,0,IF(BH$43>=$AQ92,BH$44,0)) -> 0.92 | BI92: =IF(BI$43>$AR92,0,IF(BI$43>=$AQ92,BI$44,0)) -> 1.17 | BJ92: =IF(BJ$43>$AR92,0,IF(BJ$43>=$AQ92,BJ$44,0)) -> 0.92 | BK92: =IF(BK$43>$AR92,0,IF(BK$43>=$AQ92,BK$44,0)) -> 1.12 | BL92: =IF(BL$43>$AR92,0,IF(BL$43>=$AQ92,BL$44,0)) -> 1.07 | BM92: =IF(BM$43>$AR92,0,IF(BM$43>=$AQ92,BM$44,0)) -> 1.07 | BN92: =IF(BN$43>$AR92,0,IF(BN$43>=$AQ92,BN$44,0)) -> 1.14 | BO92: =IF(BO$43>$AR92,0,IF(BO$43>=$AQ92,BO$44,0)) -> 0.97 | BP92: =IF(BP$43>$AR92,0,IF(BP$43>=$AQ92,BP$44,0)) -> 1 | BQ92: =IF(BQ$43>$AR92,0,IF(BQ$43>=$AQ92,BQ$44,0)) -> 0.92 | BR92: =IF(BR$43>$AR92,0,IF(BR$43>=$AQ92,BR$44,0)) -> 0.89 | BS92: =IF(BS$43>$AR92,0,IF(BS$43>=$AQ92,BS$44,0)) -> 0.97 | BT92: =IF(BT$43>$AR92,0,IF(BT$43>=$AQ92,BT$44,0)) -> 0.8 | BU92: =IF(BU$43>$AR92,0,IF(BU$43>=$AQ92,BU$44,0)) -> 0.83 | BV92: =IF(BV$43>$AR92,0,IF(BV$43>=$AQ92,BV$44,0)) -> 0.89 | BW92: =IF(BW$43>$AR92,0,IF(BW$43>=$AQ92,BW$44,0)) -> 0.83 | BX92: =IF(BX$43>$AR92,0,IF(BX$43>=$AQ92,BX$44,0)) -> 0.79 | BY92: 0.91 | BZ92: 0.87 | CA92: 0.84 | CB92: 0.93 | CC92: 0.79 | CD92: 0 | CE92: 0 | CF92: 0
A93: 48 | B93: PRC | C93: 4825 | D93: 2019/0126687-9 | E93: 0126687-04.2019.3.00.0000 | F93: STJ | G93: MS 21.340/DF | H93: 2017-08-01 | I93: 2019-04-16 | J93: 2019-05-07 | K93: UNIÃO | L93: 26.994.558/0001-23 | M93: Brasilia/DF | N93: Comum | O93: 2019-07-01 | P93: 204290.59 | Q93: 1.159666673 | R93: 2.4567 | S93: 34.26 | T93: 290320.58 | U93: 32257.84 | V93: 0 | W93: 0 | X93: 0 | Y93: =TRUNC(AB93*R93/100,2) ->  | Z93: =TRUNC(AB93*$AS93/100,2) ->  | AA93: =TRUNC(Y93*$AS93/100,2) ->  | AB93: =TRUNC(#REF!*Q93,2) ->  | AC93: =T93+U93+V93+W93+X93 -> 322578.42 | AQ93: 2021-12-01 | AR93: 2024-12-01 | AS93: =SUM(AT93:CF93) -> 34.26 | AT93: =IF(AT$43>$AR93,0,IF(AT$43>=$AQ93,AT$44,0)) -> 0.77 | AU93: =IF(AU$43>$AR93,0,IF(AU$43>=$AQ93,AU$44,0)) -> 0.73 | AV93: =IF(AV$43>$AR93,0,IF(AV$43>=$AQ93,AV$44,0)) -> 0.76 | AW93: =IF(AW$43>$AR93,0,IF(AW$43>=$AQ93,AW$44,0)) -> 0.93 | AX93: =IF(AX$43>$AR93,0,IF(AX$43>=$AQ93,AX$44,0)) -> 0.83 | AY93: =IF(AY$43>$AR93,0,IF(AY$43>=$AQ93,AY$44,0)) -> 1.03 | AZ93: =IF(AZ$43>$AR93,0,IF(AZ$43>=$AQ93,AZ$44,0)) -> 1.02 | BA93: =IF(BA$43>$AR93,0,IF(BA$43>=$AQ93,BA$44,0)) -> 1.03 | BB93: =IF(BB$43>$AR93,0,IF(BB$43>=$AQ93,BB$44,0)) -> 1.17 | BC93: =IF(BC$43>$AR93,0,IF(BC$43>=$AQ93,BC$44,0)) -> 1.07 | BD93: =IF(BD$43>$AR93,0,IF(BD$43>=$AQ93,BD$44,0)) -> 1.02 | BE93: =IF(BE$43>$AR93,0,IF(BE$43>=$AQ93,BE$44,0)) -> 1.02 | BF93: =IF(BF$43>$AR93,0,IF(BF$43>=$AQ93,BF$44,0)) -> 1.12 | BG93: =IF(BG$43>$AR93,0,IF(BG$43>=$AQ93,BG$44,0)) -> 1.12 | BH93: =IF(BH$43>$AR93,0,IF(BH$43>=$AQ93,BH$44,0)) -> 0.92 | BI93: =IF(BI$43>$AR93,0,IF(BI$43>=$AQ93,BI$44,0)) -> 1.17 | BJ93: =IF(BJ$43>$AR93,0,IF(BJ$43>=$AQ93,BJ$44,0)) -> 0.92 | BK93: =IF(BK$43>$AR93,0,IF(BK$43>=$AQ93,BK$44,0)) -> 1.12 | BL93: =IF(BL$43>$AR93,0,IF(BL$43>=$AQ93,BL$44,0)) -> 1.07 | BM93: =IF(BM$43>$AR93,0,IF(BM$43>=$AQ93,BM$44,0)) -> 1.07 | BN93: =IF(BN$43>$AR93,0,IF(BN$43>=$AQ93,BN$44,0)) -> 1.14 | BO93: =IF(BO$43>$AR93,0,IF(BO$43>=$AQ93,BO$44,0)) -> 0.97 | BP93: =IF(BP$43>$AR93,0,IF(BP$43>=$AQ93,BP$44,0)) -> 1 | BQ93: =IF(BQ$43>$AR93,0,IF(BQ$43>=$AQ93,BQ$44,0)) -> 0.92 | BR93: =IF(BR$43>$AR93,0,IF(BR$43>=$AQ93,BR$44,0)) -> 0.89 | BS93: =IF(BS$43>$AR93,0,IF(BS$43>=$AQ93,BS$44,0)) -> 0.97 | BT93: =IF(BT$43>$AR93,0,IF(BT$43>=$AQ93,BT$44,0)) -> 0.8 | BU93: =IF(BU$43>$AR93,0,IF(BU$43>=$AQ93,BU$44,0)) -> 0.83 | BV93: =IF(BV$43>$AR93,0,IF(BV$43>=$AQ93,BV$44,0)) -> 0.89 | BW93: =IF(BW$43>$AR93,0,IF(BW$43>=$AQ93,BW$44,0)) -> 0.83 | BX93: =IF(BX$43>$AR93,0,IF(BX$43>=$AQ93,BX$44,0)) -> 0.79 | BY93: 0.91 | BZ93: 0.87 | CA93: 0.84 | CB93: 0.93 | CC93: 0.79 | CD93: 0 | CE93: 0 | CF93: 0
A94: 49 | B94: PRC | C94: 4826 | D94: 2019/0126689-2 | E94: 0126689-71.2019.3.00.0000 | F94: STJ | G94: MS 18.167/DF | H94: 2018-06-20 | I94: 2019-04-16 | J94: 2019-05-07 | K94: UNIÃO | L94: 26.994.558/0001-23 | M94: Brasilia/DF | N94: Comum | O94: 2019-07-01 | P94: 237487.5 | Q94: 1.159666673 | R94: 2.4567 | S94: 34.26 | T94: 337497.23 | U94: 37499.69 | V94: 0 | W94: 0 | X94: 0 | Y94: =TRUNC(AB94*R94/100,2) ->  | Z94: =TRUNC(AB94*$AS94/100,2) ->  | AA94: =TRUNC(Y94*$AS94/100,2) ->  | AB94: =TRUNC(#REF!*Q94,2) ->  | AC94: =T94+U94+V94+W94+X94 -> 374996.92 | AQ94: 2021-12-01 | AR94: 2024-12-01 | AS94: =SUM(AT94:CF94) -> 34.26 | AT94: =IF(AT$43>$AR94,0,IF(AT$43>=$AQ94,AT$44,0)) -> 0.77 | AU94: =IF(AU$43>$AR94,0,IF(AU$43>=$AQ94,AU$44,0)) -> 0.73 | AV94: =IF(AV$43>$AR94,0,IF(AV$43>=$AQ94,AV$44,0)) -> 0.76 | AW94: =IF(AW$43>$AR94,0,IF(AW$43>=$AQ94,AW$44,0)) -> 0.93 | AX94: =IF(AX$43>$AR94,0,IF(AX$43>=$AQ94,AX$44,0)) -> 0.83 | AY94: =IF(AY$43>$AR94,0,IF(AY$43>=$AQ94,AY$44,0)) -> 1.03 | AZ94: =IF(AZ$43>$AR94,0,IF(AZ$43>=$AQ94,AZ$44,0)) -> 1.02 | BA94: =IF(BA$43>$AR94,0,IF(BA$43>=$AQ94,BA$44,0)) -> 1.03 | BB94: =IF(BB$43>$AR94,0,IF(BB$43>=$AQ94,BB$44,0)) -> 1.17 | BC94: =IF(BC$43>$AR94,0,IF(BC$43>=$AQ94,BC$44,0)) -> 1.07 | BD94: =IF(BD$43>$AR94,0,IF(BD$43>=$AQ94,BD$44,0)) -> 1.02 | BE94: =IF(BE$43>$AR94,0,IF(BE$43>=$AQ94,BE$44,0)) -> 1.02 | BF94: =IF(BF$43>$AR94,0,IF(BF$43>=$AQ94,BF$44,0)) -> 1.12 | BG94: =IF(BG$43>$AR94,0,IF(BG$43>=$AQ94,BG$44,0)) -> 1.12 | BH94: =IF(BH$43>$AR94,0,IF(BH$43>=$AQ94,BH$44,0)) -> 0.92 | BI94: =IF(BI$43>$AR94,0,IF(BI$43>=$AQ94,BI$44,0)) -> 1.17 | BJ94: =IF(BJ$43>$AR94,0,IF(BJ$43>=$AQ94,BJ$44,0)) -> 0.92 | BK94: =IF(BK$43>$AR94,0,IF(BK$43>=$AQ94,BK$44,0)) -> 1.12 | BL94: =IF(BL$43>$AR94,0,IF(BL$43>=$AQ94,BL$44,0)) -> 1.07 | BM94: =IF(BM$43>$AR94,0,IF(BM$43>=$AQ94,BM$44,0)) -> 1.07 | BN94: =IF(BN$43>$AR94,0,IF(BN$43>=$AQ94,BN$44,0)) -> 1.14 | BO94: =IF(BO$43>$AR94,0,IF(BO$43>=$AQ94,BO$44,0)) -> 0.97 | BP94: =IF(BP$43>$AR94,0,IF(BP$43>=$AQ94,BP$44,0)) -> 1 | BQ94: =IF(BQ$43>$AR94,0,IF(BQ$43>=$AQ94,BQ$44,0)) -> 0.92 | BR94: =IF(BR$43>$AR94,0,IF(BR$43>=$AQ94,BR$44,0)) -> 0.89 | BS94: =IF(BS$43>$AR94,0,IF(BS$43>=$AQ94,BS$44,0)) -> 0.97 | BT94: =IF(BT$43>$AR94,0,IF(BT$43>=$AQ94,BT$44,0)) -> 0.8 | BU94: =IF(BU$43>$AR94,0,IF(BU$43>=$AQ94,BU$44,0)) -> 0.83 | BV94: =IF(BV$43>$AR94,0,IF(BV$43>=$AQ94,BV$44,0)) -> 0.89 | BW94: =IF(BW$43>$AR94,0,IF(BW$43>=$AQ94,BW$44,0)) -> 0.83 | BX94: =IF(BX$43>$AR94,0,IF(BX$43>=$AQ94,BX$44,0)) -> 0.79 | BY94: 0.91 | BZ94: 0.87 | CA94: 0.84 | CB94: 0.93 | CC94: 0.79 | CD94: 0 | CE94: 0 | CF94: 0
A95: 50 | B95: PRC | C95: 4827 | D95: 2019/0126698-1 | E95: 0126698-33.2019.3.00.0000 | F95: STJ | G95: MS 17.501/DF | H95: 2017-09-20 | I95: 2019-04-09 | J95: 2019-05-07 | K95: União | L95: 26.994.558/0001-23 | M95: Brasilia/DF | N95: Comum | O95: 2019-07-01 | P95: 221723.81 | Q95: 1.159666673 | R95: 2.4567 | S95: 34.26 | T95: 280084.62 | U95: 70021.15 | V95: 0 | W95: 0 | X95: 0 | Y95: =TRUNC(AB95*R95/100,2) ->  | Z95: =TRUNC(AB95*$AS95/100,2) ->  | AA95: =TRUNC(Y95*$AS95/100,2) ->  | AB95: =TRUNC(#REF!*Q95,2) ->  | AC95: =T95+U95+V95+W95+X95 -> 350105.77 | AQ95: 2021-12-01 | AR95: 2024-12-01 | AS95: =SUM(AT95:CF95) -> 34.26 | AT95: =IF(AT$43>$AR95,0,IF(AT$43>=$AQ95,AT$44,0)) -> 0.77 | AU95: =IF(AU$43>$AR95,0,IF(AU$43>=$AQ95,AU$44,0)) -> 0.73 | AV95: =IF(AV$43>$AR95,0,IF(AV$43>=$AQ95,AV$44,0)) -> 0.76 | AW95: =IF(AW$43>$AR95,0,IF(AW$43>=$AQ95,AW$44,0)) -> 0.93 | AX95: =IF(AX$43>$AR95,0,IF(AX$43>=$AQ95,AX$44,0)) -> 0.83 | AY95: =IF(AY$43>$AR95,0,IF(AY$43>=$AQ95,AY$44,0)) -> 1.03 | AZ95: =IF(AZ$43>$AR95,0,IF(AZ$43>=$AQ95,AZ$44,0)) -> 1.02 | BA95: =IF(BA$43>$AR95,0,IF(BA$43>=$AQ95,BA$44,0)) -> 1.03 | BB95: =IF(BB$43>$AR95,0,IF(BB$43>=$AQ95,BB$44,0)) -> 1.17 | BC95: =IF(BC$43>$AR95,0,IF(BC$43>=$AQ95,BC$44,0)) -> 1.07 | BD95: =IF(BD$43>$AR95,0,IF(BD$43>=$AQ95,BD$44,0)) -> 1.02 | BE95: =IF(BE$43>$AR95,0,IF(BE$43>=$AQ95,BE$44,0)) -> 1.02 | BF95: =IF(BF$43>$AR95,0,IF(BF$43>=$AQ95,BF$44,0)) -> 1.12 | BG95: =IF(BG$43>$AR95,0,IF(BG$43>=$AQ95,BG$44,0)) -> 1.12 | BH95: =IF(BH$43>$AR95,0,IF(BH$43>=$AQ95,BH$44,0)) -> 0.92 | BI95: =IF(BI$43>$AR95,0,IF(BI$43>=$AQ95,BI$44,0)) -> 1.17 | BJ95: =IF(BJ$43>$AR95,0,IF(BJ$43>=$AQ95,BJ$44,0)) -> 0.92 | BK95: =IF(BK$43>$AR95,0,IF(BK$43>=$AQ95,BK$44,0)) -> 1.12 | BL95: =IF(BL$43>$AR95,0,IF(BL$43>=$AQ95,BL$44,0)) -> 1.07 | BM95: =IF(BM$43>$AR95,0,IF(BM$43>=$AQ95,BM$44,0)) -> 1.07 | BN95: =IF(BN$43>$AR95,0,IF(BN$43>=$AQ95,BN$44,0)) -> 1.14 | BO95: =IF(BO$43>$AR95,0,IF(BO$43>=$AQ95,BO$44,0)) -> 0.97 | BP95: =IF(BP$43>$AR95,0,IF(BP$43>=$AQ95,BP$44,0)) -> 1 | BQ95: =IF(BQ$43>$AR95,0,IF(BQ$43>=$AQ95,BQ$44,0)) -> 0.92 | BR95: =IF(BR$43>$AR95,0,IF(BR$43>=$AQ95,BR$44,0)) -> 0.89 | BS95: =IF(BS$43>$AR95,0,IF(BS$43>=$AQ95,BS$44,0)) -> 0.97 | BT95: =IF(BT$43>$AR95,0,IF(BT$43>=$AQ95,BT$44,0)) -> 0.8 | BU95: =IF(BU$43>$AR95,0,IF(BU$43>=$AQ95,BU$44,0)) -> 0.83 | BV95: =IF(BV$43>$AR95,0,IF(BV$43>=$AQ95,BV$44,0)) -> 0.89 | BW95: =IF(BW$43>$AR95,0,IF(BW$43>=$AQ95,BW$44,0)) -> 0.83 | BX95: =IF(BX$43>$AR95,0,IF(BX$43>=$AQ95,BX$44,0)) -> 0.79 | BY95: 0.91 | BZ95: 0.87 | CA95: 0.84 | CB95: 0.93 | CC95: 0.79 | CD95: 0 | CE95: 0 | CF95: 0
A96: 51 | B96: PRC | C96: 4829 | D96: 2019/0126702-0 | E96: 0126702-70.2019.3.00.0000 | F96: STJ | G96: MS 17.769/DF | H96: 2018-09-20 | I96: 2019-04-16 | J96: 2019-05-07 | K96: UNIÃO | L96: 26.994.558/0001-23 | M96: Brasilia/DF | N96: Comum | O96: 2019-07-01 | P96: 237375 | Q96: 1.159666673 | R96: 2.4567 | S96: 34.26 | T96: 337337.37 | U96: 37481.92 | V96: 0 | W96: 0 | X96: 0 | Y96: =TRUNC(AB96*R96/100,2) ->  | Z96: =TRUNC(AB96*$AS96/100,2) ->  | AA96: =TRUNC(Y96*$AS96/100,2) ->  | AB96: =TRUNC(#REF!*Q96,2) ->  | AC96: =T96+U96+V96+W96+X96 -> 374819.29 | AQ96: 2021-12-01 | AR96: 2024-12-01 | AS96: =SUM(AT96:CF96) -> 34.26 | AT96: =IF(AT$43>$AR96,0,IF(AT$43>=$AQ96,AT$44,0)) -> 0.77 | AU96: =IF(AU$43>$AR96,0,IF(AU$43>=$AQ96,AU$44,0)) -> 0.73 | AV96: =IF(AV$43>$AR96,0,IF(AV$43>=$AQ96,AV$44,0)) -> 0.76 | AW96: =IF(AW$43>$AR96,0,IF(AW$43>=$AQ96,AW$44,0)) -> 0.93 | AX96: =IF(AX$43>$AR96,0,IF(AX$43>=$AQ96,AX$44,0)) -> 0.83 | AY96: =IF(AY$43>$AR96,0,IF(AY$43>=$AQ96,AY$44,0)) -> 1.03 | AZ96: =IF(AZ$43>$AR96,0,IF(AZ$43>=$AQ96,AZ$44,0)) -> 1.02 | BA96: =IF(BA$43>$AR96,0,IF(BA$43>=$AQ96,BA$44,0)) -> 1.03 | BB96: =IF(BB$43>$AR96,0,IF(BB$43>=$AQ96,BB$44,0)) -> 1.17 | BC96: =IF(BC$43>$AR96,0,IF(BC$43>=$AQ96,BC$44,0)) -> 1.07 | BD96: =IF(BD$43>$AR96,0,IF(BD$43>=$AQ96,BD$44,0)) -> 1.02 | BE96: =IF(BE$43>$AR96,0,IF(BE$43>=$AQ96,BE$44,0)) -> 1.02 | BF96: =IF(BF$43>$AR96,0,IF(BF$43>=$AQ96,BF$44,0)) -> 1.12 | BG96: =IF(BG$43>$AR96,0,IF(BG$43>=$AQ96,BG$44,0)) -> 1.12 | BH96: =IF(BH$43>$AR96,0,IF(BH$43>=$AQ96,BH$44,0)) -> 0.92 | BI96: =IF(BI$43>$AR96,0,IF(BI$43>=$AQ96,BI$44,0)) -> 1.17 | BJ96: =IF(BJ$43>$AR96,0,IF(BJ$43>=$AQ96,BJ$44,0)) -> 0.92 | BK96: =IF(BK$43>$AR96,0,IF(BK$43>=$AQ96,BK$44,0)) -> 1.12 | BL96: =IF(BL$43>$AR96,0,IF(BL$43>=$AQ96,BL$44,0)) -> 1.07 | BM96: =IF(BM$43>$AR96,0,IF(BM$43>=$AQ96,BM$44,0)) -> 1.07 | BN96: =IF(BN$43>$AR96,0,IF(BN$43>=$AQ96,BN$44,0)) -> 1.14 | BO96: =IF(BO$43>$AR96,0,IF(BO$43>=$AQ96,BO$44,0)) -> 0.97 | BP96: =IF(BP$43>$AR96,0,IF(BP$43>=$AQ96,BP$44,0)) -> 1 | BQ96: =IF(BQ$43>$AR96,0,IF(BQ$43>=$AQ96,BQ$44,0)) -> 0.92 | BR96: =IF(BR$43>$AR96,0,IF(BR$43>=$AQ96,BR$44,0)) -> 0.89 | BS96: =IF(BS$43>$AR96,0,IF(BS$43>=$AQ96,BS$44,0)) -> 0.97 | BT96: =IF(BT$43>$AR96,0,IF(BT$43>=$AQ96,BT$44,0)) -> 0.8 | BU96: =IF(BU$43>$AR96,0,IF(BU$43>=$AQ96,BU$44,0)) -> 0.83 | BV96: =IF(BV$43>$AR96,0,IF(BV$43>=$AQ96,BV$44,0)) -> 0.89 | BW96: =IF(BW$43>$AR96,0,IF(BW$43>=$AQ96,BW$44,0)) -> 0.83 | BX96: =IF(BX$43>$AR96,0,IF(BX$43>=$AQ96,BX$44,0)) -> 0.79 | BY96: 0.91 | BZ96: 0.87 | CA96: 0.84 | CB96: 0.93 | CC96: 0.79 | CD96: 0 | CE96: 0 | CF96: 0
A97: 52 | B97: PRC | C97: 4830 | D97: 2019/0127002-0 | E97: 0127002-32.2019.3.00.0000 | F97: STJ | G97: MS 15.254/DF | H97: 2017-12-04 | I97: 2019-04-22 | J97: 2019-05-07 | K97: União | L97: 26.994.558/0001-23 | M97: Brasilia/DF | N97: Comum | O97: 2019-07-01 | P97: 193950.72 | Q97: 1.159666673 | R97: 2.4567 | S97: 34.26 | T97: 275626.43 | U97: 30625.15 | V97: 0 | W97: 0 | X97: 0 | Y97: =TRUNC(AB97*R97/100,2) ->  | Z97: =TRUNC(AB97*$AS97/100,2) ->  | AA97: =TRUNC(Y97*$AS97/100,2) ->  | AB97: =TRUNC(#REF!*Q97,2) ->  | AC97: =T97+U97+V97+W97+X97 -> 306251.58 | AQ97: 2021-12-01 | AR97: 2024-12-01 | AS97: =SUM(AT97:CF97) -> 34.26 | AT97: =IF(AT$43>$AR97,0,IF(AT$43>=$AQ97,AT$44,0)) -> 0.77 | AU97: =IF(AU$43>$AR97,0,IF(AU$43>=$AQ97,AU$44,0)) -> 0.73 | AV97: =IF(AV$43>$AR97,0,IF(AV$43>=$AQ97,AV$44,0)) -> 0.76 | AW97: =IF(AW$43>$AR97,0,IF(AW$43>=$AQ97,AW$44,0)) -> 0.93 | AX97: =IF(AX$43>$AR97,0,IF(AX$43>=$AQ97,AX$44,0)) -> 0.83 | AY97: =IF(AY$43>$AR97,0,IF(AY$43>=$AQ97,AY$44,0)) -> 1.03 | AZ97: =IF(AZ$43>$AR97,0,IF(AZ$43>=$AQ97,AZ$44,0)) -> 1.02 | BA97: =IF(BA$43>$AR97,0,IF(BA$43>=$AQ97,BA$44,0)) -> 1.03 | BB97: =IF(BB$43>$AR97,0,IF(BB$43>=$AQ97,BB$44,0)) -> 1.17 | BC97: =IF(BC$43>$AR97,0,IF(BC$43>=$AQ97,BC$44,0)) -> 1.07 | BD97: =IF(BD$43>$AR97,0,IF(BD$43>=$AQ97,BD$44,0)) -> 1.02 | BE97: =IF(BE$43>$AR97,0,IF(BE$43>=$AQ97,BE$44,0)) -> 1.02 | BF97: =IF(BF$43>$AR97,0,IF(BF$43>=$AQ97,BF$44,0)) -> 1.12 | BG97: =IF(BG$43>$AR97,0,IF(BG$43>=$AQ97,BG$44,0)) -> 1.12 | BH97: =IF(BH$43>$AR97,0,IF(BH$43>=$AQ97,BH$44,0)) -> 0.92 | BI97: =IF(BI$43>$AR97,0,IF(BI$43>=$AQ97,BI$44,0)) -> 1.17 | BJ97: =IF(BJ$43>$AR97,0,IF(BJ$43>=$AQ97,BJ$44,0)) -> 0.92 | BK97: =IF(BK$43>$AR97,0,IF(BK$43>=$AQ97,BK$44,0)) -> 1.12 | BL97: =IF(BL$43>$AR97,0,IF(BL$43>=$AQ97,BL$44,0)) -> 1.07 | BM97: =IF(BM$43>$AR97,0,IF(BM$43>=$AQ97,BM$44,0)) -> 1.07 | BN97: =IF(BN$43>$AR97,0,IF(BN$43>=$AQ97,BN$44,0)) -> 1.14 | BO97: =IF(BO$43>$AR97,0,IF(BO$43>=$AQ97,BO$44,0)) -> 0.97 | BP97: =IF(BP$43>$AR97,0,IF(BP$43>=$AQ97,BP$44,0)) -> 1 | BQ97: =IF(BQ$43>$AR97,0,IF(BQ$43>=$AQ97,BQ$44,0)) -> 0.92 | BR97: =IF(BR$43>$AR97,0,IF(BR$43>=$AQ97,BR$44,0)) -> 0.89 | BS97: =IF(BS$43>$AR97,0,IF(BS$43>=$AQ97,BS$44,0)) -> 0.97 | BT97: =IF(BT$43>$AR97,0,IF(BT$43>=$AQ97,BT$44,0)) -> 0.8 | BU97: =IF(BU$43>$AR97,0,IF(BU$43>=$AQ97,BU$44,0)) -> 0.83 | BV97: =IF(BV$43>$AR97,0,IF(BV$43>=$AQ97,BV$44,0)) -> 0.89 | BW97: =IF(BW$43>$AR97,0,IF(BW$43>=$AQ97,BW$44,0)) -> 0.83 | BX97: =IF(BX$43>$AR97,0,IF(BX$43>=$AQ97,BX$44,0)) -> 0.79 | BY97: 0.91 | BZ97: 0.87 | CA97: 0.84 | CB97: 0.93 | CC97: 0.79 | CD97: 0 | CE97: 0 | CF97: 0
A98: 53 | B98: PRC | C98: 4831 | D98: 2019/0127007-0 | E98: 0127007-54.2019.3.00.0000 | F98: STJ | G98: MS 15.525/DF | H98: 2018-06-20 | I98: 2019-04-09 | J98: 2019-05-07 | K98: União | L98: 26.994.558/0001-23 | M98: Brasilia/DF | N98: Comum | O98: 2019-07-01 | P98: 222700.75 | Q98: 1.159666673 | R98: 2.4567 | S98: 34.26 | T98: 316483.56 | U98: 35164.83 | V98: 0 | W98: 0 | X98: 0 | Y98: =TRUNC(AB98*R98/100,2) ->  | Z98: =TRUNC(AB98*$AS98/100,2) ->  | AA98: =TRUNC(Y98*$AS98/100,2) ->  | AB98: =TRUNC(#REF!*Q98,2) ->  | AC98: =T98+U98+V98+W98+X98 -> 351648.39 | AQ98: 2021-12-01 | AR98: 2024-12-01 | AS98: =SUM(AT98:CF98) -> 34.26 | AT98: =IF(AT$43>$AR98,0,IF(AT$43>=$AQ98,AT$44,0)) -> 0.77 | AU98: =IF(AU$43>$AR98,0,IF(AU$43>=$AQ98,AU$44,0)) -> 0.73 | AV98: =IF(AV$43>$AR98,0,IF(AV$43>=$AQ98,AV$44,0)) -> 0.76 | AW98: =IF(AW$43>$AR98,0,IF(AW$43>=$AQ98,AW$44,0)) -> 0.93 | AX98: =IF(AX$43>$AR98,0,IF(AX$43>=$AQ98,AX$44,0)) -> 0.83 | AY98: =IF(AY$43>$AR98,0,IF(AY$43>=$AQ98,AY$44,0)) -> 1.03 | AZ98: =IF(AZ$43>$AR98,0,IF(AZ$43>=$AQ98,AZ$44,0)) -> 1.02 | BA98: =IF(BA$43>$AR98,0,IF(BA$43>=$AQ98,BA$44,0)) -> 1.03 | BB98: =IF(BB$43>$AR98,0,IF(BB$43>=$AQ98,BB$44,0)) -> 1.17 | BC98: =IF(BC$43>$AR98,0,IF(BC$43>=$AQ98,BC$44,0)) -> 1.07 | BD98: =IF(BD$43>$AR98,0,IF(BD$43>=$AQ98,BD$44,0)) -> 1.02 | BE98: =IF(BE$43>$AR98,0,IF(BE$43>=$AQ98,BE$44,0)) -> 1.02 | BF98: =IF(BF$43>$AR98,0,IF(BF$43>=$AQ98,BF$44,0)) -> 1.12 | BG98: =IF(BG$43>$AR98,0,IF(BG$43>=$AQ98,BG$44,0)) -> 1.12 | BH98: =IF(BH$43>$AR98,0,IF(BH$43>=$AQ98,BH$44,0)) -> 0.92 | BI98: =IF(BI$43>$AR98,0,IF(BI$43>=$AQ98,BI$44,0)) -> 1.17 | BJ98: =IF(BJ$43>$AR98,0,IF(BJ$43>=$AQ98,BJ$44,0)) -> 0.92 | BK98: =IF(BK$43>$AR98,0,IF(BK$43>=$AQ98,BK$44,0)) -> 1.12 | BL98: =IF(BL$43>$AR98,0,IF(BL$43>=$AQ98,BL$44,0)) -> 1.07 | BM98: =IF(BM$43>$AR98,0,IF(BM$43>=$AQ98,BM$44,0)) -> 1.07 | BN98: =IF(BN$43>$AR98,0,IF(BN$43>=$AQ98,BN$44,0)) -> 1.14 | BO98: =IF(BO$43>$AR98,0,IF(BO$43>=$AQ98,BO$44,0)) -> 0.97 | BP98: =IF(BP$43>$AR98,0,IF(BP$43>=$AQ98,BP$44,0)) -> 1 | BQ98: =IF(BQ$43>$AR98,0,IF(BQ$43>=$AQ98,BQ$44,0)) -> 0.92 | BR98: =IF(BR$43>$AR98,0,IF(BR$43>=$AQ98,BR$44,0)) -> 0.89 | BS98: =IF(BS$43>$AR98,0,IF(BS$43>=$AQ98,BS$44,0)) -> 0.97 | BT98: =IF(BT$43>$AR98,0,IF(BT$43>=$AQ98,BT$44,0)) -> 0.8 | BU98: =IF(BU$43>$AR98,0,IF(BU$43>=$AQ98,BU$44,0)) -> 0.83 | BV98: =IF(BV$43>$AR98,0,IF(BV$43>=$AQ98,BV$44,0)) -> 0.89 | BW98: =IF(BW$43>$AR98,0,IF(BW$43>=$AQ98,BW$44,0)) -> 0.83 | BX98: =IF(BX$43>$AR98,0,IF(BX$43>=$AQ98,BX$44,0)) -> 0.79 | BY98: 0.91 | BZ98: 0.87 | CA98: 0.84 | CB98: 0.93 | CC98: 0.79 | CD98: 0 | CE98: 0 | CF98: 0
A99: 54 | B99: PRC | C99: 4832 | D99: 2019/0127011-0 | E99: 0127011-91.2019.3.00.0000 | F99: STJ | G99: MS 15.258/DF | H99: 2017-12-04 | I99: 2019-04-11 | J99: 2019-05-07 | K99: União | L99: 26.994.558/0001-23 | M99: Brasilia/DF | N99: Comum | O99: 2019-07-01 | P99: 221900.31 | Q99: 1.159666673 | R99: 2.4567 | S99: 34.26 | T99: 297826.82 | U99: 35038.44 | V99: 17519.22 | W99: 0 | X99: 0 | Y99: =TRUNC(AB99*R99/100,2) ->  | Z99: =TRUNC(AB99*$AS99/100,2) ->  | AA99: =TRUNC(Y99*$AS99/100,2) ->  | AB99: =TRUNC(#REF!*Q99,2) ->  | AC99: =T99+U99+V99+W99+X99 -> 350384.48 | AQ99: 2021-12-01 | AR99: 2024-12-01 | AS99: 34.26 | AT99: =IF(AT$43>$AR99,0,IF(AT$43>=$AQ99,AT$44,0)) -> 0.77 | AU99: =IF(AU$43>$AR99,0,IF(AU$43>=$AQ99,AU$44,0)) -> 0.73 | AV99: =IF(AV$43>$AR99,0,IF(AV$43>=$AQ99,AV$44,0)) -> 0.76 | AW99: =IF(AW$43>$AR99,0,IF(AW$43>=$AQ99,AW$44,0)) -> 0.93 | AX99: =IF(AX$43>$AR99,0,IF(AX$43>=$AQ99,AX$44,0)) -> 0.83 | AY99: =IF(AY$43>$AR99,0,IF(AY$43>=$AQ99,AY$44,0)) -> 1.03 | AZ99: =IF(AZ$43>$AR99,0,IF(AZ$43>=$AQ99,AZ$44,0)) -> 1.02 | BA99: =IF(BA$43>$AR99,0,IF(BA$43>=$AQ99,BA$44,0)) -> 1.03 | BB99: =IF(BB$43>$AR99,0,IF(BB$43>=$AQ99,BB$44,0)) -> 1.17 | BC99: =IF(BC$43>$AR99,0,IF(BC$43>=$AQ99,BC$44,0)) -> 1.07 | BD99: =IF(BD$43>$AR99,0,IF(BD$43>=$AQ99,BD$44,0)) -> 1.02 | BE99: =IF(BE$43>$AR99,0,IF(BE$43>=$AQ99,BE$44,0)) -> 1.02 | BF99: =IF(BF$43>$AR99,0,IF(BF$43>=$AQ99,BF$44,0)) -> 1.12 | BG99: =IF(BG$43>$AR99,0,IF(BG$43>=$AQ99,BG$44,0)) -> 1.12 | BH99: =IF(BH$43>$AR99,0,IF(BH$43>=$AQ99,BH$44,0)) -> 0.92 | BI99: =IF(BI$43>$AR99,0,IF(BI$43>=$AQ99,BI$44,0)) -> 1.17 | BJ99: =IF(BJ$43>$AR99,0,IF(BJ$43>=$AQ99,BJ$44,0)) -> 0.92 | BK99: =IF(BK$43>$AR99,0,IF(BK$43>=$AQ99,BK$44,0)) -> 1.12 | BL99: =IF(BL$43>$AR99,0,IF(BL$43>=$AQ99,BL$44,0)) -> 1.07 | BM99: =IF(BM$43>$AR99,0,IF(BM$43>=$AQ99,BM$44,0)) -> 1.07 | BN99: =IF(BN$43>$AR99,0,IF(BN$43>=$AQ99,BN$44,0)) -> 1.14 | BO99: =IF(BO$43>$AR99,0,IF(BO$43>=$AQ99,BO$44,0)) -> 0.97 | BP99: =IF(BP$43>$AR99,0,IF(BP$43>=$AQ99,BP$44,0)) -> 1 | BQ99: =IF(BQ$43>$AR99,0,IF(BQ$43>=$AQ99,BQ$44,0)) -> 0.92 | BR99: =IF(BR$43>$AR99,0,IF(BR$43>=$AQ99,BR$44,0)) -> 0.89 | BS99: =IF(BS$43>$AR99,0,IF(BS$43>=$AQ99,BS$44,0)) -> 0.97 | BT99: =IF(BT$43>$AR99,0,IF(BT$43>=$AQ99,BT$44,0)) -> 0.8 | BU99: =IF(BU$43>$AR99,0,IF(BU$43>=$AQ99,BU$44,0)) -> 0.83 | BV99: =IF(BV$43>$AR99,0,IF(BV$43>=$AQ99,BV$44,0)) -> 0.89 | BW99: =IF(BW$43>$AR99,0,IF(BW$43>=$AQ99,BW$44,0)) -> 0.83 | BX99: =IF(BX$43>$AR99,0,IF(BX$43>=$AQ99,BX$44,0)) -> 0.79 | BY99: 0.91 | BZ99: 0.87 | CA99: 0.84 | CB99: 0.93 | CC99: 0.79 | CD99: 0 | CE99: 0 | CF99: 0
A100: 55 | B100: PRC | C100: 4835 | D100: 2019/0129035-3 | E100: 0129035-92.2019.3.00.0000 | F100: STJ | G100: MS 15.413/DF | H100: 2018-05-10 | I100: 2019-04-25 | J100: 2019-05-09 | K100: União | L100: 26.994.558/0001-23 | M100: Brasilia/DF | N100: Comum | O100: 2019-07-01 | P100: 198420.68 | Q100: 1.159666673 | R100: 2.4567 | S100: 34.26 | T100: 313309.73 | U100: 0 | V100: 0 | W100: 0 | X100: 0 | Y100: =TRUNC(AB100*R100/100,2) ->  | Z100: =TRUNC(AB100*$AS100/100,2) ->  | AA100: =TRUNC(Y100*$AS100/100,2) ->  | AB100: =TRUNC(#REF!*Q100,2) ->  | AC100: =T100+U100+V100+W100+X100 -> 313309.73 | AQ100: 2021-12-01 | AR100: 2024-12-01 | AS100: 34.26 | AT100: =IF(AT$43>$AR100,0,IF(AT$43>=$AQ100,AT$44,0)) -> 0.77 | AU100: =IF(AU$43>$AR100,0,IF(AU$43>=$AQ100,AU$44,0)) -> 0.73 | AV100: =IF(AV$43>$AR100,0,IF(AV$43>=$AQ100,AV$44,0)) -> 0.76 | AW100: =IF(AW$43>$AR100,0,IF(AW$43>=$AQ100,AW$44,0)) -> 0.93 | AX100: =IF(AX$43>$AR100,0,IF(AX$43>=$AQ100,AX$44,0)) -> 0.83 | AY100: =IF(AY$43>$AR100,0,IF(AY$43>=$AQ100,AY$44,0)) -> 1.03 | AZ100: =IF(AZ$43>$AR100,0,IF(AZ$43>=$AQ100,AZ$44,0)) -> 1.02 | BA100: =IF(BA$43>$AR100,0,IF(BA$43>=$AQ100,BA$44,0)) -> 1.03 | BB100: =IF(BB$43>$AR100,0,IF(BB$43>=$AQ100,BB$44,0)) -> 1.17 | BC100: =IF(BC$43>$AR100,0,IF(BC$43>=$AQ100,BC$44,0)) -> 1.07 | BD100: =IF(BD$43>$AR100,0,IF(BD$43>=$AQ100,BD$44,0)) -> 1.02 | BE100: =IF(BE$43>$AR100,0,IF(BE$43>=$AQ100,BE$44,0)) -> 1.02 | BF100: =IF(BF$43>$AR100,0,IF(BF$43>=$AQ100,BF$44,0)) -> 1.12 | BG100: =IF(BG$43>$AR100,0,IF(BG$43>=$AQ100,BG$44,0)) -> 1.12 | BH100: =IF(BH$43>$AR100,0,IF(BH$43>=$AQ100,BH$44,0)) -> 0.92 | BI100: =IF(BI$43>$AR100,0,IF(BI$43>=$AQ100,BI$44,0)) -> 1.17 | BJ100: =IF(BJ$43>$AR100,0,IF(BJ$43>=$AQ100,BJ$44,0)) -> 0.92 | BK100: =IF(BK$43>$AR100,0,IF(BK$43>=$AQ100,BK$44,0)) -> 1.12 | BL100: =IF(BL$43>$AR100,0,IF(BL$43>=$AQ100,BL$44,0)) -> 1.07 | BM100: =IF(BM$43>$AR100,0,IF(BM$43>=$AQ100,BM$44,0)) -> 1.07 | BN100: =IF(BN$43>$AR100,0,IF(BN$43>=$AQ100,BN$44,0)) -> 1.14 | BO100: =IF(BO$43>$AR100,0,IF(BO$43>=$AQ100,BO$44,0)) -> 0.97 | BP100: =IF(BP$43>$AR100,0,IF(BP$43>=$AQ100,BP$44,0)) -> 1 | BQ100: =IF(BQ$43>$AR100,0,IF(BQ$43>=$AQ100,BQ$44,0)) -> 0.92 | BR100: =IF(BR$43>$AR100,0,IF(BR$43>=$AQ100,BR$44,0)) -> 0.89 | BS100: =IF(BS$43>$AR100,0,IF(BS$43>=$AQ100,BS$44,0)) -> 0.97 | BT100: =IF(BT$43>$AR100,0,IF(BT$43>=$AQ100,BT$44,0)) -> 0.8 | BU100: =IF(BU$43>$AR100,0,IF(BU$43>=$AQ100,BU$44,0)) -> 0.83 | BV100: =IF(BV$43>$AR100,0,IF(BV$43>=$AQ100,BV$44,0)) -> 0.89 | BW100: =IF(BW$43>$AR100,0,IF(BW$43>=$AQ100,BW$44,0)) -> 0.83 | BX100: =IF(BX$43>$AR100,0,IF(BX$43>=$AQ100,BX$44,0)) -> 0.79 | BY100: 0.91 | BZ100: 0.87 | CA100: 0.84 | CB100: 0.93 | CC100: 0.79 | CD100: 0 | CE100: 0 | CF100: 0
A101: 56 | B101: PRC | C101: 4836 | D101: 2019/0129037-7 | E101: 0129037-62.2019.3.00.0000 | F101: STJ | G101: MS 15.414/DF | H101: 2018-05-10 | I101: 2019-04-25 | J101: 2019-05-09 | K101: União | L101: 26.994.558/0001-23 | M101: Brasilia/DF | N101: Comum | O101: 2019-07-01 | P101: 187036.61 | Q101: 1.159666673 | R101: 2.4567 | S101: 34.26 | T101: 295334.08 | U101: 0 | V101: 0 | W101: 0 | X101: 0 | Y101: =TRUNC(AB101*R101/100,2) ->  | Z101: =TRUNC(AB101*$AS101/100,2) ->  | AA101: =TRUNC(Y101*$AS101/100,2) ->  | AB101: =TRUNC(#REF!*Q101,2) ->  | AC101: =T101+U101+V101+W101+X101 -> 295334.08 | AQ101: 2021-12-01 | AR101: 2024-12-01 | AS101: 34.26 | AT101: =IF(AT$43>$AR101,0,IF(AT$43>=$AQ101,AT$44,0)) -> 0.77 | AU101: =IF(AU$43>$AR101,0,IF(AU$43>=$AQ101,AU$44,0)) -> 0.73 | AV101: =IF(AV$43>$AR101,0,IF(AV$43>=$AQ101,AV$44,0)) -> 0.76 | AW101: =IF(AW$43>$AR101,0,IF(AW$43>=$AQ101,AW$44,0)) -> 0.93 | AX101: =IF(AX$43>$AR101,0,IF(AX$43>=$AQ101,AX$44,0)) -> 0.83 | AY101: =IF(AY$43>$AR101,0,IF(AY$43>=$AQ101,AY$44,0)) -> 1.03 | AZ101: =IF(AZ$43>$AR101,0,IF(AZ$43>=$AQ101,AZ$44,0)) -> 1.02 | BA101: =IF(BA$43>$AR101,0,IF(BA$43>=$AQ101,BA$44,0)) -> 1.03 | BB101: =IF(BB$43>$AR101,0,IF(BB$43>=$AQ101,BB$44,0)) -> 1.17 | BC101: =IF(BC$43>$AR101,0,IF(BC$43>=$AQ101,BC$44,0)) -> 1.07 | BD101: =IF(BD$43>$AR101,0,IF(BD$43>=$AQ101,BD$44,0)) -> 1.02 | BE101: =IF(BE$43>$AR101,0,IF(BE$43>=$AQ101,BE$44,0)) -> 1.02 | BF101: =IF(BF$43>$AR101,0,IF(BF$43>=$AQ101,BF$44,0)) -> 1.12 | BG101: =IF(BG$43>$AR101,0,IF(BG$43>=$AQ101,BG$44,0)) -> 1.12 | BH101: =IF(BH$43>$AR101,0,IF(BH$43>=$AQ101,BH$44,0)) -> 0.92 | BI101: =IF(BI$43>$AR101,0,IF(BI$43>=$AQ101,BI$44,0)) -> 1.17 | BJ101: =IF(BJ$43>$AR101,0,IF(BJ$43>=$AQ101,BJ$44,0)) -> 0.92 | BK101: =IF(BK$43>$AR101,0,IF(BK$43>=$AQ101,BK$44,0)) -> 1.12 | BL101: =IF(BL$43>$AR101,0,IF(BL$43>=$AQ101,BL$44,0)) -> 1.07 | BM101: =IF(BM$43>$AR101,0,IF(BM$43>=$AQ101,BM$44,0)) -> 1.07 | BN101: =IF(BN$43>$AR101,0,IF(BN$43>=$AQ101,BN$44,0)) -> 1.14 | BO101: =IF(BO$43>$AR101,0,IF(BO$43>=$AQ101,BO$44,0)) -> 0.97 | BP101: =IF(BP$43>$AR101,0,IF(BP$43>=$AQ101,BP$44,0)) -> 1 | BQ101: =IF(BQ$43>$AR101,0,IF(BQ$43>=$AQ101,BQ$44,0)) -> 0.92 | BR101: =IF(BR$43>$AR101,0,IF(BR$43>=$AQ101,BR$44,0)) -> 0.89 | BS101: =IF(BS$43>$AR101,0,IF(BS$43>=$AQ101,BS$44,0)) -> 0.97 | BT101: =IF(BT$43>$AR101,0,IF(BT$43>=$AQ101,BT$44,0)) -> 0.8 | BU101: =IF(BU$43>$AR101,0,IF(BU$43>=$AQ101,BU$44,0)) -> 0.83 | BV101: =IF(BV$43>$AR101,0,IF(BV$43>=$AQ101,BV$44,0)) -> 0.89 | BW101: =IF(BW$43>$AR101,0,IF(BW$43>=$AQ101,BW$44,0)) -> 0.83 | BX101: =IF(BX$43>$AR101,0,IF(BX$43>=$AQ101,BX$44,0)) -> 0.79 | BY101: 0.91 | BZ101: 0.87 | CA101: 0.84 | CB101: 0.93 | CC101: 0.79 | CD101: 0 | CE101: 0 | CF101: 0
A102: 57 | B102: PRC | C102: 4837 | D102: 2019/0129039-0 | E102: 0129039-32.2019.3.00.0000 | F102: STJ | G102: MS 15.416/DF | H102: 2018-05-10 | I102: 2019-04-25 | J102: 2019-05-09 | K102: União | L102: 26.994.558/0001-23 | M102: Brasilia/DF | N102: Comum | O102: 2019-07-01 | P102: 196197.23 | Q102: 1.159666673 | R102: 2.4567 | S102: 34.26 | T102: 309798.86 | U102: 0 | V102: 0 | W102: 0 | X102: 0 | Y102: =TRUNC(AB102*R102/100,2) ->  | Z102: =TRUNC(AB102*$AS102/100,2) ->  | AA102: =TRUNC(Y102*$AS102/100,2) ->  | AB102: =TRUNC(#REF!*Q102,2) ->  | AC102: =T102+U102+V102+W102+X102 -> 309798.86 | AQ102: 2021-12-01 | AR102: 2024-12-01 | AS102: 34.26 | AT102: =IF(AT$43>$AR102,0,IF(AT$43>=$AQ102,AT$44,0)) -> 0.77 | AU102: =IF(AU$43>$AR102,0,IF(AU$43>=$AQ102,AU$44,0)) -> 0.73 | AV102: =IF(AV$43>$AR102,0,IF(AV$43>=$AQ102,AV$44,0)) -> 0.76 | AW102: =IF(AW$43>$AR102,0,IF(AW$43>=$AQ102,AW$44,0)) -> 0.93 | AX102: =IF(AX$43>$AR102,0,IF(AX$43>=$AQ102,AX$44,0)) -> 0.83 | AY102: =IF(AY$43>$AR102,0,IF(AY$43>=$AQ102,AY$44,0)) -> 1.03 | AZ102: =IF(AZ$43>$AR102,0,IF(AZ$43>=$AQ102,AZ$44,0)) -> 1.02 | BA102: =IF(BA$43>$AR102,0,IF(BA$43>=$AQ102,BA$44,0)) -> 1.03 | BB102: =IF(BB$43>$AR102,0,IF(BB$43>=$AQ102,BB$44,0)) -> 1.17 | BC102: =IF(BC$43>$AR102,0,IF(BC$43>=$AQ102,BC$44,0)) -> 1.07 | BD102: =IF(BD$43>$AR102,0,IF(BD$43>=$AQ102,BD$44,0)) -> 1.02 | BE102: =IF(BE$43>$AR102,0,IF(BE$43>=$AQ102,BE$44,0)) -> 1.02 | BF102: =IF(BF$43>$AR102,0,IF(BF$43>=$AQ102,BF$44,0)) -> 1.12 | BG102: =IF(BG$43>$AR102,0,IF(BG$43>=$AQ102,BG$44,0)) -> 1.12 | BH102: =IF(BH$43>$AR102,0,IF(BH$43>=$AQ102,BH$44,0)) -> 0.92 | BI102: =IF(BI$43>$AR102,0,IF(BI$43>=$AQ102,BI$44,0)) -> 1.17 | BJ102: =IF(BJ$43>$AR102,0,IF(BJ$43>=$AQ102,BJ$44,0)) -> 0.92 | BK102: =IF(BK$43>$AR102,0,IF(BK$43>=$AQ102,BK$44,0)) -> 1.12 | BL102: =IF(BL$43>$AR102,0,IF(BL$43>=$AQ102,BL$44,0)) -> 1.07 | BM102: =IF(BM$43>$AR102,0,IF(BM$43>=$AQ102,BM$44,0)) -> 1.07 | BN102: =IF(BN$43>$AR102,0,IF(BN$43>=$AQ102,BN$44,0)) -> 1.14 | BO102: =IF(BO$43>$AR102,0,IF(BO$43>=$AQ102,BO$44,0)) -> 0.97 | BP102: =IF(BP$43>$AR102,0,IF(BP$43>=$AQ102,BP$44,0)) -> 1 | BQ102: =IF(BQ$43>$AR102,0,IF(BQ$43>=$AQ102,BQ$44,0)) -> 0.92 | BR102: =IF(BR$43>$AR102,0,IF(BR$43>=$AQ102,BR$44,0)) -> 0.89 | BS102: =IF(BS$43>$AR102,0,IF(BS$43>=$AQ102,BS$44,0)) -> 0.97 | BT102: =IF(BT$43>$AR102,0,IF(BT$43>=$AQ102,BT$44,0)) -> 0.8 | BU102: =IF(BU$43>$AR102,0,IF(BU$43>=$AQ102,BU$44,0)) -> 0.83 | BV102: =IF(BV$43>$AR102,0,IF(BV$43>=$AQ102,BV$44,0)) -> 0.89 | BW102: =IF(BW$43>$AR102,0,IF(BW$43>=$AQ102,BW$44,0)) -> 0.83 | BX102: =IF(BX$43>$AR102,0,IF(BX$43>=$AQ102,BX$44,0)) -> 0.79 | BY102: 0.91 | BZ102: 0.87 | CA102: 0.84 | CB102: 0.93 | CC102: 0.79 | CD102: 0 | CE102: 0 | CF102: 0
A103: 58 | B103: PRC | C103: 4838 | D103: 2019/0129041-7 | E103: 0129041-02.2019.3.00.0000 | F103: STJ | G103: MS 23.821/DF | H103: 2018-11-19 | I103: 2019-04-25 | J103: 2019-05-09 | K103: União | L103: 26.994.558/0001-23 | M103: Brasilia/DF | N103: Comum | O103: 2019-07-01 | P103: 198426.38 | Q103: 1.159666673 | R103: 2.4567 | S103: 34.26 | T103: 281986.87 | U103: 15665.93 | V103: 15665.93 | W103: 0 | X103: 0 | Y103: =TRUNC(AB103*R103/100,2) ->  | Z103: =TRUNC(AB103*$AS103/100,2) ->  | AA103: =TRUNC(Y103*$AS103/100,2) ->  | AB103: =TRUNC(#REF!*Q103,2) ->  | AC103: =T103+U103+V103+W103+X103 -> 313318.73 | AQ103: 2021-12-01 | AR103: 2024-12-01 | AS103: 34.26 | AT103: =IF(AT$43>$AR103,0,IF(AT$43>=$AQ103,AT$44,0)) -> 0.77 | AU103: =IF(AU$43>$AR103,0,IF(AU$43>=$AQ103,AU$44,0)) -> 0.73 | AV103: =IF(AV$43>$AR103,0,IF(AV$43>=$AQ103,AV$44,0)) -> 0.76 | AW103: =IF(AW$43>$AR103,0,IF(AW$43>=$AQ103,AW$44,0)) -> 0.93 | AX103: =IF(AX$43>$AR103,0,IF(AX$43>=$AQ103,AX$44,0)) -> 0.83 | AY103: =IF(AY$43>$AR103,0,IF(AY$43>=$AQ103,AY$44,0)) -> 1.03 | AZ103: =IF(AZ$43>$AR103,0,IF(AZ$43>=$AQ103,AZ$44,0)) -> 1.02 | BA103: =IF(BA$43>$AR103,0,IF(BA$43>=$AQ103,BA$44,0)) -> 1.03 | BB103: =IF(BB$43>$AR103,0,IF(BB$43>=$AQ103,BB$44,0)) -> 1.17 | BC103: =IF(BC$43>$AR103,0,IF(BC$43>=$AQ103,BC$44,0)) -> 1.07 | BD103: =IF(BD$43>$AR103,0,IF(BD$43>=$AQ103,BD$44,0)) -> 1.02 | BE103: =IF(BE$43>$AR103,0,IF(BE$43>=$AQ103,BE$44,0)) -> 1.02 | BF103: =IF(BF$43>$AR103,0,IF(BF$43>=$AQ103,BF$44,0)) -> 1.12 | BG103: =IF(BG$43>$AR103,0,IF(BG$43>=$AQ103,BG$44,0)) -> 1.12 | BH103: =IF(BH$43>$AR103,0,IF(BH$43>=$AQ103,BH$44,0)) -> 0.92 | BI103: =IF(BI$43>$AR103,0,IF(BI$43>=$AQ103,BI$44,0)) -> 1.17 | BJ103: =IF(BJ$43>$AR103,0,IF(BJ$43>=$AQ103,BJ$44,0)) -> 0.92 | BK103: =IF(BK$43>$AR103,0,IF(BK$43>=$AQ103,BK$44,0)) -> 1.12 | BL103: =IF(BL$43>$AR103,0,IF(BL$43>=$AQ103,BL$44,0)) -> 1.07 | BM103: =IF(BM$43>$AR103,0,IF(BM$43>=$AQ103,BM$44,0)) -> 1.07 | BN103: =IF(BN$43>$AR103,0,IF(BN$43>=$AQ103,BN$44,0)) -> 1.14 | BO103: =IF(BO$43>$AR103,0,IF(BO$43>=$AQ103,BO$44,0)) -> 0.97 | BP103: =IF(BP$43>$AR103,0,IF(BP$43>=$AQ103,BP$44,0)) -> 1 | BQ103: =IF(BQ$43>$AR103,0,IF(BQ$43>=$AQ103,BQ$44,0)) -> 0.92 | BR103: =IF(BR$43>$AR103,0,IF(BR$43>=$AQ103,BR$44,0)) -> 0.89 | BS103: =IF(BS$43>$AR103,0,IF(BS$43>=$AQ103,BS$44,0)) -> 0.97 | BT103: =IF(BT$43>$AR103,0,IF(BT$43>=$AQ103,BT$44,0)) -> 0.8 | BU103: =IF(BU$43>$AR103,0,IF(BU$43>=$AQ103,BU$44,0)) -> 0.83 | BV103: =IF(BV$43>$AR103,0,IF(BV$43>=$AQ103,BV$44,0)) -> 0.89 | BW103: =IF(BW$43>$AR103,0,IF(BW$43>=$AQ103,BW$44,0)) -> 0.83 | BX103: =IF(BX$43>$AR103,0,IF(BX$43>=$AQ103,BX$44,0)) -> 0.79 | BY103: 0.91 | BZ103: 0.87 | CA103: 0.84 | CB103: 0.93 | CC103: 0.79 | CD103: 0 | CE103: 0 | CF103: 0
A104: 59 | B104: PRC | C104: 4839 | D104: 2019/0129043-0 | E104: 0129043-69.2019.3.00.0000 | F104: STJ | G104: MS 21.377/DF | H104: 2018-06-07 | I104: 2019-03-07 | J104: 2019-05-09 | K104: União | L104: 26.994.558/0001-23 | M104: Brasilia/DF | N104: Comum | O104: 2019-07-01 | P104: 193706.96 | Q104: 1.159666673 | R104: 2.4567 | S104: 34.26 | T104: 244693.36 | U104: 61173.33 | V104: 0 | W104: 0 | X104: 0 | Y104: =TRUNC(AB104*R104/100,2) ->  | Z104: =TRUNC(AB104*$AS104/100,2) ->  | AA104: =TRUNC(Y104*$AS104/100,2) ->  | AB104: =TRUNC(#REF!*Q104,2) ->  | AC104: =T104+U104+V104+W104+X104 -> 305866.69 | AQ104: 2021-12-01 | AR104: 2024-12-01 | AS104: 34.26 | AT104: =IF(AT$43>$AR104,0,IF(AT$43>=$AQ104,AT$44,0)) -> 0.77 | AU104: =IF(AU$43>$AR104,0,IF(AU$43>=$AQ104,AU$44,0)) -> 0.73 | AV104: =IF(AV$43>$AR104,0,IF(AV$43>=$AQ104,AV$44,0)) -> 0.76 | AW104: =IF(AW$43>$AR104,0,IF(AW$43>=$AQ104,AW$44,0)) -> 0.93 | AX104: =IF(AX$43>$AR104,0,IF(AX$43>=$AQ104,AX$44,0)) -> 0.83 | AY104: =IF(AY$43>$AR104,0,IF(AY$43>=$AQ104,AY$44,0)) -> 1.03 | AZ104: =IF(AZ$43>$AR104,0,IF(AZ$43>=$AQ104,AZ$44,0)) -> 1.02 | BA104: =IF(BA$43>$AR104,0,IF(BA$43>=$AQ104,BA$44,0)) -> 1.03 | BB104: =IF(BB$43>$AR104,0,IF(BB$43>=$AQ104,BB$44,0)) -> 1.17 | BC104: =IF(BC$43>$AR104,0,IF(BC$43>=$AQ104,BC$44,0)) -> 1.07 | BD104: =IF(BD$43>$AR104,0,IF(BD$43>=$AQ104,BD$44,0)) -> 1.02 | BE104: =IF(BE$43>$AR104,0,IF(BE$43>=$AQ104,BE$44,0)) -> 1.02 | BF104: =IF(BF$43>$AR104,0,IF(BF$43>=$AQ104,BF$44,0)) -> 1.12 | BG104: =IF(BG$43>$AR104,0,IF(BG$43>=$AQ104,BG$44,0)) -> 1.12 | BH104: =IF(BH$43>$AR104,0,IF(BH$43>=$AQ104,BH$44,0)) -> 0.92 | BI104: =IF(BI$43>$AR104,0,IF(BI$43>=$AQ104,BI$44,0)) -> 1.17 | BJ104: =IF(BJ$43>$AR104,0,IF(BJ$43>=$AQ104,BJ$44,0)) -> 0.92 | BK104: =IF(BK$43>$AR104,0,IF(BK$43>=$AQ104,BK$44,0)) -> 1.12 | BL104: =IF(BL$43>$AR104,0,IF(BL$43>=$AQ104,BL$44,0)) -> 1.07 | BM104: =IF(BM$43>$AR104,0,IF(BM$43>=$AQ104,BM$44,0)) -> 1.07 | BN104: =IF(BN$43>$AR104,0,IF(BN$43>=$AQ104,BN$44,0)) -> 1.14 | BO104: =IF(BO$43>$AR104,0,IF(BO$43>=$AQ104,BO$44,0)) -> 0.97 | BP104: =IF(BP$43>$AR104,0,IF(BP$43>=$AQ104,BP$44,0)) -> 1 | BQ104: =IF(BQ$43>$AR104,0,IF(BQ$43>=$AQ104,BQ$44,0)) -> 0.92 | BR104: =IF(BR$43>$AR104,0,IF(BR$43>=$AQ104,BR$44,0)) -> 0.89 | BS104: =IF(BS$43>$AR104,0,IF(BS$43>=$AQ104,BS$44,0)) -> 0.97 | BT104: =IF(BT$43>$AR104,0,IF(BT$43>=$AQ104,BT$44,0)) -> 0.8 | BU104: =IF(BU$43>$AR104,0,IF(BU$43>=$AQ104,BU$44,0)) -> 0.83 | BV104: =IF(BV$43>$AR104,0,IF(BV$43>=$AQ104,BV$44,0)) -> 0.89 | BW104: =IF(BW$43>$AR104,0,IF(BW$43>=$AQ104,BW$44,0)) -> 0.83 | BX104: =IF(BX$43>$AR104,0,IF(BX$43>=$AQ104,BX$44,0)) -> 0.79 | BY104: 0.91 | BZ104: 0.87 | CA104: 0.84 | CB104: 0.93 | CC104: 0.79 | CD104: 0 | CE104: 0 | CF104: 0
A105: 60 | B105: PRC | C105: 4842 | D105: 2019/0129052-0 | E105: 0129052-31.2019.3.00.0000 | F105: STJ | G105: MS 23.389/DF | H105: 2017-10-03 | I105: 2019-04-30 | J105: 2019-05-09 | K105: União | L105: 26.994.558/0001-23 | M105: Brasilia/DF | N105: Comum | O105: 2019-07-01 | P105: 204290.59 | Q105: 1.159666673 | R105: 2.4567 | S105: 34.26 | T105: 322578.42 | U105: 0 | V105: 0 | W105: 0 | X105: 0 | Y105: =TRUNC(AB105*R105/100,2) ->  | Z105: =TRUNC(AB105*$AS105/100,2) ->  | AA105: =TRUNC(Y105*$AS105/100,2) ->  | AB105: =TRUNC(#REF!*Q105,2) ->  | AC105: =T105+U105+V105+W105+X105 -> 322578.42 | AQ105: 2021-12-01 | AR105: 2024-12-01 | AS105: 34.26 | AT105: =IF(AT$43>$AR105,0,IF(AT$43>=$AQ105,AT$44,0)) -> 0.77 | AU105: =IF(AU$43>$AR105,0,IF(AU$43>=$AQ105,AU$44,0)) -> 0.73 | AV105: =IF(AV$43>$AR105,0,IF(AV$43>=$AQ105,AV$44,0)) -> 0.76 | AW105: =IF(AW$43>$AR105,0,IF(AW$43>=$AQ105,AW$44,0)) -> 0.93 | AX105: =IF(AX$43>$AR105,0,IF(AX$43>=$AQ105,AX$44,0)) -> 0.83 | AY105: =IF(AY$43>$AR105,0,IF(AY$43>=$AQ105,AY$44,0)) -> 1.03 | AZ105: =IF(AZ$43>$AR105,0,IF(AZ$43>=$AQ105,AZ$44,0)) -> 1.02 | BA105: =IF(BA$43>$AR105,0,IF(BA$43>=$AQ105,BA$44,0)) -> 1.03 | BB105: =IF(BB$43>$AR105,0,IF(BB$43>=$AQ105,BB$44,0)) -> 1.17 | BC105: =IF(BC$43>$AR105,0,IF(BC$43>=$AQ105,BC$44,0)) -> 1.07 | BD105: =IF(BD$43>$AR105,0,IF(BD$43>=$AQ105,BD$44,0)) -> 1.02 | BE105: =IF(BE$43>$AR105,0,IF(BE$43>=$AQ105,BE$44,0)) -> 1.02 | BF105: =IF(BF$43>$AR105,0,IF(BF$43>=$AQ105,BF$44,0)) -> 1.12 | BG105: =IF(BG$43>$AR105,0,IF(BG$43>=$AQ105,BG$44,0)) -> 1.12 | BH105: =IF(BH$43>$AR105,0,IF(BH$43>=$AQ105,BH$44,0)) -> 0.92 | BI105: =IF(BI$43>$AR105,0,IF(BI$43>=$AQ105,BI$44,0)) -> 1.17 | BJ105: =IF(BJ$43>$AR105,0,IF(BJ$43>=$AQ105,BJ$44,0)) -> 0.92 | BK105: =IF(BK$43>$AR105,0,IF(BK$43>=$AQ105,BK$44,0)) -> 1.12 | BL105: =IF(BL$43>$AR105,0,IF(BL$43>=$AQ105,BL$44,0)) -> 1.07 | BM105: =IF(BM$43>$AR105,0,IF(BM$43>=$AQ105,BM$44,0)) -> 1.07 | BN105: =IF(BN$43>$AR105,0,IF(BN$43>=$AQ105,BN$44,0)) -> 1.14 | BO105: =IF(BO$43>$AR105,0,IF(BO$43>=$AQ105,BO$44,0)) -> 0.97 | BP105: =IF(BP$43>$AR105,0,IF(BP$43>=$AQ105,BP$44,0)) -> 1 | BQ105: =IF(BQ$43>$AR105,0,IF(BQ$43>=$AQ105,BQ$44,0)) -> 0.92 | BR105: =IF(BR$43>$AR105,0,IF(BR$43>=$AQ105,BR$44,0)) -> 0.89 | BS105: =IF(BS$43>$AR105,0,IF(BS$43>=$AQ105,BS$44,0)) -> 0.97 | BT105: =IF(BT$43>$AR105,0,IF(BT$43>=$AQ105,BT$44,0)) -> 0.8 | BU105: =IF(BU$43>$AR105,0,IF(BU$43>=$AQ105,BU$44,0)) -> 0.83 | BV105: =IF(BV$43>$AR105,0,IF(BV$43>=$AQ105,BV$44,0)) -> 0.89 | BW105: =IF(BW$43>$AR105,0,IF(BW$43>=$AQ105,BW$44,0)) -> 0.83 | BX105: =IF(BX$43>$AR105,0,IF(BX$43>=$AQ105,BX$44,0)) -> 0.79 | BY105: 0.91 | BZ105: 0.87 | CA105: 0.84 | CB105: 0.93 | CC105: 0.79 | CD105: 0 | CE105: 0 | CF105: 0
A106: 61 | B106: PRC | C106: 4843 | D106: 2019/0129053-1 | E106: 0129053-16.2019.3.00.0000 | F106: STJ | G106: MS 23.449/DF | H106: 2018-06-12 | I106: 2019-04-30 | J106: 2019-05-09 | K106: União | L106: 26.994.558/0001-23 | M106: Brasilia/DF | N106: Comum | O106: 2019-07-01 | P106: 193350.94 | Q106: 1.159666673 | R106: 2.4567 | S106: 34.26 | T106: 244243.62 | U106: 61060.9 | V106: 0 | W106: 0 | X106: 0 | Y106: =TRUNC(AB106*R106/100,2) ->  | Z106: =TRUNC(AB106*$AS106/100,2) ->  | AA106: =TRUNC(Y106*$AS106/100,2) ->  | AB106: =TRUNC(#REF!*Q106,2) ->  | AC106: =T106+U106+V106+W106+X106 -> 305304.52 | AQ106: 2021-12-01 | AR106: 2024-12-01 | AS106: 34.26 | AT106: =IF(AT$43>$AR106,0,IF(AT$43>=$AQ106,AT$44,0)) -> 0.77 | AU106: =IF(AU$43>$AR106,0,IF(AU$43>=$AQ106,AU$44,0)) -> 0.73 | AV106: =IF(AV$43>$AR106,0,IF(AV$43>=$AQ106,AV$44,0)) -> 0.76 | AW106: =IF(AW$43>$AR106,0,IF(AW$43>=$AQ106,AW$44,0)) -> 0.93 | AX106: =IF(AX$43>$AR106,0,IF(AX$43>=$AQ106,AX$44,0)) -> 0.83 | AY106: =IF(AY$43>$AR106,0,IF(AY$43>=$AQ106,AY$44,0)) -> 1.03 | AZ106: =IF(AZ$43>$AR106,0,IF(AZ$43>=$AQ106,AZ$44,0)) -> 1.02 | BA106: =IF(BA$43>$AR106,0,IF(BA$43>=$AQ106,BA$44,0)) -> 1.03 | BB106: =IF(BB$43>$AR106,0,IF(BB$43>=$AQ106,BB$44,0)) -> 1.17 | BC106: =IF(BC$43>$AR106,0,IF(BC$43>=$AQ106,BC$44,0)) -> 1.07 | BD106: =IF(BD$43>$AR106,0,IF(BD$43>=$AQ106,BD$44,0)) -> 1.02 | BE106: =IF(BE$43>$AR106,0,IF(BE$43>=$AQ106,BE$44,0)) -> 1.02 | BF106: =IF(BF$43>$AR106,0,IF(BF$43>=$AQ106,BF$44,0)) -> 1.12 | BG106: =IF(BG$43>$AR106,0,IF(BG$43>=$AQ106,BG$44,0)) -> 1.12 | BH106: =IF(BH$43>$AR106,0,IF(BH$43>=$AQ106,BH$44,0)) -> 0.92 | BI106: =IF(BI$43>$AR106,0,IF(BI$43>=$AQ106,BI$44,0)) -> 1.17 | BJ106: =IF(BJ$43>$AR106,0,IF(BJ$43>=$AQ106,BJ$44,0)) -> 0.92 | BK106: =IF(BK$43>$AR106,0,IF(BK$43>=$AQ106,BK$44,0)) -> 1.12 | BL106: =IF(BL$43>$AR106,0,IF(BL$43>=$AQ106,BL$44,0)) -> 1.07 | BM106: =IF(BM$43>$AR106,0,IF(BM$43>=$AQ106,BM$44,0)) -> 1.07 | BN106: =IF(BN$43>$AR106,0,IF(BN$43>=$AQ106,BN$44,0)) -> 1.14 | BO106: =IF(BO$43>$AR106,0,IF(BO$43>=$AQ106,BO$44,0)) -> 0.97 | BP106: =IF(BP$43>$AR106,0,IF(BP$43>=$AQ106,BP$44,0)) -> 1 | BQ106: =IF(BQ$43>$AR106,0,IF(BQ$43>=$AQ106,BQ$44,0)) -> 0.92 | BR106: =IF(BR$43>$AR106,0,IF(BR$43>=$AQ106,BR$44,0)) -> 0.89 | BS106: =IF(BS$43>$AR106,0,IF(BS$43>=$AQ106,BS$44,0)) -> 0.97 | BT106: =IF(BT$43>$AR106,0,IF(BT$43>=$AQ106,BT$44,0)) -> 0.8 | BU106: =IF(BU$43>$AR106,0,IF(BU$43>=$AQ106,BU$44,0)) -> 0.83 | BV106: =IF(BV$43>$AR106,0,IF(BV$43>=$AQ106,BV$44,0)) -> 0.89 | BW106: =IF(BW$43>$AR106,0,IF(BW$43>=$AQ106,BW$44,0)) -> 0.83 | BX106: =IF(BX$43>$AR106,0,IF(BX$43>=$AQ106,BX$44,0)) -> 0.79 | BY106: 0.91 | BZ106: 0.87 | CA106: 0.84 | CB106: 0.93 | CC106: 0.79 | CD106: 0 | CE106: 0 | CF106: 0
A107: 62 | B107: PRC | C107: 4844 | D107: 2019/0142564-7 | E107: 0142564-81.2019.3.00.0000 | F107: STJ | G107: MS 15.762/DF | H107: 2018-06-20 | I107: 2019-05-02 | J107: 2019-05-20 | K107: União | L107: 26.994.558/0001-23 | M107: Brasilia/DF | N107: Comum | O107: 2019-07-01 | P107: 173923.2 | Q107: 1.159666673 | R107: 2.4567 | S107: 34.26 | T107: 219702.21 | U107: 54925.55 | V107: 0 | W107: 0 | X107: 0 | Y107: =TRUNC(AB107*R107/100,2) ->  | Z107: =TRUNC(AB107*$AS107/100,2) ->  | AA107: =TRUNC(Y107*$AS107/100,2) ->  | AB107: =TRUNC(#REF!*Q107,2) ->  | AC107: =T107+U107+V107+W107+X107 -> 274627.76 | AQ107: 2021-12-01 | AR107: 2024-12-01 | AS107: 34.26 | AT107: =IF(AT$43>$AR107,0,IF(AT$43>=$AQ107,AT$44,0)) -> 0.77 | AU107: =IF(AU$43>$AR107,0,IF(AU$43>=$AQ107,AU$44,0)) -> 0.73 | AV107: =IF(AV$43>$AR107,0,IF(AV$43>=$AQ107,AV$44,0)) -> 0.76 | AW107: =IF(AW$43>$AR107,0,IF(AW$43>=$AQ107,AW$44,0)) -> 0.93 | AX107: =IF(AX$43>$AR107,0,IF(AX$43>=$AQ107,AX$44,0)) -> 0.83 | AY107: =IF(AY$43>$AR107,0,IF(AY$43>=$AQ107,AY$44,0)) -> 1.03 | AZ107: =IF(AZ$43>$AR107,0,IF(AZ$43>=$AQ107,AZ$44,0)) -> 1.02 | BA107: =IF(BA$43>$AR107,0,IF(BA$43>=$AQ107,BA$44,0)) -> 1.03 | BB107: =IF(BB$43>$AR107,0,IF(BB$43>=$AQ107,BB$44,0)) -> 1.17 | BC107: =IF(BC$43>$AR107,0,IF(BC$43>=$AQ107,BC$44,0)) -> 1.07 | BD107: =IF(BD$43>$AR107,0,IF(BD$43>=$AQ107,BD$44,0)) -> 1.02 | BE107: =IF(BE$43>$AR107,0,IF(BE$43>=$AQ107,BE$44,0)) -> 1.02 | BF107: =IF(BF$43>$AR107,0,IF(BF$43>=$AQ107,BF$44,0)) -> 1.12 | BG107: =IF(BG$43>$AR107,0,IF(BG$43>=$AQ107,BG$44,0)) -> 1.12 | BH107: =IF(BH$43>$AR107,0,IF(BH$43>=$AQ107,BH$44,0)) -> 0.92 | BI107: =IF(BI$43>$AR107,0,IF(BI$43>=$AQ107,BI$44,0)) -> 1.17 | BJ107: =IF(BJ$43>$AR107,0,IF(BJ$43>=$AQ107,BJ$44,0)) -> 0.92 | BK107: =IF(BK$43>$AR107,0,IF(BK$43>=$AQ107,BK$44,0)) -> 1.12 | BL107: =IF(BL$43>$AR107,0,IF(BL$43>=$AQ107,BL$44,0)) -> 1.07 | BM107: =IF(BM$43>$AR107,0,IF(BM$43>=$AQ107,BM$44,0)) -> 1.07 | BN107: =IF(BN$43>$AR107,0,IF(BN$43>=$AQ107,BN$44,0)) -> 1.14 | BO107: =IF(BO$43>$AR107,0,IF(BO$43>=$AQ107,BO$44,0)) -> 0.97 | BP107: =IF(BP$43>$AR107,0,IF(BP$43>=$AQ107,BP$44,0)) -> 1 | BQ107: =IF(BQ$43>$AR107,0,IF(BQ$43>=$AQ107,BQ$44,0)) -> 0.92 | BR107: =IF(BR$43>$AR107,0,IF(BR$43>=$AQ107,BR$44,0)) -> 0.89 | BS107: =IF(BS$43>$AR107,0,IF(BS$43>=$AQ107,BS$44,0)) -> 0.97 | BT107: =IF(BT$43>$AR107,0,IF(BT$43>=$AQ107,BT$44,0)) -> 0.8 | BU107: =IF(BU$43>$AR107,0,IF(BU$43>=$AQ107,BU$44,0)) -> 0.83 | BV107: =IF(BV$43>$AR107,0,IF(BV$43>=$AQ107,BV$44,0)) -> 0.89 | BW107: =IF(BW$43>$AR107,0,IF(BW$43>=$AQ107,BW$44,0)) -> 0.83 | BX107: =IF(BX$43>$AR107,0,IF(BX$43>=$AQ107,BX$44,0)) -> 0.79 | BY107: 0.91 | BZ107: 0.87 | CA107: 0.84 | CB107: 0.93 | CC107: 0.79 | CD107: 0 | CE107: 0 | CF107: 0
A108: 63 | B108: PRC | C108: 4846 | D108: 2019/0142611-5 | E108: 0142611-55.2019.3.00.0000 | F108: STJ | G108: MS 15.589/DF | H108: 2018-08-10 | I108: 2019-05-02 | J108: 2019-05-20 | K108: União | L108: 26.994.558/0001-23 | M108: Brasilia/DF | N108: Comum | O108: 2019-07-01 | P108: 243416.25 | Q108: 1.159666673 | R108: 2.4567 | S108: 34.26 | T108: 307486.82 | U108: 76871.7 | V108: 0 | W108: 0 | X108: 0 | Y108: =TRUNC(AB108*R108/100,2) ->  | Z108: =TRUNC(AB108*$AS108/100,2) ->  | AA108: =TRUNC(Y108*$AS108/100,2) ->  | AB108: =TRUNC(#REF!*Q108,2) ->  | AC108: =T108+U108+V108+W108+X108 -> 384358.52 | AQ108: 2021-12-01 | AR108: 2024-12-01 | AS108: 34.26 | AT108: =IF(AT$43>$AR108,0,IF(AT$43>=$AQ108,AT$44,0)) -> 0.77 | AU108: =IF(AU$43>$AR108,0,IF(AU$43>=$AQ108,AU$44,0)) -> 0.73 | AV108: =IF(AV$43>$AR108,0,IF(AV$43>=$AQ108,AV$44,0)) -> 0.76 | AW108: =IF(AW$43>$AR108,0,IF(AW$43>=$AQ108,AW$44,0)) -> 0.93 | AX108: =IF(AX$43>$AR108,0,IF(AX$43>=$AQ108,AX$44,0)) -> 0.83 | AY108: =IF(AY$43>$AR108,0,IF(AY$43>=$AQ108,AY$44,0)) -> 1.03 | AZ108: =IF(AZ$43>$AR108,0,IF(AZ$43>=$AQ108,AZ$44,0)) -> 1.02 | BA108: =IF(BA$43>$AR108,0,IF(BA$43>=$AQ108,BA$44,0)) -> 1.03 | BB108: =IF(BB$43>$AR108,0,IF(BB$43>=$AQ108,BB$44,0)) -> 1.17 | BC108: =IF(BC$43>$AR108,0,IF(BC$43>=$AQ108,BC$44,0)) -> 1.07 | BD108: =IF(BD$43>$AR108,0,IF(BD$43>=$AQ108,BD$44,0)) -> 1.02 | BE108: =IF(BE$43>$AR108,0,IF(BE$43>=$AQ108,BE$44,0)) -> 1.02 | BF108: =IF(BF$43>$AR108,0,IF(BF$43>=$AQ108,BF$44,0)) -> 1.12 | BG108: =IF(BG$43>$AR108,0,IF(BG$43>=$AQ108,BG$44,0)) -> 1.12 | BH108: =IF(BH$43>$AR108,0,IF(BH$43>=$AQ108,BH$44,0)) -> 0.92 | BI108: =IF(BI$43>$AR108,0,IF(BI$43>=$AQ108,BI$44,0)) -> 1.17 | BJ108: =IF(BJ$43>$AR108,0,IF(BJ$43>=$AQ108,BJ$44,0)) -> 0.92 | BK108: =IF(BK$43>$AR108,0,IF(BK$43>=$AQ108,BK$44,0)) -> 1.12 | BL108: =IF(BL$43>$AR108,0,IF(BL$43>=$AQ108,BL$44,0)) -> 1.07 | BM108: =IF(BM$43>$AR108,0,IF(BM$43>=$AQ108,BM$44,0)) -> 1.07 | BN108: =IF(BN$43>$AR108,0,IF(BN$43>=$AQ108,BN$44,0)) -> 1.14 | BO108: =IF(BO$43>$AR108,0,IF(BO$43>=$AQ108,BO$44,0)) -> 0.97 | BP108: =IF(BP$43>$AR108,0,IF(BP$43>=$AQ108,BP$44,0)) -> 1 | BQ108: =IF(BQ$43>$AR108,0,IF(BQ$43>=$AQ108,BQ$44,0)) -> 0.92 | BR108: =IF(BR$43>$AR108,0,IF(BR$43>=$AQ108,BR$44,0)) -> 0.89 | BS108: =IF(BS$43>$AR108,0,IF(BS$43>=$AQ108,BS$44,0)) -> 0.97 | BT108: =IF(BT$43>$AR108,0,IF(BT$43>=$AQ108,BT$44,0)) -> 0.8 | BU108: =IF(BU$43>$AR108,0,IF(BU$43>=$AQ108,BU$44,0)) -> 0.83 | BV108: =IF(BV$43>$AR108,0,IF(BV$43>=$AQ108,BV$44,0)) -> 0.89 | BW108: =IF(BW$43>$AR108,0,IF(BW$43>=$AQ108,BW$44,0)) -> 0.83 | BX108: =IF(BX$43>$AR108,0,IF(BX$43>=$AQ108,BX$44,0)) -> 0.79 | BY108: 0.91 | BZ108: 0.87 | CA108: 0.84 | CB108: 0.93 | CC108: 0.79 | CD108: 0 | CE108: 0 | CF108: 0
A109: 64 | B109: PRC | C109: 4849 | D109: 2019/0142620-4 | E109: 0142620-17.2019.3.00.0000 | F109: STJ | G109: MS 13.881/DF | H109: 2018-06-07 | I109: 2019-05-02 | J109: 2019-05-20 | K109: União | L109: 26.994.558/0001-23 | M109: Brasilia/DF | N109: Comum | O109: 2019-07-01 | P109: 230625 | Q109: 1.159666673 | R109: 2.4567 | S109: 34.26 | T109: 291328.74 | U109: 72832.18 | V109: 0 | W109: 0 | X109: 0 | Y109: =TRUNC(AB109*R109/100,2) ->  | Z109: =TRUNC(AB109*$AS109/100,2) ->  | AA109: =TRUNC(Y109*$AS109/100,2) ->  | AB109: =TRUNC(#REF!*Q109,2) ->  | AC109: =T109+U109+V109+W109+X109 -> 364160.92 | AQ109: 2021-12-01 | AR109: 2024-12-01 | AS109: 34.26 | AT109: =IF(AT$43>$AR109,0,IF(AT$43>=$AQ109,AT$44,0)) -> 0.77 | AU109: =IF(AU$43>$AR109,0,IF(AU$43>=$AQ109,AU$44,0)) -> 0.73 | AV109: =IF(AV$43>$AR109,0,IF(AV$43>=$AQ109,AV$44,0)) -> 0.76 | AW109: =IF(AW$43>$AR109,0,IF(AW$43>=$AQ109,AW$44,0)) -> 0.93 | AX109: =IF(AX$43>$AR109,0,IF(AX$43>=$AQ109,AX$44,0)) -> 0.83 | AY109: =IF(AY$43>$AR109,0,IF(AY$43>=$AQ109,AY$44,0)) -> 1.03 | AZ109: =IF(AZ$43>$AR109,0,IF(AZ$43>=$AQ109,AZ$44,0)) -> 1.02 | BA109: =IF(BA$43>$AR109,0,IF(BA$43>=$AQ109,BA$44,0)) -> 1.03 | BB109: =IF(BB$43>$AR109,0,IF(BB$43>=$AQ109,BB$44,0)) -> 1.17 | BC109: =IF(BC$43>$AR109,0,IF(BC$43>=$AQ109,BC$44,0)) -> 1.07 | BD109: =IF(BD$43>$AR109,0,IF(BD$43>=$AQ109,BD$44,0)) -> 1.02 | BE109: =IF(BE$43>$AR109,0,IF(BE$43>=$AQ109,BE$44,0)) -> 1.02 | BF109: =IF(BF$43>$AR109,0,IF(BF$43>=$AQ109,BF$44,0)) -> 1.12 | BG109: =IF(BG$43>$AR109,0,IF(BG$43>=$AQ109,BG$44,0)) -> 1.12 | BH109: =IF(BH$43>$AR109,0,IF(BH$43>=$AQ109,BH$44,0)) -> 0.92 | BI109: =IF(BI$43>$AR109,0,IF(BI$43>=$AQ109,BI$44,0)) -> 1.17 | BJ109: =IF(BJ$43>$AR109,0,IF(BJ$43>=$AQ109,BJ$44,0)) -> 0.92 | BK109: =IF(BK$43>$AR109,0,IF(BK$43>=$AQ109,BK$44,0)) -> 1.12 | BL109: =IF(BL$43>$AR109,0,IF(BL$43>=$AQ109,BL$44,0)) -> 1.07 | BM109: =IF(BM$43>$AR109,0,IF(BM$43>=$AQ109,BM$44,0)) -> 1.07 | BN109: =IF(BN$43>$AR109,0,IF(BN$43>=$AQ109,BN$44,0)) -> 1.14 | BO109: =IF(BO$43>$AR109,0,IF(BO$43>=$AQ109,BO$44,0)) -> 0.97 | BP109: =IF(BP$43>$AR109,0,IF(BP$43>=$AQ109,BP$44,0)) -> 1 | BQ109: =IF(BQ$43>$AR109,0,IF(BQ$43>=$AQ109,BQ$44,0)) -> 0.92 | BR109: =IF(BR$43>$AR109,0,IF(BR$43>=$AQ109,BR$44,0)) -> 0.89 | BS109: =IF(BS$43>$AR109,0,IF(BS$43>=$AQ109,BS$44,0)) -> 0.97 | BT109: 0.8 | BU109: 0.83 | BV109: 0.89 | BW109: 0.83 | BX109: 0.79 | BY109: 0.91 | BZ109: 0.87 | CA109: 0.84 | CB109: =IF(CB$43>$AR109,0,IF(CB$43>=$AQ109,CB$44,0)) -> 0.93 | CC109: =IF(CC$43>$AR109,0,IF(CC$43>=$AQ109,CC$44,0)) -> 0.79 | CD109: =IF(CD$43>$AR109,0,IF(CD$43>=$AQ109,CD$44,0)) -> 0 | CE109: =IF(CE$43>$AR109,0,IF(CE$43>=$AQ109,CE$44,0)) -> 0 | CF109: 0
A110: 65 | B110: PRC | C110: 4853 | D110: 2019/0145683-7 | E110: 0145683-50.2019.3.00.0000 | F110: STJ | G110: MS 16.641/DF | H110: 2018-06-07 | I110: 2019-02-08 | J110: 2019-05-22 | K110: União | L110: 26.994.558/0001-23 | M110: Brasilia/DF | N110: Comum | O110: 2019-07-01 | P110: 193983.66 | Q110: 1.159666673 | R110: 2.4567 | S110: 34.26 | T110: 275673.24 | U110: 30630.35 | V110: 0 | W110: 0 | X110: 0 | Y110: =TRUNC(AB110*R110/100,2) ->  | Z110: =TRUNC(AB110*$AS110/100,2) ->  | AA110: =TRUNC(Y110*$AS110/100,2) ->  | AB110: =TRUNC(#REF!*Q110,2) ->  | AC110: =T110+U110+V110+W110+X110 -> 306303.59 | AQ110: 2021-12-01 | AR110: 2024-12-01 | AS110: 34.26 | AT110: =IF(AT$43>$AR110,0,IF(AT$43>=$AQ110,AT$44,0)) -> 0.77 | AU110: =IF(AU$43>$AR110,0,IF(AU$43>=$AQ110,AU$44,0)) -> 0.73 | AV110: =IF(AV$43>$AR110,0,IF(AV$43>=$AQ110,AV$44,0)) -> 0.76 | AW110: =IF(AW$43>$AR110,0,IF(AW$43>=$AQ110,AW$44,0)) -> 0.93 | AX110: =IF(AX$43>$AR110,0,IF(AX$43>=$AQ110,AX$44,0)) -> 0.83 | AY110: =IF(AY$43>$AR110,0,IF(AY$43>=$AQ110,AY$44,0)) -> 1.03 | AZ110: =IF(AZ$43>$AR110,0,IF(AZ$43>=$AQ110,AZ$44,0)) -> 1.02 | BA110: =IF(BA$43>$AR110,0,IF(BA$43>=$AQ110,BA$44,0)) -> 1.03 | BB110: =IF(BB$43>$AR110,0,IF(BB$43>=$AQ110,BB$44,0)) -> 1.17 | BC110: =IF(BC$43>$AR110,0,IF(BC$43>=$AQ110,BC$44,0)) -> 1.07 | BD110: =IF(BD$43>$AR110,0,IF(BD$43>=$AQ110,BD$44,0)) -> 1.02 | BE110: =IF(BE$43>$AR110,0,IF(BE$43>=$AQ110,BE$44,0)) -> 1.02 | BF110: =IF(BF$43>$AR110,0,IF(BF$43>=$AQ110,BF$44,0)) -> 1.12 | BG110: =IF(BG$43>$AR110,0,IF(BG$43>=$AQ110,BG$44,0)) -> 1.12 | BH110: =IF(BH$43>$AR110,0,IF(BH$43>=$AQ110,BH$44,0)) -> 0.92 | BI110: =IF(BI$43>$AR110,0,IF(BI$43>=$AQ110,BI$44,0)) -> 1.17 | BJ110: =IF(BJ$43>$AR110,0,IF(BJ$43>=$AQ110,BJ$44,0)) -> 0.92 | BK110: =IF(BK$43>$AR110,0,IF(BK$43>=$AQ110,BK$44,0)) -> 1.12 | BL110: =IF(BL$43>$AR110,0,IF(BL$43>=$AQ110,BL$44,0)) -> 1.07 | BM110: =IF(BM$43>$AR110,0,IF(BM$43>=$AQ110,BM$44,0)) -> 1.07 | BN110: =IF(BN$43>$AR110,0,IF(BN$43>=$AQ110,BN$44,0)) -> 1.14 | BO110: =IF(BO$43>$AR110,0,IF(BO$43>=$AQ110,BO$44,0)) -> 0.97 | BP110: =IF(BP$43>$AR110,0,IF(BP$43>=$AQ110,BP$44,0)) -> 1 | BQ110: =IF(BQ$43>$AR110,0,IF(BQ$43>=$AQ110,BQ$44,0)) -> 0.92 | BR110: =IF(BR$43>$AR110,0,IF(BR$43>=$AQ110,BR$44,0)) -> 0.89 | BS110: =IF(BS$43>$AR110,0,IF(BS$43>=$AQ110,BS$44,0)) -> 0.97 | BT110: =IF(BT$43>$AR110,0,IF(BT$43>=$AQ110,BT$44,0)) -> 0.8 | BU110: =IF(BU$43>$AR110,0,IF(BU$43>=$AQ110,BU$44,0)) -> 0.83 | BV110: =IF(BV$43>$AR110,0,IF(BV$43>=$AQ110,BV$44,0)) -> 0.89 | BW110: =IF(BW$43>$AR110,0,IF(BW$43>=$AQ110,BW$44,0)) -> 0.83 | BX110: 0.79 | BY110: 0.91 | BZ110: 0.87 | CA110: 0.84 | CB110: 0.93 | CC110: 0.79 | CD110: 0 | CE110: 0 | CF110: 0
A111: 66 | B111: PRC | C111: 4855 | D111: 2019/0145689-8 | E111: 0145689-57.2019.3.00.0000 | F111: STJ | G111: MS 16.646/DF | H111: 2018-05-25 | I111: 2019-02-08 | J111: 2019-05-22 | K111: União | L111: 26.994.558/0001-23 | M111: Brasilia/DF | N111: Comum | O111: 2019-07-01 | P111: =VLOOKUP(C111,base2019,5,FALSE) -> 196908.73 | Q111: 1.159666673 | R111: =VLOOKUP(C111,base2019,10,FALSE) -> 2.4567 | S111: 34.26 | T111: =VLOOKUP(C111,base2019,19,FALSE) -> 248737.87 | U111: =VLOOKUP(C111,base2019,20,FALSE) -> 62184.46 | V111: =VLOOKUP(C111,base2019,21,FALSE) -> 0 | W111: =VLOOKUP(C111,base2019,22,FALSE) -> 0 | X111: =VLOOKUP(C111,base2019,23,FALSE) -> 0 | Y111: =TRUNC(AB111*R111/100,2) ->  | Z111: =TRUNC(AB111*$AS111/100,2) ->  | AA111: =TRUNC(Y111*$AS111/100,2) ->  | AB111: =TRUNC(#REF!*Q111,2) ->  | AC111: =T111+U111+V111+W111+X111 -> 310922.33 | AQ111: 2021-12-01 | AR111: 2024-12-01 | AS111: 34.26 | AT111: =IF(AT$43>$AR111,0,IF(AT$43>=$AQ111,AT$44,0)) -> 0.77 | AU111: =IF(AU$43>$AR111,0,IF(AU$43>=$AQ111,AU$44,0)) -> 0.73 | AV111: =IF(AV$43>$AR111,0,IF(AV$43>=$AQ111,AV$44,0)) -> 0.76 | AW111: =IF(AW$43>$AR111,0,IF(AW$43>=$AQ111,AW$44,0)) -> 0.93 | AX111: =IF(AX$43>$AR111,0,IF(AX$43>=$AQ111,AX$44,0)) -> 0.83 | AY111: =IF(AY$43>$AR111,0,IF(AY$43>=$AQ111,AY$44,0)) -> 1.03 | AZ111: =IF(AZ$43>$AR111,0,IF(AZ$43>=$AQ111,AZ$44,0)) -> 1.02 | BA111: =IF(BA$43>$AR111,0,IF(BA$43>=$AQ111,BA$44,0)) -> 1.03 | BB111: =IF(BB$43>$AR111,0,IF(BB$43>=$AQ111,BB$44,0)) -> 1.17 | BC111: =IF(BC$43>$AR111,0,IF(BC$43>=$AQ111,BC$44,0)) -> 1.07 | BD111: =IF(BD$43>$AR111,0,IF(BD$43>=$AQ111,BD$44,0)) -> 1.02 | BE111: =IF(BE$43>$AR111,0,IF(BE$43>=$AQ111,BE$44,0)) -> 1.02 | BF111: =IF(BF$43>$AR111,0,IF(BF$43>=$AQ111,BF$44,0)) -> 1.12 | BG111: =IF(BG$43>$AR111,0,IF(BG$43>=$AQ111,BG$44,0)) -> 1.12 | BH111: =IF(BH$43>$AR111,0,IF(BH$43>=$AQ111,BH$44,0)) -> 0.92 | BI111: =IF(BI$43>$AR111,0,IF(BI$43>=$AQ111,BI$44,0)) -> 1.17 | BJ111: =IF(BJ$43>$AR111,0,IF(BJ$43>=$AQ111,BJ$44,0)) -> 0.92 | BK111: =IF(BK$43>$AR111,0,IF(BK$43>=$AQ111,BK$44,0)) -> 1.12 | BL111: =IF(BL$43>$AR111,0,IF(BL$43>=$AQ111,BL$44,0)) -> 1.07 | BM111: =IF(BM$43>$AR111,0,IF(BM$43>=$AQ111,BM$44,0)) -> 1.07 | BN111: =IF(BN$43>$AR111,0,IF(BN$43>=$AQ111,BN$44,0)) -> 1.14 | BO111: =IF(BO$43>$AR111,0,IF(BO$43>=$AQ111,BO$44,0)) -> 0.97 | BP111: =IF(BP$43>$AR111,0,IF(BP$43>=$AQ111,BP$44,0)) -> 1 | BQ111: =IF(BQ$43>$AR111,0,IF(BQ$43>=$AQ111,BQ$44,0)) -> 0.92 | BR111: =IF(BR$43>$AR111,0,IF(BR$43>=$AQ111,BR$44,0)) -> 0.89 | BS111: =IF(BS$43>$AR111,0,IF(BS$43>=$AQ111,BS$44,0)) -> 0.97 | BT111: =IF(BT$43>$AR111,0,IF(BT$43>=$AQ111,BT$44,0)) -> 0.8 | BU111: =IF(BU$43>$AR111,0,IF(BU$43>=$AQ111,BU$44,0)) -> 0.83 | BV111: =IF(BV$43>$AR111,0,IF(BV$43>=$AQ111,BV$44,0)) -> 0.89 | BW111: =IF(BW$43>$AR111,0,IF(BW$43>=$AQ111,BW$44,0)) -> 0.83 | BX111: 0.79 | BY111: 0.91 | BZ111: 0.87 | CA111: 0.84 | CB111: 0.93 | CC111: 0.79 | CD111: 0 | CE111: 0 | CF111: 0
A112: 67 | B112: PRC | C112: 4856 | D112: 2019/0145696-3 | E112: 0145696-49.2019.3.00.0000 | F112: STJ | G112: MS 15.184/DF | H112: 2018-08-15 | I112: 2019-02-08 | J112: 2019-05-22 | K112: União | L112: 26.994.558/0001-23 | M112: Brasilia/DF | N112: Comum | O112: 2019-07-01 | P112: 224325 | Q112: 1.159666673 | R112: 2.4567 | S112: 34.26 | T112: 318791.79 | U112: 35421.31 | V112: 0 | W112: 0 | X112: 0 | Y112: =TRUNC(AB112*R112/100,2) ->  | Z112: =TRUNC(AB112*$AS112/100,2) ->  | AA112: =TRUNC(Y112*$AS112/100,2) ->  | AB112: =TRUNC(#REF!*Q112,2) ->  | AC112: =T112+U112+V112+W112+X112 -> 354213.1 | AQ112: 2021-12-01 | AR112: 2024-12-01 | AS112: 34.26 | AT112: =IF(AT$43>$AR112,0,IF(AT$43>=$AQ112,AT$44,0)) -> 0.77 | AU112: =IF(AU$43>$AR112,0,IF(AU$43>=$AQ112,AU$44,0)) -> 0.73 | AV112: =IF(AV$43>$AR112,0,IF(AV$43>=$AQ112,AV$44,0)) -> 0.76 | AW112: =IF(AW$43>$AR112,0,IF(AW$43>=$AQ112,AW$44,0)) -> 0.93 | AX112: =IF(AX$43>$AR112,0,IF(AX$43>=$AQ112,AX$44,0)) -> 0.83 | AY112: =IF(AY$43>$AR112,0,IF(AY$43>=$AQ112,AY$44,0)) -> 1.03 | AZ112: =IF(AZ$43>$AR112,0,IF(AZ$43>=$AQ112,AZ$44,0)) -> 1.02 | BA112: =IF(BA$43>$AR112,0,IF(BA$43>=$AQ112,BA$44,0)) -> 1.03 | BB112: =IF(BB$43>$AR112,0,IF(BB$43>=$AQ112,BB$44,0)) -> 1.17 | BC112: =IF(BC$43>$AR112,0,IF(BC$43>=$AQ112,BC$44,0)) -> 1.07 | BD112: =IF(BD$43>$AR112,0,IF(BD$43>=$AQ112,BD$44,0)) -> 1.02 | BE112: =IF(BE$43>$AR112,0,IF(BE$43>=$AQ112,BE$44,0)) -> 1.02 | BF112: =IF(BF$43>$AR112,0,IF(BF$43>=$AQ112,BF$44,0)) -> 1.12 | BG112: =IF(BG$43>$AR112,0,IF(BG$43>=$AQ112,BG$44,0)) -> 1.12 | BH112: =IF(BH$43>$AR112,0,IF(BH$43>=$AQ112,BH$44,0)) -> 0.92 | BI112: =IF(BI$43>$AR112,0,IF(BI$43>=$AQ112,BI$44,0)) -> 1.17 | BJ112: =IF(BJ$43>$AR112,0,IF(BJ$43>=$AQ112,BJ$44,0)) -> 0.92 | BK112: =IF(BK$43>$AR112,0,IF(BK$43>=$AQ112,BK$44,0)) -> 1.12 | BL112: =IF(BL$43>$AR112,0,IF(BL$43>=$AQ112,BL$44,0)) -> 1.07 | BM112: =IF(BM$43>$AR112,0,IF(BM$43>=$AQ112,BM$44,0)) -> 1.07 | BN112: =IF(BN$43>$AR112,0,IF(BN$43>=$AQ112,BN$44,0)) -> 1.14 | BO112: =IF(BO$43>$AR112,0,IF(BO$43>=$AQ112,BO$44,0)) -> 0.97 | BP112: =IF(BP$43>$AR112,0,IF(BP$43>=$AQ112,BP$44,0)) -> 1 | BQ112: =IF(BQ$43>$AR112,0,IF(BQ$43>=$AQ112,BQ$44,0)) -> 0.92 | BR112: =IF(BR$43>$AR112,0,IF(BR$43>=$AQ112,BR$44,0)) -> 0.89 | BS112: =IF(BS$43>$AR112,0,IF(BS$43>=$AQ112,BS$44,0)) -> 0.97 | BT112: =IF(BT$43>$AR112,0,IF(BT$43>=$AQ112,BT$44,0)) -> 0.8 | BU112: =IF(BU$43>$AR112,0,IF(BU$43>=$AQ112,BU$44,0)) -> 0.83 | BV112: =IF(BV$43>$AR112,0,IF(BV$43>=$AQ112,BV$44,0)) -> 0.89 | BW112: =IF(BW$43>$AR112,0,IF(BW$43>=$AQ112,BW$44,0)) -> 0.83 | BX112: 0.79 | BY112: 0.91 | BZ112: 0.87 | CA112: 0.84 | CB112: 0.93 | CC112: 0.79 | CD112: 0 | CE112: 0 | CF112: 0
A113: 68 | B113: PRC | C113: 4858 | D113: 2019/0145724-1 | E113: 0145724-17.2019.3.00.0000 | F113: STJ | G113: MS 22.477/DF | H113: 2018-08-23 | I113: 2019-05-08 | J113: 2019-05-22 | K113: União | L113: 26.994.558/0001-23 | M113: Brasilia/DF | N113: Comum | O113: 2019-07-01 | P113: 239400 | Q113: 1.159666673 | R113: 2.4567 | S113: 34.26 | T113: 321314.28 | U113: 56702.52 | V113: 0 | W113: 0 | X113: 0 | Y113: =TRUNC(AB113*R113/100,2) ->  | Z113: =TRUNC(AB113*$AS113/100,2) ->  | AA113: =TRUNC(Y113*$AS113/100,2) ->  | AB113: =TRUNC(#REF!*Q113,2) ->  | AC113: =T113+U113+V113+W113+X113 -> 378016.8 | AQ113: 2021-12-01 | AR113: 2024-12-01 | AS113: 34.26 | AT113: =IF(AT$43>$AR113,0,IF(AT$43>=$AQ113,AT$44,0)) -> 0.77 | AU113: =IF(AU$43>$AR113,0,IF(AU$43>=$AQ113,AU$44,0)) -> 0.73 | AV113: =IF(AV$43>$AR113,0,IF(AV$43>=$AQ113,AV$44,0)) -> 0.76 | AW113: =IF(AW$43>$AR113,0,IF(AW$43>=$AQ113,AW$44,0)) -> 0.93 | AX113: =IF(AX$43>$AR113,0,IF(AX$43>=$AQ113,AX$44,0)) -> 0.83 | AY113: =IF(AY$43>$AR113,0,IF(AY$43>=$AQ113,AY$44,0)) -> 1.03 | AZ113: =IF(AZ$43>$AR113,0,IF(AZ$43>=$AQ113,AZ$44,0)) -> 1.02 | BA113: =IF(BA$43>$AR113,0,IF(BA$43>=$AQ113,BA$44,0)) -> 1.03 | BB113: =IF(BB$43>$AR113,0,IF(BB$43>=$AQ113,BB$44,0)) -> 1.17 | BC113: =IF(BC$43>$AR113,0,IF(BC$43>=$AQ113,BC$44,0)) -> 1.07 | BD113: =IF(BD$43>$AR113,0,IF(BD$43>=$AQ113,BD$44,0)) -> 1.02 | BE113: =IF(BE$43>$AR113,0,IF(BE$43>=$AQ113,BE$44,0)) -> 1.02 | BF113: =IF(BF$43>$AR113,0,IF(BF$43>=$AQ113,BF$44,0)) -> 1.12 | BG113: =IF(BG$43>$AR113,0,IF(BG$43>=$AQ113,BG$44,0)) -> 1.12 | BH113: =IF(BH$43>$AR113,0,IF(BH$43>=$AQ113,BH$44,0)) -> 0.92 | BI113: =IF(BI$43>$AR113,0,IF(BI$43>=$AQ113,BI$44,0)) -> 1.17 | BJ113: =IF(BJ$43>$AR113,0,IF(BJ$43>=$AQ113,BJ$44,0)) -> 0.92 | BK113: =IF(BK$43>$AR113,0,IF(BK$43>=$AQ113,BK$44,0)) -> 1.12 | BL113: =IF(BL$43>$AR113,0,IF(BL$43>=$AQ113,BL$44,0)) -> 1.07 | BM113: =IF(BM$43>$AR113,0,IF(BM$43>=$AQ113,BM$44,0)) -> 1.07 | BN113: =IF(BN$43>$AR113,0,IF(BN$43>=$AQ113,BN$44,0)) -> 1.14 | BO113: =IF(BO$43>$AR113,0,IF(BO$43>=$AQ113,BO$44,0)) -> 0.97 | BP113: =IF(BP$43>$AR113,0,IF(BP$43>=$AQ113,BP$44,0)) -> 1 | BQ113: =IF(BQ$43>$AR113,0,IF(BQ$43>=$AQ113,BQ$44,0)) -> 0.92 | BR113: =IF(BR$43>$AR113,0,IF(BR$43>=$AQ113,BR$44,0)) -> 0.89 | BS113: =IF(BS$43>$AR113,0,IF(BS$43>=$AQ113,BS$44,0)) -> 0.97 | BT113: =IF(BT$43>$AR113,0,IF(BT$43>=$AQ113,BT$44,0)) -> 0.8 | BU113: =IF(BU$43>$AR113,0,IF(BU$43>=$AQ113,BU$44,0)) -> 0.83 | BV113: =IF(BV$43>$AR113,0,IF(BV$43>=$AQ113,BV$44,0)) -> 0.89 | BW113: =IF(BW$43>$AR113,0,IF(BW$43>=$AQ113,BW$44,0)) -> 0.83 | BX113: 0.79 | BY113: 0.91 | BZ113: 0.87 | CA113: 0.84 | CB113: 0.93 | CC113: 0.79 | CD113: 0 | CE113: 0 | CF113: 0
A114: 69 | B114: PRC | C114: 4859 | D114: 2019/0145730-5 | E114: 0145730-24.2019.3.00.0000 | F114: STJ | G114: MS 17.852/DF | H114: 2018-06-07 | I114: 2019-02-08 | J114: 2019-05-22 | K114: União | L114: 26.994.558/0001-23 | M114: Brasilia/DF | N114: Comum | O114: 2019-07-01 | P114: 211583.5 | Q114: 1.159666673 | R114: 2.4567 | S114: 34.26 | T114: 300684.65 | U114: 33409.4 | V114: 0 | W114: 0 | X114: 0 | Y114: =TRUNC(AB114*R114/100,2) ->  | Z114: =TRUNC(AB114*$AS114/100,2) ->  | AA114: =TRUNC(Y114*$AS114/100,2) ->  | AB114: =TRUNC(#REF!*Q114,2) ->  | AC114: =T114+U114+V114+W114+X114 -> 334094.05 | AQ114: 2021-12-01 | AR114: 2024-12-01 | AS114: 34.26 | AT114: =IF(AT$43>$AR114,0,IF(AT$43>=$AQ114,AT$44,0)) -> 0.77 | AU114: =IF(AU$43>$AR114,0,IF(AU$43>=$AQ114,AU$44,0)) -> 0.73 | AV114: =IF(AV$43>$AR114,0,IF(AV$43>=$AQ114,AV$44,0)) -> 0.76 | AW114: =IF(AW$43>$AR114,0,IF(AW$43>=$AQ114,AW$44,0)) -> 0.93 | AX114: =IF(AX$43>$AR114,0,IF(AX$43>=$AQ114,AX$44,0)) -> 0.83 | AY114: =IF(AY$43>$AR114,0,IF(AY$43>=$AQ114,AY$44,0)) -> 1.03 | AZ114: =IF(AZ$43>$AR114,0,IF(AZ$43>=$AQ114,AZ$44,0)) -> 1.02 | BA114: =IF(BA$43>$AR114,0,IF(BA$43>=$AQ114,BA$44,0)) -> 1.03 | BB114: =IF(BB$43>$AR114,0,IF(BB$43>=$AQ114,BB$44,0)) -> 1.17 | BC114: =IF(BC$43>$AR114,0,IF(BC$43>=$AQ114,BC$44,0)) -> 1.07 | BD114: =IF(BD$43>$AR114,0,IF(BD$43>=$AQ114,BD$44,0)) -> 1.02 | BE114: =IF(BE$43>$AR114,0,IF(BE$43>=$AQ114,BE$44,0)) -> 1.02 | BF114: =IF(BF$43>$AR114,0,IF(BF$43>=$AQ114,BF$44,0)) -> 1.12 | BG114: =IF(BG$43>$AR114,0,IF(BG$43>=$AQ114,BG$44,0)) -> 1.12 | BH114: =IF(BH$43>$AR114,0,IF(BH$43>=$AQ114,BH$44,0)) -> 0.92 | BI114: =IF(BI$43>$AR114,0,IF(BI$43>=$AQ114,BI$44,0)) -> 1.17 | BJ114: =IF(BJ$43>$AR114,0,IF(BJ$43>=$AQ114,BJ$44,0)) -> 0.92 | BK114: =IF(BK$43>$AR114,0,IF(BK$43>=$AQ114,BK$44,0)) -> 1.12 | BL114: =IF(BL$43>$AR114,0,IF(BL$43>=$AQ114,BL$44,0)) -> 1.07 | BM114: =IF(BM$43>$AR114,0,IF(BM$43>=$AQ114,BM$44,0)) -> 1.07 | BN114: =IF(BN$43>$AR114,0,IF(BN$43>=$AQ114,BN$44,0)) -> 1.14 | BO114: =IF(BO$43>$AR114,0,IF(BO$43>=$AQ114,BO$44,0)) -> 0.97 | BP114: =IF(BP$43>$AR114,0,IF(BP$43>=$AQ114,BP$44,0)) -> 1 | BQ114: =IF(BQ$43>$AR114,0,IF(BQ$43>=$AQ114,BQ$44,0)) -> 0.92 | BR114: =IF(BR$43>$AR114,0,IF(BR$43>=$AQ114,BR$44,0)) -> 0.89 | BS114: =IF(BS$43>$AR114,0,IF(BS$43>=$AQ114,BS$44,0)) -> 0.97 | BT114: =IF(BT$43>$AR114,0,IF(BT$43>=$AQ114,BT$44,0)) -> 0.8 | BU114: =IF(BU$43>$AR114,0,IF(BU$43>=$AQ114,BU$44,0)) -> 0.83 | BV114: =IF(BV$43>$AR114,0,IF(BV$43>=$AQ114,BV$44,0)) -> 0.89 | BW114: =IF(BW$43>$AR114,0,IF(BW$43>=$AQ114,BW$44,0)) -> 0.83 | BX114: 0.79 | BY114: 0.91 | BZ114: 0.87 | CA114: 0.84 | CB114: 0.93 | CC114: 0.79 | CD114: 0 | CE114: 0 | CF114: 0
A115: 70 | B115: PRC | C115: 4911 | D115: 2019/0149818-5 | E115: 0149818-08.2019.3.00.0000 | F115: STJ | G115: MS 16.648/DF | H115: 2018-06-07 | I115: 2019-02-07 | J115: 2019-05-24 | K115: União | L115: 26.994.558/0001-23 | M115: Brasilia/DF | N115: Comum | O115: 2019-07-01 | P115: 240750 | Q115: 1.159666673 | R115: 2.4567 | S115: 34.26 | T115: 304118.78 | U115: 76029.69 | V115: 0 | W115: 0 | X115: 0 | Y115: =TRUNC(AB115*R115/100,2) ->  | Z115: =TRUNC(AB115*$AS115/100,2) ->  | AA115: =TRUNC(Y115*$AS115/100,2) ->  | AB115: =TRUNC(#REF!*Q115,2) ->  | AC115: =T115+U115+V115+W115+X115 -> 380148.47 | AQ115: 2021-12-01 | AR115: 2024-12-01 | AS115: 34.26 | AT115: =IF(AT$43>$AR115,0,IF(AT$43>=$AQ115,AT$44,0)) -> 0.77 | AU115: =IF(AU$43>$AR115,0,IF(AU$43>=$AQ115,AU$44,0)) -> 0.73 | AV115: =IF(AV$43>$AR115,0,IF(AV$43>=$AQ115,AV$44,0)) -> 0.76 | AW115: =IF(AW$43>$AR115,0,IF(AW$43>=$AQ115,AW$44,0)) -> 0.93 | AX115: =IF(AX$43>$AR115,0,IF(AX$43>=$AQ115,AX$44,0)) -> 0.83 | AY115: =IF(AY$43>$AR115,0,IF(AY$43>=$AQ115,AY$44,0)) -> 1.03 | AZ115: =IF(AZ$43>$AR115,0,IF(AZ$43>=$AQ115,AZ$44,0)) -> 1.02 | BA115: =IF(BA$43>$AR115,0,IF(BA$43>=$AQ115,BA$44,0)) -> 1.03 | BB115: =IF(BB$43>$AR115,0,IF(BB$43>=$AQ115,BB$44,0)) -> 1.17 | BC115: =IF(BC$43>$AR115,0,IF(BC$43>=$AQ115,BC$44,0)) -> 1.07 | BD115: =IF(BD$43>$AR115,0,IF(BD$43>=$AQ115,BD$44,0)) -> 1.02 | BE115: =IF(BE$43>$AR115,0,IF(BE$43>=$AQ115,BE$44,0)) -> 1.02 | BF115: =IF(BF$43>$AR115,0,IF(BF$43>=$AQ115,BF$44,0)) -> 1.12 | BG115: =IF(BG$43>$AR115,0,IF(BG$43>=$AQ115,BG$44,0)) -> 1.12 | BH115: =IF(BH$43>$AR115,0,IF(BH$43>=$AQ115,BH$44,0)) -> 0.92 | BI115: =IF(BI$43>$AR115,0,IF(BI$43>=$AQ115,BI$44,0)) -> 1.17 | BJ115: =IF(BJ$43>$AR115,0,IF(BJ$43>=$AQ115,BJ$44,0)) -> 0.92 | BK115: =IF(BK$43>$AR115,0,IF(BK$43>=$AQ115,BK$44,0)) -> 1.12 | BL115: =IF(BL$43>$AR115,0,IF(BL$43>=$AQ115,BL$44,0)) -> 1.07 | BM115: =IF(BM$43>$AR115,0,IF(BM$43>=$AQ115,BM$44,0)) -> 1.07 | BN115: =IF(BN$43>$AR115,0,IF(BN$43>=$AQ115,BN$44,0)) -> 1.14 | BO115: =IF(BO$43>$AR115,0,IF(BO$43>=$AQ115,BO$44,0)) -> 0.97 | BP115: =IF(BP$43>$AR115,0,IF(BP$43>=$AQ115,BP$44,0)) -> 1 | BQ115: =IF(BQ$43>$AR115,0,IF(BQ$43>=$AQ115,BQ$44,0)) -> 0.92 | BR115: =IF(BR$43>$AR115,0,IF(BR$43>=$AQ115,BR$44,0)) -> 0.89 | BS115: =IF(BS$43>$AR115,0,IF(BS$43>=$AQ115,BS$44,0)) -> 0.97 | BT115: =IF(BT$43>$AR115,0,IF(BT$43>=$AQ115,BT$44,0)) -> 0.8 | BU115: =IF(BU$43>$AR115,0,IF(BU$43>=$AQ115,BU$44,0)) -> 0.83 | BV115: =IF(BV$43>$AR115,0,IF(BV$43>=$AQ115,BV$44,0)) -> 0.89 | BW115: =IF(BW$43>$AR115,0,IF(BW$43>=$AQ115,BW$44,0)) -> 0.83 | BX115: 0.79 | BY115: 0.91 | BZ115: 0.87 | CA115: 0.84 | CB115: 0.93 | CC115: 0.79 | CD115: 0 | CE115: 0 | CF115: 0
A116: =A115+1 -> 71 | B116: PRC | C116: 4913 | D116: 2019/0149826-2 | E116: 0149826-82.2019.3.00.0000 | F116: STJ | G116: MS 16.018/DF | H116: 2018-06-20 | I116: 2019-02-08 | J116: 2019-05-24 | K116: União | L116: 26.994.558/0001-23 | M116: Brasilia/DF | N116: Comum | O116: 2019-07-01 | P116: 235012.5 | Q116: 1.159666673 | R116: 2.4567 | S116: 34.26 | T116: 333979.99 | U116: 37108.88 | V116: 0 | W116: 0 | X116: 0 | Y116: =TRUNC(AB116*R116/100,2) ->  | Z116: =TRUNC(AB116*$AS116/100,2) ->  | AA116: =TRUNC(Y116*$AS116/100,2) ->  | AB116: =TRUNC(#REF!*Q116,2) ->  | AC116: =T116+U116+V116+W116+X116 -> 371088.87 | AQ116: 2021-12-01 | AR116: =$AR$44 -> 2024-12-01 | AS116: 34.26 | AT116: =IF(AT$43>$AR116,0,IF(AT$43>=$AQ116,AT$44,0)) -> 0.77 | AU116: =IF(AU$43>$AR116,0,IF(AU$43>=$AQ116,AU$44,0)) -> 0.73 | AV116: =IF(AV$43>$AR116,0,IF(AV$43>=$AQ116,AV$44,0)) -> 0.76 | AW116: =IF(AW$43>$AR116,0,IF(AW$43>=$AQ116,AW$44,0)) -> 0.93 | AX116: =IF(AX$43>$AR116,0,IF(AX$43>=$AQ116,AX$44,0)) -> 0.83 | AY116: =IF(AY$43>$AR116,0,IF(AY$43>=$AQ116,AY$44,0)) -> 1.03 | AZ116: =IF(AZ$43>$AR116,0,IF(AZ$43>=$AQ116,AZ$44,0)) -> 1.02 | BA116: =IF(BA$43>$AR116,0,IF(BA$43>=$AQ116,BA$44,0)) -> 1.03 | BB116: =IF(BB$43>$AR116,0,IF(BB$43>=$AQ116,BB$44,0)) -> 1.17 | BC116: =IF(BC$43>$AR116,0,IF(BC$43>=$AQ116,BC$44,0)) -> 1.07 | BD116: =IF(BD$43>$AR116,0,IF(BD$43>=$AQ116,BD$44,0)) -> 1.02 | BE116: =IF(BE$43>$AR116,0,IF(BE$43>=$AQ116,BE$44,0)) -> 1.02 | BF116: =IF(BF$43>$AR116,0,IF(BF$43>=$AQ116,BF$44,0)) -> 1.12 | BG116: =IF(BG$43>$AR116,0,IF(BG$43>=$AQ116,BG$44,0)) -> 1.12 | BH116: =IF(BH$43>$AR116,0,IF(BH$43>=$AQ116,BH$44,0)) -> 0.92 | BI116: =IF(BI$43>$AR116,0,IF(BI$43>=$AQ116,BI$44,0)) -> 1.17 | BJ116: =IF(BJ$43>$AR116,0,IF(BJ$43>=$AQ116,BJ$44,0)) -> 0.92 | BK116: =IF(BK$43>$AR116,0,IF(BK$43>=$AQ116,BK$44,0)) -> 1.12 | BL116: =IF(BL$43>$AR116,0,IF(BL$43>=$AQ116,BL$44,0)) -> 1.07 | BM116: =IF(BM$43>$AR116,0,IF(BM$43>=$AQ116,BM$44,0)) -> 1.07 | BN116: =IF(BN$43>$AR116,0,IF(BN$43>=$AQ116,BN$44,0)) -> 1.14 | BO116: =IF(BO$43>$AR116,0,IF(BO$43>=$AQ116,BO$44,0)) -> 0.97 | BP116: =IF(BP$43>$AR116,0,IF(BP$43>=$AQ116,BP$44,0)) -> 1 | BQ116: =IF(BQ$43>$AR116,0,IF(BQ$43>=$AQ116,BQ$44,0)) -> 0.92 | BR116: =IF(BR$43>$AR116,0,IF(BR$43>=$AQ116,BR$44,0)) -> 0.89 | BS116: =IF(BS$43>$AR116,0,IF(BS$43>=$AQ116,BS$44,0)) -> 0.97 | BT116: =IF(BT$43>$AR116,0,IF(BT$43>=$AQ116,BT$44,0)) -> 0.8 | BU116: =IF(BU$43>$AR116,0,IF(BU$43>=$AQ116,BU$44,0)) -> 0.83 | BV116: =IF(BV$43>$AR116,0,IF(BV$43>=$AQ116,BV$44,0)) -> 0.89 | BW116: =IF(BW$43>$AR116,0,IF(BW$43>=$AQ116,BW$44,0)) -> 0.83 | BX116: 0.79 | BY116: 0.91 | BZ116: 0.87 | CA116: 0.84 | CB116: 0.93 | CC116: 0.79 | CD116: 0 | CE116: 0 | CF116: 0
A117: 72 | B117: PRC | C117: 4914 | D117: 2019/0149828-6 | E117: 0149828-52.2019.3.00.0000 | F117: STJ | G117: MS 19.825/DF | H117: 2018-06-20 | I117: 2019-02-08 | J117: 2019-05-24 | K117: União | L117: 26.994.558/0001-23 | M117: Brasilia/DF | N117: Comum | O117: 2019-07-01 | P117: 206069.35 | Q117: 1.159666673 | R117: 2.4567 | S117: 34.26 | T117: 260309.69 | U117: 65077.42 | V117: 0 | W117: 0 | X117: 0 | Y117: =TRUNC(AB117*R117/100,2) ->  | Z117: =TRUNC(AB117*$AS117/100,2) ->  | AA117: =TRUNC(Y117*$AS117/100,2) ->  | AB117: =TRUNC(#REF!*Q117,2) ->  | AC117: =T117+U117+V117+W117+X117 -> 325387.11 | AQ117: 2021-12-01 | AR117: 2024-12-01 | AS117: 34.26 | AT117: =IF(AT$43>$AR117,0,IF(AT$43>=$AQ117,AT$44,0)) -> 0.77 | AU117: =IF(AU$43>$AR117,0,IF(AU$43>=$AQ117,AU$44,0)) -> 0.73 | AV117: =IF(AV$43>$AR117,0,IF(AV$43>=$AQ117,AV$44,0)) -> 0.76 | AW117: =IF(AW$43>$AR117,0,IF(AW$43>=$AQ117,AW$44,0)) -> 0.93 | AX117: =IF(AX$43>$AR117,0,IF(AX$43>=$AQ117,AX$44,0)) -> 0.83 | AY117: =IF(AY$43>$AR117,0,IF(AY$43>=$AQ117,AY$44,0)) -> 1.03 | AZ117: =IF(AZ$43>$AR117,0,IF(AZ$43>=$AQ117,AZ$44,0)) -> 1.02 | BA117: =IF(BA$43>$AR117,0,IF(BA$43>=$AQ117,BA$44,0)) -> 1.03 | BB117: =IF(BB$43>$AR117,0,IF(BB$43>=$AQ117,BB$44,0)) -> 1.17 | BC117: =IF(BC$43>$AR117,0,IF(BC$43>=$AQ117,BC$44,0)) -> 1.07 | BD117: =IF(BD$43>$AR117,0,IF(BD$43>=$AQ117,BD$44,0)) -> 1.02 | BE117: =IF(BE$43>$AR117,0,IF(BE$43>=$AQ117,BE$44,0)) -> 1.02 | BF117: =IF(BF$43>$AR117,0,IF(BF$43>=$AQ117,BF$44,0)) -> 1.12 | BG117: =IF(BG$43>$AR117,0,IF(BG$43>=$AQ117,BG$44,0)) -> 1.12 | BH117: =IF(BH$43>$AR117,0,IF(BH$43>=$AQ117,BH$44,0)) -> 0.92 | BI117: =IF(BI$43>$AR117,0,IF(BI$43>=$AQ117,BI$44,0)) -> 1.17 | BJ117: =IF(BJ$43>$AR117,0,IF(BJ$43>=$AQ117,BJ$44,0)) -> 0.92 | BK117: =IF(BK$43>$AR117,0,IF(BK$43>=$AQ117,BK$44,0)) -> 1.12 | BL117: =IF(BL$43>$AR117,0,IF(BL$43>=$AQ117,BL$44,0)) -> 1.07 | BM117: =IF(BM$43>$AR117,0,IF(BM$43>=$AQ117,BM$44,0)) -> 1.07 | BN117: =IF(BN$43>$AR117,0,IF(BN$43>=$AQ117,BN$44,0)) -> 1.14 | BO117: =IF(BO$43>$AR117,0,IF(BO$43>=$AQ117,BO$44,0)) -> 0.97 | BP117: =IF(BP$43>$AR117,0,IF(BP$43>=$AQ117,BP$44,0)) -> 1 | BQ117: =IF(BQ$43>$AR117,0,IF(BQ$43>=$AQ117,BQ$44,0)) -> 0.92 | BR117: =IF(BR$43>$AR117,0,IF(BR$43>=$AQ117,BR$44,0)) -> 0.89 | BS117: =IF(BS$43>$AR117,0,IF(BS$43>=$AQ117,BS$44,0)) -> 0.97 | BT117: =IF(BT$43>$AR117,0,IF(BT$43>=$AQ117,BT$44,0)) -> 0.8 | BU117: =IF(BU$43>$AR117,0,IF(BU$43>=$AQ117,BU$44,0)) -> 0.83 | BV117: =IF(BV$43>$AR117,0,IF(BV$43>=$AQ117,BV$44,0)) -> 0.89 | BW117: =IF(BW$43>$AR117,0,IF(BW$43>=$AQ117,BW$44,0)) -> 0.83 | BX117: 0.79 | BY117: 0.91 | BZ117: 0.87 | CA117: 0.84 | CB117: 0.93 | CC117: 0.79 | CD117: 0 | CE117: 0 | CF117: 0
A118: 73 | B118: PRC | C118: 4916 | D118: 2019/0149839-9 | E118: 0149839-81.2019.3.00.0000 | F118: STJ | G118: MS 16.025/DF | H118: 2018-06-20 | I118: 2019-02-08 | J118: 2019-05-24 | K118: União | L118: 26.994.558/0001-23 | M118: Brasilia/DF | N118: Comum | O118: 2019-07-01 | P118: 222156.94 | Q118: 1.159666673 | R118: 2.4567 | S118: 34.26 | T118: 315710.73 | U118: 35078.97 | V118: 0 | W118: 0 | X118: 0 | Y118: =TRUNC(AB118*R118/100,2) ->  | Z118: =TRUNC(AB118*$AS118/100,2) ->  | AA118: =TRUNC(Y118*$AS118/100,2) ->  | AB118: =TRUNC(#REF!*Q118,2) ->  | AC118: =T118+U118+V118+W118+X118 -> 350789.7 | AQ118: 2021-12-01 | AR118: 2024-12-01 | AS118: 34.26 | AT118: =IF(AT$43>$AR118,0,IF(AT$43>=$AQ118,AT$44,0)) -> 0.77 | AU118: =IF(AU$43>$AR118,0,IF(AU$43>=$AQ118,AU$44,0)) -> 0.73 | AV118: =IF(AV$43>$AR118,0,IF(AV$43>=$AQ118,AV$44,0)) -> 0.76 | AW118: =IF(AW$43>$AR118,0,IF(AW$43>=$AQ118,AW$44,0)) -> 0.93 | AX118: =IF(AX$43>$AR118,0,IF(AX$43>=$AQ118,AX$44,0)) -> 0.83 | AY118: =IF(AY$43>$AR118,0,IF(AY$43>=$AQ118,AY$44,0)) -> 1.03 | AZ118: =IF(AZ$43>$AR118,0,IF(AZ$43>=$AQ118,AZ$44,0)) -> 1.02 | BA118: =IF(BA$43>$AR118,0,IF(BA$43>=$AQ118,BA$44,0)) -> 1.03 | BB118: =IF(BB$43>$AR118,0,IF(BB$43>=$AQ118,BB$44,0)) -> 1.17 | BC118: =IF(BC$43>$AR118,0,IF(BC$43>=$AQ118,BC$44,0)) -> 1.07 | BD118: =IF(BD$43>$AR118,0,IF(BD$43>=$AQ118,BD$44,0)) -> 1.02 | BE118: =IF(BE$43>$AR118,0,IF(BE$43>=$AQ118,BE$44,0)) -> 1.02 | BF118: =IF(BF$43>$AR118,0,IF(BF$43>=$AQ118,BF$44,0)) -> 1.12 | BG118: =IF(BG$43>$AR118,0,IF(BG$43>=$AQ118,BG$44,0)) -> 1.12 | BH118: =IF(BH$43>$AR118,0,IF(BH$43>=$AQ118,BH$44,0)) -> 0.92 | BI118: =IF(BI$43>$AR118,0,IF(BI$43>=$AQ118,BI$44,0)) -> 1.17 | BJ118: =IF(BJ$43>$AR118,0,IF(BJ$43>=$AQ118,BJ$44,0)) -> 0.92 | BK118: =IF(BK$43>$AR118,0,IF(BK$43>=$AQ118,BK$44,0)) -> 1.12 | BL118: =IF(BL$43>$AR118,0,IF(BL$43>=$AQ118,BL$44,0)) -> 1.07 | BM118: =IF(BM$43>$AR118,0,IF(BM$43>=$AQ118,BM$44,0)) -> 1.07 | BN118: =IF(BN$43>$AR118,0,IF(BN$43>=$AQ118,BN$44,0)) -> 1.14 | BO118: =IF(BO$43>$AR118,0,IF(BO$43>=$AQ118,BO$44,0)) -> 0.97 | BP118: =IF(BP$43>$AR118,0,IF(BP$43>=$AQ118,BP$44,0)) -> 1 | BQ118: =IF(BQ$43>$AR118,0,IF(BQ$43>=$AQ118,BQ$44,0)) -> 0.92 | BR118: =IF(BR$43>$AR118,0,IF(BR$43>=$AQ118,BR$44,0)) -> 0.89 | BS118: =IF(BS$43>$AR118,0,IF(BS$43>=$AQ118,BS$44,0)) -> 0.97 | BT118: =IF(BT$43>$AR118,0,IF(BT$43>=$AQ118,BT$44,0)) -> 0.8 | BU118: =IF(BU$43>$AR118,0,IF(BU$43>=$AQ118,BU$44,0)) -> 0.83 | BV118: =IF(BV$43>$AR118,0,IF(BV$43>=$AQ118,BV$44,0)) -> 0.89 | BW118: =IF(BW$43>$AR118,0,IF(BW$43>=$AQ118,BW$44,0)) -> 0.83 | BX118: 0.79 | BY118: 0.91 | BZ118: 0.87 | CA118: 0.84 | CB118: 0.93 | CC118: 0.79 | CD118: 0 | CE118: 0 | CF118: 0
A119: 74 | B119: PRC | C119: 4917 | D119: 2019/0149844-0 | E119: 0149844-06.2019.3.00.0000 | F119: STJ | G119: MS 15.697/DF | H119: 2018-08-15 | I119: 2019-02-08 | J119: 2019-05-24 | K119: União | L119: 26.994.558/0001-23 | M119: Brasilia/DF | N119: Comum | O119: 2019-07-01 | P119: 205980.41 | Q119: 1.159666673 | R119: 2.4567 | S119: 34.26 | T119: 292722.02 | U119: 32524.66 | V119: 0 | W119: 0 | X119: 0 | Y119: =TRUNC(AB119*R119/100,2) ->  | Z119: =TRUNC(AB119*$AS119/100,2) ->  | AA119: =TRUNC(Y119*$AS119/100,2) ->  | AB119: =TRUNC(#REF!*Q119,2) ->  | AC119: =T119+U119+V119+W119+X119 -> 325246.68 | AQ119: 2021-12-01 | AR119: 2024-12-01 | AS119: 34.26 | AT119: =IF(AT$43>$AR119,0,IF(AT$43>=$AQ119,AT$44,0)) -> 0.77 | AU119: =IF(AU$43>$AR119,0,IF(AU$43>=$AQ119,AU$44,0)) -> 0.73 | AV119: =IF(AV$43>$AR119,0,IF(AV$43>=$AQ119,AV$44,0)) -> 0.76 | AW119: =IF(AW$43>$AR119,0,IF(AW$43>=$AQ119,AW$44,0)) -> 0.93 | AX119: =IF(AX$43>$AR119,0,IF(AX$43>=$AQ119,AX$44,0)) -> 0.83 | AY119: =IF(AY$43>$AR119,0,IF(AY$43>=$AQ119,AY$44,0)) -> 1.03 | AZ119: =IF(AZ$43>$AR119,0,IF(AZ$43>=$AQ119,AZ$44,0)) -> 1.02 | BA119: =IF(BA$43>$AR119,0,IF(BA$43>=$AQ119,BA$44,0)) -> 1.03 | BB119: =IF(BB$43>$AR119,0,IF(BB$43>=$AQ119,BB$44,0)) -> 1.17 | BC119: =IF(BC$43>$AR119,0,IF(BC$43>=$AQ119,BC$44,0)) -> 1.07 | BD119: =IF(BD$43>$AR119,0,IF(BD$43>=$AQ119,BD$44,0)) -> 1.02 | BE119: =IF(BE$43>$AR119,0,IF(BE$43>=$AQ119,BE$44,0)) -> 1.02 | BF119: =IF(BF$43>$AR119,0,IF(BF$43>=$AQ119,BF$44,0)) -> 1.12 | BG119: =IF(BG$43>$AR119,0,IF(BG$43>=$AQ119,BG$44,0)) -> 1.12 | BH119: =IF(BH$43>$AR119,0,IF(BH$43>=$AQ119,BH$44,0)) -> 0.92 | BI119: =IF(BI$43>$AR119,0,IF(BI$43>=$AQ119,BI$44,0)) -> 1.17 | BJ119: =IF(BJ$43>$AR119,0,IF(BJ$43>=$AQ119,BJ$44,0)) -> 0.92 | BK119: =IF(BK$43>$AR119,0,IF(BK$43>=$AQ119,BK$44,0)) -> 1.12 | BL119: =IF(BL$43>$AR119,0,IF(BL$43>=$AQ119,BL$44,0)) -> 1.07 | BM119: =IF(BM$43>$AR119,0,IF(BM$43>=$AQ119,BM$44,0)) -> 1.07 | BN119: =IF(BN$43>$AR119,0,IF(BN$43>=$AQ119,BN$44,0)) -> 1.14 | BO119: =IF(BO$43>$AR119,0,IF(BO$43>=$AQ119,BO$44,0)) -> 0.97 | BP119: =IF(BP$43>$AR119,0,IF(BP$43>=$AQ119,BP$44,0)) -> 1 | BQ119: =IF(BQ$43>$AR119,0,IF(BQ$43>=$AQ119,BQ$44,0)) -> 0.92 | BR119: =IF(BR$43>$AR119,0,IF(BR$43>=$AQ119,BR$44,0)) -> 0.89 | BS119: =IF(BS$43>$AR119,0,IF(BS$43>=$AQ119,BS$44,0)) -> 0.97 | BT119: =IF(BT$43>$AR119,0,IF(BT$43>=$AQ119,BT$44,0)) -> 0.8 | BU119: =IF(BU$43>$AR119,0,IF(BU$43>=$AQ119,BU$44,0)) -> 0.83 | BV119: =IF(BV$43>$AR119,0,IF(BV$43>=$AQ119,BV$44,0)) -> 0.89 | BW119: =IF(BW$43>$AR119,0,IF(BW$43>=$AQ119,BW$44,0)) -> 0.83 | BX119: 0.79 | BY119: 0.91 | BZ119: 0.87 | CA119: 0.84 | CB119: 0.93 | CC119: 0.79 | CD119: 0 | CE119: 0 | CF119: 0
A120: 75 | B120: PRC | C120: 4918 | D120: 2019/0149849-0 | E120: 0149849-28.2019.3.00.0000 | F120: STJ | G120: MS 17.418/DF | H120: 2018-05-25 | I120: 2019-02-08 | J120: 2019-05-24 | K120: União | L120: 26.994.558/0001-23 | M120: Brasilia/DF | N120: Comum | O120: 2019-07-01 | P120: 217800 | Q120: 1.159666673 | R120: 2.4567 | S120: 34.26 | T120: 309519.01 | U120: 34391 | V120: 0 | W120: 0 | X120: 0 | Y120: =TRUNC(AB120*R120/100,2) ->  | Z120: =TRUNC(AB120*$AS120/100,2) ->  | AA120: =TRUNC(Y120*$AS120/100,2) ->  | AB120: =TRUNC(#REF!*Q120,2) ->  | AC120: =T120+U120+V120+W120+X120 -> 343910.01 | AQ120: 2021-12-01 | AR120: 2024-12-01 | AS120: 34.26 | AT120: =IF(AT$43>$AR120,0,IF(AT$43>=$AQ120,AT$44,0)) -> 0.77 | AU120: =IF(AU$43>$AR120,0,IF(AU$43>=$AQ120,AU$44,0)) -> 0.73 | AV120: =IF(AV$43>$AR120,0,IF(AV$43>=$AQ120,AV$44,0)) -> 0.76 | AW120: =IF(AW$43>$AR120,0,IF(AW$43>=$AQ120,AW$44,0)) -> 0.93 | AX120: =IF(AX$43>$AR120,0,IF(AX$43>=$AQ120,AX$44,0)) -> 0.83 | AY120: =IF(AY$43>$AR120,0,IF(AY$43>=$AQ120,AY$44,0)) -> 1.03 | AZ120: =IF(AZ$43>$AR120,0,IF(AZ$43>=$AQ120,AZ$44,0)) -> 1.02 | BA120: =IF(BA$43>$AR120,0,IF(BA$43>=$AQ120,BA$44,0)) -> 1.03 | BB120: =IF(BB$43>$AR120,0,IF(BB$43>=$AQ120,BB$44,0)) -> 1.17 | BC120: =IF(BC$43>$AR120,0,IF(BC$43>=$AQ120,BC$44,0)) -> 1.07 | BD120: =IF(BD$43>$AR120,0,IF(BD$43>=$AQ120,BD$44,0)) -> 1.02 | BE120: =IF(BE$43>$AR120,0,IF(BE$43>=$AQ120,BE$44,0)) -> 1.02 | BF120: =IF(BF$43>$AR120,0,IF(BF$43>=$AQ120,BF$44,0)) -> 1.12 | BG120: =IF(BG$43>$AR120,0,IF(BG$43>=$AQ120,BG$44,0)) -> 1.12 | BH120: =IF(BH$43>$AR120,0,IF(BH$43>=$AQ120,BH$44,0)) -> 0.92 | BI120: =IF(BI$43>$AR120,0,IF(BI$43>=$AQ120,BI$44,0)) -> 1.17 | BJ120: =IF(BJ$43>$AR120,0,IF(BJ$43>=$AQ120,BJ$44,0)) -> 0.92 | BK120: =IF(BK$43>$AR120,0,IF(BK$43>=$AQ120,BK$44,0)) -> 1.12 | BL120: =IF(BL$43>$AR120,0,IF(BL$43>=$AQ120,BL$44,0)) -> 1.07 | BM120: =IF(BM$43>$AR120,0,IF(BM$43>=$AQ120,BM$44,0)) -> 1.07 | BN120: =IF(BN$43>$AR120,0,IF(BN$43>=$AQ120,BN$44,0)) -> 1.14 | BO120: =IF(BO$43>$AR120,0,IF(BO$43>=$AQ120,BO$44,0)) -> 0.97 | BP120: =IF(BP$43>$AR120,0,IF(BP$43>=$AQ120,BP$44,0)) -> 1 | BQ120: =IF(BQ$43>$AR120,0,IF(BQ$43>=$AQ120,BQ$44,0)) -> 0.92 | BR120: =IF(BR$43>$AR120,0,IF(BR$43>=$AQ120,BR$44,0)) -> 0.89 | BS120: =IF(BS$43>$AR120,0,IF(BS$43>=$AQ120,BS$44,0)) -> 0.97 | BT120: =IF(BT$43>$AR120,0,IF(BT$43>=$AQ120,BT$44,0)) -> 0.8 | BU120: =IF(BU$43>$AR120,0,IF(BU$43>=$AQ120,BU$44,0)) -> 0.83 | BV120: =IF(BV$43>$AR120,0,IF(BV$43>=$AQ120,BV$44,0)) -> 0.89 | BW120: =IF(BW$43>$AR120,0,IF(BW$43>=$AQ120,BW$44,0)) -> 0.83 | BX120: 0.79 | BY120: 0.91 | BZ120: 0.87 | CA120: 0.84 | CB120: 0.93 | CC120: 0.79 | CD120: 0 | CE120: 0 | CF120: 0
A121: 76 | B121: PRC | C121: 4919 | D121: 2019/0149857-7 | E121: 0149857-05.2019.3.00.0000 | F121: STJ | G121: MS 23.430/DF | H121: 2017-08-25 | I121: 2019-05-13 | J121: 2019-05-24 | K121: União | L121: 26.994.558/0001-23 | M121: Brasilia/DF | N121: Comum | O121: 2019-07-01 | P121: 204112.71 | Q121: 1.159666673 | R121: 2.4567 | S121: 34.26 | T121: 257838.05 | U121: 32229.75 | V121: 32229.75 | W121: 0 | X121: 0 | Y121: =TRUNC(AB121*R121/100,2) ->  | Z121: =TRUNC(AB121*$AS121/100,2) ->  | AA121: =TRUNC(Y121*$AS121/100,2) ->  | AB121: =TRUNC(#REF!*Q121,2) ->  | AC121: =T121+U121+V121+W121+X121 -> 322297.55 | AQ121: 2021-12-01 | AR121: 2024-12-01 | AS121: 34.26 | AT121: =IF(AT$43>$AR121,0,IF(AT$43>=$AQ121,AT$44,0)) -> 0.77 | AU121: =IF(AU$43>$AR121,0,IF(AU$43>=$AQ121,AU$44,0)) -> 0.73 | AV121: =IF(AV$43>$AR121,0,IF(AV$43>=$AQ121,AV$44,0)) -> 0.76 | AW121: =IF(AW$43>$AR121,0,IF(AW$43>=$AQ121,AW$44,0)) -> 0.93 | AX121: =IF(AX$43>$AR121,0,IF(AX$43>=$AQ121,AX$44,0)) -> 0.83 | AY121: =IF(AY$43>$AR121,0,IF(AY$43>=$AQ121,AY$44,0)) -> 1.03 | AZ121: =IF(AZ$43>$AR121,0,IF(AZ$43>=$AQ121,AZ$44,0)) -> 1.02 | BA121: =IF(BA$43>$AR121,0,IF(BA$43>=$AQ121,BA$44,0)) -> 1.03 | BB121: =IF(BB$43>$AR121,0,IF(BB$43>=$AQ121,BB$44,0)) -> 1.17 | BC121: =IF(BC$43>$AR121,0,IF(BC$43>=$AQ121,BC$44,0)) -> 1.07 | BD121: =IF(BD$43>$AR121,0,IF(BD$43>=$AQ121,BD$44,0)) -> 1.02 | BE121: =IF(BE$43>$AR121,0,IF(BE$43>=$AQ121,BE$44,0)) -> 1.02 | BF121: =IF(BF$43>$AR121,0,IF(BF$43>=$AQ121,BF$44,0)) -> 1.12 | BG121: =IF(BG$43>$AR121,0,IF(BG$43>=$AQ121,BG$44,0)) -> 1.12 | BH121: =IF(BH$43>$AR121,0,IF(BH$43>=$AQ121,BH$44,0)) -> 0.92 | BI121: =IF(BI$43>$AR121,0,IF(BI$43>=$AQ121,BI$44,0)) -> 1.17 | BJ121: =IF(BJ$43>$AR121,0,IF(BJ$43>=$AQ121,BJ$44,0)) -> 0.92 | BK121: =IF(BK$43>$AR121,0,IF(BK$43>=$AQ121,BK$44,0)) -> 1.12 | BL121: =IF(BL$43>$AR121,0,IF(BL$43>=$AQ121,BL$44,0)) -> 1.07 | BM121: =IF(BM$43>$AR121,0,IF(BM$43>=$AQ121,BM$44,0)) -> 1.07 | BN121: =IF(BN$43>$AR121,0,IF(BN$43>=$AQ121,BN$44,0)) -> 1.14 | BO121: =IF(BO$43>$AR121,0,IF(BO$43>=$AQ121,BO$44,0)) -> 0.97 | BP121: =IF(BP$43>$AR121,0,IF(BP$43>=$AQ121,BP$44,0)) -> 1 | BQ121: =IF(BQ$43>$AR121,0,IF(BQ$43>=$AQ121,BQ$44,0)) -> 0.92 | BR121: =IF(BR$43>$AR121,0,IF(BR$43>=$AQ121,BR$44,0)) -> 0.89 | BS121: =IF(BS$43>$AR121,0,IF(BS$43>=$AQ121,BS$44,0)) -> 0.97 | BT121: =IF(BT$43>$AR121,0,IF(BT$43>=$AQ121,BT$44,0)) -> 0.8 | BU121: =IF(BU$43>$AR121,0,IF(BU$43>=$AQ121,BU$44,0)) -> 0.83 | BV121: =IF(BV$43>$AR121,0,IF(BV$43>=$AQ121,BV$44,0)) -> 0.89 | BW121: =IF(BW$43>$AR121,0,IF(BW$43>=$AQ121,BW$44,0)) -> 0.83 | BX121: 0.79 | BY121: 0.91 | BZ121: 0.87 | CA121: 0.84 | CB121: 0.93 | CC121: 0.79 | CD121: 0 | CE121: 0 | CF121: 0
A122: 77 | B122: PRC | C122: 4920 | D122: 2019/0153648-4 | E122: 0153648-79.2019.3.00.0000 | F122: STJ | G122: MS 13.423/DF | H122: 2015-08-17 | I122: 2019-05-17 | J122: 2019-05-28 | K122: União | L122: 26.994.558/0001-23 | M122: Brasilia/DF | N122: Comum | O122: 2019-07-01 | P122: 501753.75 | Q122: 1.159666673 | R122: 2.4567 | S122: 34.26 | T122: 792278 | U122: 0 | V122: 0 | W122: 0 | X122: 0 | Y122: =TRUNC(AB122*R122/100,2) ->  | Z122: =TRUNC(AB122*$AS122/100,2) ->  | AA122: =TRUNC(Y122*$AS122/100,2) ->  | AB122: =TRUNC(#REF!*Q122,2) ->  | AC122: =T122+U122+V122+W122+X122 -> 792278 | AQ122: 2021-12-01 | AR122: 2024-12-01 | AS122: 34.26 | AT122: =IF(AT$43>$AR122,0,IF(AT$43>=$AQ122,AT$44,0)) -> 0.77 | AU122: =IF(AU$43>$AR122,0,IF(AU$43>=$AQ122,AU$44,0)) -> 0.73 | AV122: =IF(AV$43>$AR122,0,IF(AV$43>=$AQ122,AV$44,0)) -> 0.76 | AW122: =IF(AW$43>$AR122,0,IF(AW$43>=$AQ122,AW$44,0)) -> 0.93 | AX122: =IF(AX$43>$AR122,0,IF(AX$43>=$AQ122,AX$44,0)) -> 0.83 | AY122: =IF(AY$43>$AR122,0,IF(AY$43>=$AQ122,AY$44,0)) -> 1.03 | AZ122: =IF(AZ$43>$AR122,0,IF(AZ$43>=$AQ122,AZ$44,0)) -> 1.02 | BA122: =IF(BA$43>$AR122,0,IF(BA$43>=$AQ122,BA$44,0)) -> 1.03 | BB122: =IF(BB$43>$AR122,0,IF(BB$43>=$AQ122,BB$44,0)) -> 1.17 | BC122: =IF(BC$43>$AR122,0,IF(BC$43>=$AQ122,BC$44,0)) -> 1.07 | BD122: =IF(BD$43>$AR122,0,IF(BD$43>=$AQ122,BD$44,0)) -> 1.02 | BE122: =IF(BE$43>$AR122,0,IF(BE$43>=$AQ122,BE$44,0)) -> 1.02 | BF122: =IF(BF$43>$AR122,0,IF(BF$43>=$AQ122,BF$44,0)) -> 1.12 | BG122: =IF(BG$43>$AR122,0,IF(BG$43>=$AQ122,BG$44,0)) -> 1.12 | BH122: =IF(BH$43>$AR122,0,IF(BH$43>=$AQ122,BH$44,0)) -> 0.92 | BI122: =IF(BI$43>$AR122,0,IF(BI$43>=$AQ122,BI$44,0)) -> 1.17 | BJ122: =IF(BJ$43>$AR122,0,IF(BJ$43>=$AQ122,BJ$44,0)) -> 0.92 | BK122: =IF(BK$43>$AR122,0,IF(BK$43>=$AQ122,BK$44,0)) -> 1.12 | BL122: =IF(BL$43>$AR122,0,IF(BL$43>=$AQ122,BL$44,0)) -> 1.07 | BM122: =IF(BM$43>$AR122,0,IF(BM$43>=$AQ122,BM$44,0)) -> 1.07 | BN122: =IF(BN$43>$AR122,0,IF(BN$43>=$AQ122,BN$44,0)) -> 1.14 | BO122: =IF(BO$43>$AR122,0,IF(BO$43>=$AQ122,BO$44,0)) -> 0.97 | BP122: =IF(BP$43>$AR122,0,IF(BP$43>=$AQ122,BP$44,0)) -> 1 | BQ122: =IF(BQ$43>$AR122,0,IF(BQ$43>=$AQ122,BQ$44,0)) -> 0.92 | BR122: =IF(BR$43>$AR122,0,IF(BR$43>=$AQ122,BR$44,0)) -> 0.89 | BS122: =IF(BS$43>$AR122,0,IF(BS$43>=$AQ122,BS$44,0)) -> 0.97 | BT122: =IF(BT$43>$AR122,0,IF(BT$43>=$AQ122,BT$44,0)) -> 0.8 | BU122: =IF(BU$43>$AR122,0,IF(BU$43>=$AQ122,BU$44,0)) -> 0.83 | BV122: =IF(BV$43>$AR122,0,IF(BV$43>=$AQ122,BV$44,0)) -> 0.89 | BW122: =IF(BW$43>$AR122,0,IF(BW$43>=$AQ122,BW$44,0)) -> 0.83 | BX122: 0.79 | BY122: 0.91 | BZ122: 0.87 | CA122: 0.84 | CB122: 0.93 | CC122: 0.79 | CD122: 0 | CE122: 0 | CF122: 0
A123: 78 | B123: PRC | C123: 4948 | D123: 2019/0162114-2 | E123: 0162114-62.2019.3.00.0000 | F123: STJ | G123: MS 15.248/DF | H123: 2018-08-15 | I123: 2019-04-05 | J123: 2019-06-04 | K123: União | L123: 26.994.558/0001-23 | M123: Brasilia/DF | N123: Comum | O123: 2019-07-01 | P123: 233212.5 | Q123: 1.159666673 | R123: 2.4567 | S123: 34.26 | T123: 313009.65 | U123: 36824.66 | V123: 18412.33 | W123: 0 | X123: 0 | Y123: =TRUNC(AB123*R123/100,2) ->  | Z123: =TRUNC(AB123*$AS123/100,2) ->  | AA123: =TRUNC(Y123*$AS123/100,2) ->  | AB123: =TRUNC(#REF!*Q123,2) ->  | AC123: =T123+U123+V123+W123+X123 -> 368246.64 | AQ123: 2021-12-01 | AR123: 2024-12-01 | AS123: 34.26 | AT123: =IF(AT$43>$AR123,0,IF(AT$43>=$AQ123,AT$44,0)) -> 0.77 | AU123: =IF(AU$43>$AR123,0,IF(AU$43>=$AQ123,AU$44,0)) -> 0.73 | AV123: =IF(AV$43>$AR123,0,IF(AV$43>=$AQ123,AV$44,0)) -> 0.76 | AW123: =IF(AW$43>$AR123,0,IF(AW$43>=$AQ123,AW$44,0)) -> 0.93 | AX123: =IF(AX$43>$AR123,0,IF(AX$43>=$AQ123,AX$44,0)) -> 0.83 | AY123: =IF(AY$43>$AR123,0,IF(AY$43>=$AQ123,AY$44,0)) -> 1.03 | AZ123: =IF(AZ$43>$AR123,0,IF(AZ$43>=$AQ123,AZ$44,0)) -> 1.02 | BA123: =IF(BA$43>$AR123,0,IF(BA$43>=$AQ123,BA$44,0)) -> 1.03 | BB123: =IF(BB$43>$AR123,0,IF(BB$43>=$AQ123,BB$44,0)) -> 1.17 | BC123: =IF(BC$43>$AR123,0,IF(BC$43>=$AQ123,BC$44,0)) -> 1.07 | BD123: =IF(BD$43>$AR123,0,IF(BD$43>=$AQ123,BD$44,0)) -> 1.02 | BE123: =IF(BE$43>$AR123,0,IF(BE$43>=$AQ123,BE$44,0)) -> 1.02 | BF123: =IF(BF$43>$AR123,0,IF(BF$43>=$AQ123,BF$44,0)) -> 1.12 | BG123: =IF(BG$43>$AR123,0,IF(BG$43>=$AQ123,BG$44,0)) -> 1.12 | BH123: =IF(BH$43>$AR123,0,IF(BH$43>=$AQ123,BH$44,0)) -> 0.92 | BI123: =IF(BI$43>$AR123,0,IF(BI$43>=$AQ123,BI$44,0)) -> 1.17 | BJ123: =IF(BJ$43>$AR123,0,IF(BJ$43>=$AQ123,BJ$44,0)) -> 0.92 | BK123: =IF(BK$43>$AR123,0,IF(BK$43>=$AQ123,BK$44,0)) -> 1.12 | BL123: =IF(BL$43>$AR123,0,IF(BL$43>=$AQ123,BL$44,0)) -> 1.07 | BM123: =IF(BM$43>$AR123,0,IF(BM$43>=$AQ123,BM$44,0)) -> 1.07 | BN123: =IF(BN$43>$AR123,0,IF(BN$43>=$AQ123,BN$44,0)) -> 1.14 | BO123: =IF(BO$43>$AR123,0,IF(BO$43>=$AQ123,BO$44,0)) -> 0.97 | BP123: =IF(BP$43>$AR123,0,IF(BP$43>=$AQ123,BP$44,0)) -> 1 | BQ123: =IF(BQ$43>$AR123,0,IF(BQ$43>=$AQ123,BQ$44,0)) -> 0.92 | BR123: =IF(BR$43>$AR123,0,IF(BR$43>=$AQ123,BR$44,0)) -> 0.89 | BS123: =IF(BS$43>$AR123,0,IF(BS$43>=$AQ123,BS$44,0)) -> 0.97 | BT123: =IF(BT$43>$AR123,0,IF(BT$43>=$AQ123,BT$44,0)) -> 0.8 | BU123: =IF(BU$43>$AR123,0,IF(BU$43>=$AQ123,BU$44,0)) -> 0.83 | BV123: =IF(BV$43>$AR123,0,IF(BV$43>=$AQ123,BV$44,0)) -> 0.89 | BW123: =IF(BW$43>$AR123,0,IF(BW$43>=$AQ123,BW$44,0)) -> 0.83 | BX123: 0.79 | BY123: 0.91 | BZ123: 0.87 | CA123: 0.84 | CB123: 0.93 | CC123: 0.79 | CD123: 0 | CE123: 0 | CF123: 0
A124: 79 | B124: PRC | C124: 4949 | D124: 2019/0162125-5 | E124: 0162125-91.2019.3.00.0000 | F124: STJ | G124: MS 16.606/DF | H124: 2018-08-15 | I124: 2019-04-05 | J124: 2019-06-04 | K124: União | L124: 26.994.558/0001-23 | M124: Brasilia/DF | N124: Comum | O124: 2019-07-01 | P124: 225579.45 | Q124: 1.159666673 | R124: 2.4567 | S124: 34.26 | T124: 302764.83 | U124: 35619.39 | V124: 17809.69 | W124: 0 | X124: 0 | Y124: =TRUNC(AB124*R124/100,2) ->  | Z124: =TRUNC(AB124*$AS124/100,2) ->  | AA124: =TRUNC(Y124*$AS124/100,2) ->  | AB124: =TRUNC(#REF!*Q124,2) ->  | AC124: =T124+U124+V124+W124+X124 -> 356193.91 | AQ124: 2021-12-01 | AR124: 2024-12-01 | AS124: 34.26 | AT124: =IF(AT$43>$AR124,0,IF(AT$43>=$AQ124,AT$44,0)) -> 0.77 | AU124: =IF(AU$43>$AR124,0,IF(AU$43>=$AQ124,AU$44,0)) -> 0.73 | AV124: =IF(AV$43>$AR124,0,IF(AV$43>=$AQ124,AV$44,0)) -> 0.76 | AW124: =IF(AW$43>$AR124,0,IF(AW$43>=$AQ124,AW$44,0)) -> 0.93 | AX124: =IF(AX$43>$AR124,0,IF(AX$43>=$AQ124,AX$44,0)) -> 0.83 | AY124: =IF(AY$43>$AR124,0,IF(AY$43>=$AQ124,AY$44,0)) -> 1.03 | AZ124: =IF(AZ$43>$AR124,0,IF(AZ$43>=$AQ124,AZ$44,0)) -> 1.02 | BA124: =IF(BA$43>$AR124,0,IF(BA$43>=$AQ124,BA$44,0)) -> 1.03 | BB124: =IF(BB$43>$AR124,0,IF(BB$43>=$AQ124,BB$44,0)) -> 1.17 | BC124: =IF(BC$43>$AR124,0,IF(BC$43>=$AQ124,BC$44,0)) -> 1.07 | BD124: =IF(BD$43>$AR124,0,IF(BD$43>=$AQ124,BD$44,0)) -> 1.02 | BE124: =IF(BE$43>$AR124,0,IF(BE$43>=$AQ124,BE$44,0)) -> 1.02 | BF124: =IF(BF$43>$AR124,0,IF(BF$43>=$AQ124,BF$44,0)) -> 1.12 | BG124: =IF(BG$43>$AR124,0,IF(BG$43>=$AQ124,BG$44,0)) -> 1.12 | BH124: =IF(BH$43>$AR124,0,IF(BH$43>=$AQ124,BH$44,0)) -> 0.92 | BI124: =IF(BI$43>$AR124,0,IF(BI$43>=$AQ124,BI$44,0)) -> 1.17 | BJ124: =IF(BJ$43>$AR124,0,IF(BJ$43>=$AQ124,BJ$44,0)) -> 0.92 | BK124: =IF(BK$43>$AR124,0,IF(BK$43>=$AQ124,BK$44,0)) -> 1.12 | BL124: =IF(BL$43>$AR124,0,IF(BL$43>=$AQ124,BL$44,0)) -> 1.07 | BM124: =IF(BM$43>$AR124,0,IF(BM$43>=$AQ124,BM$44,0)) -> 1.07 | BN124: =IF(BN$43>$AR124,0,IF(BN$43>=$AQ124,BN$44,0)) -> 1.14 | BO124: =IF(BO$43>$AR124,0,IF(BO$43>=$AQ124,BO$44,0)) -> 0.97 | BP124: =IF(BP$43>$AR124,0,IF(BP$43>=$AQ124,BP$44,0)) -> 1 | BQ124: =IF(BQ$43>$AR124,0,IF(BQ$43>=$AQ124,BQ$44,0)) -> 0.92 | BR124: 0.89 | BS124: 0.97 | BT124: 0.8 | BU124: 0.83 | BV124: 0.89 | BW124: 0.83 | BX124: 0.79 | BY124: 0.91 | BZ124: 0.87 | CA124: 0.84 | CB124: 0.93 | CC124: 0.79 | CD124: 0 | CE124: 0 | CF124: 0
A125: 80 | B125: PRC | C125: 4950 | D125: 2019/0162129-2 | E125: 0162129-31.2019.3.00.0000 | F125: STJ | G125: MS 16.711/DF | H125: 2018-05-10 | I125: 2019-04-09 | J125: 2019-06-04 | K125: União | L125: 26.994.558/0001-23 | M125: Brasilia/DF | N125: Comum | O125: 2019-07-01 | P125: 225579.45 | Q125: 1.159666673 | R125: 2.4567 | S125: 34.26 | T125: 249335.74 | U125: 106858.17 | V125: 0 | W125: 0 | X125: 0 | Y125: =TRUNC(AB125*R125/100,2) ->  | Z125: =TRUNC(AB125*$AS125/100,2) ->  | AA125: =TRUNC(Y125*$AS125/100,2) ->  | AB125: =TRUNC(#REF!*Q125,2) ->  | AC125: =T125+U125+V125+W125+X125 -> 356193.91 | AQ125: 2021-12-01 | AR125: 2024-12-01 | AS125: 34.26 | AT125: =IF(AT$43>$AR125,0,IF(AT$43>=$AQ125,AT$44,0)) -> 0.77 | AU125: =IF(AU$43>$AR125,0,IF(AU$43>=$AQ125,AU$44,0)) -> 0.73 | AV125: =IF(AV$43>$AR125,0,IF(AV$43>=$AQ125,AV$44,0)) -> 0.76 | AW125: =IF(AW$43>$AR125,0,IF(AW$43>=$AQ125,AW$44,0)) -> 0.93 | AX125: =IF(AX$43>$AR125,0,IF(AX$43>=$AQ125,AX$44,0)) -> 0.83 | AY125: =IF(AY$43>$AR125,0,IF(AY$43>=$AQ125,AY$44,0)) -> 1.03 | AZ125: =IF(AZ$43>$AR125,0,IF(AZ$43>=$AQ125,AZ$44,0)) -> 1.02 | BA125: =IF(BA$43>$AR125,0,IF(BA$43>=$AQ125,BA$44,0)) -> 1.03 | BB125: =IF(BB$43>$AR125,0,IF(BB$43>=$AQ125,BB$44,0)) -> 1.17 | BC125: =IF(BC$43>$AR125,0,IF(BC$43>=$AQ125,BC$44,0)) -> 1.07 | BD125: =IF(BD$43>$AR125,0,IF(BD$43>=$AQ125,BD$44,0)) -> 1.02 | BE125: =IF(BE$43>$AR125,0,IF(BE$43>=$AQ125,BE$44,0)) -> 1.02 | BF125: =IF(BF$43>$AR125,0,IF(BF$43>=$AQ125,BF$44,0)) -> 1.12 | BG125: =IF(BG$43>$AR125,0,IF(BG$43>=$AQ125,BG$44,0)) -> 1.12 | BH125: =IF(BH$43>$AR125,0,IF(BH$43>=$AQ125,BH$44,0)) -> 0.92 | BI125: =IF(BI$43>$AR125,0,IF(BI$43>=$AQ125,BI$44,0)) -> 1.17 | BJ125: =IF(BJ$43>$AR125,0,IF(BJ$43>=$AQ125,BJ$44,0)) -> 0.92 | BK125: =IF(BK$43>$AR125,0,IF(BK$43>=$AQ125,BK$44,0)) -> 1.12 | BL125: =IF(BL$43>$AR125,0,IF(BL$43>=$AQ125,BL$44,0)) -> 1.07 | BM125: =IF(BM$43>$AR125,0,IF(BM$43>=$AQ125,BM$44,0)) -> 1.07 | BN125: =IF(BN$43>$AR125,0,IF(BN$43>=$AQ125,BN$44,0)) -> 1.14 | BO125: =IF(BO$43>$AR125,0,IF(BO$43>=$AQ125,BO$44,0)) -> 0.97 | BP125: =IF(BP$43>$AR125,0,IF(BP$43>=$AQ125,BP$44,0)) -> 1 | BQ125: 0.92 | BR125: 0.89 | BS125: 0.97 | BT125: 0.8 | BU125: 0.83 | BV125: 0.89 | BW125: 0.83 | BX125: 0.79 | BY125: 0.91 | BZ125: 0.87 | CA125: 0.84 | CB125: 0.93 | CC125: 0.79 | CD125: 0 | CE125: 0 | CF125: 0
A126: 81 | B126: PRC | C126: 4951 | D126: 2019/0162134-4 | E126: 0162134-53.2019.3.00.0000 | F126: STJ | G126: MS 15.391/DF | H126: 2018-08-15 | I126: 2019-04-22 | J126: 2019-06-04 | K126: UNIÃO | L126: 26.994.558/0001-23 | M126: Brasilia/DF | N126: Comum | O126: 2019-07-01 | P126: 232875 | Q126: 1.159666673 | R126: 2.4567 | S126: 34.26 | T126: 312556.65 | U126: 36771.37 | V126: 18385.68 | W126: 0 | X126: 0 | Y126: =TRUNC(AB126*R126/100,2) ->  | Z126: =TRUNC(AB126*$AS126/100,2) ->  | AA126: =TRUNC(Y126*$AS126/100,2) ->  | AB126: =TRUNC(#REF!*Q126,2) ->  | AC126: =T126+U126+V126+W126+X126 -> 367713.7 | AQ126: 2021-12-01 | AR126: 2024-12-01 | AS126: 34.26 | AT126: =IF(AT$43>$AR126,0,IF(AT$43>=$AQ126,AT$44,0)) -> 0.77 | AU126: =IF(AU$43>$AR126,0,IF(AU$43>=$AQ126,AU$44,0)) -> 0.73 | AV126: =IF(AV$43>$AR126,0,IF(AV$43>=$AQ126,AV$44,0)) -> 0.76 | AW126: =IF(AW$43>$AR126,0,IF(AW$43>=$AQ126,AW$44,0)) -> 0.93 | AX126: =IF(AX$43>$AR126,0,IF(AX$43>=$AQ126,AX$44,0)) -> 0.83 | AY126: =IF(AY$43>$AR126,0,IF(AY$43>=$AQ126,AY$44,0)) -> 1.03 | AZ126: =IF(AZ$43>$AR126,0,IF(AZ$43>=$AQ126,AZ$44,0)) -> 1.02 | BA126: =IF(BA$43>$AR126,0,IF(BA$43>=$AQ126,BA$44,0)) -> 1.03 | BB126: =IF(BB$43>$AR126,0,IF(BB$43>=$AQ126,BB$44,0)) -> 1.17 | BC126: =IF(BC$43>$AR126,0,IF(BC$43>=$AQ126,BC$44,0)) -> 1.07 | BD126: =IF(BD$43>$AR126,0,IF(BD$43>=$AQ126,BD$44,0)) -> 1.02 | BE126: =IF(BE$43>$AR126,0,IF(BE$43>=$AQ126,BE$44,0)) -> 1.02 | BF126: =IF(BF$43>$AR126,0,IF(BF$43>=$AQ126,BF$44,0)) -> 1.12 | BG126: =IF(BG$43>$AR126,0,IF(BG$43>=$AQ126,BG$44,0)) -> 1.12 | BH126: =IF(BH$43>$AR126,0,IF(BH$43>=$AQ126,BH$44,0)) -> 0.92 | BI126: =IF(BI$43>$AR126,0,IF(BI$43>=$AQ126,BI$44,0)) -> 1.17 | BJ126: =IF(BJ$43>$AR126,0,IF(BJ$43>=$AQ126,BJ$44,0)) -> 0.92 | BK126: =IF(BK$43>$AR126,0,IF(BK$43>=$AQ126,BK$44,0)) -> 1.12 | BL126: =IF(BL$43>$AR126,0,IF(BL$43>=$AQ126,BL$44,0)) -> 1.07 | BM126: =IF(BM$43>$AR126,0,IF(BM$43>=$AQ126,BM$44,0)) -> 1.07 | BN126: =IF(BN$43>$AR126,0,IF(BN$43>=$AQ126,BN$44,0)) -> 1.14 | BO126: =IF(BO$43>$AR126,0,IF(BO$43>=$AQ126,BO$44,0)) -> 0.97 | BP126: =IF(BP$43>$AR126,0,IF(BP$43>=$AQ126,BP$44,0)) -> 1 | BQ126: 0.92 | BR126: 0.89 | BS126: 0.97 | BT126: 0.8 | BU126: 0.83 | BV126: 0.89 | BW126: 0.83 | BX126: 0.79 | BY126: 0.91 | BZ126: 0.87 | CA126: 0.84 | CB126: 0.93 | CC126: 0.79 | CD126: 0 | CE126: 0 | CF126: 0
A127: 82 | B127: PRC | C127: 4952 | D127: 2019/0162145-7 | E127: 0162145-82.2019.3.00.0000 | F127: STJ | G127: MS 15.229/DF | H127: 2018-08-15 | I127: 2019-05-13 | J127: 2019-06-04 | K127: UNIÃO | L127: 26.994.558/0001-23 | M127: Brasilia/DF | N127: Comum | O127: 2019-07-01 | P127: 200694.4 | Q127: 1.159666673 | R127: 2.4567 | S127: 34.26 | T127: 228167.98 | U127: 88731.99 | V127: 0 | W127: 0 | X127: 0 | Y127: =TRUNC(AB127*R127/100,2) ->  | Z127: =TRUNC(AB127*$AS127/100,2) ->  | AA127: =TRUNC(Y127*$AS127/100,2) ->  | AB127: =TRUNC(#REF!*Q127,2) ->  | AC127: =T127+U127+V127+W127+X127 -> 316899.97 | AQ127: 2021-12-01 | AR127: 2024-12-01 | AS127: 34.26 | AT127: =IF(AT$43>$AR127,0,IF(AT$43>=$AQ127,AT$44,0)) -> 0.77 | AU127: =IF(AU$43>$AR127,0,IF(AU$43>=$AQ127,AU$44,0)) -> 0.73 | AV127: =IF(AV$43>$AR127,0,IF(AV$43>=$AQ127,AV$44,0)) -> 0.76 | AW127: =IF(AW$43>$AR127,0,IF(AW$43>=$AQ127,AW$44,0)) -> 0.93 | AX127: =IF(AX$43>$AR127,0,IF(AX$43>=$AQ127,AX$44,0)) -> 0.83 | AY127: =IF(AY$43>$AR127,0,IF(AY$43>=$AQ127,AY$44,0)) -> 1.03 | AZ127: =IF(AZ$43>$AR127,0,IF(AZ$43>=$AQ127,AZ$44,0)) -> 1.02 | BA127: =IF(BA$43>$AR127,0,IF(BA$43>=$AQ127,BA$44,0)) -> 1.03 | BB127: =IF(BB$43>$AR127,0,IF(BB$43>=$AQ127,BB$44,0)) -> 1.17 | BC127: =IF(BC$43>$AR127,0,IF(BC$43>=$AQ127,BC$44,0)) -> 1.07 | BD127: =IF(BD$43>$AR127,0,IF(BD$43>=$AQ127,BD$44,0)) -> 1.02 | BE127: =IF(BE$43>$AR127,0,IF(BE$43>=$AQ127,BE$44,0)) -> 1.02 | BF127: =IF(BF$43>$AR127,0,IF(BF$43>=$AQ127,BF$44,0)) -> 1.12 | BG127: =IF(BG$43>$AR127,0,IF(BG$43>=$AQ127,BG$44,0)) -> 1.12 | BH127: =IF(BH$43>$AR127,0,IF(BH$43>=$AQ127,BH$44,0)) -> 0.92 | BI127: 1.17 | BJ127: =IF(BJ$43>$AR127,0,IF(BJ$43>=$AQ127,BJ$44,0)) -> 0.92 | BK127: =IF(BK$43>$AR127,0,IF(BK$43>=$AQ127,BK$44,0)) -> 1.12 | BL127: =IF(BL$43>$AR127,0,IF(BL$43>=$AQ127,BL$44,0)) -> 1.07 | BM127: =IF(BM$43>$AR127,0,IF(BM$43>=$AQ127,BM$44,0)) -> 1.07 | BN127: =IF(BN$43>$AR127,0,IF(BN$43>=$AQ127,BN$44,0)) -> 1.14 | BO127: =IF(BO$43>$AR127,0,IF(BO$43>=$AQ127,BO$44,0)) -> 0.97 | BP127: =IF(BP$43>$AR127,0,IF(BP$43>=$AQ127,BP$44,0)) -> 1 | BQ127: 0.92 | BR127: 0.89 | BS127: 0.97 | BT127: 0.8 | BU127: 0.83 | BV127: 0.89 | BW127: 0.83 | BX127: 0.79 | BY127: 0.91 | BZ127: 0.87 | CA127: 0.84 | CB127: 0.93 | CC127: 0.79 | CD127: 0 | CE127: 0 | CF127: 0
A128: 83 | B128: PRC | C128: 4954 | D128: 2019/0162168-4 | E128: 0162168-28.2019.3.00.0000 | F128: STJ | G128: MS 15.283/DF | H128: 2018-08-15 | I128: 2019-05-13 | J128: 2019-06-04 | K128: União | L128: 26.994.558/0001-23 | M128: Brasilia/DF | N128: Comum | O128: 2019-07-01 | P128: 237375 | Q128: 1.159666673 | R128: 2.4567 | S128: 34.26 | T128: 299855.45 | U128: 37481.92 | V128: 37481.92 | W128: 0 | X128: 0 | Y128: =TRUNC(AB128*R128/100,2) ->  | Z128: =TRUNC(AB128*$AS128/100,2) ->  | AA128: =TRUNC(Y128*$AS128/100,2) ->  | AB128: =TRUNC(#REF!*Q128,2) ->  | AC128: =T128+U128+V128+W128+X128 -> 374819.29 | AQ128: 2021-12-01 | AR128: 2024-12-01 | AS128: 34.26 | AT128: =IF(AT$43>$AR128,0,IF(AT$43>=$AQ128,AT$44,0)) -> 0.77 | AU128: =IF(AU$43>$AR128,0,IF(AU$43>=$AQ128,AU$44,0)) -> 0.73 | AV128: =IF(AV$43>$AR128,0,IF(AV$43>=$AQ128,AV$44,0)) -> 0.76 | AW128: =IF(AW$43>$AR128,0,IF(AW$43>=$AQ128,AW$44,0)) -> 0.93 | AX128: =IF(AX$43>$AR128,0,IF(AX$43>=$AQ128,AX$44,0)) -> 0.83 | AY128: =IF(AY$43>$AR128,0,IF(AY$43>=$AQ128,AY$44,0)) -> 1.03 | AZ128: =IF(AZ$43>$AR128,0,IF(AZ$43>=$AQ128,AZ$44,0)) -> 1.02 | BA128: =IF(BA$43>$AR128,0,IF(BA$43>=$AQ128,BA$44,0)) -> 1.03 | BB128: =IF(BB$43>$AR128,0,IF(BB$43>=$AQ128,BB$44,0)) -> 1.17 | BC128: =IF(BC$43>$AR128,0,IF(BC$43>=$AQ128,BC$44,0)) -> 1.07 | BD128: =IF(BD$43>$AR128,0,IF(BD$43>=$AQ128,BD$44,0)) -> 1.02 | BE128: =IF(BE$43>$AR128,0,IF(BE$43>=$AQ128,BE$44,0)) -> 1.02 | BF128: =IF(BF$43>$AR128,0,IF(BF$43>=$AQ128,BF$44,0)) -> 1.12 | BG128: =IF(BG$43>$AR128,0,IF(BG$43>=$AQ128,BG$44,0)) -> 1.12 | BH128: =IF(BH$43>$AR128,0,IF(BH$43>=$AQ128,BH$44,0)) -> 0.92 | BI128: 1.17 | BJ128: =IF(BJ$43>$AR128,0,IF(BJ$43>=$AQ128,BJ$44,0)) -> 0.92 | BK128: =IF(BK$43>$AR128,0,IF(BK$43>=$AQ128,BK$44,0)) -> 1.12 | BL128: =IF(BL$43>$AR128,0,IF(BL$43>=$AQ128,BL$44,0)) -> 1.07 | BM128: =IF(BM$43>$AR128,0,IF(BM$43>=$AQ128,BM$44,0)) -> 1.07 | BN128: =IF(BN$43>$AR128,0,IF(BN$43>=$AQ128,BN$44,0)) -> 1.14 | BO128: =IF(BO$43>$AR128,0,IF(BO$43>=$AQ128,BO$44,0)) -> 0.97 | BP128: =IF(BP$43>$AR128,0,IF(BP$43>=$AQ128,BP$44,0)) -> 1 | BQ128: 0.92 | BR128: 0.89 | BS128: 0.97 | BT128: 0.8 | BU128: 0.83 | BV128: 0.89 | BW128: 0.83 | BX128: 0.79 | BY128: 0.91 | BZ128: 0.87 | CA128: 0.84 | CB128: 0.93 | CC128: 0.79 | CD128: 0 | CE128: 0 | CF128: 0
A129: 84 | B129: PRC | C129: 4971 | D129: 2019/0162869-3 | E129: 0162869-86.2019.3.00.0000 | F129: STJ | G129: MS 20.878/DF | H129: 2018-06-20 | I129: 2019-05-20 | J129: 2019-06-05 | K129: União | L129: 26.994.558/0001-23 | M129: Brasilia/DF | N129: Comum | O129: 2019-07-01 | P129: 529857.87 | Q129: 1.159666673 | R129: 2.4567 | S129: 34.26 | T129: 669323.92 | U129: 167330.98 | V129: 0 | W129: 0 | X129: 0 | Y129: =TRUNC(AB129*R129/100,2) ->  | Z129: =TRUNC(AB129*$AS129/100,2) ->  | AA129: =TRUNC(Y129*$AS129/100,2) ->  | AB129: =TRUNC(#REF!*Q129,2) ->  | AC129: =T129+U129+V129+W129+X129 -> 836654.9 | AQ129: 2021-12-01 | AR129: 2024-12-01 | AS129: 34.26 | AT129: =IF(AT$43>$AR129,0,IF(AT$43>=$AQ129,AT$44,0)) -> 0.77 | AU129: =IF(AU$43>$AR129,0,IF(AU$43>=$AQ129,AU$44,0)) -> 0.73 | AV129: =IF(AV$43>$AR129,0,IF(AV$43>=$AQ129,AV$44,0)) -> 0.76 | AW129: =IF(AW$43>$AR129,0,IF(AW$43>=$AQ129,AW$44,0)) -> 0.93 | AX129: =IF(AX$43>$AR129,0,IF(AX$43>=$AQ129,AX$44,0)) -> 0.83 | AY129: =IF(AY$43>$AR129,0,IF(AY$43>=$AQ129,AY$44,0)) -> 1.03 | AZ129: =IF(AZ$43>$AR129,0,IF(AZ$43>=$AQ129,AZ$44,0)) -> 1.02 | BA129: =IF(BA$43>$AR129,0,IF(BA$43>=$AQ129,BA$44,0)) -> 1.03 | BB129: =IF(BB$43>$AR129,0,IF(BB$43>=$AQ129,BB$44,0)) -> 1.17 | BC129: =IF(BC$43>$AR129,0,IF(BC$43>=$AQ129,BC$44,0)) -> 1.07 | BD129: =IF(BD$43>$AR129,0,IF(BD$43>=$AQ129,BD$44,0)) -> 1.02 | BE129: =IF(BE$43>$AR129,0,IF(BE$43>=$AQ129,BE$44,0)) -> 1.02 | BF129: =IF(BF$43>$AR129,0,IF(BF$43>=$AQ129,BF$44,0)) -> 1.12 | BG129: =IF(BG$43>$AR129,0,IF(BG$43>=$AQ129,BG$44,0)) -> 1.12 | BH129: =IF(BH$43>$AR129,0,IF(BH$43>=$AQ129,BH$44,0)) -> 0.92 | BI129: 1.17 | BJ129: =IF(BJ$43>$AR129,0,IF(BJ$43>=$AQ129,BJ$44,0)) -> 0.92 | BK129: =IF(BK$43>$AR129,0,IF(BK$43>=$AQ129,BK$44,0)) -> 1.12 | BL129: =IF(BL$43>$AR129,0,IF(BL$43>=$AQ129,BL$44,0)) -> 1.07 | BM129: =IF(BM$43>$AR129,0,IF(BM$43>=$AQ129,BM$44,0)) -> 1.07 | BN129: =IF(BN$43>$AR129,0,IF(BN$43>=$AQ129,BN$44,0)) -> 1.14 | BO129: =IF(BO$43>$AR129,0,IF(BO$43>=$AQ129,BO$44,0)) -> 0.97 | BP129: =IF(BP$43>$AR129,0,IF(BP$43>=$AQ129,BP$44,0)) -> 1 | BQ129: 0.92 | BR129: 0.89 | BS129: 0.97 | BT129: 0.8 | BU129: 0.83 | BV129: 0.89 | BW129: 0.83 | BX129: 0.79 | BY129: 0.91 | BZ129: 0.87 | CA129: 0.84 | CB129: 0.93 | CC129: 0.79 | CD129: 0 | CE129: 0 | CF129: 0
A130: 85 | B130: PRC | C130: 4972 | D130: 2019/0162872-1 | E130: 0162872-41.2019.3.00.0000 | F130: STJ | G130: MS 15.640/DF | H130: 2018-06-07 | I130: 2019-05-21 | J130: 2019-06-05 | K130: União | L130: 26.994.558/0001-23 | M130: Brasilia/DF | N130: Comum | O130: 2019-07-01 | P130: 183923.78 | Q130: 1.159666673 | R130: 2.4567 | S130: 34.26 | T130: 232335.1 | U130: 58083.77 | V130: 0 | W130: 0 | X130: 0 | Y130: =TRUNC(AB130*R130/100,2) ->  | Z130: =TRUNC(AB130*$AS130/100,2) ->  | AA130: =TRUNC(Y130*$AS130/100,2) ->  | AB130: =TRUNC(#REF!*Q130,2) ->  | AC130: =T130+U130+V130+W130+X130 -> 290418.87 | AQ130: 2021-12-01 | AR130: 2024-12-01 | AS130: 34.26 | AT130: =IF(AT$43>$AR130,0,IF(AT$43>=$AQ130,AT$44,0)) -> 0.77 | AU130: =IF(AU$43>$AR130,0,IF(AU$43>=$AQ130,AU$44,0)) -> 0.73 | AV130: =IF(AV$43>$AR130,0,IF(AV$43>=$AQ130,AV$44,0)) -> 0.76 | AW130: =IF(AW$43>$AR130,0,IF(AW$43>=$AQ130,AW$44,0)) -> 0.93 | AX130: =IF(AX$43>$AR130,0,IF(AX$43>=$AQ130,AX$44,0)) -> 0.83 | AY130: =IF(AY$43>$AR130,0,IF(AY$43>=$AQ130,AY$44,0)) -> 1.03 | AZ130: =IF(AZ$43>$AR130,0,IF(AZ$43>=$AQ130,AZ$44,0)) -> 1.02 | BA130: =IF(BA$43>$AR130,0,IF(BA$43>=$AQ130,BA$44,0)) -> 1.03 | BB130: =IF(BB$43>$AR130,0,IF(BB$43>=$AQ130,BB$44,0)) -> 1.17 | BC130: =IF(BC$43>$AR130,0,IF(BC$43>=$AQ130,BC$44,0)) -> 1.07 | BD130: =IF(BD$43>$AR130,0,IF(BD$43>=$AQ130,BD$44,0)) -> 1.02 | BE130: =IF(BE$43>$AR130,0,IF(BE$43>=$AQ130,BE$44,0)) -> 1.02 | BF130: =IF(BF$43>$AR130,0,IF(BF$43>=$AQ130,BF$44,0)) -> 1.12 | BG130: =IF(BG$43>$AR130,0,IF(BG$43>=$AQ130,BG$44,0)) -> 1.12 | BH130: =IF(BH$43>$AR130,0,IF(BH$43>=$AQ130,BH$44,0)) -> 0.92 | BI130: 1.17 | BJ130: =IF(BJ$43>$AR130,0,IF(BJ$43>=$AQ130,BJ$44,0)) -> 0.92 | BK130: =IF(BK$43>$AR130,0,IF(BK$43>=$AQ130,BK$44,0)) -> 1.12 | BL130: =IF(BL$43>$AR130,0,IF(BL$43>=$AQ130,BL$44,0)) -> 1.07 | BM130: =IF(BM$43>$AR130,0,IF(BM$43>=$AQ130,BM$44,0)) -> 1.07 | BN130: =IF(BN$43>$AR130,0,IF(BN$43>=$AQ130,BN$44,0)) -> 1.14 | BO130: =IF(BO$43>$AR130,0,IF(BO$43>=$AQ130,BO$44,0)) -> 0.97 | BP130: =IF(BP$43>$AR130,0,IF(BP$43>=$AQ130,BP$44,0)) -> 1 | BQ130: 0.92 | BR130: 0.89 | BS130: 0.97 | BT130: 0.8 | BU130: 0.83 | BV130: 0.89 | BW130: 0.83 | BX130: 0.79 | BY130: 0.91 | BZ130: 0.87 | CA130: 0.84 | CB130: 0.93 | CC130: 0.79 | CD130: 0 | CE130: 0 | CF130: 0
A131: 86 | B131: PRC | C131: 4976 | D131: 2019/0162886-0 | E131: 0162886-25.2019.3.00.0000 | F131: STJ | G131: MS 15.631/DF | H131: 2018-06-07 | I131: 2019-05-20 | J131: 2019-06-05 | K131: União | L131: 26.994.558/0001-23 | M131: Brasilia/DF | N131: Comum | O131: 2019-07-01 | P131: 266681.25 | Q131: 1.159666673 | R131: 2.4567 | S131: 34.26 | T131: 336875.51 | U131: 84218.87 | V131: 0 | W131: 0 | X131: 0 | Y131: =TRUNC(AB131*R131/100,2) ->  | Z131: =TRUNC(AB131*$AS131/100,2) ->  | AA131: =TRUNC(Y131*$AS131/100,2) ->  | AB131: =TRUNC(#REF!*Q131,2) ->  | AC131: =T131+U131+V131+W131+X131 -> 421094.38 | AQ131: 2021-12-01 | AR131: 2024-12-01 | AS131: 34.26 | AT131: =IF(AT$43>$AR131,0,IF(AT$43>=$AQ131,AT$44,0)) -> 0.77 | AU131: =IF(AU$43>$AR131,0,IF(AU$43>=$AQ131,AU$44,0)) -> 0.73 | AV131: =IF(AV$43>$AR131,0,IF(AV$43>=$AQ131,AV$44,0)) -> 0.76 | AW131: =IF(AW$43>$AR131,0,IF(AW$43>=$AQ131,AW$44,0)) -> 0.93 | AX131: =IF(AX$43>$AR131,0,IF(AX$43>=$AQ131,AX$44,0)) -> 0.83 | AY131: =IF(AY$43>$AR131,0,IF(AY$43>=$AQ131,AY$44,0)) -> 1.03 | AZ131: =IF(AZ$43>$AR131,0,IF(AZ$43>=$AQ131,AZ$44,0)) -> 1.02 | BA131: =IF(BA$43>$AR131,0,IF(BA$43>=$AQ131,BA$44,0)) -> 1.03 | BB131: =IF(BB$43>$AR131,0,IF(BB$43>=$AQ131,BB$44,0)) -> 1.17 | BC131: =IF(BC$43>$AR131,0,IF(BC$43>=$AQ131,BC$44,0)) -> 1.07 | BD131: =IF(BD$43>$AR131,0,IF(BD$43>=$AQ131,BD$44,0)) -> 1.02 | BE131: =IF(BE$43>$AR131,0,IF(BE$43>=$AQ131,BE$44,0)) -> 1.02 | BF131: =IF(BF$43>$AR131,0,IF(BF$43>=$AQ131,BF$44,0)) -> 1.12 | BG131: =IF(BG$43>$AR131,0,IF(BG$43>=$AQ131,BG$44,0)) -> 1.12 | BH131: =IF(BH$43>$AR131,0,IF(BH$43>=$AQ131,BH$44,0)) -> 0.92 | BI131: 1.17 | BJ131: =IF(BJ$43>$AR131,0,IF(BJ$43>=$AQ131,BJ$44,0)) -> 0.92 | BK131: 1.12 | BL131: 1.07 | BM131: 1.07 | BN131: 1.14 | BO131: 0.97 | BP131: 1 | BQ131: 0.92 | BR131: 0.89 | BS131: 0.97 | BT131: 0.8 | BU131: 0.83 | BV131: 0.89 | BW131: 0.83 | BX131: 0.79 | BY131: 0.91 | BZ131: 0.87 | CA131: 0.84 | CB131: 0.93 | CC131: 0.79 | CD131: 0 | CE131: 0 | CF131: 0
A132: 87 | B132: PRC | C132: 4977 | D132: 2019/0162888-3 | E132: 0162888-92.2019.3.00.0000 | F132: STJ | G132: MS 15.636/DF | H132: 2018-09-19 | I132: 2019-05-16 | J132: 2019-06-05 | K132: União | L132: 26.994.558/0001-23 | M132: Brasilia/DF | N132: Comum | O132: 2019-07-01 | P132: 266681.25 | Q132: 1.159666673 | R132: 2.4567 | S132: 34.26 | T132: 336875.51 | U132: 84218.87 | V132: 0 | W132: 0 | X132: 0 | Y132: =TRUNC(AB132*R132/100,2) ->  | Z132: =TRUNC(AB132*$AS132/100,2) ->  | AA132: =TRUNC(Y132*$AS132/100,2) ->  | AB132: =TRUNC(#REF!*Q132,2) ->  | AC132: =T132+U132+V132+W132+X132 -> 421094.38 | AQ132: 2021-12-01 | AR132: 2024-12-01 | AS132: 34.26 | AT132: =IF(AT$43>$AR132,0,IF(AT$43>=$AQ132,AT$44,0)) -> 0.77 | AU132: 0.73 | AV132: 0.76 | AW132: 0.93 | AX132: 0.83 | AY132: 1.03 | AZ132: 1.02 | BA132: 1.03 | BB132: 1.17 | BC132: 1.07 | BD132: 1.02 | BE132: 1.02 | BF132: 1.12 | BG132: 1.12 | BH132: 0.92 | BI132: 1.17 | BJ132: 0.92 | BK132: 1.12 | BL132: 1.07 | BM132: 1.07 | BN132: 1.14 | BO132: 0.97 | BP132: 1 | BQ132: 0.92 | BR132: 0.89 | BS132: 0.97 | BT132: 0.8 | BU132: 0.83 | BV132: 0.89 | BW132: 0.83 | BX132: 0.79 | BY132: 0.91 | BZ132: 0.87 | CA132: 0.84 | CB132: 0.93 | CC132: 0.79 | CD132: 0 | CE132: 0 | CF132: 0
A133: 88 | B133: PRC | C133: 4979 | D133: 2019/0162891-1 | E133: 0162891-47.2019.3.00.0000 | F133: STJ | G133: MS 15.648/DF | H133: 2018-08-15 | I133: 2019-05-16 | J133: 2019-06-05 | K133: União | L133: 26.994.558/0001-23 | M133: Brasilia/DF | N133: Comum | O133: 2019-07-01 | P133: 193983.66 | Q133: 1.159666673 | R133: 2.4567 | S133: 34.26 | T133: 245042.88 | U133: 61260.71 | V133: 0 | W133: 0 | X133: 0 | Y133: =TRUNC(AB133*R133/100,2) ->  | Z133: =TRUNC(AB133*$AS133/100,2) ->  | AA133: =TRUNC(Y133*$AS133/100,2) ->  | AB133: =TRUNC(#REF!*Q133,2) ->  | AC133: =T133+U133+V133+W133+X133 -> 306303.59 | AQ133: 2021-12-01 | AR133: 2024-12-01 | AS133: 34.26 | AT133: 0.77 | AU133: 0.73 | AV133: 0.76 | AW133: 0.93 | AX133: 0.83 | AY133: 1.03 | AZ133: 1.02 | BA133: 1.03 | BB133: 1.17 | BC133: 1.07 | BD133: 1.02 | BE133: 1.02 | BF133: 1.12 | BG133: 1.12 | BH133: 0.92 | BI133: 1.17 | BJ133: 0.92 | BK133: 1.12 | BL133: 1.07 | BM133: 1.07 | BN133: 1.14 | BO133: 0.97 | BP133: 1 | BQ133: 0.92 | BR133: 0.89 | BS133: 0.97 | BT133: 0.8 | BU133: 0.83 | BV133: 0.89 | BW133: 0.83 | BX133: 0.79 | BY133: 0.91 | BZ133: 0.87 | CA133: 0.84 | CB133: 0.93 | CC133: 0.79 | CD133: 0 | CE133: 0 | CF133: 0
A134: 89 | B134: PRC | C134: 4981 | D134: 2019/0162894-7 | E134: 0162894-02.2019.3.00.0000 | F134: STJ | G134: MS 21.477/DF | H134: 2018-08-10 | I134: 2019-05-22 | J134: 2019-06-05 | K134: União | L134: 26.994.558/0001-23 | M134: Brasilia/DF | N134: Comum | O134: 2019-07-01 | P134: 192461.83 | Q134: 1.159666673 | R134: 2.4567 | S134: 34.26 | T134: 243120.48 | U134: 60780.12 | V134: 0 | W134: 0 | X134: 0 | Y134: =TRUNC(AB134*R134/100,2) ->  | Z134: =TRUNC(AB134*$AS134/100,2) ->  | AA134: =TRUNC(Y134*$AS134/100,2) ->  | AB134: =TRUNC(#REF!*Q134,2) ->  | AC134: =T134+U134+V134+W134+X134 -> 303900.6 | AQ134: 2021-12-01 | AR134: 2024-12-01 | AS134: 34.26 | AT134: 0.77 | AU134: 0.73 | AV134: 0.76 | AW134: 0.93 | AX134: 0.83 | AY134: 1.03 | AZ134: 1.02 | BA134: 1.03 | BB134: 1.17 | BC134: 1.07 | BD134: 1.02 | BE134: 1.02 | BF134: 1.12 | BG134: 1.12 | BH134: 0.92 | BI134: 1.17 | BJ134: 0.92 | BK134: 1.12 | BL134: 1.07 | BM134: 1.07 | BN134: 1.14 | BO134: 0.97 | BP134: 1 | BQ134: 0.92 | BR134: 0.89 | BS134: 0.97 | BT134: 0.8 | BU134: 0.83 | BV134: 0.89 | BW134: 0.83 | BX134: 0.79 | BY134: 0.91 | BZ134: 0.87 | CA134: 0.84 | CB134: 0.93 | CC134: 0.79 | CD134: 0 | CE134: 0 | CF134: 0
A135: 90 | B135: PRC | C135: 4984 | D135: 2019/0162905-9 | E135: 0162905-31.2019.3.00.0000 | F135: STJ | G135: MS 15.398/DF | H135: 2018-08-15 | I135: 2019-05-10 | J135: 2019-06-05 | K135: União | L135: 26.994.558/0001-23 | M135: Brasilia/DF | N135: Comum | O135: 2019-07-01 | P135: 236250 | Q135: 1.159666673 | R135: 2.4567 | S135: 34.26 | T135: 335738.62 | U135: 18652.14 | V135: 18652.14 | W135: 0 | X135: 0 | Y135: =TRUNC(AB135*R135/100,2) ->  | Z135: =TRUNC(AB135*$AS135/100,2) ->  | AA135: =TRUNC(Y135*$AS135/100,2) ->  | AB135: =TRUNC(#REF!*Q135,2) ->  | AC135: =T135+U135+V135+W135+X135 -> 373042.9 | AQ135: 2021-12-01 | AR135: 2024-12-01 | AS135: 34.26 | AT135: 0.77 | AU135: 0.73 | AV135: 0.76 | AW135: 0.93 | AX135: 0.83 | AY135: 1.03 | AZ135: 1.02 | BA135: 1.03 | BB135: 1.17 | BC135: 1.07 | BD135: 1.02 | BE135: 1.02 | BF135: 1.12 | BG135: 1.12 | BH135: 0.92 | BI135: 1.17 | BJ135: 0.92 | BK135: 1.12 | BL135: 1.07 | BM135: 1.07 | BN135: 1.14 | BO135: 0.97 | BP135: 1 | BQ135: 0.92 | BR135: 0.89 | BS135: 0.97 | BT135: 0.8 | BU135: 0.83 | BV135: 0.89 | BW135: 0.83 | BX135: 0.79 | BY135: 0.91 | BZ135: 0.87 | CA135: 0.84 | CB135: 0.93 | CC135: 0.79 | CD135: 0 | CE135: 0 | CF135: 0
A136: 91 | B136: PRC | C136: 4985 | D136: 2019/0162911-2 | E136: 0162911-38.2019.3.00.0000 | F136: STJ | G136: MS 16.607/DF | H136: 2018-08-10 | I136: 2019-05-10 | J136: 2019-06-05 | K136: União | L136: 26.994.558/0001-23 | M136: Brasilia/DF | N136: Comum | O136: 2019-07-01 | P136: 191127.76 | Q136: 1.159666673 | R136: 2.4567 | S136: 34.26 | T136: 271614.67 | U136: 15089.7 | V136: 15089.7 | W136: 0 | X136: 0 | Y136: =TRUNC(AB136*R136/100,2) ->  | Z136: =TRUNC(AB136*$AS136/100,2) ->  | AA136: =TRUNC(Y136*$AS136/100,2) ->  | AB136: =TRUNC(#REF!*Q136,2) ->  | AC136: =T136+U136+V136+W136+X136 -> 301794.07 | AQ136: 2021-12-01 | AR136: 2024-12-01 | AS136: 34.26 | AT136: 0.77 | AU136: 0.73 | AV136: 0.76 | AW136: 0.93 | AX136: 0.83 | AY136: 1.03 | AZ136: 1.02 | BA136: 1.03 | BB136: 1.17 | BC136: 1.07 | BD136: 1.02 | BE136: 1.02 | BF136: 1.12 | BG136: 1.12 | BH136: 0.92 | BI136: 1.17 | BJ136: 0.92 | BK136: =IF(BK$43>$AR136,0,IF(BK$43>=$AQ136,BK$44,0)) -> 1.12 | BL136: 1.07 | BM136: 1.07 | BN136: 1.14 | BO136: 0.97 | BP136: 1 | BQ136: 0.92 | BR136: 0.89 | BS136: 0.97 | BT136: 0.8 | BU136: 0.83 | BV136: 0.89 | BW136: 0.83 | BX136: 0.79 | BY136: 0.91 | BZ136: 0.87 | CA136: 0.84 | CB136: 0.93 | CC136: 0.79 | CD136: 0 | CE136: 0 | CF136: 0
A137: 92 | B137: PRC | C137: 4986 | D137: 2019/0162912-4 | E137: 0162912-23.2019.3.00.0000 | F137: STJ | G137: MS 15.245/DF | H137: 2018-08-10 | I137: 2019-05-10 | J137: 2019-06-05 | K137: União | L137: 26.994.558/0001-23 | M137: Brasilia/DF | N137: Comum | O137: 2019-07-01 | P137: 233325 | Q137: 1.159666673 | R137: 2.4567 | S137: 34.26 | T137: 331581.84 | U137: 36842.42 | V137: 0 | W137: 0 | X137: 0 | Y137: =TRUNC(AB137*R137/100,2) ->  | Z137: =TRUNC(AB137*$AS137/100,2) ->  | AA137: =TRUNC(Y137*$AS137/100,2) ->  | AB137: =TRUNC(#REF!*Q137,2) ->  | AC137: =T137+U137+V137+W137+X137 -> 368424.26 | AQ137: 2021-12-01 | AR137: 2024-12-01 | AS137: 34.26 | AT137: 0.77 | AU137: 0.73 | AV137: 0.76 | AW137: 0.93 | AX137: 0.83 | AY137: 1.03 | AZ137: 1.02 | BA137: 1.03 | BB137: 1.17 | BC137: 1.07 | BD137: 1.02 | BE137: 1.02 | BF137: 1.12 | BG137: 1.12 | BH137: 0.92 | BI137: 1.17 | BJ137: 0.92 | BK137: 1.12 | BL137: 1.07 | BM137: 1.07 | BN137: 1.14 | BO137: 0.97 | BP137: 1 | BQ137: 0.92 | BR137: 0.89 | BS137: 0.97 | BT137: 0.8 | BU137: 0.83 | BV137: 0.89 | BW137: 0.83 | BX137: 0.79 | BY137: 0.91 | BZ137: 0.87 | CA137: 0.84 | CB137: 0.93 | CC137: 0.79 | CD137: 0 | CE137: 0 | CF137: 0
A138: 93 | B138: PRC | C138: 4987 | D138: 2019/0162923-7 | E138: 0162923-52.2019.3.00.0000 | F138: STJ | G138: MS 15.577/DF | H138: 2018-06-20 | I138: 2019-05-10 | J138: 2019-06-05 | K138: União | L138: 26.994.558/0001-23 | M138: Brasilia/DF | N138: Comum | O138: 2019-07-01 | P138: 186502.99 | Q138: 1.159666673 | R138: 2.4567 | S138: 34.26 | T138: 235593.2 | U138: 58898.29 | V138: 0 | W138: 0 | X138: 0 | Y138: =TRUNC(AB138*R138/100,2) ->  | Z138: =TRUNC(AB138*$AS138/100,2) ->  | AA138: =TRUNC(Y138*$AS138/100,2) ->  | AB138: =TRUNC(#REF!*Q138,2) ->  | AC138: =T138+U138+V138+W138+X138 -> 294491.49 | AQ138: 2021-12-01 | AR138: 2024-12-01 | AS138: 34.26 | AT138: 0.77 | AU138: 0.73 | AV138: 0.76 | AW138: 0.93 | AX138: 0.83 | AY138: 1.03 | AZ138: 1.02 | BA138: 1.03 | BB138: 1.17 | BC138: 1.07 | BD138: 1.02 | BE138: 1.02 | BF138: 1.12 | BG138: 1.12 | BH138: 0.92 | BI138: 1.17 | BJ138: 0.92 | BK138: 1.12 | BL138: 1.07 | BM138: 1.07 | BN138: 1.14 | BO138: 0.97 | BP138: 1 | BQ138: 0.92 | BR138: 0.89 | BS138: 0.97 | BT138: 0.8 | BU138: 0.83 | BV138: 0.89 | BW138: 0.83 | BX138: 0.79 | BY138: 0.91 | BZ138: 0.87 | CA138: 0.84 | CB138: 0.93 | CC138: 0.79 | CD138: 0 | CE138: 0 | CF138: 0
A139: 94 | B139: PRC | C139: 4988 | D139: 2019/0162929-8 | E139: 0162929-59.2019.3.00.0000 | F139: STJ | G139: MS 17.757/DF | H139: 2018-06-07 | I139: 2019-02-11 | J139: 2019-06-05 | K139: União | L139: 26.994.558/0001-23 | M139: Brasilia/DF | N139: Comum | O139: 2019-07-01 | P139: 202867.58 | Q139: 1.159666673 | R139: 2.4567 | S139: 34.26 | T139: 288298.33 | U139: 32033.14 | V139: 0 | W139: 0 | X139: 0 | Y139: =TRUNC(AB139*R139/100,2) ->  | Z139: =TRUNC(AB139*$AS139/100,2) ->  | AA139: =TRUNC(Y139*$AS139/100,2) ->  | AB139: =TRUNC(#REF!*Q139,2) ->  | AC139: =T139+U139+V139+W139+X139 -> 320331.47 | AQ139: 2021-12-01 | AR139: 2024-12-01 | AS139: 34.26 | AT139: 0.77 | AU139: =IF(AU$43>$AR139,0,IF(AU$43>=$AQ139,AU$44,0)) -> 0.73 | AV139: =IF(AV$43>$AR139,0,IF(AV$43>=$AQ139,AV$44,0)) -> 0.76 | AW139: =IF(AW$43>$AR139,0,IF(AW$43>=$AQ139,AW$44,0)) -> 0.93 | AX139: =IF(AX$43>$AR139,0,IF(AX$43>=$AQ139,AX$44,0)) -> 0.83 | AY139: =IF(AY$43>$AR139,0,IF(AY$43>=$AQ139,AY$44,0)) -> 1.03 | AZ139: =IF(AZ$43>$AR139,0,IF(AZ$43>=$AQ139,AZ$44,0)) -> 1.02 | BA139: =IF(BA$43>$AR139,0,IF(BA$43>=$AQ139,BA$44,0)) -> 1.03 | BB139: =IF(BB$43>$AR139,0,IF(BB$43>=$AQ139,BB$44,0)) -> 1.17 | BC139: =IF(BC$43>$AR139,0,IF(BC$43>=$AQ139,BC$44,0)) -> 1.07 | BD139: =IF(BD$43>$AR139,0,IF(BD$43>=$AQ139,BD$44,0)) -> 1.02 | BE139: =IF(BE$43>$AR139,0,IF(BE$43>=$AQ139,BE$44,0)) -> 1.02 | BF139: =IF(BF$43>$AR139,0,IF(BF$43>=$AQ139,BF$44,0)) -> 1.12 | BG139: 1.12 | BH139: 0.92 | BI139: 1.17 | BJ139: 0.92 | BK139: 1.12 | BL139: 1.07 | BM139: 1.07 | BN139: 1.14 | BO139: 0.97 | BP139: 1 | BQ139: 0.92 | BR139: 0.89 | BS139: 0.97 | BT139: 0.8 | BU139: 0.83 | BV139: 0.89 | BW139: 0.83 | BX139: 0.79 | BY139: 0.91 | BZ139: 0.87 | CA139: 0.84 | CB139: 0.93 | CC139: 0.79 | CD139: 0 | CE139: 0 | CF139: 0
A140: 95 | B140: PRC | C140: 4990 | D140: 2019/0168493-6 | E140: 0168493-19.2019.3.00.0000 | F140: STJ | G140: MS 16.016/DF | H140: 2018-08-15 | I140: 2019-02-11 | J140: 2019-06-11 | K140: União | L140: 26.994.558/0001-23 | M140: Brasilia/DF | N140: Comum | O140: 2019-07-01 | P140: 240750 | Q140: 1.159666673 | R140: 2.4567 | S140: 34.26 | T140: 342133.63 | U140: 38014.84 | V140: 0 | W140: 0 | X140: 0 | Y140: =TRUNC(AB140*R140/100,2) ->  | Z140: =TRUNC(AB140*$AS140/100,2) ->  | AA140: =TRUNC(Y140*$AS140/100,2) ->  | AB140: =TRUNC(#REF!*Q140,2) ->  | AC140: =T140+U140+V140+W140+X140 -> 380148.47 | AQ140: 2021-12-01 | AR140: 2024-12-01 | AS140: =SUM(AT140:CF140) -> 34.26 | AT140: =IF(AT$43>$AR140,0,IF(AT$43>=$AQ140,AT$44,0)) -> 0.77 | AU140: =IF(AU$43>$AR140,0,IF(AU$43>=$AQ140,AU$44,0)) -> 0.73 | AV140: =IF(AV$43>$AR140,0,IF(AV$43>=$AQ140,AV$44,0)) -> 0.76 | AW140: =IF(AW$43>$AR140,0,IF(AW$43>=$AQ140,AW$44,0)) -> 0.93 | AX140: =IF(AX$43>$AR140,0,IF(AX$43>=$AQ140,AX$44,0)) -> 0.83 | AY140: =IF(AY$43>$AR140,0,IF(AY$43>=$AQ140,AY$44,0)) -> 1.03 | AZ140: =IF(AZ$43>$AR140,0,IF(AZ$43>=$AQ140,AZ$44,0)) -> 1.02 | BA140: =IF(BA$43>$AR140,0,IF(BA$43>=$AQ140,BA$44,0)) -> 1.03 | BB140: =IF(BB$43>$AR140,0,IF(BB$43>=$AQ140,BB$44,0)) -> 1.17 | BC140: =IF(BC$43>$AR140,0,IF(BC$43>=$AQ140,BC$44,0)) -> 1.07 | BD140: =IF(BD$43>$AR140,0,IF(BD$43>=$AQ140,BD$44,0)) -> 1.02 | BE140: =IF(BE$43>$AR140,0,IF(BE$43>=$AQ140,BE$44,0)) -> 1.02 | BF140: =IF(BF$43>$AR140,0,IF(BF$43>=$AQ140,BF$44,0)) -> 1.12 | BG140: 1.12 | BH140: 0.92 | BI140: 1.17 | BJ140: 0.92 | BK140: 1.12 | BL140: 1.07 | BM140: 1.07 | BN140: 1.14 | BO140: 0.97 | BP140: 1 | BQ140: 0.92 | BR140: 0.89 | BS140: 0.97 | BT140: 0.8 | BU140: 0.83 | BV140: 0.89 | BW140: =IF(BW$43>$AR140,0,IF(BW$43>=$AQ140,BW$44,0)) -> 0.83 | BX140: =IF(BX$43>$AR140,0,IF(BX$43>=$AQ140,BX$44,0)) -> 0.79 | BY140: =IF(BY$43>$AR140,0,IF(BY$43>=$AQ140,BY$44,0)) -> 0.91 | BZ140: =IF(BZ$43>$AR140,0,IF(BZ$43>=$AQ140,BZ$44,0)) -> 0.87 | CA140: =IF(CA$43>$AR140,0,IF(CA$43>=$AQ140,CA$44,0)) -> 0.84 | CB140: =IF(CB$43>$AR140,0,IF(CB$43>=$AQ140,CB$44,0)) -> 0.93 | CC140: =IF(CC$43>$AR140,0,IF(CC$43>=$AQ140,CC$44,0)) -> 0.79 | CD140: =IF(CD$43>$AR140,0,IF(CD$43>=$AQ140,CD$44,0)) -> 0 | CE140: =IF(CE$43>$AR140,0,IF(CE$43>=$AQ140,CE$44,0)) -> 0 | CF140: =IF(CF$43>$AR140,0,IF(CF$43>=$AQ140,CF$44,0)) -> 0
A141: 96 | B141: PRC | C141: 4993 | D141: 2019/0168501-2 | E141: 0168501-93.2019.3.00.0000 | F141: STJ | G141: MS 15.792/DF | H141: 2018-09-11 | I141: 2019-05-16 | J141: 2019-06-11 | K141: União | L141: 26.994.558/0001-23 | M141: Brasilia/DF | N141: Comum | O141: 2019-07-01 | P141: 187517.26 | Q141: 1.159666673 | R141: 2.4567 | S141: 34.26 | T141: 251679.09 | U141: 44413.95 | V141: 0 | W141: 0 | X141: 0 | Y141: =TRUNC(AB141*R141/100,2) ->  | Z141: =TRUNC(AB141*$AS141/100,2) ->  | AA141: =TRUNC(Y141*$AS141/100,2) ->  | AB141: =TRUNC(#REF!*Q141,2) ->  | AC141: =T141+U141+V141+W141+X141 -> 296093.04 | AQ141: 2021-12-01 | AR141: 2024-12-01 | AS141: 34.26 | AT141: =IF(AT$43>$AR141,0,IF(AT$43>=$AQ141,AT$44,0)) -> 0.77 | AU141: =IF(AU$43>$AR141,0,IF(AU$43>=$AQ141,AU$44,0)) -> 0.73 | AV141: =IF(AV$43>$AR141,0,IF(AV$43>=$AQ141,AV$44,0)) -> 0.76 | AW141: =IF(AW$43>$AR141,0,IF(AW$43>=$AQ141,AW$44,0)) -> 0.93 | AX141: =IF(AX$43>$AR141,0,IF(AX$43>=$AQ141,AX$44,0)) -> 0.83 | AY141: =IF(AY$43>$AR141,0,IF(AY$43>=$AQ141,AY$44,0)) -> 1.03 | AZ141: =IF(AZ$43>$AR141,0,IF(AZ$43>=$AQ141,AZ$44,0)) -> 1.02 | BA141: =IF(BA$43>$AR141,0,IF(BA$43>=$AQ141,BA$44,0)) -> 1.03 | BB141: =IF(BB$43>$AR141,0,IF(BB$43>=$AQ141,BB$44,0)) -> 1.17 | BC141: =IF(BC$43>$AR141,0,IF(BC$43>=$AQ141,BC$44,0)) -> 1.07 | BD141: =IF(BD$43>$AR141,0,IF(BD$43>=$AQ141,BD$44,0)) -> 1.02 | BE141: =IF(BE$43>$AR141,0,IF(BE$43>=$AQ141,BE$44,0)) -> 1.02 | BF141: =IF(BF$43>$AR141,0,IF(BF$43>=$AQ141,BF$44,0)) -> 1.12 | BG141: 1.12 | BH141: 0.92 | BI141: 1.17 | BJ141: 0.92 | BK141: 1.12 | BL141: 1.07 | BM141: 1.07 | BN141: 1.14 | BO141: 0.97 | BP141: 1 | BQ141: 0.92 | BR141: 0.89 | BS141: 0.97 | BT141: 0.8 | BU141: 0.83 | BV141: 0.89 | BW141: =IF(BW$43>$AR141,0,IF(BW$43>=$AQ141,BW$44,0)) -> 0.83 | BX141: =IF(BX$43>$AR141,0,IF(BX$43>=$AQ141,BX$44,0)) -> 0.79 | BY141: =IF(BY$43>$AR141,0,IF(BY$43>=$AQ141,BY$44,0)) -> 0.91 | BZ141: =IF(BZ$43>$AR141,0,IF(BZ$43>=$AQ141,BZ$44,0)) -> 0.87 | CA141: =IF(CA$43>$AR141,0,IF(CA$43>=$AQ141,CA$44,0)) -> 0.84 | CB141: =IF(CB$43>$AR141,0,IF(CB$43>=$AQ141,CB$44,0)) -> 0.93 | CC141: =IF(CC$43>$AR141,0,IF(CC$43>=$AQ141,CC$44,0)) -> 0.79 | CD141: =IF(CD$43>$AR141,0,IF(CD$43>=$AQ141,CD$44,0)) -> 0 | CE141: =IF(CE$43>$AR141,0,IF(CE$43>=$AQ141,CE$44,0)) -> 0 | CF141: =IF(CF$43>$AR141,0,IF(CF$43>=$AQ141,CF$44,0)) -> 0
A142: 97 | B142: PRC | C142: 4994 | D142: 2019/0168502-4 | E142: 0168502-78.2019.3.00.0000 | F142: STJ | G142: MS 16.124/DF | H142: 2018-06-20 | I142: 2019-05-16 | J142: 2019-06-11 | K142: União | L142: 26.994.558/0001-23 | M142: Brasilia/DF | N142: Comum | O142: 2019-07-01 | P142: 266681.25 | Q142: 1.159666673 | R142: 2.4567 | S142: 34.26 | T142: 357930.24 | U142: 31582.07 | V142: 31582.07 | W142: 0 | X142: 0 | Y142: =TRUNC(AB142*R142/100,2) ->  | Z142: =TRUNC(AB142*$AS142/100,2) ->  | AA142: =TRUNC(Y142*$AS142/100,2) ->  | AB142: =TRUNC(#REF!*Q142,2) ->  | AC142: =T142+U142+V142+W142+X142 -> 421094.38 | AQ142: 2021-12-01 | AR142: 2024-12-01 | AS142: 34.26 | AT142: =IF(AT$43>$AR142,0,IF(AT$43>=$AQ142,AT$44,0)) -> 0.77 | AU142: =IF(AU$43>$AR142,0,IF(AU$43>=$AQ142,AU$44,0)) -> 0.73 | AV142: =IF(AV$43>$AR142,0,IF(AV$43>=$AQ142,AV$44,0)) -> 0.76 | AW142: =IF(AW$43>$AR142,0,IF(AW$43>=$AQ142,AW$44,0)) -> 0.93 | AX142: =IF(AX$43>$AR142,0,IF(AX$43>=$AQ142,AX$44,0)) -> 0.83 | AY142: =IF(AY$43>$AR142,0,IF(AY$43>=$AQ142,AY$44,0)) -> 1.03 | AZ142: =IF(AZ$43>$AR142,0,IF(AZ$43>=$AQ142,AZ$44,0)) -> 1.02 | BA142: =IF(BA$43>$AR142,0,IF(BA$43>=$AQ142,BA$44,0)) -> 1.03 | BB142: =IF(BB$43>$AR142,0,IF(BB$43>=$AQ142,BB$44,0)) -> 1.17 | BC142: =IF(BC$43>$AR142,0,IF(BC$43>=$AQ142,BC$44,0)) -> 1.07 | BD142: =IF(BD$43>$AR142,0,IF(BD$43>=$AQ142,BD$44,0)) -> 1.02 | BE142: =IF(BE$43>$AR142,0,IF(BE$43>=$AQ142,BE$44,0)) -> 1.02 | BF142: =IF(BF$43>$AR142,0,IF(BF$43>=$AQ142,BF$44,0)) -> 1.12 | BG142: 1.12 | BH142: 0.92 | BI142: 1.17 | BJ142: 0.92 | BK142: 1.12 | BL142: 1.07 | BM142: 1.07 | BN142: 1.14 | BO142: 0.97 | BP142: 1 | BQ142: 0.92 | BR142: 0.89 | BS142: 0.97 | BT142: 0.8 | BU142: 0.83 | BV142: 0.89 | BW142: =IF(BW$43>$AR142,0,IF(BW$43>=$AQ142,BW$44,0)) -> 0.83 | BX142: =IF(BX$43>$AR142,0,IF(BX$43>=$AQ142,BX$44,0)) -> 0.79 | BY142: =IF(BY$43>$AR142,0,IF(BY$43>=$AQ142,BY$44,0)) -> 0.91 | BZ142: =IF(BZ$43>$AR142,0,IF(BZ$43>=$AQ142,BZ$44,0)) -> 0.87 | CA142: =IF(CA$43>$AR142,0,IF(CA$43>=$AQ142,CA$44,0)) -> 0.84 | CB142: =IF(CB$43>$AR142,0,IF(CB$43>=$AQ142,CB$44,0)) -> 0.93 | CC142: =IF(CC$43>$AR142,0,IF(CC$43>=$AQ142,CC$44,0)) -> 0.79 | CD142: =IF(CD$43>$AR142,0,IF(CD$43>=$AQ142,CD$44,0)) -> 0 | CE142: =IF(CE$43>$AR142,0,IF(CE$43>=$AQ142,CE$44,0)) -> 0 | CF142: =IF(CF$43>$AR142,0,IF(CF$43>=$AQ142,CF$44,0)) -> 0
A143: 98 | B143: PRC | C143: 4995 | D143: 2019/0168506-1 | E143: 0168506-18.2019.3.00.0000 | F143: STJ | G143: MS 24.041/DF | H143: 2018-05-30 | I143: 2019-05-17 | J143: 2019-06-11 | K143: União | L143: 26.994.558/0001-23 | M143: Brasilia/DF | N143: Comum | O143: 2019-07-01 | P143: 195218.91 | Q143: 1.159666673 | R143: 2.4567 | S143: 34.26 | T143: 246603.27 | U143: 61650.81 | V143: 0 | W143: 0 | X143: 0 | Y143: =TRUNC(AB143*R143/100,2) ->  | Z143: =TRUNC(AB143*$AS143/100,2) ->  | AA143: =TRUNC(Y143*$AS143/100,2) ->  | AB143: =TRUNC(#REF!*Q143,2) ->  | AC143: =T143+U143+V143+W143+X143 -> 308254.08 | AQ143: 2021-12-01 | AR143: 2024-12-01 | AS143: 34.26 | AT143: =IF(AT$43>$AR143,0,IF(AT$43>=$AQ143,AT$44,0)) -> 0.77 | AU143: =IF(AU$43>$AR143,0,IF(AU$43>=$AQ143,AU$44,0)) -> 0.73 | AV143: =IF(AV$43>$AR143,0,IF(AV$43>=$AQ143,AV$44,0)) -> 0.76 | AW143: =IF(AW$43>$AR143,0,IF(AW$43>=$AQ143,AW$44,0)) -> 0.93 | AX143: =IF(AX$43>$AR143,0,IF(AX$43>=$AQ143,AX$44,0)) -> 0.83 | AY143: =IF(AY$43>$AR143,0,IF(AY$43>=$AQ143,AY$44,0)) -> 1.03 | AZ143: =IF(AZ$43>$AR143,0,IF(AZ$43>=$AQ143,AZ$44,0)) -> 1.02 | BA143: =IF(BA$43>$AR143,0,IF(BA$43>=$AQ143,BA$44,0)) -> 1.03 | BB143: =IF(BB$43>$AR143,0,IF(BB$43>=$AQ143,BB$44,0)) -> 1.17 | BC143: =IF(BC$43>$AR143,0,IF(BC$43>=$AQ143,BC$44,0)) -> 1.07 | BD143: =IF(BD$43>$AR143,0,IF(BD$43>=$AQ143,BD$44,0)) -> 1.02 | BE143: =IF(BE$43>$AR143,0,IF(BE$43>=$AQ143,BE$44,0)) -> 1.02 | BF143: =IF(BF$43>$AR143,0,IF(BF$43>=$AQ143,BF$44,0)) -> 1.12 | BG143: 1.12 | BH143: 0.92 | BI143: 1.17 | BJ143: 0.92 | BK143: 1.12 | BL143: 1.07 | BM143: 1.07 | BN143: 1.14 | BO143: 0.97 | BP143: 1 | BQ143: 0.92 | BR143: 0.89 | BS143: 0.97 | BT143: 0.8 | BU143: 0.83 | BV143: 0.89 | BW143: =IF(BW$43>$AR143,0,IF(BW$43>=$AQ143,BW$44,0)) -> 0.83 | BX143: =IF(BX$43>$AR143,0,IF(BX$43>=$AQ143,BX$44,0)) -> 0.79 | BY143: =IF(BY$43>$AR143,0,IF(BY$43>=$AQ143,BY$44,0)) -> 0.91 | BZ143: =IF(BZ$43>$AR143,0,IF(BZ$43>=$AQ143,BZ$44,0)) -> 0.87 | CA143: =IF(CA$43>$AR143,0,IF(CA$43>=$AQ143,CA$44,0)) -> 0.84 | CB143: =IF(CB$43>$AR143,0,IF(CB$43>=$AQ143,CB$44,0)) -> 0.93 | CC143: =IF(CC$43>$AR143,0,IF(CC$43>=$AQ143,CC$44,0)) -> 0.79 | CD143: =IF(CD$43>$AR143,0,IF(CD$43>=$AQ143,CD$44,0)) -> 0 | CE143: =IF(CE$43>$AR143,0,IF(CE$43>=$AQ143,CE$44,0)) -> 0 | CF143: =IF(CF$43>$AR143,0,IF(CF$43>=$AQ143,CF$44,0)) -> 0
A144: 99 | B144: PRC | C144: 4996 | D144: 2019/0168510-1 | E144: 0168510-55.2019.3.00.0000 | F144: STJ | G144: MS 16.111/DF | H144: 2018-06-20 | I144: 2019-05-17 | J144: 2019-06-11 | K144: União | L144: 26.994.558/0001-23 | M144: Brasilia/DF | N144: Comum | O144: 2019-07-01 | P144: 192461.83 | Q144: 1.159666673 | R144: 2.4567 | S144: 34.26 | T144: 243120.48 | U144: 60780.12 | V144: 0 | W144: 0 | X144: 0 | Y144: =TRUNC(AB144*R144/100,2) ->  | Z144: =TRUNC(AB144*$AS144/100,2) ->  | AA144: =TRUNC(Y144*$AS144/100,2) ->  | AB144: =TRUNC(#REF!*Q144,2) ->  | AC144: =T144+U144+V144+W144+X144 -> 303900.6 | AQ144: 2021-12-01 | AR144: 2024-12-01 | AS144: 34.26 | AT144: =IF(AT$43>$AR144,0,IF(AT$43>=$AQ144,AT$44,0)) -> 0.77 | AU144: =IF(AU$43>$AR144,0,IF(AU$43>=$AQ144,AU$44,0)) -> 0.73 | AV144: =IF(AV$43>$AR144,0,IF(AV$43>=$AQ144,AV$44,0)) -> 0.76 | AW144: =IF(AW$43>$AR144,0,IF(AW$43>=$AQ144,AW$44,0)) -> 0.93 | AX144: =IF(AX$43>$AR144,0,IF(AX$43>=$AQ144,AX$44,0)) -> 0.83 | AY144: =IF(AY$43>$AR144,0,IF(AY$43>=$AQ144,AY$44,0)) -> 1.03 | AZ144: =IF(AZ$43>$AR144,0,IF(AZ$43>=$AQ144,AZ$44,0)) -> 1.02 | BA144: =IF(BA$43>$AR144,0,IF(BA$43>=$AQ144,BA$44,0)) -> 1.03 | BB144: =IF(BB$43>$AR144,0,IF(BB$43>=$AQ144,BB$44,0)) -> 1.17 | BC144: =IF(BC$43>$AR144,0,IF(BC$43>=$AQ144,BC$44,0)) -> 1.07 | BD144: =IF(BD$43>$AR144,0,IF(BD$43>=$AQ144,BD$44,0)) -> 1.02 | BE144: =IF(BE$43>$AR144,0,IF(BE$43>=$AQ144,BE$44,0)) -> 1.02 | BF144: =IF(BF$43>$AR144,0,IF(BF$43>=$AQ144,BF$44,0)) -> 1.12 | BG144: 1.12 | BH144: 0.92 | BI144: 1.17 | BJ144: 0.92 | BK144: 1.12 | BL144: 1.07 | BM144: 1.07 | BN144: 1.14 | BO144: 0.97 | BP144: 1 | BQ144: 0.92 | BR144: 0.89 | BS144: 0.97 | BT144: 0.8 | BU144: 0.83 | BV144: 0.89 | BW144: =IF(BW$43>$AR144,0,IF(BW$43>=$AQ144,BW$44,0)) -> 0.83 | BX144: =IF(BX$43>$AR144,0,IF(BX$43>=$AQ144,BX$44,0)) -> 0.79 | BY144: =IF(BY$43>$AR144,0,IF(BY$43>=$AQ144,BY$44,0)) -> 0.91 | BZ144: =IF(BZ$43>$AR144,0,IF(BZ$43>=$AQ144,BZ$44,0)) -> 0.87 | CA144: =IF(CA$43>$AR144,0,IF(CA$43>=$AQ144,CA$44,0)) -> 0.84 | CB144: =IF(CB$43>$AR144,0,IF(CB$43>=$AQ144,CB$44,0)) -> 0.93 | CC144: =IF(CC$43>$AR144,0,IF(CC$43>=$AQ144,CC$44,0)) -> 0.79 | CD144: =IF(CD$43>$AR144,0,IF(CD$43>=$AQ144,CD$44,0)) -> 0 | CE144: =IF(CE$43>$AR144,0,IF(CE$43>=$AQ144,CE$44,0)) -> 0 | CF144: =IF(CF$43>$AR144,0,IF(CF$43>=$AQ144,CF$44,0)) -> 0
A145: 100 | B145: PRC | C145: 4997 | D145: 2019/0168513-7 | E145: 0168513-10.2019.3.00.0000 | F145: STJ | G145: MS 21.083/DF | H145: 2018-06-20 | I145: 2019-05-17 | J145: 2019-06-11 | K145: União | L145: 26.994.558/0001-23 | M145: Brasilia/DF | N145: Comum | O145: 2019-07-01 | P145: 195663.6 | Q145: 1.159666673 | R145: 2.4567 | S145: 34.26 | T145: 247165 | U145: 61791.24 | V145: 0 | W145: 0 | X145: 0 | Y145: =TRUNC(AB145*R145/100,2) ->  | Z145: =TRUNC(AB145*$AS145/100,2) ->  | AA145: =TRUNC(Y145*$AS145/100,2) ->  | AB145: =TRUNC(#REF!*Q145,2) ->  | AC145: =T145+U145+V145+W145+X145 -> 308956.24 | AQ145: 2021-12-01 | AR145: 2024-12-01 | AS145: 34.26 | AT145: =IF(AT$43>$AR145,0,IF(AT$43>=$AQ145,AT$44,0)) -> 0.77 | AU145: =IF(AU$43>$AR145,0,IF(AU$43>=$AQ145,AU$44,0)) -> 0.73 | AV145: =IF(AV$43>$AR145,0,IF(AV$43>=$AQ145,AV$44,0)) -> 0.76 | AW145: =IF(AW$43>$AR145,0,IF(AW$43>=$AQ145,AW$44,0)) -> 0.93 | AX145: =IF(AX$43>$AR145,0,IF(AX$43>=$AQ145,AX$44,0)) -> 0.83 | AY145: =IF(AY$43>$AR145,0,IF(AY$43>=$AQ145,AY$44,0)) -> 1.03 | AZ145: =IF(AZ$43>$AR145,0,IF(AZ$43>=$AQ145,AZ$44,0)) -> 1.02 | BA145: =IF(BA$43>$AR145,0,IF(BA$43>=$AQ145,BA$44,0)) -> 1.03 | BB145: =IF(BB$43>$AR145,0,IF(BB$43>=$AQ145,BB$44,0)) -> 1.17 | BC145: =IF(BC$43>$AR145,0,IF(BC$43>=$AQ145,BC$44,0)) -> 1.07 | BD145: =IF(BD$43>$AR145,0,IF(BD$43>=$AQ145,BD$44,0)) -> 1.02 | BE145: =IF(BE$43>$AR145,0,IF(BE$43>=$AQ145,BE$44,0)) -> 1.02 | BF145: =IF(BF$43>$AR145,0,IF(BF$43>=$AQ145,BF$44,0)) -> 1.12 | BG145: 1.12 | BH145: 0.92 | BI145: 1.17 | BJ145: 0.92 | BK145: 1.12 | BL145: 1.07 | BM145: 1.07 | BN145: 1.14 | BO145: 0.97 | BP145: 1 | BQ145: 0.92 | BR145: 0.89 | BS145: 0.97 | BT145: 0.8 | BU145: 0.83 | BV145: 0.89 | BW145: =IF(BW$43>$AR145,0,IF(BW$43>=$AQ145,BW$44,0)) -> 0.83 | BX145: =IF(BX$43>$AR145,0,IF(BX$43>=$AQ145,BX$44,0)) -> 0.79 | BY145: =IF(BY$43>$AR145,0,IF(BY$43>=$AQ145,BY$44,0)) -> 0.91 | BZ145: =IF(BZ$43>$AR145,0,IF(BZ$43>=$AQ145,BZ$44,0)) -> 0.87 | CA145: =IF(CA$43>$AR145,0,IF(CA$43>=$AQ145,CA$44,0)) -> 0.84 | CB145: =IF(CB$43>$AR145,0,IF(CB$43>=$AQ145,CB$44,0)) -> 0.93 | CC145: =IF(CC$43>$AR145,0,IF(CC$43>=$AQ145,CC$44,0)) -> 0.79 | CD145: =IF(CD$43>$AR145,0,IF(CD$43>=$AQ145,CD$44,0)) -> 0 | CE145: =IF(CE$43>$AR145,0,IF(CE$43>=$AQ145,CE$44,0)) -> 0 | CF145: =IF(CF$43>$AR145,0,IF(CF$43>=$AQ145,CF$44,0)) -> 0
A146: 101 | B146: PRC | C146: 4998 | D146: 2019/0168515-0 | E146: 0168515-77.2019.3.00.0000 | F146: STJ | G146: MS 15.571/DF | H146: 2018-06-20 | I146: 2019-05-17 | J146: 2019-06-11 | K146: União | L146: 26.994.558/0001-23 | M146: Brasilia/DF | N146: Comum | O146: 2019-07-01 | P146: 191038.82 | Q146: 1.159666673 | R146: 2.4567 | S146: 34.26 | T146: 241322.91 | U146: 60330.72 | V146: 0 | W146: 0 | X146: 0 | Y146: =TRUNC(AB146*R146/100,2) ->  | Z146: =TRUNC(AB146*$AS146/100,2) ->  | AA146: =TRUNC(Y146*$AS146/100,2) ->  | AB146: =TRUNC(#REF!*Q146,2) ->  | AC146: =T146+U146+V146+W146+X146 -> 301653.63 | AQ146: 2021-12-01 | AR146: 2024-12-01 | AS146: 34.26 | AT146: =IF(AT$43>$AR146,0,IF(AT$43>=$AQ146,AT$44,0)) -> 0.77 | AU146: =IF(AU$43>$AR146,0,IF(AU$43>=$AQ146,AU$44,0)) -> 0.73 | AV146: =IF(AV$43>$AR146,0,IF(AV$43>=$AQ146,AV$44,0)) -> 0.76 | AW146: =IF(AW$43>$AR146,0,IF(AW$43>=$AQ146,AW$44,0)) -> 0.93 | AX146: =IF(AX$43>$AR146,0,IF(AX$43>=$AQ146,AX$44,0)) -> 0.83 | AY146: =IF(AY$43>$AR146,0,IF(AY$43>=$AQ146,AY$44,0)) -> 1.03 | AZ146: =IF(AZ$43>$AR146,0,IF(AZ$43>=$AQ146,AZ$44,0)) -> 1.02 | BA146: =IF(BA$43>$AR146,0,IF(BA$43>=$AQ146,BA$44,0)) -> 1.03 | BB146: =IF(BB$43>$AR146,0,IF(BB$43>=$AQ146,BB$44,0)) -> 1.17 | BC146: =IF(BC$43>$AR146,0,IF(BC$43>=$AQ146,BC$44,0)) -> 1.07 | BD146: =IF(BD$43>$AR146,0,IF(BD$43>=$AQ146,BD$44,0)) -> 1.02 | BE146: =IF(BE$43>$AR146,0,IF(BE$43>=$AQ146,BE$44,0)) -> 1.02 | BF146: =IF(BF$43>$AR146,0,IF(BF$43>=$AQ146,BF$44,0)) -> 1.12 | BG146: 1.12 | BH146: 0.92 | BI146: 1.17 | BJ146: 0.92 | BK146: 1.12 | BL146: 1.07 | BM146: 1.07 | BN146: 1.14 | BO146: 0.97 | BP146: 1 | BQ146: 0.92 | BR146: 0.89 | BS146: 0.97 | BT146: 0.8 | BU146: 0.83 | BV146: 0.89 | BW146: =IF(BW$43>$AR146,0,IF(BW$43>=$AQ146,BW$44,0)) -> 0.83 | BX146: =IF(BX$43>$AR146,0,IF(BX$43>=$AQ146,BX$44,0)) -> 0.79 | BY146: =IF(BY$43>$AR146,0,IF(BY$43>=$AQ146,BY$44,0)) -> 0.91 | BZ146: =IF(BZ$43>$AR146,0,IF(BZ$43>=$AQ146,BZ$44,0)) -> 0.87 | CA146: =IF(CA$43>$AR146,0,IF(CA$43>=$AQ146,CA$44,0)) -> 0.84 | CB146: =IF(CB$43>$AR146,0,IF(CB$43>=$AQ146,CB$44,0)) -> 0.93 | CC146: =IF(CC$43>$AR146,0,IF(CC$43>=$AQ146,CC$44,0)) -> 0.79 | CD146: =IF(CD$43>$AR146,0,IF(CD$43>=$AQ146,CD$44,0)) -> 0 | CE146: =IF(CE$43>$AR146,0,IF(CE$43>=$AQ146,CE$44,0)) -> 0 | CF146: =IF(CF$43>$AR146,0,IF(CF$43>=$AQ146,CF$44,0)) -> 0
A147: 102 | B147: PRC | C147: 5000 | D147: 2019/0168518-6 | E147: 0168518-32.2019.3.00.0000 | F147: STJ | G147: MS 15.585/DF | H147: 2018-08-10 | I147: 2019-05-17 | J147: 2019-06-11 | K147: União | L147: 26.994.558/0001-23 | M147: Brasilia/DF | N147: Comum | O147: 2019-07-01 | P147: 193440.15 | Q147: 1.159666673 | R147: 2.4567 | S147: 34.26 | T147: 244356.3 | U147: 61089.07 | V147: 0 | W147: 0 | X147: 0 | Y147: =TRUNC(AB147*R147/100,2) ->  | Z147: =TRUNC(AB147*$AS147/100,2) ->  | AA147: =TRUNC(Y147*$AS147/100,2) ->  | AB147: =TRUNC(#REF!*Q147,2) ->  | AC147: =T147+U147+V147+W147+X147 -> 305445.37 | AQ147: 2021-12-01 | AR147: 2024-12-01 | AS147: 34.26 | AT147: =IF(AT$43>$AR147,0,IF(AT$43>=$AQ147,AT$44,0)) -> 0.77 | AU147: =IF(AU$43>$AR147,0,IF(AU$43>=$AQ147,AU$44,0)) -> 0.73 | AV147: =IF(AV$43>$AR147,0,IF(AV$43>=$AQ147,AV$44,0)) -> 0.76 | AW147: =IF(AW$43>$AR147,0,IF(AW$43>=$AQ147,AW$44,0)) -> 0.93 | AX147: =IF(AX$43>$AR147,0,IF(AX$43>=$AQ147,AX$44,0)) -> 0.83 | AY147: =IF(AY$43>$AR147,0,IF(AY$43>=$AQ147,AY$44,0)) -> 1.03 | AZ147: =IF(AZ$43>$AR147,0,IF(AZ$43>=$AQ147,AZ$44,0)) -> 1.02 | BA147: =IF(BA$43>$AR147,0,IF(BA$43>=$AQ147,BA$44,0)) -> 1.03 | BB147: =IF(BB$43>$AR147,0,IF(BB$43>=$AQ147,BB$44,0)) -> 1.17 | BC147: =IF(BC$43>$AR147,0,IF(BC$43>=$AQ147,BC$44,0)) -> 1.07 | BD147: =IF(BD$43>$AR147,0,IF(BD$43>=$AQ147,BD$44,0)) -> 1.02 | BE147: =IF(BE$43>$AR147,0,IF(BE$43>=$AQ147,BE$44,0)) -> 1.02 | BF147: =IF(BF$43>$AR147,0,IF(BF$43>=$AQ147,BF$44,0)) -> 1.12 | BG147: =IF(BG$43>$AR147,0,IF(BG$43>=$AQ147,BG$44,0)) -> 1.12 | BH147: =IF(BH$43>$AR147,0,IF(BH$43>=$AQ147,BH$44,0)) -> 0.92 | BI147: =IF(BI$43>$AR147,0,IF(BI$43>=$AQ147,BI$44,0)) -> 1.17 | BJ147: =IF(BJ$43>$AR147,0,IF(BJ$43>=$AQ147,BJ$44,0)) -> 0.92 | BK147: =IF(BK$43>$AR147,0,IF(BK$43>=$AQ147,BK$44,0)) -> 1.12 | BL147: =IF(BL$43>$AR147,0,IF(BL$43>=$AQ147,BL$44,0)) -> 1.07 | BM147: =IF(BM$43>$AR147,0,IF(BM$43>=$AQ147,BM$44,0)) -> 1.07 | BN147: =IF(BN$43>$AR147,0,IF(BN$43>=$AQ147,BN$44,0)) -> 1.14 | BO147: =IF(BO$43>$AR147,0,IF(BO$43>=$AQ147,BO$44,0)) -> 0.97 | BP147: =IF(BP$43>$AR147,0,IF(BP$43>=$AQ147,BP$44,0)) -> 1 | BQ147: =IF(BQ$43>$AR147,0,IF(BQ$43>=$AQ147,BQ$44,0)) -> 0.92 | BR147: =IF(BR$43>$AR147,0,IF(BR$43>=$AQ147,BR$44,0)) -> 0.89 | BS147: =IF(BS$43>$AR147,0,IF(BS$43>=$AQ147,BS$44,0)) -> 0.97 | BT147: =IF(BT$43>$AR147,0,IF(BT$43>=$AQ147,BT$44,0)) -> 0.8 | BU147: =IF(BU$43>$AR147,0,IF(BU$43>=$AQ147,BU$44,0)) -> 0.83 | BV147: =IF(BV$43>$AR147,0,IF(BV$43>=$AQ147,BV$44,0)) -> 0.89 | BW147: =IF(BW$43>$AR147,0,IF(BW$43>=$AQ147,BW$44,0)) -> 0.83 | BX147: =IF(BX$43>$AR147,0,IF(BX$43>=$AQ147,BX$44,0)) -> 0.79 | BY147: =IF(BY$43>$AR147,0,IF(BY$43>=$AQ147,BY$44,0)) -> 0.91 | BZ147: =IF(BZ$43>$AR147,0,IF(BZ$43>=$AQ147,BZ$44,0)) -> 0.87 | CA147: =IF(CA$43>$AR147,0,IF(CA$43>=$AQ147,CA$44,0)) -> 0.84 | CB147: =IF(CB$43>$AR147,0,IF(CB$43>=$AQ147,CB$44,0)) -> 0.93 | CC147: =IF(CC$43>$AR147,0,IF(CC$43>=$AQ147,CC$44,0)) -> 0.79 | CD147: =IF(CD$43>$AR147,0,IF(CD$43>=$AQ147,CD$44,0)) -> 0 | CE147: =IF(CE$43>$AR147,0,IF(CE$43>=$AQ147,CE$44,0)) -> 0 | CF147: =IF(CF$43>$AR147,0,IF(CF$43>=$AQ147,CF$44,0)) -> 0
A148: 103 | B148: PRC | C148: 5003 | D148: 2019/0174344-2 | E148: 0174344-39.2019.3.00.0000 | F148: STJ | G148: MS 15.628/DF | H148: 2018-08-15 | I148: 2019-05-17 | J148: 2019-06-14 | K148: União | L148: 26.994.558/0001-23 | M148: Brasilia/DF | N148: Comum | O148: 2019-07-01 | P148: 183230.4 | Q148: 1.159666673 | R148: 2.4567 | S148: 34.26 | T148: 231459.2 | U148: 57864.79 | V148: 0 | W148: 0 | X148: 0 | Y148: =TRUNC(AB148*R148/100,2) ->  | Z148: =TRUNC(AB148*$AS148/100,2) ->  | AA148: =TRUNC(Y148*$AS148/100,2) ->  | AB148: =TRUNC(#REF!*Q148,2) ->  | AC148: =T148+U148+V148+W148+X148 -> 289323.99 | AQ148: 2021-12-01 | AR148: 2024-12-01 | AS148: 34.26 | AT148: =IF(AT$43>$AR148,0,IF(AT$43>=$AQ148,AT$44,0)) -> 0.77 | AU148: =IF(AU$43>$AR148,0,IF(AU$43>=$AQ148,AU$44,0)) -> 0.73 | AV148: =IF(AV$43>$AR148,0,IF(AV$43>=$AQ148,AV$44,0)) -> 0.76 | AW148: =IF(AW$43>$AR148,0,IF(AW$43>=$AQ148,AW$44,0)) -> 0.93 | AX148: =IF(AX$43>$AR148,0,IF(AX$43>=$AQ148,AX$44,0)) -> 0.83 | AY148: =IF(AY$43>$AR148,0,IF(AY$43>=$AQ148,AY$44,0)) -> 1.03 | AZ148: =IF(AZ$43>$AR148,0,IF(AZ$43>=$AQ148,AZ$44,0)) -> 1.02 | BA148: =IF(BA$43>$AR148,0,IF(BA$43>=$AQ148,BA$44,0)) -> 1.03 | BB148: =IF(BB$43>$AR148,0,IF(BB$43>=$AQ148,BB$44,0)) -> 1.17 | BC148: =IF(BC$43>$AR148,0,IF(BC$43>=$AQ148,BC$44,0)) -> 1.07 | BD148: =IF(BD$43>$AR148,0,IF(BD$43>=$AQ148,BD$44,0)) -> 1.02 | BE148: =IF(BE$43>$AR148,0,IF(BE$43>=$AQ148,BE$44,0)) -> 1.02 | BF148: =IF(BF$43>$AR148,0,IF(BF$43>=$AQ148,BF$44,0)) -> 1.12 | BG148: =IF(BG$43>$AR148,0,IF(BG$43>=$AQ148,BG$44,0)) -> 1.12 | BH148: =IF(BH$43>$AR148,0,IF(BH$43>=$AQ148,BH$44,0)) -> 0.92 | BI148: =IF(BI$43>$AR148,0,IF(BI$43>=$AQ148,BI$44,0)) -> 1.17 | BJ148: =IF(BJ$43>$AR148,0,IF(BJ$43>=$AQ148,BJ$44,0)) -> 0.92 | BK148: =IF(BK$43>$AR148,0,IF(BK$43>=$AQ148,BK$44,0)) -> 1.12 | BL148: =IF(BL$43>$AR148,0,IF(BL$43>=$AQ148,BL$44,0)) -> 1.07 | BM148: =IF(BM$43>$AR148,0,IF(BM$43>=$AQ148,BM$44,0)) -> 1.07 | BN148: =IF(BN$43>$AR148,0,IF(BN$43>=$AQ148,BN$44,0)) -> 1.14 | BO148: =IF(BO$43>$AR148,0,IF(BO$43>=$AQ148,BO$44,0)) -> 0.97 | BP148: =IF(BP$43>$AR148,0,IF(BP$43>=$AQ148,BP$44,0)) -> 1 | BQ148: =IF(BQ$43>$AR148,0,IF(BQ$43>=$AQ148,BQ$44,0)) -> 0.92 | BR148: =IF(BR$43>$AR148,0,IF(BR$43>=$AQ148,BR$44,0)) -> 0.89 | BS148: =IF(BS$43>$AR148,0,IF(BS$43>=$AQ148,BS$44,0)) -> 0.97 | BT148: =IF(BT$43>$AR148,0,IF(BT$43>=$AQ148,BT$44,0)) -> 0.8 | BU148: =IF(BU$43>$AR148,0,IF(BU$43>=$AQ148,BU$44,0)) -> 0.83 | BV148: =IF(BV$43>$AR148,0,IF(BV$43>=$AQ148,BV$44,0)) -> 0.89 | BW148: =IF(BW$43>$AR148,0,IF(BW$43>=$AQ148,BW$44,0)) -> 0.83 | BX148: =IF(BX$43>$AR148,0,IF(BX$43>=$AQ148,BX$44,0)) -> 0.79 | BY148: =IF(BY$43>$AR148,0,IF(BY$43>=$AQ148,BY$44,0)) -> 0.91 | BZ148: =IF(BZ$43>$AR148,0,IF(BZ$43>=$AQ148,BZ$44,0)) -> 0.87 | CA148: =IF(CA$43>$AR148,0,IF(CA$43>=$AQ148,CA$44,0)) -> 0.84 | CB148: =IF(CB$43>$AR148,0,IF(CB$43>=$AQ148,CB$44,0)) -> 0.93 | CC148: =IF(CC$43>$AR148,0,IF(CC$43>=$AQ148,CC$44,0)) -> 0.79 | CD148: =IF(CD$43>$AR148,0,IF(CD$43>=$AQ148,CD$44,0)) -> 0 | CE148: =IF(CE$43>$AR148,0,IF(CE$43>=$AQ148,CE$44,0)) -> 0 | CF148: =IF(CF$43>$AR148,0,IF(CF$43>=$AQ148,CF$44,0)) -> 0
A149: 104 | B149: PRC | C149: 5004 | D149: 2019/0174345-4 | E149: 0174345-24.2019.3.00.0000 | F149: STJ | G149: MS 15.643/DF | H149: 2018-08-15 | I149: 2019-05-17 | J149: 2019-06-14 | K149: União | L149: 26.994.558/0001-23 | M149: Brasilia/DF | N149: Comum | O149: 2019-07-01 | P149: 214197.84 | Q149: 1.159666673 | R149: 2.4567 | S149: 34.26 | T149: 270577.71 | U149: 67644.42 | V149: 0 | W149: 0 | X149: 0 | Y149: =TRUNC(AB149*R149/100,2) ->  | Z149: =TRUNC(AB149*$AS149/100,2) ->  | AA149: =TRUNC(Y149*$AS149/100,2) ->  | AB149: =TRUNC(#REF!*Q149,2) ->  | AC149: =T149+U149+V149+W149+X149 -> 338222.13 | AQ149: 2021-12-01 | AR149: 2024-12-01 | AS149: 34.26 | AT149: =IF(AT$43>$AR149,0,IF(AT$43>=$AQ149,AT$44,0)) -> 0.77 | AU149: =IF(AU$43>$AR149,0,IF(AU$43>=$AQ149,AU$44,0)) -> 0.73 | AV149: =IF(AV$43>$AR149,0,IF(AV$43>=$AQ149,AV$44,0)) -> 0.76 | AW149: =IF(AW$43>$AR149,0,IF(AW$43>=$AQ149,AW$44,0)) -> 0.93 | AX149: =IF(AX$43>$AR149,0,IF(AX$43>=$AQ149,AX$44,0)) -> 0.83 | AY149: =IF(AY$43>$AR149,0,IF(AY$43>=$AQ149,AY$44,0)) -> 1.03 | AZ149: =IF(AZ$43>$AR149,0,IF(AZ$43>=$AQ149,AZ$44,0)) -> 1.02 | BA149: =IF(BA$43>$AR149,0,IF(BA$43>=$AQ149,BA$44,0)) -> 1.03 | BB149: =IF(BB$43>$AR149,0,IF(BB$43>=$AQ149,BB$44,0)) -> 1.17 | BC149: =IF(BC$43>$AR149,0,IF(BC$43>=$AQ149,BC$44,0)) -> 1.07 | BD149: =IF(BD$43>$AR149,0,IF(BD$43>=$AQ149,BD$44,0)) -> 1.02 | BE149: =IF(BE$43>$AR149,0,IF(BE$43>=$AQ149,BE$44,0)) -> 1.02 | BF149: =IF(BF$43>$AR149,0,IF(BF$43>=$AQ149,BF$44,0)) -> 1.12 | BG149: =IF(BG$43>$AR149,0,IF(BG$43>=$AQ149,BG$44,0)) -> 1.12 | BH149: =IF(BH$43>$AR149,0,IF(BH$43>=$AQ149,BH$44,0)) -> 0.92 | BI149: =IF(BI$43>$AR149,0,IF(BI$43>=$AQ149,BI$44,0)) -> 1.17 | BJ149: =IF(BJ$43>$AR149,0,IF(BJ$43>=$AQ149,BJ$44,0)) -> 0.92 | BK149: =IF(BK$43>$AR149,0,IF(BK$43>=$AQ149,BK$44,0)) -> 1.12 | BL149: =IF(BL$43>$AR149,0,IF(BL$43>=$AQ149,BL$44,0)) -> 1.07 | BM149: =IF(BM$43>$AR149,0,IF(BM$43>=$AQ149,BM$44,0)) -> 1.07 | BN149: =IF(BN$43>$AR149,0,IF(BN$43>=$AQ149,BN$44,0)) -> 1.14 | BO149: =IF(BO$43>$AR149,0,IF(BO$43>=$AQ149,BO$44,0)) -> 0.97 | BP149: =IF(BP$43>$AR149,0,IF(BP$43>=$AQ149,BP$44,0)) -> 1 | BQ149: =IF(BQ$43>$AR149,0,IF(BQ$43>=$AQ149,BQ$44,0)) -> 0.92 | BR149: =IF(BR$43>$AR149,0,IF(BR$43>=$AQ149,BR$44,0)) -> 0.89 | BS149: =IF(BS$43>$AR149,0,IF(BS$43>=$AQ149,BS$44,0)) -> 0.97 | BT149: =IF(BT$43>$AR149,0,IF(BT$43>=$AQ149,BT$44,0)) -> 0.8 | BU149: =IF(BU$43>$AR149,0,IF(BU$43>=$AQ149,BU$44,0)) -> 0.83 | BV149: =IF(BV$43>$AR149,0,IF(BV$43>=$AQ149,BV$44,0)) -> 0.89 | BW149: =IF(BW$43>$AR149,0,IF(BW$43>=$AQ149,BW$44,0)) -> 0.83 | BX149: =IF(BX$43>$AR149,0,IF(BX$43>=$AQ149,BX$44,0)) -> 0.79 | BY149: =IF(BY$43>$AR149,0,IF(BY$43>=$AQ149,BY$44,0)) -> 0.91 | BZ149: =IF(BZ$43>$AR149,0,IF(BZ$43>=$AQ149,BZ$44,0)) -> 0.87 | CA149: =IF(CA$43>$AR149,0,IF(CA$43>=$AQ149,CA$44,0)) -> 0.84 | CB149: =IF(CB$43>$AR149,0,IF(CB$43>=$AQ149,CB$44,0)) -> 0.93 | CC149: =IF(CC$43>$AR149,0,IF(CC$43>=$AQ149,CC$44,0)) -> 0.79 | CD149: =IF(CD$43>$AR149,0,IF(CD$43>=$AQ149,CD$44,0)) -> 0 | CE149: =IF(CE$43>$AR149,0,IF(CE$43>=$AQ149,CE$44,0)) -> 0 | CF149: =IF(CF$43>$AR149,0,IF(CF$43>=$AQ149,CF$44,0)) -> 0
A150: 105 | B150: PRC | C150: 5005 | D150: 2019/0174346-6 | E150: 0174346-09.2019.3.00.0000 | F150: STJ | G150: MS 15.644/DF | H150: 2018-08-15 | I150: 2019-05-17 | J150: 2019-06-14 | K150: União | L150: 26.994.558/0001-23 | M150: Brasilia/DF | N150: Comum | O150: 2019-07-01 | P150: 266681.25 | Q150: 1.159666673 | R150: 2.4567 | S150: 34.26 | T150: 336875.51 | U150: 84218.87 | V150: 0 | W150: 0 | X150: 0 | Y150: =TRUNC(AB150*R150/100,2) ->  | Z150: =TRUNC(AB150*$AS150/100,2) ->  | AA150: =TRUNC(Y150*$AS150/100,2) ->  | AB150: =TRUNC(#REF!*Q150,2) ->  | AC150: =T150+U150+V150+W150+X150 -> 421094.38 | AQ150: 2021-12-01 | AR150: 2024-12-01 | AS150: 34.26 | AT150: =IF(AT$43>$AR150,0,IF(AT$43>=$AQ150,AT$44,0)) -> 0.77 | AU150: =IF(AU$43>$AR150,0,IF(AU$43>=$AQ150,AU$44,0)) -> 0.73 | AV150: =IF(AV$43>$AR150,0,IF(AV$43>=$AQ150,AV$44,0)) -> 0.76 | AW150: =IF(AW$43>$AR150,0,IF(AW$43>=$AQ150,AW$44,0)) -> 0.93 | AX150: =IF(AX$43>$AR150,0,IF(AX$43>=$AQ150,AX$44,0)) -> 0.83 | AY150: =IF(AY$43>$AR150,0,IF(AY$43>=$AQ150,AY$44,0)) -> 1.03 | AZ150: =IF(AZ$43>$AR150,0,IF(AZ$43>=$AQ150,AZ$44,0)) -> 1.02 | BA150: =IF(BA$43>$AR150,0,IF(BA$43>=$AQ150,BA$44,0)) -> 1.03 | BB150: =IF(BB$43>$AR150,0,IF(BB$43>=$AQ150,BB$44,0)) -> 1.17 | BC150: =IF(BC$43>$AR150,0,IF(BC$43>=$AQ150,BC$44,0)) -> 1.07 | BD150: =IF(BD$43>$AR150,0,IF(BD$43>=$AQ150,BD$44,0)) -> 1.02 | BE150: =IF(BE$43>$AR150,0,IF(BE$43>=$AQ150,BE$44,0)) -> 1.02 | BF150: =IF(BF$43>$AR150,0,IF(BF$43>=$AQ150,BF$44,0)) -> 1.12 | BG150: =IF(BG$43>$AR150,0,IF(BG$43>=$AQ150,BG$44,0)) -> 1.12 | BH150: =IF(BH$43>$AR150,0,IF(BH$43>=$AQ150,BH$44,0)) -> 0.92 | BI150: =IF(BI$43>$AR150,0,IF(BI$43>=$AQ150,BI$44,0)) -> 1.17 | BJ150: =IF(BJ$43>$AR150,0,IF(BJ$43>=$AQ150,BJ$44,0)) -> 0.92 | BK150: =IF(BK$43>$AR150,0,IF(BK$43>=$AQ150,BK$44,0)) -> 1.12 | BL150: =IF(BL$43>$AR150,0,IF(BL$43>=$AQ150,BL$44,0)) -> 1.07 | BM150: =IF(BM$43>$AR150,0,IF(BM$43>=$AQ150,BM$44,0)) -> 1.07 | BN150: =IF(BN$43>$AR150,0,IF(BN$43>=$AQ150,BN$44,0)) -> 1.14 | BO150: =IF(BO$43>$AR150,0,IF(BO$43>=$AQ150,BO$44,0)) -> 0.97 | BP150: =IF(BP$43>$AR150,0,IF(BP$43>=$AQ150,BP$44,0)) -> 1 | BQ150: =IF(BQ$43>$AR150,0,IF(BQ$43>=$AQ150,BQ$44,0)) -> 0.92 | BR150: =IF(BR$43>$AR150,0,IF(BR$43>=$AQ150,BR$44,0)) -> 0.89 | BS150: =IF(BS$43>$AR150,0,IF(BS$43>=$AQ150,BS$44,0)) -> 0.97 | BT150: =IF(BT$43>$AR150,0,IF(BT$43>=$AQ150,BT$44,0)) -> 0.8 | BU150: =IF(BU$43>$AR150,0,IF(BU$43>=$AQ150,BU$44,0)) -> 0.83 | BV150: =IF(BV$43>$AR150,0,IF(BV$43>=$AQ150,BV$44,0)) -> 0.89 | BW150: =IF(BW$43>$AR150,0,IF(BW$43>=$AQ150,BW$44,0)) -> 0.83 | BX150: =IF(BX$43>$AR150,0,IF(BX$43>=$AQ150,BX$44,0)) -> 0.79 | BY150: =IF(BY$43>$AR150,0,IF(BY$43>=$AQ150,BY$44,0)) -> 0.91 | BZ150: =IF(BZ$43>$AR150,0,IF(BZ$43>=$AQ150,BZ$44,0)) -> 0.87 | CA150: =IF(CA$43>$AR150,0,IF(CA$43>=$AQ150,CA$44,0)) -> 0.84 | CB150: =IF(CB$43>$AR150,0,IF(CB$43>=$AQ150,CB$44,0)) -> 0.93 | CC150: =IF(CC$43>$AR150,0,IF(CC$43>=$AQ150,CC$44,0)) -> 0.79 | CD150: =IF(CD$43>$AR150,0,IF(CD$43>=$AQ150,CD$44,0)) -> 0 | CE150: =IF(CE$43>$AR150,0,IF(CE$43>=$AQ150,CE$44,0)) -> 0 | CF150: =IF(CF$43>$AR150,0,IF(CF$43>=$AQ150,CF$44,0)) -> 0
A151: 106 | B151: PRC | C151: 5007 | D151: 2019/0174348-0 | E151: 0174348-76.2019.3.00.0000 | F151: STJ | G151: MS 15.632/DF | H151: 2018-08-15 | I151: 2019-05-20 | J151: 2019-06-14 | K151: União | L151: 26.994.558/0001-23 | M151: Brasilia/DF | N151: Comum | O151: 2019-07-01 | P151: 204112.71 | Q151: 1.159666673 | R151: 2.4567 | S151: 34.26 | T151: 257838.04 | U151: 64459.51 | V151: 0 | W151: 0 | X151: 0 | Y151: =TRUNC(AB151*R151/100,2) ->  | Z151: =TRUNC(AB151*$AS151/100,2) ->  | AA151: =TRUNC(Y151*$AS151/100,2) ->  | AB151: =TRUNC(#REF!*Q151,2) ->  | AC151: =T151+U151+V151+W151+X151 -> 322297.55 | AQ151: 2021-12-01 | AR151: 2024-12-01 | AS151: 34.26 | AT151: =IF(AT$43>$AR151,0,IF(AT$43>=$AQ151,AT$44,0)) -> 0.77 | AU151: =IF(AU$43>$AR151,0,IF(AU$43>=$AQ151,AU$44,0)) -> 0.73 | AV151: =IF(AV$43>$AR151,0,IF(AV$43>=$AQ151,AV$44,0)) -> 0.76 | AW151: =IF(AW$43>$AR151,0,IF(AW$43>=$AQ151,AW$44,0)) -> 0.93 | AX151: =IF(AX$43>$AR151,0,IF(AX$43>=$AQ151,AX$44,0)) -> 0.83 | AY151: =IF(AY$43>$AR151,0,IF(AY$43>=$AQ151,AY$44,0)) -> 1.03 | AZ151: =IF(AZ$43>$AR151,0,IF(AZ$43>=$AQ151,AZ$44,0)) -> 1.02 | BA151: =IF(BA$43>$AR151,0,IF(BA$43>=$AQ151,BA$44,0)) -> 1.03 | BB151: =IF(BB$43>$AR151,0,IF(BB$43>=$AQ151,BB$44,0)) -> 1.17 | BC151: =IF(BC$43>$AR151,0,IF(BC$43>=$AQ151,BC$44,0)) -> 1.07 | BD151: =IF(BD$43>$AR151,0,IF(BD$43>=$AQ151,BD$44,0)) -> 1.02 | BE151: =IF(BE$43>$AR151,0,IF(BE$43>=$AQ151,BE$44,0)) -> 1.02 | BF151: =IF(BF$43>$AR151,0,IF(BF$43>=$AQ151,BF$44,0)) -> 1.12 | BG151: =IF(BG$43>$AR151,0,IF(BG$43>=$AQ151,BG$44,0)) -> 1.12 | BH151: =IF(BH$43>$AR151,0,IF(BH$43>=$AQ151,BH$44,0)) -> 0.92 | BI151: =IF(BI$43>$AR151,0,IF(BI$43>=$AQ151,BI$44,0)) -> 1.17 | BJ151: =IF(BJ$43>$AR151,0,IF(BJ$43>=$AQ151,BJ$44,0)) -> 0.92 | BK151: =IF(BK$43>$AR151,0,IF(BK$43>=$AQ151,BK$44,0)) -> 1.12 | BL151: =IF(BL$43>$AR151,0,IF(BL$43>=$AQ151,BL$44,0)) -> 1.07 | BM151: =IF(BM$43>$AR151,0,IF(BM$43>=$AQ151,BM$44,0)) -> 1.07 | BN151: =IF(BN$43>$AR151,0,IF(BN$43>=$AQ151,BN$44,0)) -> 1.14 | BO151: =IF(BO$43>$AR151,0,IF(BO$43>=$AQ151,BO$44,0)) -> 0.97 | BP151: =IF(BP$43>$AR151,0,IF(BP$43>=$AQ151,BP$44,0)) -> 1 | BQ151: =IF(BQ$43>$AR151,0,IF(BQ$43>=$AQ151,BQ$44,0)) -> 0.92 | BR151: =IF(BR$43>$AR151,0,IF(BR$43>=$AQ151,BR$44,0)) -> 0.89 | BS151: =IF(BS$43>$AR151,0,IF(BS$43>=$AQ151,BS$44,0)) -> 0.97 | BT151: =IF(BT$43>$AR151,0,IF(BT$43>=$AQ151,BT$44,0)) -> 0.8 | BU151: =IF(BU$43>$AR151,0,IF(BU$43>=$AQ151,BU$44,0)) -> 0.83 | BV151: =IF(BV$43>$AR151,0,IF(BV$43>=$AQ151,BV$44,0)) -> 0.89 | BW151: =IF(BW$43>$AR151,0,IF(BW$43>=$AQ151,BW$44,0)) -> 0.83 | BX151: =IF(BX$43>$AR151,0,IF(BX$43>=$AQ151,BX$44,0)) -> 0.79 | BY151: =IF(BY$43>$AR151,0,IF(BY$43>=$AQ151,BY$44,0)) -> 0.91 | BZ151: =IF(BZ$43>$AR151,0,IF(BZ$43>=$AQ151,BZ$44,0)) -> 0.87 | CA151: =IF(CA$43>$AR151,0,IF(CA$43>=$AQ151,CA$44,0)) -> 0.84 | CB151: =IF(CB$43>$AR151,0,IF(CB$43>=$AQ151,CB$44,0)) -> 0.93 | CC151: =IF(CC$43>$AR151,0,IF(CC$43>=$AQ151,CC$44,0)) -> 0.79 | CD151: =IF(CD$43>$AR151,0,IF(CD$43>=$AQ151,CD$44,0)) -> 0 | CE151: =IF(CE$43>$AR151,0,IF(CE$43>=$AQ151,CE$44,0)) -> 0 | CF151: =IF(CF$43>$AR151,0,IF(CF$43>=$AQ151,CF$44,0)) -> 0
A152: 107 | B152: PRC | C152: 5009 | D152: 2019/0174350-6 | E152: 0174350-46.2019.3.00.0000 | F152: STJ | G152: MS 15.573/DF | H152: 2018-06-20 | I152: 2019-05-20 | J152: 2019-06-14 | K152: União | L152: 26.994.558/0001-23 | M152: Brasilia/DF | N152: Comum | O152: 2019-07-01 | P152: 266681.25 | Q152: 1.159666673 | R152: 2.4567 | S152: 34.26 | T152: 336875.51 | U152: 84218.87 | V152: 0 | W152: 0 | X152: 0 | Y152: =TRUNC(AB152*R152/100,2) ->  | Z152: =TRUNC(AB152*$AS152/100,2) ->  | AA152: =TRUNC(Y152*$AS152/100,2) ->  | AB152: =TRUNC(#REF!*Q152,2) ->  | AC152: =T152+U152+V152+W152+X152 -> 421094.38 | AQ152: 2021-12-01 | AR152: 2024-12-01 | AS152: 34.26 | AT152: =IF(AT$43>$AR152,0,IF(AT$43>=$AQ152,AT$44,0)) -> 0.77 | AU152: =IF(AU$43>$AR152,0,IF(AU$43>=$AQ152,AU$44,0)) -> 0.73 | AV152: =IF(AV$43>$AR152,0,IF(AV$43>=$AQ152,AV$44,0)) -> 0.76 | AW152: =IF(AW$43>$AR152,0,IF(AW$43>=$AQ152,AW$44,0)) -> 0.93 | AX152: =IF(AX$43>$AR152,0,IF(AX$43>=$AQ152,AX$44,0)) -> 0.83 | AY152: =IF(AY$43>$AR152,0,IF(AY$43>=$AQ152,AY$44,0)) -> 1.03 | AZ152: =IF(AZ$43>$AR152,0,IF(AZ$43>=$AQ152,AZ$44,0)) -> 1.02 | BA152: =IF(BA$43>$AR152,0,IF(BA$43>=$AQ152,BA$44,0)) -> 1.03 | BB152: =IF(BB$43>$AR152,0,IF(BB$43>=$AQ152,BB$44,0)) -> 1.17 | BC152: =IF(BC$43>$AR152,0,IF(BC$43>=$AQ152,BC$44,0)) -> 1.07 | BD152: =IF(BD$43>$AR152,0,IF(BD$43>=$AQ152,BD$44,0)) -> 1.02 | BE152: =IF(BE$43>$AR152,0,IF(BE$43>=$AQ152,BE$44,0)) -> 1.02 | BF152: =IF(BF$43>$AR152,0,IF(BF$43>=$AQ152,BF$44,0)) -> 1.12 | BG152: =IF(BG$43>$AR152,0,IF(BG$43>=$AQ152,BG$44,0)) -> 1.12 | BH152: =IF(BH$43>$AR152,0,IF(BH$43>=$AQ152,BH$44,0)) -> 0.92 | BI152: =IF(BI$43>$AR152,0,IF(BI$43>=$AQ152,BI$44,0)) -> 1.17 | BJ152: =IF(BJ$43>$AR152,0,IF(BJ$43>=$AQ152,BJ$44,0)) -> 0.92 | BK152: =IF(BK$43>$AR152,0,IF(BK$43>=$AQ152,BK$44,0)) -> 1.12 | BL152: =IF(BL$43>$AR152,0,IF(BL$43>=$AQ152,BL$44,0)) -> 1.07 | BM152: =IF(BM$43>$AR152,0,IF(BM$43>=$AQ152,BM$44,0)) -> 1.07 | BN152: =IF(BN$43>$AR152,0,IF(BN$43>=$AQ152,BN$44,0)) -> 1.14 | BO152: =IF(BO$43>$AR152,0,IF(BO$43>=$AQ152,BO$44,0)) -> 0.97 | BP152: =IF(BP$43>$AR152,0,IF(BP$43>=$AQ152,BP$44,0)) -> 1 | BQ152: =IF(BQ$43>$AR152,0,IF(BQ$43>=$AQ152,BQ$44,0)) -> 0.92 | BR152: =IF(BR$43>$AR152,0,IF(BR$43>=$AQ152,BR$44,0)) -> 0.89 | BS152: =IF(BS$43>$AR152,0,IF(BS$43>=$AQ152,BS$44,0)) -> 0.97 | BT152: =IF(BT$43>$AR152,0,IF(BT$43>=$AQ152,BT$44,0)) -> 0.8 | BU152: =IF(BU$43>$AR152,0,IF(BU$43>=$AQ152,BU$44,0)) -> 0.83 | BV152: =IF(BV$43>$AR152,0,IF(BV$43>=$AQ152,BV$44,0)) -> 0.89 | BW152: =IF(BW$43>$AR152,0,IF(BW$43>=$AQ152,BW$44,0)) -> 0.83 | BX152: =IF(BX$43>$AR152,0,IF(BX$43>=$AQ152,BX$44,0)) -> 0.79 | BY152: =IF(BY$43>$AR152,0,IF(BY$43>=$AQ152,BY$44,0)) -> 0.91 | BZ152: =IF(BZ$43>$AR152,0,IF(BZ$43>=$AQ152,BZ$44,0)) -> 0.87 | CA152: =IF(CA$43>$AR152,0,IF(CA$43>=$AQ152,CA$44,0)) -> 0.84 | CB152: =IF(CB$43>$AR152,0,IF(CB$43>=$AQ152,CB$44,0)) -> 0.93 | CC152: =IF(CC$43>$AR152,0,IF(CC$43>=$AQ152,CC$44,0)) -> 0.79 | CD152: =IF(CD$43>$AR152,0,IF(CD$43>=$AQ152,CD$44,0)) -> 0 | CE152: =IF(CE$43>$AR152,0,IF(CE$43>=$AQ152,CE$44,0)) -> 0 | CF152: =IF(CF$43>$AR152,0,IF(CF$43>=$AQ152,CF$44,0)) -> 0
A153: 108 | B153: PRC | C153: 5010 | D153: 2019/0174351-8 | E153: 0174351-31.2019.3.00.0000 | F153: STJ | G153: MS 15.629/DF | H153: 2018-08-15 | I153: 2019-05-20 | J153: 2019-06-14 | K153: União | L153: 26.994.558/0001-23 | M153: Brasilia/DF | N153: Comum | O153: 2019-07-01 | P153: 180534.53 | Q153: 1.159666673 | R153: 2.4567 | S153: 34.26 | T153: 228053.75 | U153: 57013.43 | V153: 0 | W153: 0 | X153: 0 | Y153: =TRUNC(AB153*R153/100,2) ->  | Z153: =TRUNC(AB153*$AS153/100,2) ->  | AA153: =TRUNC(Y153*$AS153/100,2) ->  | AB153: =TRUNC(#REF!*Q153,2) ->  | AC153: =T153+U153+V153+W153+X153 -> 285067.18 | AQ153: 2021-12-01 | AR153: 2024-12-01 | AS153: 34.26 | AT153: =IF(AT$43>$AR153,0,IF(AT$43>=$AQ153,AT$44,0)) -> 0.77 | AU153: =IF(AU$43>$AR153,0,IF(AU$43>=$AQ153,AU$44,0)) -> 0.73 | AV153: =IF(AV$43>$AR153,0,IF(AV$43>=$AQ153,AV$44,0)) -> 0.76 | AW153: =IF(AW$43>$AR153,0,IF(AW$43>=$AQ153,AW$44,0)) -> 0.93 | AX153: =IF(AX$43>$AR153,0,IF(AX$43>=$AQ153,AX$44,0)) -> 0.83 | AY153: =IF(AY$43>$AR153,0,IF(AY$43>=$AQ153,AY$44,0)) -> 1.03 | AZ153: =IF(AZ$43>$AR153,0,IF(AZ$43>=$AQ153,AZ$44,0)) -> 1.02 | BA153: =IF(BA$43>$AR153,0,IF(BA$43>=$AQ153,BA$44,0)) -> 1.03 | BB153: =IF(BB$43>$AR153,0,IF(BB$43>=$AQ153,BB$44,0)) -> 1.17 | BC153: =IF(BC$43>$AR153,0,IF(BC$43>=$AQ153,BC$44,0)) -> 1.07 | BD153: =IF(BD$43>$AR153,0,IF(BD$43>=$AQ153,BD$44,0)) -> 1.02 | BE153: =IF(BE$43>$AR153,0,IF(BE$43>=$AQ153,BE$44,0)) -> 1.02 | BF153: =IF(BF$43>$AR153,0,IF(BF$43>=$AQ153,BF$44,0)) -> 1.12 | BG153: =IF(BG$43>$AR153,0,IF(BG$43>=$AQ153,BG$44,0)) -> 1.12 | BH153: =IF(BH$43>$AR153,0,IF(BH$43>=$AQ153,BH$44,0)) -> 0.92 | BI153: =IF(BI$43>$AR153,0,IF(BI$43>=$AQ153,BI$44,0)) -> 1.17 | BJ153: =IF(BJ$43>$AR153,0,IF(BJ$43>=$AQ153,BJ$44,0)) -> 0.92 | BK153: =IF(BK$43>$AR153,0,IF(BK$43>=$AQ153,BK$44,0)) -> 1.12 | BL153: =IF(BL$43>$AR153,0,IF(BL$43>=$AQ153,BL$44,0)) -> 1.07 | BM153: =IF(BM$43>$AR153,0,IF(BM$43>=$AQ153,BM$44,0)) -> 1.07 | BN153: =IF(BN$43>$AR153,0,IF(BN$43>=$AQ153,BN$44,0)) -> 1.14 | BO153: =IF(BO$43>$AR153,0,IF(BO$43>=$AQ153,BO$44,0)) -> 0.97 | BP153: =IF(BP$43>$AR153,0,IF(BP$43>=$AQ153,BP$44,0)) -> 1 | BQ153: =IF(BQ$43>$AR153,0,IF(BQ$43>=$AQ153,BQ$44,0)) -> 0.92 | BR153: =IF(BR$43>$AR153,0,IF(BR$43>=$AQ153,BR$44,0)) -> 0.89 | BS153: =IF(BS$43>$AR153,0,IF(BS$43>=$AQ153,BS$44,0)) -> 0.97 | BT153: =IF(BT$43>$AR153,0,IF(BT$43>=$AQ153,BT$44,0)) -> 0.8 | BU153: =IF(BU$43>$AR153,0,IF(BU$43>=$AQ153,BU$44,0)) -> 0.83 | BV153: =IF(BV$43>$AR153,0,IF(BV$43>=$AQ153,BV$44,0)) -> 0.89 | BW153: =IF(BW$43>$AR153,0,IF(BW$43>=$AQ153,BW$44,0)) -> 0.83 | BX153: =IF(BX$43>$AR153,0,IF(BX$43>=$AQ153,BX$44,0)) -> 0.79 | BY153: =IF(BY$43>$AR153,0,IF(BY$43>=$AQ153,BY$44,0)) -> 0.91 | BZ153: =IF(BZ$43>$AR153,0,IF(BZ$43>=$AQ153,BZ$44,0)) -> 0.87 | CA153: =IF(CA$43>$AR153,0,IF(CA$43>=$AQ153,CA$44,0)) -> 0.84 | CB153: =IF(CB$43>$AR153,0,IF(CB$43>=$AQ153,CB$44,0)) -> 0.93 | CC153: =IF(CC$43>$AR153,0,IF(CC$43>=$AQ153,CC$44,0)) -> 0.79 | CD153: =IF(CD$43>$AR153,0,IF(CD$43>=$AQ153,CD$44,0)) -> 0 | CE153: =IF(CE$43>$AR153,0,IF(CE$43>=$AQ153,CE$44,0)) -> 0 | CF153: =IF(CF$43>$AR153,0,IF(CF$43>=$AQ153,CF$44,0)) -> 0
A154: 109 | B154: PRC | C154: 5013 | D154: 2019/0174358-0 | E154: 0174358-23.2019.3.00.0000 | F154: STJ | G154: MS 23.673/DF | H154: 2017-10-24 | I154: 2019-05-10 | J154: 2019-06-14 | K154: União | L154: 26.994.558/0001-23 | M154: Brasilia/DF | N154: Comum | O154: 2019-07-01 | P154: 278895.79 | Q154: 1.159666673 | R154: 2.4567 | S154: 34.26 | T154: 352305.08 | U154: 88076.26 | V154: 0 | W154: 0 | X154: 0 | Y154: =TRUNC(AB154*R154/100,2) ->  | Z154: =TRUNC(AB154*$AS154/100,2) ->  | AA154: =TRUNC(Y154*$AS154/100,2) ->  | AB154: =TRUNC(#REF!*Q154,2) ->  | AC154: =T154+U154+V154+W154+X154 -> 440381.34 | AQ154: 2021-12-01 | AR154: 2024-12-01 | AS154: 34.26 | AT154: =IF(AT$43>$AR154,0,IF(AT$43>=$AQ154,AT$44,0)) -> 0.77 | AU154: =IF(AU$43>$AR154,0,IF(AU$43>=$AQ154,AU$44,0)) -> 0.73 | AV154: =IF(AV$43>$AR154,0,IF(AV$43>=$AQ154,AV$44,0)) -> 0.76 | AW154: =IF(AW$43>$AR154,0,IF(AW$43>=$AQ154,AW$44,0)) -> 0.93 | AX154: =IF(AX$43>$AR154,0,IF(AX$43>=$AQ154,AX$44,0)) -> 0.83 | AY154: =IF(AY$43>$AR154,0,IF(AY$43>=$AQ154,AY$44,0)) -> 1.03 | AZ154: =IF(AZ$43>$AR154,0,IF(AZ$43>=$AQ154,AZ$44,0)) -> 1.02 | BA154: =IF(BA$43>$AR154,0,IF(BA$43>=$AQ154,BA$44,0)) -> 1.03 | BB154: =IF(BB$43>$AR154,0,IF(BB$43>=$AQ154,BB$44,0)) -> 1.17 | BC154: =IF(BC$43>$AR154,0,IF(BC$43>=$AQ154,BC$44,0)) -> 1.07 | BD154: =IF(BD$43>$AR154,0,IF(BD$43>=$AQ154,BD$44,0)) -> 1.02 | BE154: =IF(BE$43>$AR154,0,IF(BE$43>=$AQ154,BE$44,0)) -> 1.02 | BF154: =IF(BF$43>$AR154,0,IF(BF$43>=$AQ154,BF$44,0)) -> 1.12 | BG154: =IF(BG$43>$AR154,0,IF(BG$43>=$AQ154,BG$44,0)) -> 1.12 | BH154: =IF(BH$43>$AR154,0,IF(BH$43>=$AQ154,BH$44,0)) -> 0.92 | BI154: =IF(BI$43>$AR154,0,IF(BI$43>=$AQ154,BI$44,0)) -> 1.17 | BJ154: =IF(BJ$43>$AR154,0,IF(BJ$43>=$AQ154,BJ$44,0)) -> 0.92 | BK154: =IF(BK$43>$AR154,0,IF(BK$43>=$AQ154,BK$44,0)) -> 1.12 | BL154: =IF(BL$43>$AR154,0,IF(BL$43>=$AQ154,BL$44,0)) -> 1.07 | BM154: =IF(BM$43>$AR154,0,IF(BM$43>=$AQ154,BM$44,0)) -> 1.07 | BN154: =IF(BN$43>$AR154,0,IF(BN$43>=$AQ154,BN$44,0)) -> 1.14 | BO154: =IF(BO$43>$AR154,0,IF(BO$43>=$AQ154,BO$44,0)) -> 0.97 | BP154: =IF(BP$43>$AR154,0,IF(BP$43>=$AQ154,BP$44,0)) -> 1 | BQ154: =IF(BQ$43>$AR154,0,IF(BQ$43>=$AQ154,BQ$44,0)) -> 0.92 | BR154: =IF(BR$43>$AR154,0,IF(BR$43>=$AQ154,BR$44,0)) -> 0.89 | BS154: =IF(BS$43>$AR154,0,IF(BS$43>=$AQ154,BS$44,0)) -> 0.97 | BT154: =IF(BT$43>$AR154,0,IF(BT$43>=$AQ154,BT$44,0)) -> 0.8 | BU154: =IF(BU$43>$AR154,0,IF(BU$43>=$AQ154,BU$44,0)) -> 0.83 | BV154: =IF(BV$43>$AR154,0,IF(BV$43>=$AQ154,BV$44,0)) -> 0.89 | BW154: =IF(BW$43>$AR154,0,IF(BW$43>=$AQ154,BW$44,0)) -> 0.83 | BX154: =IF(BX$43>$AR154,0,IF(BX$43>=$AQ154,BX$44,0)) -> 0.79 | BY154: =IF(BY$43>$AR154,0,IF(BY$43>=$AQ154,BY$44,0)) -> 0.91 | BZ154: =IF(BZ$43>$AR154,0,IF(BZ$43>=$AQ154,BZ$44,0)) -> 0.87 | CA154: =IF(CA$43>$AR154,0,IF(CA$43>=$AQ154,CA$44,0)) -> 0.84 | CB154: =IF(CB$43>$AR154,0,IF(CB$43>=$AQ154,CB$44,0)) -> 0.93 | CC154: =IF(CC$43>$AR154,0,IF(CC$43>=$AQ154,CC$44,0)) -> 0.79 | CD154: =IF(CD$43>$AR154,0,IF(CD$43>=$AQ154,CD$44,0)) -> 0 | CE154: =IF(CE$43>$AR154,0,IF(CE$43>=$AQ154,CE$44,0)) -> 0 | CF154: =IF(CF$43>$AR154,0,IF(CF$43>=$AQ154,CF$44,0)) -> 0
A155: 110 | B155: PRC | C155: 5015 | D155: 2019/0174361-9 | E155: 0174361-75.2019.3.00.0000 | F155: STJ | G155: MS 23.235/DF | H155: 2017-10-03 | I155: 2019-05-15 | J155: 2019-06-14 | K155: União | L155: 26.994.558/0001-23 | M155: Brasilia/DF | N155: Comum | O155: 2019-07-01 | P155: 217525.33 | Q155: 1.159666673 | R155: 2.4567 | S155: 34.26 | T155: 274781.04 | U155: 68695.26 | V155: 0 | W155: 0 | X155: 0 | Y155: =TRUNC(AB155*R155/100,2) ->  | Z155: =TRUNC(AB155*$AS155/100,2) ->  | AA155: =TRUNC(Y155*$AS155/100,2) ->  | AB155: =TRUNC(#REF!*Q155,2) ->  | AC155: =T155+U155+V155+W155+X155 -> 343476.3 | AQ155: 2021-12-01 | AR155: 2024-12-01 | AS155: =SUM(AT155:CF155) -> 34.26 | AT155: =IF(AT$43>$AR155,0,IF(AT$43>=$AQ155,AT$44,0)) -> 0.77 | AU155: =IF(AU$43>$AR155,0,IF(AU$43>=$AQ155,AU$44,0)) -> 0.73 | AV155: =IF(AV$43>$AR155,0,IF(AV$43>=$AQ155,AV$44,0)) -> 0.76 | AW155: =IF(AW$43>$AR155,0,IF(AW$43>=$AQ155,AW$44,0)) -> 0.93 | AX155: =IF(AX$43>$AR155,0,IF(AX$43>=$AQ155,AX$44,0)) -> 0.83 | AY155: =IF(AY$43>$AR155,0,IF(AY$43>=$AQ155,AY$44,0)) -> 1.03 | AZ155: =IF(AZ$43>$AR155,0,IF(AZ$43>=$AQ155,AZ$44,0)) -> 1.02 | BA155: =IF(BA$43>$AR155,0,IF(BA$43>=$AQ155,BA$44,0)) -> 1.03 | BB155: =IF(BB$43>$AR155,0,IF(BB$43>=$AQ155,BB$44,0)) -> 1.17 | BC155: =IF(BC$43>$AR155,0,IF(BC$43>=$AQ155,BC$44,0)) -> 1.07 | BD155: =IF(BD$43>$AR155,0,IF(BD$43>=$AQ155,BD$44,0)) -> 1.02 | BE155: =IF(BE$43>$AR155,0,IF(BE$43>=$AQ155,BE$44,0)) -> 1.02 | BF155: =IF(BF$43>$AR155,0,IF(BF$43>=$AQ155,BF$44,0)) -> 1.12 | BG155: =IF(BG$43>$AR155,0,IF(BG$43>=$AQ155,BG$44,0)) -> 1.12 | BH155: =IF(BH$43>$AR155,0,IF(BH$43>=$AQ155,BH$44,0)) -> 0.92 | BI155: =IF(BI$43>$AR155,0,IF(BI$43>=$AQ155,BI$44,0)) -> 1.17 | BJ155: =IF(BJ$43>$AR155,0,IF(BJ$43>=$AQ155,BJ$44,0)) -> 0.92 | BK155: 1.12 | BL155: 1.07 | BM155: 1.07 | BN155: 1.14 | BO155: 0.97 | BP155: 1 | BQ155: 0.92 | BR155: 0.89 | BS155: 0.97 | BT155: 0.8 | BU155: 0.83 | BV155: 0.89 | BW155: 0.83 | BX155: 0.79 | BY155: =IF(BY$43>$AR155,0,IF(BY$43>=$AQ155,BY$44,0)) -> 0.91 | BZ155: =IF(BZ$43>$AR155,0,IF(BZ$43>=$AQ155,BZ$44,0)) -> 0.87 | CA155: =IF(CA$43>$AR155,0,IF(CA$43>=$AQ155,CA$44,0)) -> 0.84 | CB155: =IF(CB$43>$AR155,0,IF(CB$43>=$AQ155,CB$44,0)) -> 0.93 | CC155: =IF(CC$43>$AR155,0,IF(CC$43>=$AQ155,CC$44,0)) -> 0.79 | CD155: =IF(CD$43>$AR155,0,IF(CD$43>=$AQ155,CD$44,0)) -> 0 | CE155: =IF(CE$43>$AR155,0,IF(CE$43>=$AQ155,CE$44,0)) -> 0 | CF155: =IF(CF$43>$AR155,0,IF(CF$43>=$AQ155,CF$44,0)) -> 0
A156: 111 | B156: PRC | C156: 5018 | D156: 2019/0174366-8 | E156: 0174366-97.2019.3.00.0000 | F156: STJ | G156: MS 16.663/DF | H156: 2018-06-20 | I156: 2019-03-01 | J156: 2019-06-14 | K156: União | L156: 26.994.558/0001-23 | M156: Brasilia/DF | N156: Comum | O156: 2019-07-01 | P156: 224325 | Q156: 1.159666673 | R156: 2.4567 | S156: 34.26 | T156: 283370.48 | U156: 70842.62 | V156: 0 | W156: 0 | X156: 0 | Y156: =TRUNC(AB156*R156/100,2) ->  | Z156: =TRUNC(AB156*$AS156/100,2) ->  | AA156: =TRUNC(Y156*$AS156/100,2) ->  | AB156: =TRUNC(#REF!*Q156,2) ->  | AC156: =T156+U156+V156+W156+X156 -> 354213.1 | AQ156: 2021-12-01 | AR156: 2024-12-01 | AS156: 34.26 | AT156: =IF(AT$43>$AR156,0,IF(AT$43>=$AQ156,AT$44,0)) -> 0.77 | AU156: =IF(AU$43>$AR156,0,IF(AU$43>=$AQ156,AU$44,0)) -> 0.73 | AV156: =IF(AV$43>$AR156,0,IF(AV$43>=$AQ156,AV$44,0)) -> 0.76 | AW156: =IF(AW$43>$AR156,0,IF(AW$43>=$AQ156,AW$44,0)) -> 0.93 | AX156: =IF(AX$43>$AR156,0,IF(AX$43>=$AQ156,AX$44,0)) -> 0.83 | AY156: =IF(AY$43>$AR156,0,IF(AY$43>=$AQ156,AY$44,0)) -> 1.03 | AZ156: =IF(AZ$43>$AR156,0,IF(AZ$43>=$AQ156,AZ$44,0)) -> 1.02 | BA156: =IF(BA$43>$AR156,0,IF(BA$43>=$AQ156,BA$44,0)) -> 1.03 | BB156: =IF(BB$43>$AR156,0,IF(BB$43>=$AQ156,BB$44,0)) -> 1.17 | BC156: =IF(BC$43>$AR156,0,IF(BC$43>=$AQ156,BC$44,0)) -> 1.07 | BD156: =IF(BD$43>$AR156,0,IF(BD$43>=$AQ156,BD$44,0)) -> 1.02 | BE156: =IF(BE$43>$AR156,0,IF(BE$43>=$AQ156,BE$44,0)) -> 1.02 | BF156: =IF(BF$43>$AR156,0,IF(BF$43>=$AQ156,BF$44,0)) -> 1.12 | BG156: =IF(BG$43>$AR156,0,IF(BG$43>=$AQ156,BG$44,0)) -> 1.12 | BH156: =IF(BH$43>$AR156,0,IF(BH$43>=$AQ156,BH$44,0)) -> 0.92 | BI156: 1.17 | BJ156: 0.92 | BK156: 1.12 | BL156: 1.07 | BM156: 1.07 | BN156: 1.14 | BO156: 0.97 | BP156: 1 | BQ156: 0.92 | BR156: 0.89 | BS156: 0.97 | BT156: 0.8 | BU156: 0.83 | BV156: 0.89 | BW156: 0.83 | BX156: =IF(BX$43>$AR156,0,IF(BX$43>=$AQ156,BX$44,0)) -> 0.79 | BY156: 0.91 | BZ156: 0.87 | CA156: 0.84 | CB156: 0.93 | CC156: 0.79 | CD156: 0 | CE156: 0 | CF156: 0
A157: 112 | B157: PRC | C157: 5019 | D157: 2019/0174378-2 | E157: 0174378-14.2019.3.00.0000 | F157: STJ | G157: MS 16.643/DF | H157: 2018-06-07 | I157: 2019-02-28 | J157: 2019-06-14 | K157: União | L157: 26.994.558/0001-23 | M157: Brasilia/DF | N157: Comum | O157: 2019-07-01 | P157: 199463.15 | Q157: 1.159666673 | R157: 2.4567 | S157: 34.26 | T157: 283460.24 | U157: 31495.58 | V157: 0 | W157: 0 | X157: 0 | Y157: =TRUNC(AB157*R157/100,2) ->  | Z157: =TRUNC(AB157*$AS157/100,2) ->  | AA157: =TRUNC(Y157*$AS157/100,2) ->  | AB157: =TRUNC(#REF!*Q157,2) ->  | AC157: =T157+U157+V157+W157+X157 -> 314955.82 | AQ157: 2021-12-01 | AR157: 2024-12-01 | AS157: 34.26 | AT157: =IF(AT$43>$AR157,0,IF(AT$43>=$AQ157,AT$44,0)) -> 0.77 | AU157: =IF(AU$43>$AR157,0,IF(AU$43>=$AQ157,AU$44,0)) -> 0.73 | AV157: =IF(AV$43>$AR157,0,IF(AV$43>=$AQ157,AV$44,0)) -> 0.76 | AW157: =IF(AW$43>$AR157,0,IF(AW$43>=$AQ157,AW$44,0)) -> 0.93 | AX157: =IF(AX$43>$AR157,0,IF(AX$43>=$AQ157,AX$44,0)) -> 0.83 | AY157: =IF(AY$43>$AR157,0,IF(AY$43>=$AQ157,AY$44,0)) -> 1.03 | AZ157: =IF(AZ$43>$AR157,0,IF(AZ$43>=$AQ157,AZ$44,0)) -> 1.02 | BA157: =IF(BA$43>$AR157,0,IF(BA$43>=$AQ157,BA$44,0)) -> 1.03 | BB157: =IF(BB$43>$AR157,0,IF(BB$43>=$AQ157,BB$44,0)) -> 1.17 | BC157: =IF(BC$43>$AR157,0,IF(BC$43>=$AQ157,BC$44,0)) -> 1.07 | BD157: =IF(BD$43>$AR157,0,IF(BD$43>=$AQ157,BD$44,0)) -> 1.02 | BE157: =IF(BE$43>$AR157,0,IF(BE$43>=$AQ157,BE$44,0)) -> 1.02 | BF157: =IF(BF$43>$AR157,0,IF(BF$43>=$AQ157,BF$44,0)) -> 1.12 | BG157: =IF(BG$43>$AR157,0,IF(BG$43>=$AQ157,BG$44,0)) -> 1.12 | BH157: =IF(BH$43>$AR157,0,IF(BH$43>=$AQ157,BH$44,0)) -> 0.92 | BI157: =IF(BI$43>$AR157,0,IF(BI$43>=$AQ157,BI$44,0)) -> 1.17 | BJ157: 0.92 | BK157: 1.12 | BL157: 1.07 | BM157: 1.07 | BN157: 1.14 | BO157: 0.97 | BP157: 1 | BQ157: 0.92 | BR157: 0.89 | BS157: 0.97 | BT157: 0.8 | BU157: 0.83 | BV157: 0.89 | BW157: 0.83 | BX157: 0.79 | BY157: =IF(BY$43>$AR157,0,IF(BY$43>=$AQ157,BY$44,0)) -> 0.91 | BZ157: 0.87 | CA157: 0.84 | CB157: 0.93 | CC157: 0.79 | CD157: 0 | CE157: 0 | CF157: 0
A158: 113 | B158: PRC | C158: 5020 | D158: 2019/0174380-9 | E158: 0174380-81.2019.3.00.0000 | F158: STJ | G158: MS 18.272/DF | H158: 2018-06-20 | I158: 2019-03-18 | J158: 2019-06-14 | K158: União | L158: 26.994.558/0001-23 | M158: Brasilia/DF | N158: Comum | O158: 2019-07-01 | P158: 238665.12 | Q158: 1.159666673 | R158: 2.4567 | S158: 34.26 | T158: 339170.76 | U158: 37685.64 | V158: 0 | W158: 0 | X158: 0 | Y158: =TRUNC(AB158*R158/100,2) ->  | Z158: =TRUNC(AB158*$AS158/100,2) ->  | AA158: =TRUNC(Y158*$AS158/100,2) ->  | AB158: =TRUNC(#REF!*Q158,2) ->  | AC158: =T158+U158+V158+W158+X158 -> 376856.4 | AQ158: 2021-12-01 | AR158: 2024-12-01 | AS158: 34.26 | AT158: =IF(AT$43>$AR158,0,IF(AT$43>=$AQ158,AT$44,0)) -> 0.77 | AU158: =IF(AU$43>$AR158,0,IF(AU$43>=$AQ158,AU$44,0)) -> 0.73 | AV158: =IF(AV$43>$AR158,0,IF(AV$43>=$AQ158,AV$44,0)) -> 0.76 | AW158: =IF(AW$43>$AR158,0,IF(AW$43>=$AQ158,AW$44,0)) -> 0.93 | AX158: =IF(AX$43>$AR158,0,IF(AX$43>=$AQ158,AX$44,0)) -> 0.83 | AY158: =IF(AY$43>$AR158,0,IF(AY$43>=$AQ158,AY$44,0)) -> 1.03 | AZ158: =IF(AZ$43>$AR158,0,IF(AZ$43>=$AQ158,AZ$44,0)) -> 1.02 | BA158: =IF(BA$43>$AR158,0,IF(BA$43>=$AQ158,BA$44,0)) -> 1.03 | BB158: =IF(BB$43>$AR158,0,IF(BB$43>=$AQ158,BB$44,0)) -> 1.17 | BC158: =IF(BC$43>$AR158,0,IF(BC$43>=$AQ158,BC$44,0)) -> 1.07 | BD158: =IF(BD$43>$AR158,0,IF(BD$43>=$AQ158,BD$44,0)) -> 1.02 | BE158: =IF(BE$43>$AR158,0,IF(BE$43>=$AQ158,BE$44,0)) -> 1.02 | BF158: =IF(BF$43>$AR158,0,IF(BF$43>=$AQ158,BF$44,0)) -> 1.12 | BG158: =IF(BG$43>$AR158,0,IF(BG$43>=$AQ158,BG$44,0)) -> 1.12 | BH158: =IF(BH$43>$AR158,0,IF(BH$43>=$AQ158,BH$44,0)) -> 0.92 | BI158: 1.17 | BJ158: 0.92 | BK158: 1.12 | BL158: 1.07 | BM158: 1.07 | BN158: 1.14 | BO158: 0.97 | BP158: 1 | BQ158: 0.92 | BR158: 0.89 | BS158: 0.97 | BT158: 0.8 | BU158: 0.83 | BV158: 0.89 | BW158: 0.83 | BX158: 0.79 | BY158: =IF(BY$43>$AR158,0,IF(BY$43>=$AQ158,BY$44,0)) -> 0.91 | BZ158: 0.87 | CA158: 0.84 | CB158: 0.93 | CC158: 0.79 | CD158: 0 | CE158: 0 | CF158: 0
A159: 114 | B159: PRC | C159: 5022 | D159: 2019/0174384-6 | E159: 0174384-21.2019.3.00.0000 | F159: STJ | G159: MS 18.279/DF | H159: 2018-08-29 | I159: 2019-03-18 | J159: 2019-06-14 | K159: União | L159: 26.994.558/0001-23 | M159: Brasilia/DF | N159: Comum | O159: 2019-07-01 | P159: 204468.46 | Q159: 1.159666673 | R159: 2.4567 | S159: 34.26 | T159: 290573.36 | U159: 32285.92 | V159: 0 | W159: 0 | X159: 0 | Y159: =TRUNC(AB159*R159/100,2) ->  | Z159: =TRUNC(AB159*$AS159/100,2) ->  | AA159: =TRUNC(Y159*$AS159/100,2) ->  | AB159: =TRUNC(#REF!*Q159,2) ->  | AC159: =T159+U159+V159+W159+X159 -> 322859.28 | AQ159: 2021-12-01 | AR159: 2024-12-01 | AS159: 34.26 | AT159: =IF(AT$43>$AR159,0,IF(AT$43>=$AQ159,AT$44,0)) -> 0.77 | AU159: =IF(AU$43>$AR159,0,IF(AU$43>=$AQ159,AU$44,0)) -> 0.73 | AV159: =IF(AV$43>$AR159,0,IF(AV$43>=$AQ159,AV$44,0)) -> 0.76 | AW159: =IF(AW$43>$AR159,0,IF(AW$43>=$AQ159,AW$44,0)) -> 0.93 | AX159: =IF(AX$43>$AR159,0,IF(AX$43>=$AQ159,AX$44,0)) -> 0.83 | AY159: =IF(AY$43>$AR159,0,IF(AY$43>=$AQ159,AY$44,0)) -> 1.03 | AZ159: =IF(AZ$43>$AR159,0,IF(AZ$43>=$AQ159,AZ$44,0)) -> 1.02 | BA159: =IF(BA$43>$AR159,0,IF(BA$43>=$AQ159,BA$44,0)) -> 1.03 | BB159: =IF(BB$43>$AR159,0,IF(BB$43>=$AQ159,BB$44,0)) -> 1.17 | BC159: =IF(BC$43>$AR159,0,IF(BC$43>=$AQ159,BC$44,0)) -> 1.07 | BD159: =IF(BD$43>$AR159,0,IF(BD$43>=$AQ159,BD$44,0)) -> 1.02 | BE159: =IF(BE$43>$AR159,0,IF(BE$43>=$AQ159,BE$44,0)) -> 1.02 | BF159: =IF(BF$43>$AR159,0,IF(BF$43>=$AQ159,BF$44,0)) -> 1.12 | BG159: =IF(BG$43>$AR159,0,IF(BG$43>=$AQ159,BG$44,0)) -> 1.12 | BH159: =IF(BH$43>$AR159,0,IF(BH$43>=$AQ159,BH$44,0)) -> 0.92 | BI159: 1.17 | BJ159: 0.92 | BK159: 1.12 | BL159: 1.07 | BM159: 1.07 | BN159: 1.14 | BO159: 0.97 | BP159: 1 | BQ159: 0.92 | BR159: 0.89 | BS159: 0.97 | BT159: 0.8 | BU159: 0.83 | BV159: 0.89 | BW159: 0.83 | BX159: 0.79 | BY159: =IF(BY$43>$AR159,0,IF(BY$43>=$AQ159,BY$44,0)) -> 0.91 | BZ159: 0.87 | CA159: 0.84 | CB159: 0.93 | CC159: 0.79 | CD159: 0 | CE159: 0 | CF159: 0
A160: 115 | B160: PRC | C160: 5023 | D160: 2019/0174385-8 | E160: 0174385-06.2019.3.00.0000 | F160: STJ | G160: MS 17.760/DF | H160: 2018-06-07 | I160: 2019-03-18 | J160: 2019-06-14 | K160: União | L160: 26.994.558/0001-23 | M160: Brasilia/DF | N160: Comum | O160: 2019-07-01 | P160: 223484.83 | Q160: 1.159666673 | R160: 2.4567 | S160: 34.26 | T160: 317597.81 | U160: 35288.64 | V160: 0 | W160: 0 | X160: 0 | Y160: =TRUNC(AB160*R160/100,2) ->  | Z160: =TRUNC(AB160*$AS160/100,2) ->  | AA160: =TRUNC(Y160*$AS160/100,2) ->  | AB160: =TRUNC(#REF!*Q160,2) ->  | AC160: =T160+U160+V160+W160+X160 -> 352886.45 | AQ160: 2021-12-01 | AR160: 2024-12-01 | AS160: 34.26 | AT160: =IF(AT$43>$AR160,0,IF(AT$43>=$AQ160,AT$44,0)) -> 0.77 | AU160: =IF(AU$43>$AR160,0,IF(AU$43>=$AQ160,AU$44,0)) -> 0.73 | AV160: =IF(AV$43>$AR160,0,IF(AV$43>=$AQ160,AV$44,0)) -> 0.76 | AW160: =IF(AW$43>$AR160,0,IF(AW$43>=$AQ160,AW$44,0)) -> 0.93 | AX160: =IF(AX$43>$AR160,0,IF(AX$43>=$AQ160,AX$44,0)) -> 0.83 | AY160: =IF(AY$43>$AR160,0,IF(AY$43>=$AQ160,AY$44,0)) -> 1.03 | AZ160: =IF(AZ$43>$AR160,0,IF(AZ$43>=$AQ160,AZ$44,0)) -> 1.02 | BA160: =IF(BA$43>$AR160,0,IF(BA$43>=$AQ160,BA$44,0)) -> 1.03 | BB160: =IF(BB$43>$AR160,0,IF(BB$43>=$AQ160,BB$44,0)) -> 1.17 | BC160: =IF(BC$43>$AR160,0,IF(BC$43>=$AQ160,BC$44,0)) -> 1.07 | BD160: =IF(BD$43>$AR160,0,IF(BD$43>=$AQ160,BD$44,0)) -> 1.02 | BE160: =IF(BE$43>$AR160,0,IF(BE$43>=$AQ160,BE$44,0)) -> 1.02 | BF160: =IF(BF$43>$AR160,0,IF(BF$43>=$AQ160,BF$44,0)) -> 1.12 | BG160: =IF(BG$43>$AR160,0,IF(BG$43>=$AQ160,BG$44,0)) -> 1.12 | BH160: =IF(BH$43>$AR160,0,IF(BH$43>=$AQ160,BH$44,0)) -> 0.92 | BI160: 1.17 | BJ160: 0.92 | BK160: 1.12 | BL160: 1.07 | BM160: 1.07 | BN160: 1.14 | BO160: 0.97 | BP160: 1 | BQ160: 0.92 | BR160: 0.89 | BS160: 0.97 | BT160: 0.8 | BU160: 0.83 | BV160: 0.89 | BW160: 0.83 | BX160: 0.79 | BY160: =IF(BY$43>$AR160,0,IF(BY$43>=$AQ160,BY$44,0)) -> 0.91 | BZ160: 0.87 | CA160: 0.84 | CB160: 0.93 | CC160: 0.79 | CD160: 0 | CE160: 0 | CF160: 0
A161: 116 | B161: PRC | C161: 5024 | D161: 2019/0174387-1 | E161: 0174387-73.2019.3.00.0000 | F161: STJ | G161: MS 17.799/DF | H161: 2018-06-20 | I161: 2019-03-18 | J161: 2019-06-14 | K161: União | L161: 26.994.558/0001-23 | M161: Brasilia/DF | N161: Comum | O161: 2019-07-01 | P161: 239737.5 | Q161: 1.159666673 | R161: 2.4567 | S161: 34.26 | T161: 340694.74 | U161: 37854.97 | V161: 0 | W161: 0 | X161: 0 | Y161: =TRUNC(AB161*R161/100,2) ->  | Z161: =TRUNC(AB161*$AS161/100,2) ->  | AA161: =TRUNC(Y161*$AS161/100,2) ->  | AB161: =TRUNC(#REF!*Q161,2) ->  | AC161: =T161+U161+V161+W161+X161 -> 378549.71 | AQ161: 2021-12-01 | AR161: 2024-12-01 | AS161: 34.26 | AT161: =IF(AT$43>$AR161,0,IF(AT$43>=$AQ161,AT$44,0)) -> 0.77 | AU161: =IF(AU$43>$AR161,0,IF(AU$43>=$AQ161,AU$44,0)) -> 0.73 | AV161: =IF(AV$43>$AR161,0,IF(AV$43>=$AQ161,AV$44,0)) -> 0.76 | AW161: =IF(AW$43>$AR161,0,IF(AW$43>=$AQ161,AW$44,0)) -> 0.93 | AX161: =IF(AX$43>$AR161,0,IF(AX$43>=$AQ161,AX$44,0)) -> 0.83 | AY161: =IF(AY$43>$AR161,0,IF(AY$43>=$AQ161,AY$44,0)) -> 1.03 | AZ161: =IF(AZ$43>$AR161,0,IF(AZ$43>=$AQ161,AZ$44,0)) -> 1.02 | BA161: =IF(BA$43>$AR161,0,IF(BA$43>=$AQ161,BA$44,0)) -> 1.03 | BB161: =IF(BB$43>$AR161,0,IF(BB$43>=$AQ161,BB$44,0)) -> 1.17 | BC161: =IF(BC$43>$AR161,0,IF(BC$43>=$AQ161,BC$44,0)) -> 1.07 | BD161: =IF(BD$43>$AR161,0,IF(BD$43>=$AQ161,BD$44,0)) -> 1.02 | BE161: =IF(BE$43>$AR161,0,IF(BE$43>=$AQ161,BE$44,0)) -> 1.02 | BF161: =IF(BF$43>$AR161,0,IF(BF$43>=$AQ161,BF$44,0)) -> 1.12 | BG161: =IF(BG$43>$AR161,0,IF(BG$43>=$AQ161,BG$44,0)) -> 1.12 | BH161: =IF(BH$43>$AR161,0,IF(BH$43>=$AQ161,BH$44,0)) -> 0.92 | BI161: 1.17 | BJ161: 0.92 | BK161: 1.12 | BL161: 1.07 | BM161: 1.07 | BN161: 1.14 | BO161: 0.97 | BP161: 1 | BQ161: 0.92 | BR161: 0.89 | BS161: 0.97 | BT161: 0.8 | BU161: 0.83 | BV161: 0.89 | BW161: 0.83 | BX161: 0.79 | BY161: =IF(BY$43>$AR161,0,IF(BY$43>=$AQ161,BY$44,0)) -> 0.91 | BZ161: 0.87 | CA161: 0.84 | CB161: 0.93 | CC161: 0.79 | CD161: 0 | CE161: 0 | CF161: 0
A162: 117 | B162: PRC | C162: 5026 | D162: 2019/0174392-3 | E162: 0174392-95.2019.3.00.0000 | F162: STJ | G162: MS 17.522/DF | H162: 2018-06-20 | I162: 2019-03-18 | J162: 2019-06-14 | K162: União | L162: 26.994.558/0001-23 | M162: Brasilia/DF | N162: Comum | O162: 2019-07-01 | P162: 235012.5 | Q162: 1.159666673 | R162: 2.4567 | S162: 34.26 | T162: 333979.99 | U162: 37108.88 | V162: 0 | W162: 0 | X162: 0 | Y162: =TRUNC(AB162*R162/100,2) ->  | Z162: =TRUNC(AB162*$AS162/100,2) ->  | AA162: =TRUNC(Y162*$AS162/100,2) ->  | AB162: =TRUNC(#REF!*Q162,2) ->  | AC162: =T162+U162+V162+W162+X162 -> 371088.87 | AQ162: 2021-12-01 | AR162: 2024-12-01 | AS162: 34.26 | AT162: =IF(AT$43>$AR162,0,IF(AT$43>=$AQ162,AT$44,0)) -> 0.77 | AU162: =IF(AU$43>$AR162,0,IF(AU$43>=$AQ162,AU$44,0)) -> 0.73 | AV162: =IF(AV$43>$AR162,0,IF(AV$43>=$AQ162,AV$44,0)) -> 0.76 | AW162: =IF(AW$43>$AR162,0,IF(AW$43>=$AQ162,AW$44,0)) -> 0.93 | AX162: =IF(AX$43>$AR162,0,IF(AX$43>=$AQ162,AX$44,0)) -> 0.83 | AY162: =IF(AY$43>$AR162,0,IF(AY$43>=$AQ162,AY$44,0)) -> 1.03 | AZ162: =IF(AZ$43>$AR162,0,IF(AZ$43>=$AQ162,AZ$44,0)) -> 1.02 | BA162: =IF(BA$43>$AR162,0,IF(BA$43>=$AQ162,BA$44,0)) -> 1.03 | BB162: =IF(BB$43>$AR162,0,IF(BB$43>=$AQ162,BB$44,0)) -> 1.17 | BC162: =IF(BC$43>$AR162,0,IF(BC$43>=$AQ162,BC$44,0)) -> 1.07 | BD162: =IF(BD$43>$AR162,0,IF(BD$43>=$AQ162,BD$44,0)) -> 1.02 | BE162: =IF(BE$43>$AR162,0,IF(BE$43>=$AQ162,BE$44,0)) -> 1.02 | BF162: =IF(BF$43>$AR162,0,IF(BF$43>=$AQ162,BF$44,0)) -> 1.12 | BG162: =IF(BG$43>$AR162,0,IF(BG$43>=$AQ162,BG$44,0)) -> 1.12 | BH162: =IF(BH$43>$AR162,0,IF(BH$43>=$AQ162,BH$44,0)) -> 0.92 | BI162: 1.17 | BJ162: =IF(BJ$43>$AR162,0,IF(BJ$43>=$AQ162,BJ$44,0)) -> 0.92 | BK162: 1.12 | BL162: 1.07 | BM162: 1.07 | BN162: 1.14 | BO162: 0.97 | BP162: 1 | BQ162: 0.92 | BR162: 0.89 | BS162: 0.97 | BT162: 0.8 | BU162: 0.83 | BV162: 0.89 | BW162: 0.83 | BX162: 0.79 | BY162: =IF(BY$43>$AR162,0,IF(BY$43>=$AQ162,BY$44,0)) -> 0.91 | BZ162: 0.87 | CA162: 0.84 | CB162: 0.93 | CC162: 0.79 | CD162: 0 | CE162: 0 | CF162: 0
A163: 118 | B163: PRC | C163: 5027 | D163: 2019/0174394-7 | E163: 0174394-65.2019.3.00.0000 | F163: STJ | G163: MS 17.521/DF | H163: 2018-06-20 | I163: 2019-03-18 | J163: 2019-06-14 | K163: União | L163: 26.994.558/0001-23 | M163: Brasilia/DF | N163: Comum | O163: 2019-07-01 | P163: 229136.94 | Q163: 1.159666673 | R163: 2.4567 | S163: 34.26 | T163: 325630.12 | U163: 36181.12 | V163: 0 | W163: 0 | X163: 0 | Y163: =TRUNC(AB163*R163/100,2) ->  | Z163: =TRUNC(AB163*$AS163/100,2) ->  | AA163: =TRUNC(Y163*$AS163/100,2) ->  | AB163: =TRUNC(#REF!*Q163,2) ->  | AC163: =T163+U163+V163+W163+X163 -> 361811.24 | AQ163: 2021-12-01 | AR163: 2024-12-01 | AS163: 34.26 | AT163: =IF(AT$43>$AR163,0,IF(AT$43>=$AQ163,AT$44,0)) -> 0.77 | AU163: =IF(AU$43>$AR163,0,IF(AU$43>=$AQ163,AU$44,0)) -> 0.73 | AV163: =IF(AV$43>$AR163,0,IF(AV$43>=$AQ163,AV$44,0)) -> 0.76 | AW163: =IF(AW$43>$AR163,0,IF(AW$43>=$AQ163,AW$44,0)) -> 0.93 | AX163: =IF(AX$43>$AR163,0,IF(AX$43>=$AQ163,AX$44,0)) -> 0.83 | AY163: =IF(AY$43>$AR163,0,IF(AY$43>=$AQ163,AY$44,0)) -> 1.03 | AZ163: =IF(AZ$43>$AR163,0,IF(AZ$43>=$AQ163,AZ$44,0)) -> 1.02 | BA163: =IF(BA$43>$AR163,0,IF(BA$43>=$AQ163,BA$44,0)) -> 1.03 | BB163: =IF(BB$43>$AR163,0,IF(BB$43>=$AQ163,BB$44,0)) -> 1.17 | BC163: =IF(BC$43>$AR163,0,IF(BC$43>=$AQ163,BC$44,0)) -> 1.07 | BD163: =IF(BD$43>$AR163,0,IF(BD$43>=$AQ163,BD$44,0)) -> 1.02 | BE163: =IF(BE$43>$AR163,0,IF(BE$43>=$AQ163,BE$44,0)) -> 1.02 | BF163: =IF(BF$43>$AR163,0,IF(BF$43>=$AQ163,BF$44,0)) -> 1.12 | BG163: =IF(BG$43>$AR163,0,IF(BG$43>=$AQ163,BG$44,0)) -> 1.12 | BH163: =IF(BH$43>$AR163,0,IF(BH$43>=$AQ163,BH$44,0)) -> 0.92 | BI163: =IF(BI$43>$AR163,0,IF(BI$43>=$AQ163,BI$44,0)) -> 1.17 | BJ163: 0.92 | BK163: 1.12 | BL163: 1.07 | BM163: 1.07 | BN163: 1.14 | BO163: 0.97 | BP163: 1 | BQ163: 0.92 | BR163: 0.89 | BS163: 0.97 | BT163: 0.8 | BU163: 0.83 | BV163: 0.89 | BW163: 0.83 | BX163: 0.79 | BY163: =IF(BY$43>$AR163,0,IF(BY$43>=$AQ163,BY$44,0)) -> 0.91 | BZ163: 0.87 | CA163: 0.84 | CB163: 0.93 | CC163: 0.79 | CD163: 0 | CE163: 0 | CF163: 0
A164: 119 | B164: PRC | C164: 5028 | D164: 2019/0174398-4 | E164: 0174398-05.2019.3.00.0000 | F164: STJ | G164: MS 15.618/DF | H164: 2018-08-29 | I164: 2019-05-29 | J164: 2019-06-14 | K164: União | L164: 26.994.558/0001-23 | M164: Brasilia/DF | N164: Comum | O164: 2019-07-01 | P164: 197442.36 | Q164: 1.159666673 | R164: 2.4567 | S164: 34.26 | T164: 249411.96 | U164: 62352.99 | V164: 0 | W164: 0 | X164: 0 | Y164: =TRUNC(AB164*R164/100,2) ->  | Z164: =TRUNC(AB164*$AS164/100,2) ->  | AA164: =TRUNC(Y164*$AS164/100,2) ->  | AB164: =TRUNC(#REF!*Q164,2) ->  | AC164: =T164+U164+V164+W164+X164 -> 311764.95 | AQ164: 2021-12-01 | AR164: 2024-12-01 | AS164: 34.26 | AT164: =IF(AT$43>$AR164,0,IF(AT$43>=$AQ164,AT$44,0)) -> 0.77 | AU164: =IF(AU$43>$AR164,0,IF(AU$43>=$AQ164,AU$44,0)) -> 0.73 | AV164: =IF(AV$43>$AR164,0,IF(AV$43>=$AQ164,AV$44,0)) -> 0.76 | AW164: =IF(AW$43>$AR164,0,IF(AW$43>=$AQ164,AW$44,0)) -> 0.93 | AX164: =IF(AX$43>$AR164,0,IF(AX$43>=$AQ164,AX$44,0)) -> 0.83 | AY164: =IF(AY$43>$AR164,0,IF(AY$43>=$AQ164,AY$44,0)) -> 1.03 | AZ164: =IF(AZ$43>$AR164,0,IF(AZ$43>=$AQ164,AZ$44,0)) -> 1.02 | BA164: =IF(BA$43>$AR164,0,IF(BA$43>=$AQ164,BA$44,0)) -> 1.03 | BB164: =IF(BB$43>$AR164,0,IF(BB$43>=$AQ164,BB$44,0)) -> 1.17 | BC164: =IF(BC$43>$AR164,0,IF(BC$43>=$AQ164,BC$44,0)) -> 1.07 | BD164: =IF(BD$43>$AR164,0,IF(BD$43>=$AQ164,BD$44,0)) -> 1.02 | BE164: =IF(BE$43>$AR164,0,IF(BE$43>=$AQ164,BE$44,0)) -> 1.02 | BF164: =IF(BF$43>$AR164,0,IF(BF$43>=$AQ164,BF$44,0)) -> 1.12 | BG164: =IF(BG$43>$AR164,0,IF(BG$43>=$AQ164,BG$44,0)) -> 1.12 | BH164: =IF(BH$43>$AR164,0,IF(BH$43>=$AQ164,BH$44,0)) -> 0.92 | BI164: =IF(BI$43>$AR164,0,IF(BI$43>=$AQ164,BI$44,0)) -> 1.17 | BJ164: 0.92 | BK164: 1.12 | BL164: 1.07 | BM164: 1.07 | BN164: 1.14 | BO164: 0.97 | BP164: 1 | BQ164: 0.92 | BR164: 0.89 | BS164: 0.97 | BT164: 0.8 | BU164: 0.83 | BV164: 0.89 | BW164: 0.83 | BX164: 0.79 | BY164: =IF(BY$43>$AR164,0,IF(BY$43>=$AQ164,BY$44,0)) -> 0.91 | BZ164: 0.87 | CA164: 0.84 | CB164: 0.93 | CC164: 0.79 | CD164: 0 | CE164: 0 | CF164: 0
A165: 120 | B165: PRC | C165: 5029 | D165: 2019/0174401-1 | E165: 0174401-57.2019.3.00.0000 | F165: STJ | G165: MS 15.641/DF | H165: 2018-06-07 | I165: 2019-05-29 | J165: 2019-06-14 | K165: União | L165: 26.994.558/0001-23 | M165: Brasilia/DF | N165: Comum | O165: 2019-07-01 | P165: 266681.25 | Q165: 1.159666673 | R165: 2.4567 | S165: 34.26 | T165: 336875.51 | U165: 84218.87 | V165: 0 | W165: 0 | X165: 0 | Y165: =TRUNC(AB165*R165/100,2) ->  | Z165: =TRUNC(AB165*$AS165/100,2) ->  | AA165: =TRUNC(Y165*$AS165/100,2) ->  | AB165: =TRUNC(#REF!*Q165,2) ->  | AC165: =T165+U165+V165+W165+X165 -> 421094.38 | AQ165: 2021-12-01 | AR165: 2024-12-01 | AS165: 34.26 | AT165: =IF(AT$43>$AR165,0,IF(AT$43>=$AQ165,AT$44,0)) -> 0.77 | AU165: =IF(AU$43>$AR165,0,IF(AU$43>=$AQ165,AU$44,0)) -> 0.73 | AV165: =IF(AV$43>$AR165,0,IF(AV$43>=$AQ165,AV$44,0)) -> 0.76 | AW165: =IF(AW$43>$AR165,0,IF(AW$43>=$AQ165,AW$44,0)) -> 0.93 | AX165: =IF(AX$43>$AR165,0,IF(AX$43>=$AQ165,AX$44,0)) -> 0.83 | AY165: =IF(AY$43>$AR165,0,IF(AY$43>=$AQ165,AY$44,0)) -> 1.03 | AZ165: =IF(AZ$43>$AR165,0,IF(AZ$43>=$AQ165,AZ$44,0)) -> 1.02 | BA165: =IF(BA$43>$AR165,0,IF(BA$43>=$AQ165,BA$44,0)) -> 1.03 | BB165: =IF(BB$43>$AR165,0,IF(BB$43>=$AQ165,BB$44,0)) -> 1.17 | BC165: =IF(BC$43>$AR165,0,IF(BC$43>=$AQ165,BC$44,0)) -> 1.07 | BD165: =IF(BD$43>$AR165,0,IF(BD$43>=$AQ165,BD$44,0)) -> 1.02 | BE165: =IF(BE$43>$AR165,0,IF(BE$43>=$AQ165,BE$44,0)) -> 1.02 | BF165: =IF(BF$43>$AR165,0,IF(BF$43>=$AQ165,BF$44,0)) -> 1.12 | BG165: =IF(BG$43>$AR165,0,IF(BG$43>=$AQ165,BG$44,0)) -> 1.12 | BH165: =IF(BH$43>$AR165,0,IF(BH$43>=$AQ165,BH$44,0)) -> 0.92 | BI165: =IF(BI$43>$AR165,0,IF(BI$43>=$AQ165,BI$44,0)) -> 1.17 | BJ165: 0.92 | BK165: =IF(BK$43>$AR165,0,IF(BK$43>=$AQ165,BK$44,0)) -> 1.12 | BL165: =IF(BL$43>$AR165,0,IF(BL$43>=$AQ165,BL$44,0)) -> 1.07 | BM165: =IF(BM$43>$AR165,0,IF(BM$43>=$AQ165,BM$44,0)) -> 1.07 | BN165: =IF(BN$43>$AR165,0,IF(BN$43>=$AQ165,BN$44,0)) -> 1.14 | BO165: =IF(BO$43>$AR165,0,IF(BO$43>=$AQ165,BO$44,0)) -> 0.97 | BP165: =IF(BP$43>$AR165,0,IF(BP$43>=$AQ165,BP$44,0)) -> 1 | BQ165: =IF(BQ$43>$AR165,0,IF(BQ$43>=$AQ165,BQ$44,0)) -> 0.92 | BR165: =IF(BR$43>$AR165,0,IF(BR$43>=$AQ165,BR$44,0)) -> 0.89 | BS165: =IF(BS$43>$AR165,0,IF(BS$43>=$AQ165,BS$44,0)) -> 0.97 | BT165: =IF(BT$43>$AR165,0,IF(BT$43>=$AQ165,BT$44,0)) -> 0.8 | BU165: =IF(BU$43>$AR165,0,IF(BU$43>=$AQ165,BU$44,0)) -> 0.83 | BV165: =IF(BV$43>$AR165,0,IF(BV$43>=$AQ165,BV$44,0)) -> 0.89 | BW165: =IF(BW$43>$AR165,0,IF(BW$43>=$AQ165,BW$44,0)) -> 0.83 | BX165: =IF(BX$43>$AR165,0,IF(BX$43>=$AQ165,BX$44,0)) -> 0.79 | BY165: 0.91 | BZ165: 0.87 | CA165: 0.84 | CB165: 0.93 | CC165: 0.79 | CD165: 0 | CE165: 0 | CF165: 0
A166: 121 | B166: PRC | C166: 5030 | D166: 2019/0174403-5 | E166: 0174403-27.2019.3.00.0000 | F166: STJ | G166: MS 15.758/DF | H166: 2018-08-15 | I166: 2019-05-29 | J166: 2019-06-14 | K166: União | L166: 26.994.558/0001-23 | M166: Brasilia/DF | N166: Comum | O166: 2019-07-01 | P166: 229457.84 | Q166: 1.159666673 | R166: 2.4567 | S166: 34.26 | T166: 289854.36 | U166: 72463.59 | V166: 0 | W166: 0 | X166: 0 | Y166: =TRUNC(AB166*R166/100,2) ->  | Z166: =TRUNC(AB166*$AS166/100,2) ->  | AA166: =TRUNC(Y166*$AS166/100,2) ->  | AB166: =TRUNC(#REF!*Q166,2) ->  | AC166: =T166+U166+V166+W166+X166 -> 362317.95 | AQ166: 2021-12-01 | AR166: 2024-12-01 | AS166: 34.26 | AT166: =IF(AT$43>$AR166,0,IF(AT$43>=$AQ166,AT$44,0)) -> 0.77 | AU166: =IF(AU$43>$AR166,0,IF(AU$43>=$AQ166,AU$44,0)) -> 0.73 | AV166: =IF(AV$43>$AR166,0,IF(AV$43>=$AQ166,AV$44,0)) -> 0.76 | AW166: =IF(AW$43>$AR166,0,IF(AW$43>=$AQ166,AW$44,0)) -> 0.93 | AX166: =IF(AX$43>$AR166,0,IF(AX$43>=$AQ166,AX$44,0)) -> 0.83 | AY166: =IF(AY$43>$AR166,0,IF(AY$43>=$AQ166,AY$44,0)) -> 1.03 | AZ166: =IF(AZ$43>$AR166,0,IF(AZ$43>=$AQ166,AZ$44,0)) -> 1.02 | BA166: =IF(BA$43>$AR166,0,IF(BA$43>=$AQ166,BA$44,0)) -> 1.03 | BB166: =IF(BB$43>$AR166,0,IF(BB$43>=$AQ166,BB$44,0)) -> 1.17 | BC166: =IF(BC$43>$AR166,0,IF(BC$43>=$AQ166,BC$44,0)) -> 1.07 | BD166: =IF(BD$43>$AR166,0,IF(BD$43>=$AQ166,BD$44,0)) -> 1.02 | BE166: =IF(BE$43>$AR166,0,IF(BE$43>=$AQ166,BE$44,0)) -> 1.02 | BF166: =IF(BF$43>$AR166,0,IF(BF$43>=$AQ166,BF$44,0)) -> 1.12 | BG166: =IF(BG$43>$AR166,0,IF(BG$43>=$AQ166,BG$44,0)) -> 1.12 | BH166: =IF(BH$43>$AR166,0,IF(BH$43>=$AQ166,BH$44,0)) -> 0.92 | BI166: =IF(BI$43>$AR166,0,IF(BI$43>=$AQ166,BI$44,0)) -> 1.17 | BJ166: =IF(BJ$43>$AR166,0,IF(BJ$43>=$AQ166,BJ$44,0)) -> 0.92 | BK166: 1.12 | BL166: 1.07 | BM166: 1.07 | BN166: 1.14 | BO166: 0.97 | BP166: 1 | BQ166: 0.92 | BR166: 0.89 | BS166: 0.97 | BT166: 0.8 | BU166: 0.83 | BV166: 0.89 | BW166: 0.83 | BX166: 0.79 | BY166: =IF(BY$43>$AR166,0,IF(BY$43>=$AQ166,BY$44,0)) -> 0.91 | BZ166: 0.87 | CA166: 0.84 | CB166: 0.93 | CC166: 0.79 | CD166: 0 | CE166: 0 | CF166: 0
A167: 122 | B167: PRC | C167: 5032 | D167: 2019/0174406-0 | E167: 0174406-79.2019.3.00.0000 | F167: STJ | G167: MS 15.390/DF | H167: 2018-08-15 | I167: 2019-06-04 | J167: 2019-06-14 | K167: União | L167: 26.994.558/0001-23 | M167: Brasilia/DF | N167: Comum | O167: 2019-07-01 | P167: 187837.06 | Q167: 1.159666673 | R167: 2.4567 | S167: 34.26 | T167: 266938.2 | U167: 29659.79 | V167: 0 | W167: 0 | X167: 0 | Y167: =TRUNC(AB167*R167/100,2) ->  | Z167: =TRUNC(AB167*$AS167/100,2) ->  | AA167: =TRUNC(Y167*$AS167/100,2) ->  | AB167: =TRUNC(#REF!*Q167,2) ->  | AC167: =T167+U167+V167+W167+X167 -> 296597.99 | AQ167: 2021-12-01 | AR167: 2024-12-01 | AS167: 34.26 | AT167: =IF(AT$43>$AR167,0,IF(AT$43>=$AQ167,AT$44,0)) -> 0.77 | AU167: =IF(AU$43>$AR167,0,IF(AU$43>=$AQ167,AU$44,0)) -> 0.73 | AV167: =IF(AV$43>$AR167,0,IF(AV$43>=$AQ167,AV$44,0)) -> 0.76 | AW167: =IF(AW$43>$AR167,0,IF(AW$43>=$AQ167,AW$44,0)) -> 0.93 | AX167: =IF(AX$43>$AR167,0,IF(AX$43>=$AQ167,AX$44,0)) -> 0.83 | AY167: =IF(AY$43>$AR167,0,IF(AY$43>=$AQ167,AY$44,0)) -> 1.03 | AZ167: =IF(AZ$43>$AR167,0,IF(AZ$43>=$AQ167,AZ$44,0)) -> 1.02 | BA167: =IF(BA$43>$AR167,0,IF(BA$43>=$AQ167,BA$44,0)) -> 1.03 | BB167: =IF(BB$43>$AR167,0,IF(BB$43>=$AQ167,BB$44,0)) -> 1.17 | BC167: =IF(BC$43>$AR167,0,IF(BC$43>=$AQ167,BC$44,0)) -> 1.07 | BD167: =IF(BD$43>$AR167,0,IF(BD$43>=$AQ167,BD$44,0)) -> 1.02 | BE167: =IF(BE$43>$AR167,0,IF(BE$43>=$AQ167,BE$44,0)) -> 1.02 | BF167: =IF(BF$43>$AR167,0,IF(BF$43>=$AQ167,BF$44,0)) -> 1.12 | BG167: =IF(BG$43>$AR167,0,IF(BG$43>=$AQ167,BG$44,0)) -> 1.12 | BH167: =IF(BH$43>$AR167,0,IF(BH$43>=$AQ167,BH$44,0)) -> 0.92 | BI167: =IF(BI$43>$AR167,0,IF(BI$43>=$AQ167,BI$44,0)) -> 1.17 | BJ167: 0.92 | BK167: 1.12 | BL167: 1.07 | BM167: 1.07 | BN167: 1.14 | BO167: 0.97 | BP167: 1 | BQ167: 0.92 | BR167: 0.89 | BS167: 0.97 | BT167: 0.8 | BU167: 0.83 | BV167: 0.89 | BW167: 0.83 | BX167: 0.79 | BY167: =IF(BY$43>$AR167,0,IF(BY$43>=$AQ167,BY$44,0)) -> 0.91 | BZ167: 0.87 | CA167: 0.84 | CB167: 0.93 | CC167: 0.79 | CD167: 0 | CE167: 0 | CF167: 0
A168: 123 | B168: PRC | C168: 5033 | D168: 2019/0174407-2 | E168: 0174407-64.2019.3.00.0000 | F168: STJ | G168: MS 19.586/DF | H168: 2018-06-07 | I168: 2019-06-04 | J168: 2019-06-14 | K168: União | L168: 26.994.558/0001-23 | M168: Brasilia/DF | N168: Comum | O168: 2019-07-01 | P168: 177253.43 | Q168: 1.159666673 | R168: 2.4567 | S168: 34.26 | T168: 279886.26 | U168: 0 | V168: 0 | W168: 0 | X168: 0 | Y168: =TRUNC(AB168*R168/100,2) ->  | Z168: =TRUNC(AB168*$AS168/100,2) ->  | AA168: =TRUNC(Y168*$AS168/100,2) ->  | AB168: =TRUNC(#REF!*Q168,2) ->  | AC168: =T168+U168+V168+W168+X168 -> 279886.26 | AQ168: 2021-12-01 | AR168: 2024-12-01 | AS168: 34.26 | AT168: =IF(AT$43>$AR168,0,IF(AT$43>=$AQ168,AT$44,0)) -> 0.77 | AU168: =IF(AU$43>$AR168,0,IF(AU$43>=$AQ168,AU$44,0)) -> 0.73 | AV168: =IF(AV$43>$AR168,0,IF(AV$43>=$AQ168,AV$44,0)) -> 0.76 | AW168: =IF(AW$43>$AR168,0,IF(AW$43>=$AQ168,AW$44,0)) -> 0.93 | AX168: =IF(AX$43>$AR168,0,IF(AX$43>=$AQ168,AX$44,0)) -> 0.83 | AY168: =IF(AY$43>$AR168,0,IF(AY$43>=$AQ168,AY$44,0)) -> 1.03 | AZ168: =IF(AZ$43>$AR168,0,IF(AZ$43>=$AQ168,AZ$44,0)) -> 1.02 | BA168: =IF(BA$43>$AR168,0,IF(BA$43>=$AQ168,BA$44,0)) -> 1.03 | BB168: =IF(BB$43>$AR168,0,IF(BB$43>=$AQ168,BB$44,0)) -> 1.17 | BC168: =IF(BC$43>$AR168,0,IF(BC$43>=$AQ168,BC$44,0)) -> 1.07 | BD168: =IF(BD$43>$AR168,0,IF(BD$43>=$AQ168,BD$44,0)) -> 1.02 | BE168: =IF(BE$43>$AR168,0,IF(BE$43>=$AQ168,BE$44,0)) -> 1.02 | BF168: =IF(BF$43>$AR168,0,IF(BF$43>=$AQ168,BF$44,0)) -> 1.12 | BG168: =IF(BG$43>$AR168,0,IF(BG$43>=$AQ168,BG$44,0)) -> 1.12 | BH168: =IF(BH$43>$AR168,0,IF(BH$43>=$AQ168,BH$44,0)) -> 0.92 | BI168: =IF(BI$43>$AR168,0,IF(BI$43>=$AQ168,BI$44,0)) -> 1.17 | BJ168: 0.92 | BK168: 1.12 | BL168: 1.07 | BM168: 1.07 | BN168: 1.14 | BO168: 0.97 | BP168: 1 | BQ168: 0.92 | BR168: 0.89 | BS168: 0.97 | BT168: 0.8 | BU168: 0.83 | BV168: 0.89 | BW168: 0.83 | BX168: 0.79 | BY168: =IF(BY$43>$AR168,0,IF(BY$43>=$AQ168,BY$44,0)) -> 0.91 | BZ168: 0.87 | CA168: 0.84 | CB168: 0.93 | CC168: 0.79 | CD168: 0 | CE168: 0 | CF168: =IF(CF$43>$AR168,0,IF(CF$43>=$AQ168,CF$44,0)) -> 0
A169: 124 | B169: PRC | C169: 5034 | D169: 2019/0174409-6 | E169: 0174409-34.2019.3.00.0000 | F169: STJ | G169: MS 16.202/DF | H169: 2018-08-10 | I169: 2019-03-27 | J169: 2019-06-14 | K169: União | L169: 26.994.558/0001-23 | M169: Brasilia/DF | N169: Comum | O169: 2019-07-01 | P169: 195488.19 | Q169: 1.159666673 | R169: 2.4567 | S169: 34.26 | T169: 308679.28 | U169: 0 | V169: 0 | W169: 0 | X169: 0 | Y169: =TRUNC(AB169*R169/100,2) ->  | Z169: =TRUNC(AB169*$AS169/100,2) ->  | AA169: =TRUNC(Y169*$AS169/100,2) ->  | AB169: =TRUNC(#REF!*Q169,2) ->  | AC169: =T169+U169+V169+W169+X169 -> 308679.28 | AQ169: 2021-12-01 | AR169: 2024-12-01 | AS169: 34.26 | AT169: =IF(AT$43>$AR169,0,IF(AT$43>=$AQ169,AT$44,0)) -> 0.77 | AU169: =IF(AU$43>$AR169,0,IF(AU$43>=$AQ169,AU$44,0)) -> 0.73 | AV169: =IF(AV$43>$AR169,0,IF(AV$43>=$AQ169,AV$44,0)) -> 0.76 | AW169: =IF(AW$43>$AR169,0,IF(AW$43>=$AQ169,AW$44,0)) -> 0.93 | AX169: =IF(AX$43>$AR169,0,IF(AX$43>=$AQ169,AX$44,0)) -> 0.83 | AY169: =IF(AY$43>$AR169,0,IF(AY$43>=$AQ169,AY$44,0)) -> 1.03 | AZ169: =IF(AZ$43>$AR169,0,IF(AZ$43>=$AQ169,AZ$44,0)) -> 1.02 | BA169: =IF(BA$43>$AR169,0,IF(BA$43>=$AQ169,BA$44,0)) -> 1.03 | BB169: =IF(BB$43>$AR169,0,IF(BB$43>=$AQ169,BB$44,0)) -> 1.17 | BC169: =IF(BC$43>$AR169,0,IF(BC$43>=$AQ169,BC$44,0)) -> 1.07 | BD169: =IF(BD$43>$AR169,0,IF(BD$43>=$AQ169,BD$44,0)) -> 1.02 | BE169: =IF(BE$43>$AR169,0,IF(BE$43>=$AQ169,BE$44,0)) -> 1.02 | BF169: =IF(BF$43>$AR169,0,IF(BF$43>=$AQ169,BF$44,0)) -> 1.12 | BG169: =IF(BG$43>$AR169,0,IF(BG$43>=$AQ169,BG$44,0)) -> 1.12 | BH169: =IF(BH$43>$AR169,0,IF(BH$43>=$AQ169,BH$44,0)) -> 0.92 | BI169: =IF(BI$43>$AR169,0,IF(BI$43>=$AQ169,BI$44,0)) -> 1.17 | BJ169: 0.92 | BK169: 1.12 | BL169: 1.07 | BM169: 1.07 | BN169: 1.14 | BO169: 0.97 | BP169: 1 | BQ169: 0.92 | BR169: 0.89 | BS169: 0.97 | BT169: 0.8 | BU169: 0.83 | BV169: 0.89 | BW169: 0.83 | BX169: 0.79 | BY169: 0.91 | BZ169: 0.87 | CA169: 0.84 | CB169: 0.93 | CC169: 0.79 | CD169: 0 | CE169: 0 | CF169: 0
A170: 125 | B170: PRC | C170: 5035 | D170: 2019/0174412-4 | E170: 0174412-86.2019.3.00.0000 | F170: STJ | G170: MS 15.427/DF | H170: 2018-08-29 | I170: 2019-05-08 | J170: 2019-06-14 | K170: União | L170: 26.994.558/0001-23 | M170: Brasilia/DF | N170: Comum | O170: 2019-07-01 | P170: 212383.94 | Q170: 1.159666673 | R170: 2.4567 | S170: 34.26 | T170: 301822.17 | U170: 33535.79 | V170: 0 | W170: 0 | X170: 0 | Y170: =TRUNC(AB170*R170/100,2) ->  | Z170: =TRUNC(AB170*$AS170/100,2) ->  | AA170: =TRUNC(Y170*$AS170/100,2) ->  | AB170: =TRUNC(#REF!*Q170,2) ->  | AC170: =T170+U170+V170+W170+X170 -> 335357.96 | AQ170: 2021-12-01 | AR170: 2024-12-01 | AS170: 34.26 | AT170: =IF(AT$43>$AR170,0,IF(AT$43>=$AQ170,AT$44,0)) -> 0.77 | AU170: =IF(AU$43>$AR170,0,IF(AU$43>=$AQ170,AU$44,0)) -> 0.73 | AV170: =IF(AV$43>$AR170,0,IF(AV$43>=$AQ170,AV$44,0)) -> 0.76 | AW170: =IF(AW$43>$AR170,0,IF(AW$43>=$AQ170,AW$44,0)) -> 0.93 | AX170: =IF(AX$43>$AR170,0,IF(AX$43>=$AQ170,AX$44,0)) -> 0.83 | AY170: =IF(AY$43>$AR170,0,IF(AY$43>=$AQ170,AY$44,0)) -> 1.03 | AZ170: =IF(AZ$43>$AR170,0,IF(AZ$43>=$AQ170,AZ$44,0)) -> 1.02 | BA170: =IF(BA$43>$AR170,0,IF(BA$43>=$AQ170,BA$44,0)) -> 1.03 | BB170: =IF(BB$43>$AR170,0,IF(BB$43>=$AQ170,BB$44,0)) -> 1.17 | BC170: =IF(BC$43>$AR170,0,IF(BC$43>=$AQ170,BC$44,0)) -> 1.07 | BD170: =IF(BD$43>$AR170,0,IF(BD$43>=$AQ170,BD$44,0)) -> 1.02 | BE170: =IF(BE$43>$AR170,0,IF(BE$43>=$AQ170,BE$44,0)) -> 1.02 | BF170: =IF(BF$43>$AR170,0,IF(BF$43>=$AQ170,BF$44,0)) -> 1.12 | BG170: =IF(BG$43>$AR170,0,IF(BG$43>=$AQ170,BG$44,0)) -> 1.12 | BH170: =IF(BH$43>$AR170,0,IF(BH$43>=$AQ170,BH$44,0)) -> 0.92 | BI170: =IF(BI$43>$AR170,0,IF(BI$43>=$AQ170,BI$44,0)) -> 1.17 | BJ170: 0.92 | BK170: 1.12 | BL170: 1.07 | BM170: 1.07 | BN170: 1.14 | BO170: 0.97 | BP170: 1 | BQ170: 0.92 | BR170: 0.89 | BS170: 0.97 | BT170: 0.8 | BU170: 0.83 | BV170: 0.89 | BW170: 0.83 | BX170: 0.79 | BY170: 0.91 | BZ170: 0.87 | CA170: 0.84 | CB170: 0.93 | CC170: 0.79 | CD170: 0 | CE170: 0 | CF170: 0
A171: 126 | B171: PRC | C171: 5036 | D171: 2019/0174416-1 | E171: 0174416-26.2019.3.00.0000 | F171: STJ | G171: MS 16.115/DF | H171: 2017-12-04 | I171: 2019-06-06 | J171: 2019-06-14 | K171: União | L171: 26.994.558/0001-23 | M171: Brasilia/DF | N171: Comum | O171: 2019-07-01 | P171: 221193.47 | Q171: 1.159666673 | R171: 2.4567 | S171: 34.26 | T171: 349268.35 | U171: 0 | V171: 0 | W171: 0 | X171: 0 | Y171: =TRUNC(AB171*R171/100,2) ->  | Z171: =TRUNC(AB171*$AS171/100,2) ->  | AA171: =TRUNC(Y171*$AS171/100,2) ->  | AB171: =TRUNC(#REF!*Q171,2) ->  | AC171: =T171+U171+V171+W171+X171 -> 349268.35 | AQ171: 2021-12-01 | AR171: 2024-12-01 | AS171: 34.26 | AT171: =IF(AT$43>$AR171,0,IF(AT$43>=$AQ171,AT$44,0)) -> 0.77 | AU171: =IF(AU$43>$AR171,0,IF(AU$43>=$AQ171,AU$44,0)) -> 0.73 | AV171: =IF(AV$43>$AR171,0,IF(AV$43>=$AQ171,AV$44,0)) -> 0.76 | AW171: =IF(AW$43>$AR171,0,IF(AW$43>=$AQ171,AW$44,0)) -> 0.93 | AX171: =IF(AX$43>$AR171,0,IF(AX$43>=$AQ171,AX$44,0)) -> 0.83 | AY171: =IF(AY$43>$AR171,0,IF(AY$43>=$AQ171,AY$44,0)) -> 1.03 | AZ171: =IF(AZ$43>$AR171,0,IF(AZ$43>=$AQ171,AZ$44,0)) -> 1.02 | BA171: =IF(BA$43>$AR171,0,IF(BA$43>=$AQ171,BA$44,0)) -> 1.03 | BB171: =IF(BB$43>$AR171,0,IF(BB$43>=$AQ171,BB$44,0)) -> 1.17 | BC171: =IF(BC$43>$AR171,0,IF(BC$43>=$AQ171,BC$44,0)) -> 1.07 | BD171: =IF(BD$43>$AR171,0,IF(BD$43>=$AQ171,BD$44,0)) -> 1.02 | BE171: =IF(BE$43>$AR171,0,IF(BE$43>=$AQ171,BE$44,0)) -> 1.02 | BF171: =IF(BF$43>$AR171,0,IF(BF$43>=$AQ171,BF$44,0)) -> 1.12 | BG171: =IF(BG$43>$AR171,0,IF(BG$43>=$AQ171,BG$44,0)) -> 1.12 | BH171: =IF(BH$43>$AR171,0,IF(BH$43>=$AQ171,BH$44,0)) -> 0.92 | BI171: =IF(BI$43>$AR171,0,IF(BI$43>=$AQ171,BI$44,0)) -> 1.17 | BJ171: 0.92 | BK171: =IF(BK$43>$AR171,0,IF(BK$43>=$AQ171,BK$44,0)) -> 1.12 | BL171: =IF(BL$43>$AR171,0,IF(BL$43>=$AQ171,BL$44,0)) -> 1.07 | BM171: =IF(BM$43>$AR171,0,IF(BM$43>=$AQ171,BM$44,0)) -> 1.07 | BN171: =IF(BN$43>$AR171,0,IF(BN$43>=$AQ171,BN$44,0)) -> 1.14 | BO171: =IF(BO$43>$AR171,0,IF(BO$43>=$AQ171,BO$44,0)) -> 0.97 | BP171: =IF(BP$43>$AR171,0,IF(BP$43>=$AQ171,BP$44,0)) -> 1 | BQ171: =IF(BQ$43>$AR171,0,IF(BQ$43>=$AQ171,BQ$44,0)) -> 0.92 | BR171: 0.89 | BS171: 0.97 | BT171: 0.8 | BU171: 0.83 | BV171: 0.89 | BW171: 0.83 | BX171: 0.79 | BY171: 0.91 | BZ171: 0.87 | CA171: 0.84 | CB171: 0.93 | CC171: 0.79 | CD171: 0 | CE171: 0 | CF171: 0
A172: 127 | B172: PRC | C172: 5037 | D172: 2019/0174419-7 | E172: 0174419-78.2019.3.00.0000 | F172: STJ | G172: MS 21.026/DF | H172: 2018-06-20 | I172: 2019-02-11 | J172: 2019-06-14 | K172: União | L172: 26.994.558/0001-23 | M172: Brasilia/DF | N172: Comum | O172: 2019-07-01 | P172: 233437.5 | Q172: 1.159666673 | R172: 2.4567 | S172: 34.26 | T172: 331741.71 | U172: 36860.19 | V172: 0 | W172: 0 | X172: 0 | Y172: =TRUNC(AB172*R172/100,2) ->  | Z172: =TRUNC(AB172*$AS172/100,2) ->  | AA172: =TRUNC(Y172*$AS172/100,2) ->  | AB172: =TRUNC(#REF!*Q172,2) ->  | AC172: =T172+U172+V172+W172+X172 -> 368601.9 | AQ172: 2021-12-01 | AR172: 2024-12-01 | AS172: 34.26 | AT172: =IF(AT$43>$AR172,0,IF(AT$43>=$AQ172,AT$44,0)) -> 0.77 | AU172: =IF(AU$43>$AR172,0,IF(AU$43>=$AQ172,AU$44,0)) -> 0.73 | AV172: =IF(AV$43>$AR172,0,IF(AV$43>=$AQ172,AV$44,0)) -> 0.76 | AW172: =IF(AW$43>$AR172,0,IF(AW$43>=$AQ172,AW$44,0)) -> 0.93 | AX172: =IF(AX$43>$AR172,0,IF(AX$43>=$AQ172,AX$44,0)) -> 0.83 | AY172: =IF(AY$43>$AR172,0,IF(AY$43>=$AQ172,AY$44,0)) -> 1.03 | AZ172: =IF(AZ$43>$AR172,0,IF(AZ$43>=$AQ172,AZ$44,0)) -> 1.02 | BA172: =IF(BA$43>$AR172,0,IF(BA$43>=$AQ172,BA$44,0)) -> 1.03 | BB172: =IF(BB$43>$AR172,0,IF(BB$43>=$AQ172,BB$44,0)) -> 1.17 | BC172: =IF(BC$43>$AR172,0,IF(BC$43>=$AQ172,BC$44,0)) -> 1.07 | BD172: =IF(BD$43>$AR172,0,IF(BD$43>=$AQ172,BD$44,0)) -> 1.02 | BE172: =IF(BE$43>$AR172,0,IF(BE$43>=$AQ172,BE$44,0)) -> 1.02 | BF172: =IF(BF$43>$AR172,0,IF(BF$43>=$AQ172,BF$44,0)) -> 1.12 | BG172: =IF(BG$43>$AR172,0,IF(BG$43>=$AQ172,BG$44,0)) -> 1.12 | BH172: =IF(BH$43>$AR172,0,IF(BH$43>=$AQ172,BH$44,0)) -> 0.92 | BI172: =IF(BI$43>$AR172,0,IF(BI$43>=$AQ172,BI$44,0)) -> 1.17 | BJ172: =IF(BJ$43>$AR172,0,IF(BJ$43>=$AQ172,BJ$44,0)) -> 0.92 | BK172: =IF(BK$43>$AR172,0,IF(BK$43>=$AQ172,BK$44,0)) -> 1.12 | BL172: =IF(BL$43>$AR172,0,IF(BL$43>=$AQ172,BL$44,0)) -> 1.07 | BM172: =IF(BM$43>$AR172,0,IF(BM$43>=$AQ172,BM$44,0)) -> 1.07 | BN172: =IF(BN$43>$AR172,0,IF(BN$43>=$AQ172,BN$44,0)) -> 1.14 | BO172: =IF(BO$43>$AR172,0,IF(BO$43>=$AQ172,BO$44,0)) -> 0.97 | BP172: =IF(BP$43>$AR172,0,IF(BP$43>=$AQ172,BP$44,0)) -> 1 | BQ172: =IF(BQ$43>$AR172,0,IF(BQ$43>=$AQ172,BQ$44,0)) -> 0.92 | BR172: =IF(BR$43>$AR172,0,IF(BR$43>=$AQ172,BR$44,0)) -> 0.89 | BS172: =IF(BS$43>$AR172,0,IF(BS$43>=$AQ172,BS$44,0)) -> 0.97 | BT172: =IF(BT$43>$AR172,0,IF(BT$43>=$AQ172,BT$44,0)) -> 0.8 | BU172: =IF(BU$43>$AR172,0,IF(BU$43>=$AQ172,BU$44,0)) -> 0.83 | BV172: =IF(BV$43>$AR172,0,IF(BV$43>=$AQ172,BV$44,0)) -> 0.89 | BW172: =IF(BW$43>$AR172,0,IF(BW$43>=$AQ172,BW$44,0)) -> 0.83 | BX172: =IF(BX$43>$AR172,0,IF(BX$43>=$AQ172,BX$44,0)) -> 0.79 | BY172: =IF(BY$43>$AR172,0,IF(BY$43>=$AQ172,BY$44,0)) -> 0.91 | BZ172: =IF(BZ$43>$AR172,0,IF(BZ$43>=$AQ172,BZ$44,0)) -> 0.87 | CA172: =IF(CA$43>$AR172,0,IF(CA$43>=$AQ172,CA$44,0)) -> 0.84 | CB172: =IF(CB$43>$AR172,0,IF(CB$43>=$AQ172,CB$44,0)) -> 0.93 | CC172: =IF(CC$43>$AR172,0,IF(CC$43>=$AQ172,CC$44,0)) -> 0.79 | CD172: =IF(CD$43>$AR172,0,IF(CD$43>=$AQ172,CD$44,0)) -> 0 | CE172: =IF(CE$43>$AR172,0,IF(CE$43>=$AQ172,CE$44,0)) -> 0 | CF172: =IF(CF$43>$AR172,0,IF(CF$43>=$AQ172,CF$44,0)) -> 0
A173: 128 | B173: PRC | C173: 5038 | D173: 2019/0174420-1 | E173: 0174420-63.2019.3.00.0000 | F173: STJ | G173: MS 17.801/DF | H173: 2018-06-20 | I173: 2019-03-18 | J173: 2019-06-14 | K173: União | L173: 26.994.558/0001-23 | M173: Brasilia/DF | N173: Comum | O173: 2019-07-01 | P173: 196819.79 | Q173: 1.159666673 | R173: 2.4567 | S173: 34.26 | T173: 279703.71 | U173: 31078.19 | V173: 0 | W173: 0 | X173: 0 | Y173: =TRUNC(AB173*R173/100,2) ->  | Z173: =TRUNC(AB173*$AS173/100,2) ->  | AA173: =TRUNC(Y173*$AS173/100,2) ->  | AB173: =TRUNC(#REF!*Q173,2) ->  | AC173: =T173+U173+V173+W173+X173 -> 310781.9 | AQ173: 2021-12-01 | AR173: 2024-12-01 | AS173: 34.26 | AT173: =IF(AT$43>$AR173,0,IF(AT$43>=$AQ173,AT$44,0)) -> 0.77 | AU173: =IF(AU$43>$AR173,0,IF(AU$43>=$AQ173,AU$44,0)) -> 0.73 | AV173: =IF(AV$43>$AR173,0,IF(AV$43>=$AQ173,AV$44,0)) -> 0.76 | AW173: =IF(AW$43>$AR173,0,IF(AW$43>=$AQ173,AW$44,0)) -> 0.93 | AX173: =IF(AX$43>$AR173,0,IF(AX$43>=$AQ173,AX$44,0)) -> 0.83 | AY173: =IF(AY$43>$AR173,0,IF(AY$43>=$AQ173,AY$44,0)) -> 1.03 | AZ173: =IF(AZ$43>$AR173,0,IF(AZ$43>=$AQ173,AZ$44,0)) -> 1.02 | BA173: =IF(BA$43>$AR173,0,IF(BA$43>=$AQ173,BA$44,0)) -> 1.03 | BB173: =IF(BB$43>$AR173,0,IF(BB$43>=$AQ173,BB$44,0)) -> 1.17 | BC173: =IF(BC$43>$AR173,0,IF(BC$43>=$AQ173,BC$44,0)) -> 1.07 | BD173: =IF(BD$43>$AR173,0,IF(BD$43>=$AQ173,BD$44,0)) -> 1.02 | BE173: =IF(BE$43>$AR173,0,IF(BE$43>=$AQ173,BE$44,0)) -> 1.02 | BF173: =IF(BF$43>$AR173,0,IF(BF$43>=$AQ173,BF$44,0)) -> 1.12 | BG173: =IF(BG$43>$AR173,0,IF(BG$43>=$AQ173,BG$44,0)) -> 1.12 | BH173: =IF(BH$43>$AR173,0,IF(BH$43>=$AQ173,BH$44,0)) -> 0.92 | BI173: =IF(BI$43>$AR173,0,IF(BI$43>=$AQ173,BI$44,0)) -> 1.17 | BJ173: =IF(BJ$43>$AR173,0,IF(BJ$43>=$AQ173,BJ$44,0)) -> 0.92 | BK173: =IF(BK$43>$AR173,0,IF(BK$43>=$AQ173,BK$44,0)) -> 1.12 | BL173: =IF(BL$43>$AR173,0,IF(BL$43>=$AQ173,BL$44,0)) -> 1.07 | BM173: =IF(BM$43>$AR173,0,IF(BM$43>=$AQ173,BM$44,0)) -> 1.07 | BN173: =IF(BN$43>$AR173,0,IF(BN$43>=$AQ173,BN$44,0)) -> 1.14 | BO173: =IF(BO$43>$AR173,0,IF(BO$43>=$AQ173,BO$44,0)) -> 0.97 | BP173: =IF(BP$43>$AR173,0,IF(BP$43>=$AQ173,BP$44,0)) -> 1 | BQ173: =IF(BQ$43>$AR173,0,IF(BQ$43>=$AQ173,BQ$44,0)) -> 0.92 | BR173: =IF(BR$43>$AR173,0,IF(BR$43>=$AQ173,BR$44,0)) -> 0.89 | BS173: =IF(BS$43>$AR173,0,IF(BS$43>=$AQ173,BS$44,0)) -> 0.97 | BT173: =IF(BT$43>$AR173,0,IF(BT$43>=$AQ173,BT$44,0)) -> 0.8 | BU173: 0.83 | BV173: 0.89 | BW173: 0.83 | BX173: 0.79 | BY173: 0.91 | BZ173: =IF(BZ$43>$AR173,0,IF(BZ$43>=$AQ173,BZ$44,0)) -> 0.87 | CA173: =IF(CA$43>$AR173,0,IF(CA$43>=$AQ173,CA$44,0)) -> 0.84 | CB173: =IF(CB$43>$AR173,0,IF(CB$43>=$AQ173,CB$44,0)) -> 0.93 | CC173: =IF(CC$43>$AR173,0,IF(CC$43>=$AQ173,CC$44,0)) -> 0.79 | CD173: =IF(CD$43>$AR173,0,IF(CD$43>=$AQ173,CD$44,0)) -> 0 | CE173: =IF(CE$43>$AR173,0,IF(CE$43>=$AQ173,CE$44,0)) -> 0 | CF173: =IF(CF$43>$AR173,0,IF(CF$43>=$AQ173,CF$44,0)) -> 0
A174: 129 | B174: PRC | C174: 5039 | D174: 2019/0175096-3 | E174: 0175096-11.2019.3.00.0000 | F174: STJ | G174: MS 13.760/DF | H174: 2018-06-20 | I174: 2019-04-22 | J174: 2019-06-14 | K174: União | L174: 26.994.558/0001-23 | M174: Brasilia/DF | N174: Comum | O174: 2019-07-01 | P174: 194491.93 | Q174: 1.159666673 | R174: 2.4567 | S174: 34.26 | T174: 261040.24 | U174: 46065.92 | V174: 0 | W174: 0 | X174: 0 | Y174: =TRUNC(AB174*R174/100,2) ->  | Z174: =TRUNC(AB174*$AS174/100,2) ->  | AA174: =TRUNC(Y174*$AS174/100,2) ->  | AB174: =TRUNC(#REF!*Q174,2) ->  | AC174: =T174+U174+V174+W174+X174 -> 307106.16 | AQ174: 2021-12-01 | AR174: 2024-12-01 | AS174: 34.26 | AT174: =IF(AT$43>$AR174,0,IF(AT$43>=$AQ174,AT$44,0)) -> 0.77 | AU174: =IF(AU$43>$AR174,0,IF(AU$43>=$AQ174,AU$44,0)) -> 0.73 | AV174: =IF(AV$43>$AR174,0,IF(AV$43>=$AQ174,AV$44,0)) -> 0.76 | AW174: =IF(AW$43>$AR174,0,IF(AW$43>=$AQ174,AW$44,0)) -> 0.93 | AX174: =IF(AX$43>$AR174,0,IF(AX$43>=$AQ174,AX$44,0)) -> 0.83 | AY174: =IF(AY$43>$AR174,0,IF(AY$43>=$AQ174,AY$44,0)) -> 1.03 | AZ174: =IF(AZ$43>$AR174,0,IF(AZ$43>=$AQ174,AZ$44,0)) -> 1.02 | BA174: =IF(BA$43>$AR174,0,IF(BA$43>=$AQ174,BA$44,0)) -> 1.03 | BB174: =IF(BB$43>$AR174,0,IF(BB$43>=$AQ174,BB$44,0)) -> 1.17 | BC174: =IF(BC$43>$AR174,0,IF(BC$43>=$AQ174,BC$44,0)) -> 1.07 | BD174: =IF(BD$43>$AR174,0,IF(BD$43>=$AQ174,BD$44,0)) -> 1.02 | BE174: =IF(BE$43>$AR174,0,IF(BE$43>=$AQ174,BE$44,0)) -> 1.02 | BF174: =IF(BF$43>$AR174,0,IF(BF$43>=$AQ174,BF$44,0)) -> 1.12 | BG174: =IF(BG$43>$AR174,0,IF(BG$43>=$AQ174,BG$44,0)) -> 1.12 | BH174: =IF(BH$43>$AR174,0,IF(BH$43>=$AQ174,BH$44,0)) -> 0.92 | BI174: =IF(BI$43>$AR174,0,IF(BI$43>=$AQ174,BI$44,0)) -> 1.17 | BJ174: =IF(BJ$43>$AR174,0,IF(BJ$43>=$AQ174,BJ$44,0)) -> 0.92 | BK174: =IF(BK$43>$AR174,0,IF(BK$43>=$AQ174,BK$44,0)) -> 1.12 | BL174: =IF(BL$43>$AR174,0,IF(BL$43>=$AQ174,BL$44,0)) -> 1.07 | BM174: =IF(BM$43>$AR174,0,IF(BM$43>=$AQ174,BM$44,0)) -> 1.07 | BN174: =IF(BN$43>$AR174,0,IF(BN$43>=$AQ174,BN$44,0)) -> 1.14 | BO174: =IF(BO$43>$AR174,0,IF(BO$43>=$AQ174,BO$44,0)) -> 0.97 | BP174: =IF(BP$43>$AR174,0,IF(BP$43>=$AQ174,BP$44,0)) -> 1 | BQ174: =IF(BQ$43>$AR174,0,IF(BQ$43>=$AQ174,BQ$44,0)) -> 0.92 | BR174: =IF(BR$43>$AR174,0,IF(BR$43>=$AQ174,BR$44,0)) -> 0.89 | BS174: =IF(BS$43>$AR174,0,IF(BS$43>=$AQ174,BS$44,0)) -> 0.97 | BT174: =IF(BT$43>$AR174,0,IF(BT$43>=$AQ174,BT$44,0)) -> 0.8 | BU174: 0.83 | BV174: 0.89 | BW174: 0.83 | BX174: 0.79 | BY174: 0.91 | BZ174: =IF(BZ$43>$AR174,0,IF(BZ$43>=$AQ174,BZ$44,0)) -> 0.87 | CA174: =IF(CA$43>$AR174,0,IF(CA$43>=$AQ174,CA$44,0)) -> 0.84 | CB174: =IF(CB$43>$AR174,0,IF(CB$43>=$AQ174,CB$44,0)) -> 0.93 | CC174: =IF(CC$43>$AR174,0,IF(CC$43>=$AQ174,CC$44,0)) -> 0.79 | CD174: =IF(CD$43>$AR174,0,IF(CD$43>=$AQ174,CD$44,0)) -> 0 | CE174: =IF(CE$43>$AR174,0,IF(CE$43>=$AQ174,CE$44,0)) -> 0 | CF174: =IF(CF$43>$AR174,0,IF(CF$43>=$AQ174,CF$44,0)) -> 0
